Workbook

Sheet Front sheet
B2: Gas Pivotality Model
B5: Version: | C5: Final

Sheet Model explanation
A1: Explanation of the model: This sheet gives an overview of the content of each of the tabs included in this worksheet
A2: Tab name | B2: Tab type | C2: Content | D2: Source of data
A3: Front sheet | B3: n/a | C3: Disclaimer | D3: n/a
A4: Model explanation | B4: n/a | C4: It describes the content of the tabs included in this worksheet | D4: n/a
A5: Table | B5: Output | C5: Output table summarising results from pivotality calculations | D5: n/a
A6: Interface | B6: Input | C6: Input tab where user can choose the demand year and set demand and capacities sensitivities | D6: n/a
A7: Market player X | B7: Input | C7: Input tab where users should input data on its storage and non-storage supplies. User to fill cells highlighted in yellow | D7: n/a
A8: r_NTS demand | B8: Raw data | C8: Raw data on actual demand for gas year 2009/10 | D8: National Grid- see http://marketinformation.natgrid.co.uk/gas/DataItemExplorer.aspx
A9: r_Bacton IUK exports | B9: Raw data and calculations | C9: Data on gas export flows for gas year 2009/2010 from Moffat interconnector. The tab also includes calculations on future flows over the period 2010-16 | D9: National Grid- see http://marketinformation.natgrid.co.uk/gas/DataItemExplorer.aspx
A10: r_Moffat exports | B10: Raw data and calculations | C10: Data on gas export flows for gas year 2009/2010 from Bacton. The tab also includes calculations on future flows over the period 2010-16 | D10: National Grid- see http://marketinformation.natgrid.co.uk/gas/DataItemExplorer.aspx
A11: r_Demand growth forecast | B11: Raw data/Assumptions | C11: Raw data on average and peak demand growth rates over the forecasted period. Users might want to modify these assumptions | D11: National Grid Ten Year Statement (2010)
A12: r_Storage injections | B12: Raw data | C12: Raw data on actual storage injection (accounted as part of demand) by site and day | D12: National Grid- see http://marketinformation.natgrid.co.uk/gas/DataItemExplorer.aspx
A13: r_on line storage | B13: Raw data/Input | C13: Raw data on storage facilities which are operational and/or will be operational in the future. This data feeds into the Interface and Market player X tabs. Users might want to change these assumptions | D13: National Grid Ten Year Statement (2010) & UK and Ireland Gas Project Tracker, Platts European Gas Daily, volume 15, issue 221, November 15 2010
A14: r_Storage parameters | B14: Raw data | C14: Raw data on injection rate, delivery rate and space | D14: National Grid Ten Year Statement (2010) & UK and Ireland Gas Project Tracker, Platts European Gas Daily, volume 15, issue 221, November 15 2011
A15: r_Capacities and coefficients | B15: Raw data/ assumptions | C15: Tab contains raw data on capacities and Ofgem's calculations on coefficients. Users might want to change the assumptions in this tab | D15: National Grid Ten Year Statement (2010) & National Grid Winter Outlook Report 2009/10
A16: r_Data from TYS 2010 (Appendix) | B16: Raw data | C16: Tab contains data on sources of gas supply from National Grid Ten Year Statement 2010 | D16: National Grid Ten Year Statement (2010)
A17: r_storage stock levels (daily) | B17: Raw data and calculations | C17: Raw data on daily closing stock levels at long-range, medium range and short range storage facilities. This tab also calculates daily closing stock levels as a % of total storage capacity for long-medium run and short-run storage | D17: National Grid Historic Storage Monitors 2008-09 and 2009-10 available on National Grid's website at http://www.nationalgrid.com/uk/Gas/Data/storage/
A18: c_Demand break down | B18: Calculations | C18: Intermediate calculations on gas demand feeding into c_Demand calculations tab | D18: n/a
A19: c_Demand calculations | B19: Calculations | C19: Intermediate and final calculations on future gas demand | D19: n/a
A20: c_Storage calculations | B20: Calculations | C20: Intermediate calculations tab on storage stock levels | D20: n/a
A21: c_Sources calculations | B21: Calculations/Assumptions | C21: Intermediate calculations on maximum daily, weekly, monthly, quarterly and seasonal capacity of market player X and all other suppliers. This tab also allows users to change the duration of stress test N_2 | D21: n/a
A22: c_storage stock levels (quarter) | B22: Calculations | C22: Calculations of quarterly average storage stock levels for long-medium run and short-run storage | D22: n/a
A23: c_Daily | B23: Calculations | C23: Intermediate calculations on pivotality | D23: n/a
A24: c_Weekly | B24: Calculations | C24: Intermediate calculations on pivotality | D24: n/a
A25: c_Monthly | B25: Calculations | C25: Intermediate calculations on pivotality | D25: n/a
A26: c_Quarterly | B26: Calculations | C26: Intermediate calculations on pivotality | D26: n/a
A27: c_Seasonal | B27: Calculations | C27: Intermediate calculations on pivotality | D27: n/a

Sheet Table
B2: Pivotality results | C2: 09/10 | D2: 10/11 | E2: 11/12 | F2: 12/13 | G2: 13/14 | H2: 14/15 | I2: 15/16 | J2: 16/17
B3: Daily | C3: 0%, [0] | D3: 0%, [0] | E3: 0%, [0] | F3: 0%, [0] | G3: 0%, [0] | H3: 0%, [0] | I3: 0%, [0] | J3: 0%, [0]
B4: Weekly | C4: 0%, [0] | D4: 0%, [0] | E4: 0%, [0] | F4: 0%, [0] | G4: 0%, [0] | H4: 0%, [0] | I4: 0%, [0] | J4: 0%, [0]
B5: Monthly | C5: 0%, [0] | D5: 0%, [0] | E5: 0%, [0] | F5: 0%, [0] | G5: 0%, [0] | H5: 0%, [0] | I5: 0%, [0] | J5: 0%, [0]
B6: Quarterly | C6: 0%, [0] | D6: 0%, [0] | E6: 0%, [0] | F6: 0%, [0] | G6: 0%, [0] | H6: 0%, [0] | I6: 0%, [0] | J6: 0%, [0]
B7: Seasonal | C7: 0%, [0] | D7: 0%, [0] | E7: 0%, [0] | F7: 0%, [0] | G7: 0%, [0] | H7: 0%, [0] | I7: 0%, [0] | J7: 0%, [1]
B8: *Market player's 'pivotal gas volume of supply' as % of GB gas demand, [number of periods in which market player is pivotal]

Sheet Interface
D1: =Z10 -> 16/17
B2: Modeled period (gas year) | D2: =D1 -> 16/17
Z3: 09/10
B4: Demand sensitivity (as % base case demand) | E4: 1 | Z4: 10/11
B5: Stress test daily capacities (GWh/day) | D5: N-1 | E5: 0 | F5: N-2 | G5: 0 | I5: Results summary | Z5: 11/12
Z6: 12/13
I7: Timeframe | J7: Number of days in period (days) | K7: Resource inadequacy periods (periods) | L7: Pivotal periods (periods) | M7: Equivalent pivotal days (days) | N7: Pivotal volume in pivotal periods (GWh) | O7: Total demand in pivotal periods (GWh) | P7: Pivotal volume in pivotal periods (% GB demand) | Z7: 13/14 | AA7: Pivotal volume/demand (Rounded) | AB7: Pivotal Volume /Potential supply | AD7: Years used for assessment
B8: Sources parameters | I8: Daily | J8: 1 | K8: =c_Daily!Q3 -> 0 | L8: =c_Daily!$T$3 -> 0 | M8: =L8*J8 -> 0 | N8: =c_Daily!$U$3 -> 0 | O8: =c_Daily!$V$3 -> 0 | P8: =IF(O8>0,N8/O8,"0") -> 0 | Q8: =""&ROUND(P8*100, 0)&"%, ["&L8&"]" -> 0%, [0] | Z8: 14/15 | AA8: =ROUND(P8*100,2) -> 0 | AB8: =ROUND(#REF!*100,2) ->  | AD8: 09/10
B9: Source | C9: Included (%) | D9: Player's share (%) | I9: Weekly | J9: 7 | K9: =c_Weekly!P3 -> 0 | L9: =c_Weekly!$S$3 -> 0 | M9: =L9*J9 -> 0 | N9: =c_Weekly!$T$3 -> 0 | O9: =c_Weekly!$U$3 -> 0 | P9: =IF(O9>0,N9/O9,"0") -> 0 | Q9: =""&ROUND(P9*100, 0)&"%, ["&L9&"]" -> 0%, [0] | Z9: 15/16 | AA9: =ROUND(P9*100,2) -> 0 | AB9: =ROUND(#REF!*100,2) ->  | AD9: 10/11
A10: 2 | B10: UKCS | C10: 1 | D10: =HLOOKUP($D$2,'Market player X'!$A$12:$I$16,A10,FALSE) -> 0 | I10: Monthly | J10: 30 | K10: =c_Monthly!P3 -> 0 | L10: =c_Monthly!$S$3 -> 0 | M10: =L10*J10 -> 0 | N10: =c_Monthly!$T$3 -> 0 | O10: =c_Monthly!$U$3 -> 0 | P10: 0 | Q10: 0%, [0] | Z10: 16/17 | AA10: 0 | AB10: =ROUND(#REF!*100,2) ->  | AD10: 11/12
A11: =A10+1 -> 3 | B11: Norway | C11: 1 | D11: =HLOOKUP($D$2,'Market player X'!$A$12:$I$16,A11,FALSE) -> 0 | I11: Quarterly | J11: 91 | K11: =c_Quarterly!O3 -> 0 | L11: =c_Quarterly!$R$3 -> 0 | M11: =L11*J11 -> 0 | N11: =c_Quarterly!$S$3 -> 0 | O11: =c_Quarterly!$T$3 -> 0 | P11: 0 | Q11: 0%, [0] | AA11: 0 | AB11: =ROUND(#REF!*100,2) ->  | AD11: 12/13
A12: =A11+1 -> 4 | B12: LNG | C12: 1 | D12: =HLOOKUP($D$2,'Market player X'!$A$12:$I$16,A12,FALSE) -> 0 | I12: Seasonal | J12: 183 | K12: =c_Seasonal!O3 -> 1 | L12: =c_Seasonal!$R$3 -> 1 | M12: =L12*J12 -> 183 | N12: =c_Seasonal!$S$3 -> 2555.584108 | O12: =c_Seasonal!$T$3 -> 642464.2463 | P12: 0.003977784169 | Q12: 0%, [1] | AA12: 0.4 | AB12: =ROUND(#REF!*100,2) ->  | AD12: 13/14
A13: =A12+1 -> 5 | B13: Continent | C13: 1 | D13: =HLOOKUP($D$2,'Market player X'!$A$12:$I$16,A13,FALSE) -> 0 | AD13: 14/15
AA14: =""&AA12&"%, ["&AB12&"%]" ->  | AD14: 15/16
AD15: 16/17
B17: Storage parameters
B18: Storage facility | C18: Included (%) | D18: Player's share (%) | E18: Type | I18: Daily analysis | P18: Weekly analysis
B19: Rough | C19: =INDEX('r_Online storage'!$B$2:$J$28, MATCH(B19, 'r_Online storage'!$B$2:$B$28, FALSE), MATCH(Interface!$D$1, 'r_Online storage'!$B$2:$J$2, FALSE)) -> 1 | D19: =VLOOKUP(B19,'Market player X'!$A$20:$C$45,3,FALSE) -> 0 | E19: LRS/MRS
B20: Hatfield | C20: =INDEX('r_Online storage'!$B$2:$J$28, MATCH(B20, 'r_Online storage'!$B$2:$B$28, FALSE), MATCH(Interface!$D$1, 'r_Online storage'!$B$2:$J$2, FALSE)) -> 1 | D20: =VLOOKUP(B20,'Market player X'!$A$20:$C$45,3,FALSE) -> 0 | E20: LRS/MRS
B21: Humbly Grove | C21: =INDEX('r_Online storage'!$B$2:$J$28, MATCH(B21, 'r_Online storage'!$B$2:$B$28, FALSE), MATCH(Interface!$D$1, 'r_Online storage'!$B$2:$J$2, FALSE)) -> 1 | D21: =VLOOKUP(B21,'Market player X'!$A$20:$C$45,3,FALSE) -> 0 | E21: LRS/MRS
B22: Hornsea | C22: =INDEX('r_Online storage'!$B$2:$J$28, MATCH(B22, 'r_Online storage'!$B$2:$B$28, FALSE), MATCH(Interface!$D$1, 'r_Online storage'!$B$2:$J$2, FALSE)) -> 1 | D22: =VLOOKUP(B22,'Market player X'!$A$20:$C$45,3,FALSE) -> 0 | E22: LRS/MRS
B23: Holford | C23: =INDEX('r_Online storage'!$B$2:$J$28, MATCH(B23, 'r_Online storage'!$B$2:$B$28, FALSE), MATCH(Interface!$D$1, 'r_Online storage'!$B$2:$J$2, FALSE)) -> 1 | D23: =VLOOKUP(B23,'Market player X'!$A$20:$C$45,3,FALSE) -> 0 | E23: LRS/MRS
B24: Aldbrough 1 a | C24: =INDEX('r_Online storage'!$B$2:$J$28, MATCH(B24, 'r_Online storage'!$B$2:$B$28, FALSE), MATCH(Interface!$D$1, 'r_Online storage'!$B$2:$J$2, FALSE)) -> 1 | D24: =VLOOKUP(B24,'Market player X'!$A$20:$C$45,3,FALSE) -> 0 | E24: LRS/MRS
B25: Aldbrough 1 b | C25: =INDEX('r_Online storage'!$B$2:$J$28, MATCH(B25, 'r_Online storage'!$B$2:$B$28, FALSE), MATCH(Interface!$D$1, 'r_Online storage'!$B$2:$J$2, FALSE)) -> 1 | D25: =VLOOKUP(B25,'Market player X'!$A$20:$C$45,3,FALSE) -> 0 | E25: LRS/MRS | AA25: =""&AA24&"%, ["&AB24&"%]" -> %, [%]
B26: Hole House Farm | C26: =INDEX('r_Online storage'!$B$2:$J$28, MATCH(B26, 'r_Online storage'!$B$2:$B$28, FALSE), MATCH(Interface!$D$1, 'r_Online storage'!$B$2:$J$2, FALSE)) -> 1 | D26: =VLOOKUP(B26,'Market player X'!$A$20:$C$45,3,FALSE) -> 0 | E26: LRS/MRS
B27: Hewett | C27: =INDEX('r_Online storage'!$B$2:$J$28, MATCH(B27, 'r_Online storage'!$B$2:$B$28, FALSE), MATCH(Interface!$D$1, 'r_Online storage'!$B$2:$J$2, FALSE)) -> 0 | D27: =VLOOKUP(B27,'Market player X'!$A$20:$C$45,3,FALSE) -> 0 | E27: LRS/MRS
B28: Bains | C28: =INDEX('r_Online storage'!$B$2:$J$28, MATCH(B28, 'r_Online storage'!$B$2:$B$28, FALSE), MATCH(Interface!$D$1, 'r_Online storage'!$B$2:$J$2, FALSE)) -> 0 | D28: =VLOOKUP(B28,'Market player X'!$A$20:$C$45,3,FALSE) -> 0 | E28: LRS/MRS
B29: Baird | C29: =INDEX('r_Online storage'!$B$2:$J$28, MATCH(B29, 'r_Online storage'!$B$2:$B$28, FALSE), MATCH(Interface!$D$1, 'r_Online storage'!$B$2:$J$2, FALSE)) -> 0 | D29: =VLOOKUP(B29,'Market player X'!$A$20:$C$45,3,FALSE) -> 0 | E29: LRS/MRS
B30: Portland | C30: =INDEX('r_Online storage'!$B$2:$J$28, MATCH(B30, 'r_Online storage'!$B$2:$B$28, FALSE), MATCH(Interface!$D$1, 'r_Online storage'!$B$2:$J$2, FALSE)) -> 0 | D30: =VLOOKUP(B30,'Market player X'!$A$20:$C$45,3,FALSE) -> 0 | E30: LRS/MRS
B31: Caythorpe | C31: =INDEX('r_Online storage'!$B$2:$J$28, MATCH(B31, 'r_Online storage'!$B$2:$B$28, FALSE), MATCH(Interface!$D$1, 'r_Online storage'!$B$2:$J$2, FALSE)) -> 0 | D31: =VLOOKUP(B31,'Market player X'!$A$20:$C$45,3,FALSE) -> 0 | E31: LRS/MRS
B32: Stublach | C32: =INDEX('r_Online storage'!$B$2:$J$28, MATCH(B32, 'r_Online storage'!$B$2:$B$28, FALSE), MATCH(Interface!$D$1, 'r_Online storage'!$B$2:$J$2, FALSE)) -> 1 | D32: =VLOOKUP(B32,'Market player X'!$A$20:$C$45,3,FALSE) -> 0 | E32: LRS/MRS
B33: Hill Top Farm | C33: =INDEX('r_Online storage'!$B$2:$J$28, MATCH(B33, 'r_Online storage'!$B$2:$B$28, FALSE), MATCH(Interface!$D$1, 'r_Online storage'!$B$2:$J$2, FALSE)) -> 1 | D33: =VLOOKUP(B33,'Market player X'!$A$20:$C$45,3,FALSE) -> 0 | E33: LRS/MRS
B34: Avonmouth | C34: =INDEX('r_Online storage'!$B$2:$J$28, MATCH(B34, 'r_Online storage'!$B$2:$B$28, FALSE), MATCH(Interface!$D$1, 'r_Online storage'!$B$2:$J$2, FALSE)) -> 0 | D34: =VLOOKUP(B34,'Market player X'!$A$20:$C$45,3,FALSE) -> 0 | E34: SRS
B35: Glenmavis | C35: =INDEX('r_Online storage'!$B$2:$J$28, MATCH(B35, 'r_Online storage'!$B$2:$B$28, FALSE), MATCH(Interface!$D$1, 'r_Online storage'!$B$2:$J$2, FALSE)) -> 0 | D35: =VLOOKUP(B35,'Market player X'!$A$20:$C$45,3,FALSE) -> 0 | E35: SRS
B36: Partington | C36: =INDEX('r_Online storage'!$B$2:$J$28, MATCH(B36, 'r_Online storage'!$B$2:$B$28, FALSE), MATCH(Interface!$D$1, 'r_Online storage'!$B$2:$J$2, FALSE)) -> 0 | D36: =VLOOKUP(B36,'Market player X'!$A$20:$C$45,3,FALSE) -> 0 | E36: SRS
B37: Aldbrough 2 | C37: =INDEX('r_Online storage'!$B$2:$J$28, MATCH(B37, 'r_Online storage'!$B$2:$B$28, FALSE), MATCH(Interface!$D$1, 'r_Online storage'!$B$2:$J$2, FALSE)) -> 0 | D37: =VLOOKUP(B37,'Market player X'!$A$20:$C$45,3,FALSE) -> 0 | E37: LRS/MRS
B38: Whitehill F | C38: =INDEX('r_Online storage'!$B$2:$J$28, MATCH(B38, 'r_Online storage'!$B$2:$B$28, FALSE), MATCH(Interface!$D$1, 'r_Online storage'!$B$2:$J$2, FALSE)) -> 0 | D38: =VLOOKUP(B38,'Market player X'!$A$20:$C$45,3,FALSE) -> 0 | E38: LRS/MRS
B39: Holford H165 | C39: =INDEX('r_Online storage'!$B$2:$J$28, MATCH(B39, 'r_Online storage'!$B$2:$B$28, FALSE), MATCH(Interface!$D$1, 'r_Online storage'!$B$2:$J$2, FALSE)) -> 0 | D39: =VLOOKUP(B39,'Market player X'!$A$20:$C$45,3,FALSE) -> 0 | E39: LRS/MRS
B40: Saltfleetby | C40: =INDEX('r_Online storage'!$B$2:$J$28, MATCH(B40, 'r_Online storage'!$B$2:$B$28, FALSE), MATCH(Interface!$D$1, 'r_Online storage'!$B$2:$J$2, FALSE)) -> 0 | D40: =VLOOKUP(B40,'Market player X'!$A$20:$C$45,3,FALSE) -> 0 | E40: LRS/MRS | I40: Monthly analysis | P40: Quarterly analysis
B41: Gateway | C41: =INDEX('r_Online storage'!$B$2:$J$28, MATCH(B41, 'r_Online storage'!$B$2:$B$28, FALSE), MATCH(Interface!$D$1, 'r_Online storage'!$B$2:$J$2, FALSE)) -> 0 | D41: =VLOOKUP(B41,'Market player X'!$A$20:$C$45,3,FALSE) -> 0 | E41: LRS/MRS
B42: Albury | C42: =INDEX('r_Online storage'!$B$2:$J$28, MATCH(B42, 'r_Online storage'!$B$2:$B$28, FALSE), MATCH(Interface!$D$1, 'r_Online storage'!$B$2:$J$2, FALSE)) -> 0 | D42: =VLOOKUP(B42,'Market player X'!$A$20:$C$45,3,FALSE) -> 0 | E42: LRS/MRS
B43: SNS Storage | C43: =INDEX('r_Online storage'!$B$2:$J$28, MATCH(B43, 'r_Online storage'!$B$2:$B$28, FALSE), MATCH(Interface!$D$1, 'r_Online storage'!$B$2:$J$2, FALSE)) -> 0 | D43: =VLOOKUP(B43,'Market player X'!$A$20:$C$45,3,FALSE) -> 0 | E43: LRS/MRS
B44: Fleetwood | C44: =INDEX('r_Online storage'!$B$2:$J$28, MATCH(B44, 'r_Online storage'!$B$2:$B$28, FALSE), MATCH(Interface!$D$1, 'r_Online storage'!$B$2:$J$2, FALSE)) -> 0 | D44: =VLOOKUP(B44,'Market player X'!$A$20:$C$45,3,FALSE) -> 0 | E44: LRS/MRS
I62: Seasonal analysis

Sheet Market player X
A1: NOTE: Market player X to fill in all cells with a yellow fill. Figures contained in yellow cells are for illustrative purposes only. Users should use their own data where appropriate and/or make their own assumptions.
A3: Non-storage supplies
A4: Market player's maximum daily deliverability (GWh/day) | B4: 09/10 | C4: 10/11 | D4: 11/12 | E4: 12/13 | F4: 13/14 | G4: 14/15 | H4: 15/16 | I4: 16/17
A5: UKCS | B5: 0 | C5: 0 | D5: 0 | E5: 0 | F5: 0 | G5: 0 | H5: 0 | I5: 0
A6: Norway | B6: 0 | C6: 0 | D6: 0 | E6: 0 | F6: 0 | G6: 0 | H6: 0 | I6: 0
A7: LNG | B7: 0 | C7: 0 | D7: 0 | E7: 0 | F7: 0 | G7: 0 | H7: 0 | I7: 0
A8: Continent | B8: =SUM(B9:B10) -> 0 | C8: =SUM(C9:C10) -> 0 | D8: 0 | E8: 0 | F8: 0 | G8: 0 | H8: 0 | I8: 0
A9: -IUK | B9: 0 | C9: 0 | D9: 0 | E9: 0 | F9: 0 | G9: 0 | H9: 0 | I9: 0
A10: -BBL | B10: 0 | C10: 0 | D10: 0 | E10: 0 | F10: 0 | G10: 0 | H10: 0 | I10: 0
A12: Market player's share of maximum daily deliverability (%) | B12: 09/10 | C12: 10/11 | D12: 11/12 | E12: 12/13 | F12: 13/14 | G12: 14/15 | H12: 15/16 | I12: 16/17
A13: UKCS | B13: =B5/'r_Capacities and coefficients'!B3 -> 0 | C13: =C5/'r_Capacities and coefficients'!C3 -> 0 | D13: =D5/'r_Capacities and coefficients'!D3 -> 0 | E13: =E5/'r_Capacities and coefficients'!E3 -> 0 | F13: =F5/'r_Capacities and coefficients'!F3 -> 0 | G13: =G5/'r_Capacities and coefficients'!G3 -> 0 | H13: =H5/'r_Capacities and coefficients'!H3 -> 0 | I13: =I5/'r_Capacities and coefficients'!I3 -> 0
A14: Norway | B14: =B6/'r_Capacities and coefficients'!B4 -> 0 | C14: =C6/'r_Capacities and coefficients'!C4 -> 0 | D14: =D6/'r_Capacities and coefficients'!D4 -> 0 | E14: =E6/'r_Capacities and coefficients'!E4 -> 0 | F14: =F6/'r_Capacities and coefficients'!F4 -> 0 | G14: =G6/'r_Capacities and coefficients'!G4 -> 0 | H14: =H6/'r_Capacities and coefficients'!H4 -> 0 | I14: =I6/'r_Capacities and coefficients'!I4 -> 0
A15: LNG | B15: =B7/'r_Capacities and coefficients'!B5 -> 0 | C15: =C7/'r_Capacities and coefficients'!C5 -> 0 | D15: =D7/'r_Capacities and coefficients'!D5 -> 0 | E15: =E7/'r_Capacities and coefficients'!E5 -> 0 | F15: =F7/'r_Capacities and coefficients'!F5 -> 0 | G15: =G7/'r_Capacities and coefficients'!G5 -> 0 | H15: =H7/'r_Capacities and coefficients'!H5 -> 0 | I15: =I7/'r_Capacities and coefficients'!I5 -> 0
A16: Continent | B16: =B8/'r_Capacities and coefficients'!B6 -> 0 | C16: =C8/'r_Capacities and coefficients'!C6 -> 0 | D16: =D8/'r_Capacities and coefficients'!D6 -> 0 | E16: =E8/'r_Capacities and coefficients'!E6 -> 0 | F16: =F8/'r_Capacities and coefficients'!F6 -> 0 | G16: =G8/'r_Capacities and coefficients'!G6 -> 0 | H16: =H8/'r_Capacities and coefficients'!H6 -> 0 | I16: =I8/'r_Capacities and coefficients'!I6 -> 0
A18: Storage supplies
A19: Facility | B19: ="Online in gas year "&Interface!D1&"?" -> Online in gas year 16/17? | C19: Market player's share of space (%)
A20: Rough | B20: =INDEX('r_Online storage'!$B$2:$J$28, MATCH(A20, 'r_Online storage'!$B$2:$B$28, FALSE), MATCH(Interface!$D$1, 'r_Online storage'!$B$2:$J$2, FALSE)) -> 1 | C20: 0
A21: Hatfield | B21: =INDEX('r_Online storage'!$B$2:$J$28, MATCH(A21, 'r_Online storage'!$B$2:$B$28, FALSE), MATCH(Interface!$D$1, 'r_Online storage'!$B$2:$J$2, FALSE)) -> 1 | C21: 0
A22: Humbly Grove | B22: =INDEX('r_Online storage'!$B$2:$J$28, MATCH(A22, 'r_Online storage'!$B$2:$B$28, FALSE), MATCH(Interface!$D$1, 'r_Online storage'!$B$2:$J$2, FALSE)) -> 1 | C22: 0
A23: Hornsea | B23: =INDEX('r_Online storage'!$B$2:$J$28, MATCH(A23, 'r_Online storage'!$B$2:$B$28, FALSE), MATCH(Interface!$D$1, 'r_Online storage'!$B$2:$J$2, FALSE)) -> 1 | C23: 0
A24: Holford | B24: =INDEX('r_Online storage'!$B$2:$J$28, MATCH(A24, 'r_Online storage'!$B$2:$B$28, FALSE), MATCH(Interface!$D$1, 'r_Online storage'!$B$2:$J$2, FALSE)) -> 1 | C24: 0
A25: Aldbrough 1 a | B25: =INDEX('r_Online storage'!$B$2:$J$28, MATCH(A25, 'r_Online storage'!$B$2:$B$28, FALSE), MATCH(Interface!$D$1, 'r_Online storage'!$B$2:$J$2, FALSE)) -> 1 | C25: 0
A26: Aldbrough 1 b | B26: =INDEX('r_Online storage'!$B$2:$J$28, MATCH(A26, 'r_Online storage'!$B$2:$B$28, FALSE), MATCH(Interface!$D$1, 'r_Online storage'!$B$2:$J$2, FALSE)) -> 1 | C26: 0
A27: Hole House Farm | B27: =INDEX('r_Online storage'!$B$2:$J$28, MATCH(A27, 'r_Online storage'!$B$2:$B$28, FALSE), MATCH(Interface!$D$1, 'r_Online storage'!$B$2:$J$2, FALSE)) -> 1 | C27: 0
A28: Hewett | B28: =INDEX('r_Online storage'!$B$2:$J$28, MATCH(A28, 'r_Online storage'!$B$2:$B$28, FALSE), MATCH(Interface!$D$1, 'r_Online storage'!$B$2:$J$2, FALSE)) -> 0 | C28: 0
A29: Bains | B29: =INDEX('r_Online storage'!$B$2:$J$28, MATCH(A29, 'r_Online storage'!$B$2:$B$28, FALSE), MATCH(Interface!$D$1, 'r_Online storage'!$B$2:$J$2, FALSE)) -> 0 | C29: 0
A30: Baird | B30: =INDEX('r_Online storage'!$B$2:$J$28, MATCH(A30, 'r_Online storage'!$B$2:$B$28, FALSE), MATCH(Interface!$D$1, 'r_Online storage'!$B$2:$J$2, FALSE)) -> 0 | C30: 0
A31: Portland | B31: =INDEX('r_Online storage'!$B$2:$J$28, MATCH(A31, 'r_Online storage'!$B$2:$B$28, FALSE), MATCH(Interface!$D$1, 'r_Online storage'!$B$2:$J$2, FALSE)) -> 0 | C31: 0
A32: Caythorpe | B32: =INDEX('r_Online storage'!$B$2:$J$28, MATCH(A32, 'r_Online storage'!$B$2:$B$28, FALSE), MATCH(Interface!$D$1, 'r_Online storage'!$B$2:$J$2, FALSE)) -> 0 | C32: 0
A33: Stublach | B33: =INDEX('r_Online storage'!$B$2:$J$28, MATCH(A33, 'r_Online storage'!$B$2:$B$28, FALSE), MATCH(Interface!$D$1, 'r_Online storage'!$B$2:$J$2, FALSE)) -> 1 | C33: 0
A34: Hill Top Farm | B34: =INDEX('r_Online storage'!$B$2:$J$28, MATCH(A34, 'r_Online storage'!$B$2:$B$28, FALSE), MATCH(Interface!$D$1, 'r_Online storage'!$B$2:$J$2, FALSE)) -> 1 | C34: 0
A35: Avonmouth | B35: =INDEX('r_Online storage'!$B$2:$J$28, MATCH(A35, 'r_Online storage'!$B$2:$B$28, FALSE), MATCH(Interface!$D$1, 'r_Online storage'!$B$2:$J$2, FALSE)) -> 0 | C35: 0
A36: Glenmavis | B36: =INDEX('r_Online storage'!$B$2:$J$28, MATCH(A36, 'r_Online storage'!$B$2:$B$28, FALSE), MATCH(Interface!$D$1, 'r_Online storage'!$B$2:$J$2, FALSE)) -> 0 | C36: 0
A37: Partington | B37: =INDEX('r_Online storage'!$B$2:$J$28, MATCH(A37, 'r_Online storage'!$B$2:$B$28, FALSE), MATCH(Interface!$D$1, 'r_Online storage'!$B$2:$J$2, FALSE)) -> 0 | C37: 0
A38: Aldbrough 2 | B38: =INDEX('r_Online storage'!$B$2:$J$28, MATCH(A38, 'r_Online storage'!$B$2:$B$28, FALSE), MATCH(Interface!$D$1, 'r_Online storage'!$B$2:$J$2, FALSE)) -> 0 | C38: 0
A39: Whitehill F | B39: =INDEX('r_Online storage'!$B$2:$J$28, MATCH(A39, 'r_Online storage'!$B$2:$B$28, FALSE), MATCH(Interface!$D$1, 'r_Online storage'!$B$2:$J$2, FALSE)) -> 0 | C39: 0
A40: Holford H165 | B40: =INDEX('r_Online storage'!$B$2:$J$28, MATCH(A40, 'r_Online storage'!$B$2:$B$28, FALSE), MATCH(Interface!$D$1, 'r_Online storage'!$B$2:$J$2, FALSE)) -> 0 | C40: 0
A41: Saltfleetby | B41: =INDEX('r_Online storage'!$B$2:$J$28, MATCH(A41, 'r_Online storage'!$B$2:$B$28, FALSE), MATCH(Interface!$D$1, 'r_Online storage'!$B$2:$J$2, FALSE)) -> 0 | C41: 0
A42: Gateway | B42: =INDEX('r_Online storage'!$B$2:$J$28, MATCH(A42, 'r_Online storage'!$B$2:$B$28, FALSE), MATCH(Interface!$D$1, 'r_Online storage'!$B$2:$J$2, FALSE)) -> 0 | C42: 0
A43: Albury | B43: =INDEX('r_Online storage'!$B$2:$J$28, MATCH(A43, 'r_Online storage'!$B$2:$B$28, FALSE), MATCH(Interface!$D$1, 'r_Online storage'!$B$2:$J$2, FALSE)) -> 0 | C43: 0
A44: SNS Storage | B44: =INDEX('r_Online storage'!$B$2:$J$28, MATCH(A44, 'r_Online storage'!$B$2:$B$28, FALSE), MATCH(Interface!$D$1, 'r_Online storage'!$B$2:$J$2, FALSE)) -> 0 | C44: 0
A45: Fleetwood | B45: =INDEX('r_Online storage'!$B$2:$J$28, MATCH(A45, 'r_Online storage'!$B$2:$B$28, FALSE), MATCH(Interface!$D$1, 'r_Online storage'!$B$2:$J$2, FALSE)) -> 0 | C45: 0

Sheet r_NTS Demand
A1: NTS Demand
A2: mcm/day | B2: DataItem | C2: Value
A3: 2009-10-01 | B3: Demand Actual, NTS, D+1 | C3: 224.57386
A4: 2009-10-02 | B4: Demand Actual, NTS, D+1 | C4: 216.30421
A5: 2009-10-03 | B5: Demand Actual, NTS, D+1 | C5: 225.10427
A6: 2009-10-04 | B6: Demand Actual, NTS, D+1 | C6: 230.14
A7: 2009-10-05 | B7: Demand Actual, NTS, D+1 | C7: 235.90592
A8: 2009-10-06 | B8: Demand Actual, NTS, D+1 | C8: 229.74502
A9: 2009-10-07 | B9: Demand Actual, NTS, D+1 | C9: 243.08549
A10: 2009-10-08 | B10: Demand Actual, NTS, D+1 | C10: 255.28825
A11: 2009-10-09 | B11: Demand Actual, NTS, D+1 | C11: 260.93348
A12: 2009-10-10 | B12: Demand Actual, NTS, D+1 | C12: 257.75231
A13: 2009-10-11 | B13: Demand Actual, NTS, D+1 | C13: 255.66662
A14: 2009-10-12 | B14: Demand Actual, NTS, D+1 | C14: 261.3342
A15: 2009-10-13 | B15: Demand Actual, NTS, D+1 | C15: 261.19827
A16: 2009-10-14 | B16: Demand Actual, NTS, D+1 | C16: 266.89645
A17: 2009-10-15 | B17: Demand Actual, NTS, D+1 | C17: 260.42845
A18: 2009-10-16 | B18: Demand Actual, NTS, D+1 | C18: 258.55021
A19: 2009-10-17 | B19: Demand Actual, NTS, D+1 | C19: 254.63977
A20: 2009-10-18 | B20: Demand Actual, NTS, D+1 | C20: 257.47918
A21: 2009-10-19 | B21: Demand Actual, NTS, D+1 | C21: 266.32524
A22: 2009-10-20 | B22: Demand Actual, NTS, D+1 | C22: 276.74675
A23: 2009-10-21 | B23: Demand Actual, NTS, D+1 | C23: 259.88967
A24: 2009-10-22 | B24: Demand Actual, NTS, D+1 | C24: 260.42177
A25: 2009-10-23 | B25: Demand Actual, NTS, D+1 | C25: 266.59568
A26: 2009-10-24 | B26: Demand Actual, NTS, D+1 | C26: 242.97324
A27: 2009-10-25 | B27: Demand Actual, NTS, D+1 | C27: 250.84938
A28: 2009-10-26 | B28: Demand Actual, NTS, D+1 | C28: 259.41466
A29: 2009-10-27 | B29: Demand Actual, NTS, D+1 | C29: 246.81953
A30: 2009-10-28 | B30: Demand Actual, NTS, D+1 | C30: 248.42159
A31: 2009-10-29 | B31: Demand Actual, NTS, D+1 | C31: 248.05578
A32: 2009-10-30 | B32: Demand Actual, NTS, D+1 | C32: 251.76826
A33: 2009-10-31 | B33: Demand Actual, NTS, D+1 | C33: 254.45927
A34: 2009-11-01 | B34: Demand Actual, NTS, D+1 | C34: 262.57825
A35: 2009-11-02 | B35: Demand Actual, NTS, D+1 | C35: 282.02805
A36: 2009-11-03 | B36: Demand Actual, NTS, D+1 | C36: 275.99297
A37: 2009-11-04 | B37: Demand Actual, NTS, D+1 | C37: 283.37951
A38: 2009-11-05 | B38: Demand Actual, NTS, D+1 | C38: 284.17773
A39: 2009-11-06 | B39: Demand Actual, NTS, D+1 | C39: 285.9478
A40: 2009-11-07 | B40: Demand Actual, NTS, D+1 | C40: 293.48836
A41: 2009-11-08 | B41: Demand Actual, NTS, D+1 | C41: 304.16184
A42: 2009-11-09 | B42: Demand Actual, NTS, D+1 | C42: 335.45495
A43: 2009-11-10 | B43: Demand Actual, NTS, D+1 | C43: 334.40589
A44: 2009-11-11 | B44: Demand Actual, NTS, D+1 | C44: 316.73373
A45: 2009-11-12 | B45: Demand Actual, NTS, D+1 | C45: 296.50997
A46: 2009-11-13 | B46: Demand Actual, NTS, D+1 | C46: 287.1947
A47: 2009-11-14 | B47: Demand Actual, NTS, D+1 | C47: 267.96815
A48: 2009-11-15 | B48: Demand Actual, NTS, D+1 | C48: 268.38546
A49: 2009-11-16 | B49: Demand Actual, NTS, D+1 | C49: 291.28636
A50: 2009-11-17 | B50: Demand Actual, NTS, D+1 | C50: 291.52
A51: 2009-11-18 | B51: Demand Actual, NTS, D+1 | C51: 301.66774
A52: 2009-11-19 | B52: Demand Actual, NTS, D+1 | C52: 279.39114
A53: 2009-11-20 | B53: Demand Actual, NTS, D+1 | C53: 270.68754
A54: 2009-11-21 | B54: Demand Actual, NTS, D+1 | C54: 275.33565
A55: 2009-11-22 | B55: Demand Actual, NTS, D+1 | C55: 288.26499
A56: 2009-11-23 | B56: Demand Actual, NTS, D+1 | C56: 301.04908
A57: 2009-11-24 | B57: Demand Actual, NTS, D+1 | C57: 302.29293
A58: 2009-11-25 | B58: Demand Actual, NTS, D+1 | C58: 311.06253
A59: 2009-11-26 | B59: Demand Actual, NTS, D+1 | C59: 325.62967
A60: 2009-11-27 | B60: Demand Actual, NTS, D+1 | C60: 337.19875
A61: 2009-11-28 | B61: Demand Actual, NTS, D+1 | C61: 325.59839
A62: 2009-11-29 | B62: Demand Actual, NTS, D+1 | C62: 326.3223
A63: 2009-11-30 | B63: Demand Actual, NTS, D+1 | C63: 369.28121
A64: 2009-12-01 | B64: Demand Actual, NTS, D+1 | C64: 381.61347
A65: 2009-12-02 | B65: Demand Actual, NTS, D+1 | C65: 347.78023
A66: 2009-12-03 | B66: Demand Actual, NTS, D+1 | C66: 349.62195
A67: 2009-12-04 | B67: Demand Actual, NTS, D+1 | C67: 355.59023
A68: 2009-12-05 | B68: Demand Actual, NTS, D+1 | C68: 311.77617
A69: 2009-12-06 | B69: Demand Actual, NTS, D+1 | C69: 311.84
A70: 2009-12-07 | B70: Demand Actual, NTS, D+1 | C70: 335.95
A71: 2009-12-08 | B71: Demand Actual, NTS, D+1 | C71: 329.57
A72: 2009-12-09 | B72: Demand Actual, NTS, D+1 | C72: 312.43652
A73: 2009-12-10 | B73: Demand Actual, NTS, D+1 | C73: 333.49371
A74: 2009-12-11 | B74: Demand Actual, NTS, D+1 | C74: 361.48442
A75: 2009-12-12 | B75: Demand Actual, NTS, D+1 | C75: 338.92793
A76: 2009-12-13 | B76: Demand Actual, NTS, D+1 | C76: 352.63949
A77: 2009-12-14 | B77: Demand Actual, NTS, D+1 | C77: 370.29093
A78: 2009-12-15 | B78: Demand Actual, NTS, D+1 | C78: 376.01345
A79: 2009-12-16 | B79: Demand Actual, NTS, D+1 | C79: 384.2666
A80: 2009-12-17 | B80: Demand Actual, NTS, D+1 | C80: 410.22867
A81: 2009-12-18 | B81: Demand Actual, NTS, D+1 | C81: 438.79025
A82: 2009-12-19 | B82: Demand Actual, NTS, D+1 | C82: 416.09
A83: 2009-12-20 | B83: Demand Actual, NTS, D+1 | C83: 407.89719
A84: 2009-12-21 | B84: Demand Actual, NTS, D+1 | C84: 420.39173
A85: 2009-12-22 | B85: Demand Actual, NTS, D+1 | C85: 415.14516
A86: 2009-12-23 | B86: Demand Actual, NTS, D+1 | C86: 405.07099
A87: 2009-12-24 | B87: Demand Actual, NTS, D+1 | C87: 379.29877
A88: 2009-12-25 | B88: Demand Actual, NTS, D+1 | C88: 348.78571
A89: 2009-12-26 | B89: Demand Actual, NTS, D+1 | C89: 335.70935
A90: 2009-12-27 | B90: Demand Actual, NTS, D+1 | C90: 354.03907
A91: 2009-12-28 | B91: Demand Actual, NTS, D+1 | C91: 373.5458
A92: 2009-12-29 | B92: Demand Actual, NTS, D+1 | C92: 390.78562
A93: 2009-12-30 | B93: Demand Actual, NTS, D+1 | C93: 387.35666
A94: 2009-12-31 | B94: Demand Actual, NTS, D+1 | C94: 401.85675
A95: 2010-01-01 | B95: Demand Actual, NTS, D+1 | C95: 376.83
A96: 2010-01-02 | B96: Demand Actual, NTS, D+1 | C96: 386.27543
A97: 2010-01-03 | B97: Demand Actual, NTS, D+1 | C97: 400.66001
A98: 2010-01-04 | B98: Demand Actual, NTS, D+1 | C98: 441.07641
A99: 2010-01-05 | B99: Demand Actual, NTS, D+1 | C99: 435.54203
A100: 2010-01-06 | B100: Demand Actual, NTS, D+1 | C100: 446.76011
A101: 2010-01-07 | B101: Demand Actual, NTS, D+1 | C101: 453.89504
A102: 2010-01-08 | B102: Demand Actual, NTS, D+1 | C102: 465.46
A103: 2010-01-09 | B103: Demand Actual, NTS, D+1 | C103: 438.61798
A104: 2010-01-10 | B104: Demand Actual, NTS, D+1 | C104: 415.63603
A105: 2010-01-11 | B105: Demand Actual, NTS, D+1 | C105: 424.40357
A106: 2010-01-12 | B106: Demand Actual, NTS, D+1 | C106: 434.36555
A107: 2010-01-13 | B107: Demand Actual, NTS, D+1 | C107: 439.8188
A108: 2010-01-14 | B108: Demand Actual, NTS, D+1 | C108: 414.72464
A109: 2010-01-15 | B109: Demand Actual, NTS, D+1 | C109: 397.31171
A110: 2010-01-16 | B110: Demand Actual, NTS, D+1 | C110: 367.44586
A111: 2010-01-17 | B111: Demand Actual, NTS, D+1 | C111: 352.28549
A112: 2010-01-18 | B112: Demand Actual, NTS, D+1 | C112: 381.02823
A113: 2010-01-19 | B113: Demand Actual, NTS, D+1 | C113: 388.28162
A114: 2010-01-20 | B114: Demand Actual, NTS, D+1 | C114: 393.73993
A115: 2010-01-21 | B115: Demand Actual, NTS, D+1 | C115: 388.87637
A116: 2010-01-22 | B116: Demand Actual, NTS, D+1 | C116: 368.69486
A117: 2010-01-23 | B117: Demand Actual, NTS, D+1 | C117: 357.78951
A118: 2010-01-24 | B118: Demand Actual, NTS, D+1 | C118: 363.85643
A119: 2010-01-25 | B119: Demand Actual, NTS, D+1 | C119: 397.1128
A120: 2010-01-26 | B120: Demand Actual, NTS, D+1 | C120: 416.73464
A121: 2010-01-27 | B121: Demand Actual, NTS, D+1 | C121: 390.54934
A122: 2010-01-28 | B122: Demand Actual, NTS, D+1 | C122: 372.44747
A123: 2010-01-29 | B123: Demand Actual, NTS, D+1 | C123: 389.32574
A124: 2010-01-30 | B124: Demand Actual, NTS, D+1 | C124: 395.01378
A125: 2010-01-31 | B125: Demand Actual, NTS, D+1 | C125: 392.77655
A126: 2010-02-01 | B126: Demand Actual, NTS, D+1 | C126: 397.84976
A127: 2010-02-02 | B127: Demand Actual, NTS, D+1 | C127: 385.4427
A128: 2010-02-03 | B128: Demand Actual, NTS, D+1 | C128: 393.1
A129: 2010-02-04 | B129: Demand Actual, NTS, D+1 | C129: 372.65715
A130: 2010-02-05 | B130: Demand Actual, NTS, D+1 | C130: 346.54224
A131: 2010-02-06 | B131: Demand Actual, NTS, D+1 | C131: 346.25893
A132: 2010-02-07 | B132: Demand Actual, NTS, D+1 | C132: 348.91426
A133: 2010-02-08 | B133: Demand Actual, NTS, D+1 | C133: 399.22576
A134: 2010-02-09 | B134: Demand Actual, NTS, D+1 | C134: 399.12175
A135: 2010-02-10 | B135: Demand Actual, NTS, D+1 | C135: 411.54233
A136: 2010-02-11 | B136: Demand Actual, NTS, D+1 | C136: 420.51051
A137: 2010-02-12 | B137: Demand Actual, NTS, D+1 | C137: 393.99277
A138: 2010-02-13 | B138: Demand Actual, NTS, D+1 | C138: 379.18563
A139: 2010-02-14 | B139: Demand Actual, NTS, D+1 | C139: 371.32857
A140: 2010-02-15 | B140: Demand Actual, NTS, D+1 | C140: 389.79
A141: 2010-02-16 | B141: Demand Actual, NTS, D+1 | C141: 386.45591
A142: 2010-02-17 | B142: Demand Actual, NTS, D+1 | C142: 386.94345
A143: 2010-02-18 | B143: Demand Actual, NTS, D+1 | C143: 392.3156
A144: 2010-02-19 | B144: Demand Actual, NTS, D+1 | C144: 386.09296
A145: 2010-02-20 | B145: Demand Actual, NTS, D+1 | C145: 365.41748
A146: 2010-02-21 | B146: Demand Actual, NTS, D+1 | C146: 372.31513
A147: 2010-02-22 | B147: Demand Actual, NTS, D+1 | C147: 394.45086
A148: 2010-02-23 | B148: Demand Actual, NTS, D+1 | C148: 401.47875
A149: 2010-02-24 | B149: Demand Actual, NTS, D+1 | C149: 367.1095
A150: 2010-02-25 | B150: Demand Actual, NTS, D+1 | C150: 358.52019
A151: 2010-02-26 | B151: Demand Actual, NTS, D+1 | C151: 365.34934
A152: 2010-02-27 | B152: Demand Actual, NTS, D+1 | C152: 349.5081
A153: 2010-02-28 | B153: Demand Actual, NTS, D+1 | C153: 365.30598
A154: 2010-03-01 | B154: Demand Actual, NTS, D+1 | C154: 377.47914
A155: 2010-03-02 | B155: Demand Actual, NTS, D+1 | C155: 379.29914
A156: 2010-03-03 | B156: Demand Actual, NTS, D+1 | C156: 394.49703
A157: 2010-03-04 | B157: Demand Actual, NTS, D+1 | C157: 394.76497
A158: 2010-03-05 | B158: Demand Actual, NTS, D+1 | C158: 392.70578
A159: 2010-03-06 | B159: Demand Actual, NTS, D+1 | C159: 369.31315
A160: 2010-03-07 | B160: Demand Actual, NTS, D+1 | C160: 382.55785
A161: 2010-03-08 | B161: Demand Actual, NTS, D+1 | C161: 395.02575
A162: 2010-03-09 | B162: Demand Actual, NTS, D+1 | C162: 390.88268
A163: 2010-03-10 | B163: Demand Actual, NTS, D+1 | C163: 384.3602
A164: 2010-03-11 | B164: Demand Actual, NTS, D+1 | C164: 363.17317
A165: 2010-03-12 | B165: Demand Actual, NTS, D+1 | C165: 354.47807
A166: 2010-03-13 | B166: Demand Actual, NTS, D+1 | C166: 320.30276
A167: 2010-03-14 | B167: Demand Actual, NTS, D+1 | C167: 308.75256
A168: 2010-03-15 | B168: Demand Actual, NTS, D+1 | C168: 328.38481
A169: 2010-03-16 | B169: Demand Actual, NTS, D+1 | C169: 314.47835
A170: 2010-03-17 | B170: Demand Actual, NTS, D+1 | C170: 301.91285
A171: 2010-03-18 | B171: Demand Actual, NTS, D+1 | C171: 303.44513
A172: 2010-03-19 | B172: Demand Actual, NTS, D+1 | C172: 319.7311
A173: 2010-03-20 | B173: Demand Actual, NTS, D+1 | C173: 306.35328
A174: 2010-03-21 | B174: Demand Actual, NTS, D+1 | C174: 316.06923
A175: 2010-03-22 | B175: Demand Actual, NTS, D+1 | C175: 334.50519
A176: 2010-03-23 | B176: Demand Actual, NTS, D+1 | C176: 331.2377
A177: 2010-03-24 | B177: Demand Actual, NTS, D+1 | C177: 330.87261
A178: 2010-03-25 | B178: Demand Actual, NTS, D+1 | C178: 315.71198
A179: 2010-03-26 | B179: Demand Actual, NTS, D+1 | C179: 323.98204
A180: 2010-03-27 | B180: Demand Actual, NTS, D+1 | C180: 310.4185
A181: 2010-03-28 | B181: Demand Actual, NTS, D+1 | C181: 322.68232
A182: 2010-03-29 | B182: Demand Actual, NTS, D+1 | C182: 340.74
A183: 2010-03-30 | B183: Demand Actual, NTS, D+1 | C183: 331.08541
A184: 2010-03-31 | B184: Demand Actual, NTS, D+1 | C184: 371.90803
A185: 2010-04-01 | B185: Demand Actual, NTS, D+1 | C185: 362.3914
A186: 2010-04-02 | B186: Demand Actual, NTS, D+1 | C186: 317.8753
A187: 2010-04-03 | B187: Demand Actual, NTS, D+1 | C187: 306.149
A188: 2010-04-04 | B188: Demand Actual, NTS, D+1 | C188: 297.707
A189: 2010-04-05 | B189: Demand Actual, NTS, D+1 | C189: 307.202
A190: 2010-04-06 | B190: Demand Actual, NTS, D+1 | C190: 300.74863
A191: 2010-04-07 | B191: Demand Actual, NTS, D+1 | C191: 297.63479
A192: 2010-04-08 | B192: Demand Actual, NTS, D+1 | C192: 273.23378
A193: 2010-04-09 | B193: Demand Actual, NTS, D+1 | C193: 287.04072
A194: 2010-04-10 | B194: Demand Actual, NTS, D+1 | C194: 286.54033
A195: 2010-04-11 | B195: Demand Actual, NTS, D+1 | C195: 295.56014
A196: 2010-04-12 | B196: Demand Actual, NTS, D+1 | C196: 308.18995
A197: 2010-04-13 | B197: Demand Actual, NTS, D+1 | C197: 314.81825
A198: 2010-04-14 | B198: Demand Actual, NTS, D+1 | C198: 318.08029
A199: 2010-04-15 | B199: Demand Actual, NTS, D+1 | C199: 316.63708
A200: 2010-04-16 | B200: Demand Actual, NTS, D+1 | C200: 317.95782
... 167 more rows

Sheet r_Bacton IUK exports
A1: Bacton Interconnector exports | E1: =MIN('r_Data from TYS 2010 (Appendix)'!B14:H14)/(SUM($C$3:$C$367)*conversion*0.001) -> 0.7388010494 | F1: <<< Ratio of minimum exports during period 2010-2016 to level of exports in 2009/10 | G1: Source: National Grid TYS 2010
A2: mcm/day | B2: DataItem | C2: Value | E2: Forecast
A3: 2009-10-01 | B3: NTS Physical Flows, Bacton, Interconnector | C3: 11.94702148 | E3: =C3*$E$1 -> 8.82647201
A4: 2009-10-02 | B4: NTS Physical Flows, Bacton, Interconnector | C4: 4.825012207 | E4: =C4*$E$1 -> 3.564724082
A5: 2009-10-03 | B5: NTS Physical Flows, Bacton, Interconnector | C5: 17.11499023 | E5: 12.64457275
A6: 2009-10-04 | B6: NTS Physical Flows, Bacton, Interconnector | C6: 16.32299805 | E6: 12.05944809
A7: 2009-10-05 | B7: NTS Physical Flows, Bacton, Interconnector | C7: 13.8276 | E7: 10.21584539
A8: 2009-10-06 | B8: NTS Physical Flows, Bacton, Interconnector | C8: 19.36297607 | E8: 14.30538704
A9: 2009-10-07 | B9: NTS Physical Flows, Bacton, Interconnector | C9: 10.70800781 | E9: 7.911087409
A10: 2009-10-08 | B10: NTS Physical Flows, Bacton, Interconnector | C10: 14.85699463 | E10: 10.97636322
A11: 2009-10-09 | B11: NTS Physical Flows, Bacton, Interconnector | C11: 15.44500732 | E11: 11.41078762
A12: 2009-10-10 | B12: NTS Physical Flows, Bacton, Interconnector | C12: 28.82696724 | E12: 21.29739365
A13: 2009-10-11 | B13: NTS Physical Flows, Bacton, Interconnector | C13: 27.55399895 | E13: 20.35692334
A14: 2009-10-12 | B14: NTS Physical Flows, Bacton, Interconnector | C14: 23.45100403 | E14: 17.32562639
A15: 2009-10-13 | B15: NTS Physical Flows, Bacton, Interconnector | C15: 20.25099945 | E15: 14.96145965
A16: 2009-10-14 | B16: NTS Physical Flows, Bacton, Interconnector | C16: 29.97599792 | E16: 22.14629872
A17: 2009-10-15 | B17: NTS Physical Flows, Bacton, Interconnector | C17: 18.59000397 | E17: 13.73431444
A18: 2009-10-16 | B18: NTS Physical Flows, Bacton, Interconnector | C18: 19.20899963 | E18: 14.19162909
A19: 2009-10-17 | B19: NTS Physical Flows, Bacton, Interconnector | C19: 10.95700073 | E19: 8.09504364
A20: 2009-10-18 | B20: NTS Physical Flows, Bacton, Interconnector | C20: 12.00799561 | E20: 8.871519755
A21: 2009-10-19 | B21: NTS Physical Flows, Bacton, Interconnector | C21: 12.70813 | E21: 9.38877978
A22: 2009-10-20 | B22: NTS Physical Flows, Bacton, Interconnector | C22: 10.60365 | E22: 7.833987748
A23: 2009-10-21 | B23: NTS Physical Flows, Bacton, Interconnector | C23: 11.73726 | E23: 8.671500005
A24: 2009-10-22 | B24: NTS Physical Flows, Bacton, Interconnector | C24: 19.66398621 | E24: 14.52777364
A25: 2009-10-23 | B25: NTS Physical Flows, Bacton, Interconnector | C25: 30.61100769 | E25: 22.61544461
A26: 2009-10-24 | B26: NTS Physical Flows, Bacton, Interconnector | C26: 28.57000732 | E26: 21.10755139
A27: 2009-10-25 | B27: NTS Physical Flows, Bacton, Interconnector | C27: 28.26400757 | E27: 20.88147845
A28: 2009-10-26 | B28: NTS Physical Flows, Bacton, Interconnector | C28: 17.72799683 | E28: 13.09746266
A29: 2009-10-27 | B29: NTS Physical Flows, Bacton, Interconnector | C29: 22.39599609 | E29: 16.54618542
A30: 2009-10-28 | B30: NTS Physical Flows, Bacton, Interconnector | C30: 27.81600952 | E30: 20.55049702
A31: 2009-10-29 | B31: NTS Physical Flows, Bacton, Interconnector | C31: 22.32897949 | E31: 16.49667348
A32: 2009-10-30 | B32: NTS Physical Flows, Bacton, Interconnector | C32: 27.86625 | E32: 20.58761474
A33: 2009-10-31 | B33: NTS Physical Flows, Bacton, Interconnector | C33: 23.14300537 | E33: 17.09807665
A34: 2009-11-01 | B34: NTS Physical Flows, Bacton, Interconnector | C34: 12.36073 | E34: 9.132120296
A35: 2009-11-02 | B35: NTS Physical Flows, Bacton, Interconnector | C35: 11.27799034 | E35: 8.332191099
A36: 2009-11-03 | B36: NTS Physical Flows, Bacton, Interconnector | C36: 8.027984619 | E36: 5.931083461
A37: 2009-11-04 | B37: NTS Physical Flows, Bacton, Interconnector | C37: 5.679016113 | E37: 4.195663064
A38: 2009-11-05 | B38: NTS Physical Flows, Bacton, Interconnector | C38: 2.98017 | E38: 2.201752723
A39: 2009-11-06 | B39: NTS Physical Flows, Bacton, Interconnector | C39: 2.03672 | E39: 1.504730873
A40: 2009-11-07 | B40: NTS Physical Flows, Bacton, Interconnector | C40: 8.21551 | E40: 6.069627409
A41: 2009-11-08 | B41: NTS Physical Flows, Bacton, Interconnector | C41: 10.35595703 | E41: 7.650991922
A42: 2009-11-09 | B42: NTS Physical Flows, Bacton, Interconnector | C42: 14.27905273 | E42: 10.54937914
A43: 2009-11-10 | B43: NTS Physical Flows, Bacton, Interconnector | C43: 13.21697998 | E43: 9.76471868
A44: 2009-11-11 | B44: NTS Physical Flows, Bacton, Interconnector | C44: 9.96309 | E44: 7.360741347
A45: 2009-11-12 | B45: NTS Physical Flows, Bacton, Interconnector | C45: 8.21762 | E45: 6.07118628
A46: 2009-11-13 | B46: NTS Physical Flows, Bacton, Interconnector | C46: 5.343994141 | E46: 3.948148479
A47: 2009-11-14 | B47: NTS Physical Flows, Bacton, Interconnector | C47: 3.250976562 | E47: 2.401824896
A48: 2009-11-15 | B48: NTS Physical Flows, Bacton, Interconnector | C48: 1.94069 | E48: 1.433783809
A49: 2009-11-16 | B49: NTS Physical Flows, Bacton, Interconnector | C49: 0.31554 | E49: 0.2331212831
A50: 2009-11-17 | B50: NTS Physical Flows, Bacton, Interconnector | C50: 0.2849299908 | E50: 0.2105065762
A51: 2009-11-18 | B51: NTS Physical Flows, Bacton, Interconnector | C51: 7.40715 | E51: 5.472410193
A52: 2009-11-19 | B52: NTS Physical Flows, Bacton, Interconnector | C52: 0 | E52: 0
A53: 2009-11-20 | B53: NTS Physical Flows, Bacton, Interconnector | C53: 0.47383 | E53: 0.3500661012
A54: 2009-11-21 | B54: NTS Physical Flows, Bacton, Interconnector | C54: 0 | E54: 0
A55: 2009-11-22 | B55: NTS Physical Flows, Bacton, Interconnector | C55: 0 | E55: 0
A56: 2009-11-23 | B56: NTS Physical Flows, Bacton, Interconnector | C56: 0 | E56: 0
A57: 2009-11-24 | B57: NTS Physical Flows, Bacton, Interconnector | C57: 5.372009277 | E57: 3.968846092
A58: 2009-11-25 | B58: NTS Physical Flows, Bacton, Interconnector | C58: 5.238037109 | E58: 3.869867313
A59: 2009-11-26 | B59: NTS Physical Flows, Bacton, Interconnector | C59: 0 | E59: 0
A60: 2009-11-27 | B60: NTS Physical Flows, Bacton, Interconnector | C60: 0 | E60: 0
A61: 2009-11-28 | B61: NTS Physical Flows, Bacton, Interconnector | C61: 0 | E61: 0
A62: 2009-11-29 | B62: NTS Physical Flows, Bacton, Interconnector | C62: 0 | E62: 0
A63: 2009-11-30 | B63: NTS Physical Flows, Bacton, Interconnector | C63: 0 | E63: 0
A64: 2009-12-01 | B64: NTS Physical Flows, Bacton, Interconnector | C64: 0 | E64: 0
A65: 2009-12-02 | B65: NTS Physical Flows, Bacton, Interconnector | C65: 0 | E65: 0
A66: 2009-12-03 | B66: NTS Physical Flows, Bacton, Interconnector | C66: 0 | E66: 0
A67: 2009-12-04 | B67: NTS Physical Flows, Bacton, Interconnector | C67: 0 | E67: 0
A68: 2009-12-05 | B68: NTS Physical Flows, Bacton, Interconnector | C68: 0 | E68: =C68*$E$1 -> 0
A69: 2009-12-06 | B69: NTS Physical Flows, Bacton, Interconnector | C69: 0 | E69: 0
A70: 2009-12-07 | B70: NTS Physical Flows, Bacton, Interconnector | C70: 0 | E70: 0
A71: 2009-12-08 | B71: NTS Physical Flows, Bacton, Interconnector | C71: 0 | E71: 0
A72: 2009-12-09 | B72: NTS Physical Flows, Bacton, Interconnector | C72: 0 | E72: 0
A73: 2009-12-10 | B73: NTS Physical Flows, Bacton, Interconnector | C73: 0 | E73: 0
A74: 2009-12-11 | B74: NTS Physical Flows, Bacton, Interconnector | C74: 0 | E74: 0
A75: 2009-12-12 | B75: NTS Physical Flows, Bacton, Interconnector | C75: 0 | E75: 0
A76: 2009-12-13 | B76: NTS Physical Flows, Bacton, Interconnector | C76: 0 | E76: 0
A77: 2009-12-14 | B77: NTS Physical Flows, Bacton, Interconnector | C77: 0 | E77: 0
A78: 2009-12-15 | B78: NTS Physical Flows, Bacton, Interconnector | C78: 0 | E78: 0
A79: 2009-12-16 | B79: NTS Physical Flows, Bacton, Interconnector | C79: 0 | E79: 0
A80: 2009-12-17 | B80: NTS Physical Flows, Bacton, Interconnector | C80: 0 | E80: 0
A81: 2009-12-18 | B81: NTS Physical Flows, Bacton, Interconnector | C81: 0 | E81: 0
A82: 2009-12-19 | B82: NTS Physical Flows, Bacton, Interconnector | C82: 0 | E82: 0
A83: 2009-12-20 | B83: NTS Physical Flows, Bacton, Interconnector | C83: 0 | E83: 0
A84: 2009-12-21 | B84: NTS Physical Flows, Bacton, Interconnector | C84: 0 | E84: 0
A85: 2009-12-22 | B85: NTS Physical Flows, Bacton, Interconnector | C85: 0 | E85: 0
A86: 2009-12-23 | B86: NTS Physical Flows, Bacton, Interconnector | C86: 0 | E86: 0
A87: 2009-12-24 | B87: NTS Physical Flows, Bacton, Interconnector | C87: 0 | E87: 0
A88: 2009-12-25 | B88: NTS Physical Flows, Bacton, Interconnector | C88: 0 | E88: 0
A89: 2009-12-26 | B89: NTS Physical Flows, Bacton, Interconnector | C89: 0 | E89: 0
A90: 2009-12-27 | B90: NTS Physical Flows, Bacton, Interconnector | C90: 0 | E90: 0
A91: 2009-12-28 | B91: NTS Physical Flows, Bacton, Interconnector | C91: 0 | E91: 0
A92: 2009-12-29 | B92: NTS Physical Flows, Bacton, Interconnector | C92: 0 | E92: 0
A93: 2009-12-30 | B93: NTS Physical Flows, Bacton, Interconnector | C93: 0 | E93: 0
A94: 2009-12-31 | B94: NTS Physical Flows, Bacton, Interconnector | C94: 0 | E94: 0
A95: 2010-01-01 | B95: NTS Physical Flows, Bacton, Interconnector | C95: 0 | E95: 0
A96: 2010-01-02 | B96: NTS Physical Flows, Bacton, Interconnector | C96: 0 | E96: 0
A97: 2010-01-03 | B97: NTS Physical Flows, Bacton, Interconnector | C97: 0 | E97: 0
A98: 2010-01-04 | B98: NTS Physical Flows, Bacton, Interconnector | C98: 0 | E98: 0
A99: 2010-01-05 | B99: NTS Physical Flows, Bacton, Interconnector | C99: 0 | E99: 0
A100: 2010-01-06 | B100: NTS Physical Flows, Bacton, Interconnector | C100: 0 | E100: 0
A101: 2010-01-07 | B101: NTS Physical Flows, Bacton, Interconnector | C101: 0 | E101: 0
A102: 2010-01-08 | B102: NTS Physical Flows, Bacton, Interconnector | C102: 0 | E102: 0
A103: 2010-01-09 | B103: NTS Physical Flows, Bacton, Interconnector | C103: 0 | E103: 0
A104: 2010-01-10 | B104: NTS Physical Flows, Bacton, Interconnector | C104: 0 | E104: 0
A105: 2010-01-11 | B105: NTS Physical Flows, Bacton, Interconnector | C105: 0 | E105: 0
A106: 2010-01-12 | B106: NTS Physical Flows, Bacton, Interconnector | C106: 0 | E106: 0
A107: 2010-01-13 | B107: NTS Physical Flows, Bacton, Interconnector | C107: 0 | E107: 0
A108: 2010-01-14 | B108: NTS Physical Flows, Bacton, Interconnector | C108: 0 | E108: 0
A109: 2010-01-15 | B109: NTS Physical Flows, Bacton, Interconnector | C109: 0 | E109: 0
A110: 2010-01-16 | B110: NTS Physical Flows, Bacton, Interconnector | C110: 9.49982 | E110: 7.018476985
A111: 2010-01-17 | B111: NTS Physical Flows, Bacton, Interconnector | C111: 7.61399 | E111: 5.625223802
A112: 2010-01-18 | B112: NTS Physical Flows, Bacton, Interconnector | C112: 6.56502 | E112: 4.850243665
A113: 2010-01-19 | B113: NTS Physical Flows, Bacton, Interconnector | C113: 5.67199707 | E113: 4.190477388
A114: 2010-01-20 | B114: NTS Physical Flows, Bacton, Interconnector | C114: 0 | E114: 0
A115: 2010-01-21 | B115: NTS Physical Flows, Bacton, Interconnector | C115: 0 | E115: 0
A116: 2010-01-22 | B116: NTS Physical Flows, Bacton, Interconnector | C116: 6.138000488 | E116: 4.534761202
A117: 2010-01-23 | B117: NTS Physical Flows, Bacton, Interconnector | C117: 0 | E117: 0
A118: 2010-01-24 | B118: NTS Physical Flows, Bacton, Interconnector | C118: 0.56005 | E118: 0.4137655277
A119: 2010-01-25 | B119: NTS Physical Flows, Bacton, Interconnector | C119: 0 | E119: 0
A120: 2010-01-26 | B120: NTS Physical Flows, Bacton, Interconnector | C120: 7.2974 | E120: 5.391326778
A121: 2010-01-27 | B121: NTS Physical Flows, Bacton, Interconnector | C121: 0 | E121: 0
A122: 2010-01-28 | B122: NTS Physical Flows, Bacton, Interconnector | C122: 0 | E122: 0
A123: 2010-01-29 | B123: NTS Physical Flows, Bacton, Interconnector | C123: 0 | E123: 0
A124: 2010-01-30 | B124: NTS Physical Flows, Bacton, Interconnector | C124: 0 | E124: 0
A125: 2010-01-31 | B125: NTS Physical Flows, Bacton, Interconnector | C125: 0 | E125: 0
A126: 2010-02-01 | B126: NTS Physical Flows, Bacton, Interconnector | C126: 0 | E126: 0
A127: 2010-02-02 | B127: NTS Physical Flows, Bacton, Interconnector | C127: 0.966 | E127: 0.7136818137
A128: 2010-02-03 | B128: NTS Physical Flows, Bacton, Interconnector | C128: 0 | E128: 0
A129: 2010-02-04 | B129: NTS Physical Flows, Bacton, Interconnector | C129: 5.302978516 | E129: 3.917846092
A130: 2010-02-05 | B130: NTS Physical Flows, Bacton, Interconnector | C130: 0 | E130: 0
A131: 2010-02-06 | B131: NTS Physical Flows, Bacton, Interconnector | C131: 0 | E131: 0
A132: 2010-02-07 | B132: NTS Physical Flows, Bacton, Interconnector | C132: 0 | E132: =C132*$E$1 -> 0
A133: 2010-02-08 | B133: NTS Physical Flows, Bacton, Interconnector | C133: 0 | E133: 0
A134: 2010-02-09 | B134: NTS Physical Flows, Bacton, Interconnector | C134: 3.619018555 | E134: 2.673734706
A135: 2010-02-10 | B135: NTS Physical Flows, Bacton, Interconnector | C135: 0.651120007 | E135: 0.4810481445
A136: 2010-02-11 | B136: NTS Physical Flows, Bacton, Interconnector | C136: 8.46667 | E136: 6.255184681
A137: 2010-02-12 | B137: NTS Physical Flows, Bacton, Interconnector | C137: 6.79402 | E137: 5.019429106
A138: 2010-02-13 | B138: NTS Physical Flows, Bacton, Interconnector | C138: 8.29572 | E138: 6.128886642
A139: 2010-02-14 | B139: NTS Physical Flows, Bacton, Interconnector | C139: 11.90600586 | E139: 8.796169623
A140: 2010-02-15 | B140: NTS Physical Flows, Bacton, Interconnector | C140: 11.00897217 | E140: 8.133440191
A141: 2010-02-16 | B141: NTS Physical Flows, Bacton, Interconnector | C141: 10.38201904 | E141: 7.670246564
A142: 2010-02-17 | B142: NTS Physical Flows, Bacton, Interconnector | C142: 6.21994 | E142: 4.595298199
A143: 2010-02-18 | B143: NTS Physical Flows, Bacton, Interconnector | C143: 0 | E143: 0
A144: 2010-02-19 | B144: NTS Physical Flows, Bacton, Interconnector | C144: 0 | E144: 0
A145: 2010-02-20 | B145: NTS Physical Flows, Bacton, Interconnector | C145: 0 | E145: 0
A146: 2010-02-21 | B146: NTS Physical Flows, Bacton, Interconnector | C146: 0 | E146: 0
A147: 2010-02-22 | B147: NTS Physical Flows, Bacton, Interconnector | C147: 0 | E147: 0
A148: 2010-02-23 | B148: NTS Physical Flows, Bacton, Interconnector | C148: 0 | E148: 0
A149: 2010-02-24 | B149: NTS Physical Flows, Bacton, Interconnector | C149: 0 | E149: 0
A150: 2010-02-25 | B150: NTS Physical Flows, Bacton, Interconnector | C150: 0 | E150: 0
A151: 2010-02-26 | B151: NTS Physical Flows, Bacton, Interconnector | C151: 0 | E151: 0
A152: 2010-02-27 | B152: NTS Physical Flows, Bacton, Interconnector | C152: 0 | E152: 0
A153: 2010-02-28 | B153: NTS Physical Flows, Bacton, Interconnector | C153: 0 | E153: 0
A154: 2010-03-01 | B154: NTS Physical Flows, Bacton, Interconnector | C154: 4.58581 | E154: 3.38800124
A155: 2010-03-02 | B155: NTS Physical Flows, Bacton, Interconnector | C155: 9.01121 | E155: 6.657491404
A156: 2010-03-03 | B156: NTS Physical Flows, Bacton, Interconnector | C156: 7.928470135 | E156: 5.857562056
A157: 2010-03-04 | B157: NTS Physical Flows, Bacton, Interconnector | C157: 6.06797 | E157: 4.483022604
A158: 2010-03-05 | B158: NTS Physical Flows, Bacton, Interconnector | C158: 13.15959 | E158: 9.722318902
A159: 2010-03-06 | B159: NTS Physical Flows, Bacton, Interconnector | C159: 9.80374 | E159: 7.2430134
A160: 2010-03-07 | B160: NTS Physical Flows, Bacton, Interconnector | C160: 7.96224 | E160: 5.882511268
A161: 2010-03-08 | B161: NTS Physical Flows, Bacton, Interconnector | C161: 8.721 | E161: 6.443083952
A162: 2010-03-09 | B162: NTS Physical Flows, Bacton, Interconnector | C162: 19.15704346 | E162: 14.15324381
A163: 2010-03-10 | B163: NTS Physical Flows, Bacton, Interconnector | C163: 14.11991024 | E163: 10.4318045
A164: 2010-03-11 | B164: NTS Physical Flows, Bacton, Interconnector | C164: 0 | E164: 0
A165: 2010-03-12 | B165: NTS Physical Flows, Bacton, Interconnector | C165: 5.48017 | E165: 4.048755347
A166: 2010-03-13 | B166: NTS Physical Flows, Bacton, Interconnector | C166: 1.50802 | E166: 1.114126759
A167: 2010-03-14 | B167: NTS Physical Flows, Bacton, Interconnector | C167: 1.61355 | E167: 1.192092433
A168: 2010-03-15 | B168: NTS Physical Flows, Bacton, Interconnector | C168: 5.75983 | E168: 4.255368448
A169: 2010-03-16 | B169: NTS Physical Flows, Bacton, Interconnector | C169: 0 | E169: 0
A170: 2010-03-17 | B170: NTS Physical Flows, Bacton, Interconnector | C170: 6.3529 | E170: 4.693529187
A171: 2010-03-18 | B171: NTS Physical Flows, Bacton, Interconnector | C171: 12.02600098 | E171: 8.884822142
A172: 2010-03-19 | B172: NTS Physical Flows, Bacton, Interconnector | C172: 12.08424 | E172: 8.927849193
A173: 2010-03-20 | B173: NTS Physical Flows, Bacton, Interconnector | C173: 6.562011719 | E173: 4.848021144
A174: 2010-03-21 | B174: NTS Physical Flows, Bacton, Interconnector | C174: 9.88077 | E174: 7.299923245
A175: 2010-03-22 | B175: NTS Physical Flows, Bacton, Interconnector | C175: 12.37298584 | E175: 9.141174923
A176: 2010-03-23 | B176: NTS Physical Flows, Bacton, Interconnector | C176: 14.00006104 | E176: 10.34325978
A177: 2010-03-24 | B177: NTS Physical Flows, Bacton, Interconnector | C177: 17.81799316 | E177: 13.16395205
A178: 2010-03-25 | B178: NTS Physical Flows, Bacton, Interconnector | C178: 5.61314 | E178: 4.146993722
A179: 2010-03-26 | B179: NTS Physical Flows, Bacton, Interconnector | C179: 8.5532 | E179: 6.319113136
A180: 2010-03-27 | B180: NTS Physical Flows, Bacton, Interconnector | C180: 10.78295898 | E180: 7.966461413
A181: 2010-03-28 | B181: NTS Physical Flows, Bacton, Interconnector | C181: 7.91792 | E181: 5.849767605
A182: 2010-03-29 | B182: NTS Physical Flows, Bacton, Interconnector | C182: 8.10471 | E182: 5.987768253
A183: 2010-03-30 | B183: NTS Physical Flows, Bacton, Interconnector | C183: 9.71087 | E183: 7.174400947
A184: 2010-03-31 | B184: NTS Physical Flows, Bacton, Interconnector | C184: 6.359985352 | E184: 4.698763852
A185: 2010-04-01 | B185: NTS Physical Flows, Bacton, Interconnector | C185: 5.28917 | E185: 3.907644347
A186: 2010-04-02 | B186: NTS Physical Flows, Bacton, Interconnector | C186: 9.8879776 | E186: 7.305248228
A187: 2010-04-03 | B187: NTS Physical Flows, Bacton, Interconnector | C187: 16.61700058 | E187: 12.27665747
A188: 2010-04-04 | B188: NTS Physical Flows, Bacton, Interconnector | C188: 14.43200111 | E188: 10.66237757
A189: 2010-04-05 | B189: NTS Physical Flows, Bacton, Interconnector | C189: 13.067998 | E189: 9.654650636
A190: 2010-04-06 | B190: NTS Physical Flows, Bacton, Interconnector | C190: 15.92200089 | E190: 11.76319096
A191: 2010-04-07 | B191: NTS Physical Flows, Bacton, Interconnector | C191: 18.60900116 | E191: 13.74834959
A192: 2010-04-08 | B192: NTS Physical Flows, Bacton, Interconnector | C192: 14.30500031 | E192: 10.56854924
A193: 2010-04-09 | B193: NTS Physical Flows, Bacton, Interconnector | C193: 20.81579 | E193: 15.3787275
A194: 2010-04-10 | B194: NTS Physical Flows, Bacton, Interconnector | C194: 33.17500305 | E194: 24.50972707
A195: 2010-04-11 | B195: NTS Physical Flows, Bacton, Interconnector | C195: 32.51300049 | E195: 24.02063888
A196: 2010-04-12 | B196: NTS Physical Flows, Bacton, Interconnector | C196: 26.24299622 | E196: =C196*$E$1 -> 19.38835314
A197: 2010-04-13 | B197: NTS Physical Flows, Bacton, Interconnector | C197: 34.07901001 | E197: 25.17760836
A198: 2010-04-14 | B198: NTS Physical Flows, Bacton, Interconnector | C198: 32.54298401 | E198: 24.04279074
A199: 2010-04-15 | B199: NTS Physical Flows, Bacton, Interconnector | C199: 24.65802002 | E199: 18.21737107
A200: 2010-04-16 | B200: NTS Physical Flows, Bacton, Interconnector | C200: 28.32897949 | E200: 20.92947978
... 167 more rows

Sheet r_Moffat exports
A1: Moffat Interconnector exports | E1: =MIN('r_Data from TYS 2010 (Appendix)'!B13:H13)/(SUM($C$3:$C$367)*conversion*0.001) -> 0.4684819893 | F1: <<< Ratio of minimum exports during period 2010-2016 to level of exports in 2009/10 | G1: Source: National Grid TYS 2010
A2: mcm/day | B2: DataItem | C2: Value | E2: Forecast
A3: 2009-10-01 | B3: NTS Physical Flows, Moffat, Interconnector | C3: 18.77996826 | E3: =C3*$E$1 -> 8.798076891
A4: 2009-10-02 | B4: NTS Physical Flows, Moffat, Interconnector | C4: 15.90197754 | E4: 7.449790072
A5: 2009-10-03 | B5: NTS Physical Flows, Moffat, Interconnector | C5: 14.57403564 | E5: 6.827673211
A6: 2009-10-04 | B6: NTS Physical Flows, Moffat, Interconnector | C6: 15.93896484 | E6: 7.467117958
A7: 2009-10-05 | B7: NTS Physical Flows, Moffat, Interconnector | C7: 17.537 | E7: 8.215768647
A8: 2009-10-06 | B8: NTS Physical Flows, Moffat, Interconnector | C8: 17.94000244 | E8: 8.404568032
A9: 2009-10-07 | B9: NTS Physical Flows, Moffat, Interconnector | C9: 19.57702637 | E9: 9.171484258
A10: 2009-10-08 | B10: NTS Physical Flows, Moffat, Interconnector | C10: 19.0579834 | E10: 8.928321975
A11: 2009-10-09 | B11: NTS Physical Flows, Moffat, Interconnector | C11: 17.23999023 | E11: 8.076624921
A12: 2009-10-10 | B12: NTS Physical Flows, Moffat, Interconnector | C12: 16.58203125 | E12: 7.768382987
A13: 2009-10-11 | B13: NTS Physical Flows, Moffat, Interconnector | C13: 16.13696289 | E13: 7.559876477
A14: 2009-10-12 | B14: NTS Physical Flows, Moffat, Interconnector | C14: 16.32299805 | E14: 7.647030597
A15: 2009-10-13 | B15: NTS Physical Flows, Moffat, Interconnector | C15: 19.14501953 | E15: 8.969096836
A16: 2009-10-14 | B16: NTS Physical Flows, Moffat, Interconnector | C16: 18.25396729 | E16: 8.551654907
A17: 2009-10-15 | B17: NTS Physical Flows, Moffat, Interconnector | C17: 17.91204834 | E17: 8.391472039
A18: 2009-10-16 | B18: NTS Physical Flows, Moffat, Interconnector | C18: 17.54699707 | E18: 8.220452094
A19: 2009-10-17 | B19: NTS Physical Flows, Moffat, Interconnector | C19: 16.3949585 | E19: 7.680742771
A20: 2009-10-18 | B20: NTS Physical Flows, Moffat, Interconnector | C20: 15.09399414 | E20: 7.071264402
A21: 2009-10-19 | B21: NTS Physical Flows, Moffat, Interconnector | C21: 14.58905029 | E21: 6.834707304
A22: 2009-10-20 | B22: NTS Physical Flows, Moffat, Interconnector | C22: 17.02496338 | E22: 7.975888712
A23: 2009-10-21 | B23: NTS Physical Flows, Moffat, Interconnector | C23: 15.81500244 | E23: 7.409043805
A24: 2009-10-22 | B24: NTS Physical Flows, Moffat, Interconnector | C24: 16.82299805 | E24: 7.881271592
A25: 2009-10-23 | B25: NTS Physical Flows, Moffat, Interconnector | C25: 17.73497391 | E25: 8.308515857
A26: 2009-10-24 | B26: NTS Physical Flows, Moffat, Interconnector | C26: 12.56600094 | E26: 5.886945118
A27: 2009-10-25 | B27: NTS Physical Flows, Moffat, Interconnector | C27: 13.8599987 | E27: 6.493159765
A28: 2009-10-26 | B28: NTS Physical Flows, Moffat, Interconnector | C28: 15.91300201 | E28: 7.45495484
A29: 2009-10-27 | B29: NTS Physical Flows, Moffat, Interconnector | C29: 15.73100281 | E29: 7.369691489
A30: 2009-10-28 | B30: NTS Physical Flows, Moffat, Interconnector | C30: 16.26399994 | E30: 7.619391046
A31: 2009-10-29 | B31: NTS Physical Flows, Moffat, Interconnector | C31: 15.82099152 | E31: 7.411849579
A32: 2009-10-30 | B32: NTS Physical Flows, Moffat, Interconnector | C32: 16.45899963 | E32: 7.710744891
A33: 2009-10-31 | B33: NTS Physical Flows, Moffat, Interconnector | C33: 15.79901123 | E33: 7.401552211
A34: 2009-11-01 | B34: NTS Physical Flows, Moffat, Interconnector | C34: 15.46899414 | E34: 7.246945148
A35: 2009-11-02 | B35: NTS Physical Flows, Moffat, Interconnector | C35: 16.90800476 | E35: 7.921095706
A36: 2009-11-03 | B36: NTS Physical Flows, Moffat, Interconnector | C36: 16.30799866 | E36: 7.640003653
A37: 2009-11-04 | B37: NTS Physical Flows, Moffat, Interconnector | C37: 17.00900269 | E37: 7.968411415
A38: 2009-11-05 | B38: NTS Physical Flows, Moffat, Interconnector | C38: 18.32699585 | E38: 8.585867474
A39: 2009-11-06 | B39: NTS Physical Flows, Moffat, Interconnector | C39: 17.02700806 | E39: 7.976846607
A40: 2009-11-07 | B40: NTS Physical Flows, Moffat, Interconnector | C40: 17.74899292 | E40: 8.315083512
A41: 2009-11-08 | B41: NTS Physical Flows, Moffat, Interconnector | C41: 17.75900269 | E41: 8.319772907
A42: 2009-11-09 | B42: NTS Physical Flows, Moffat, Interconnector | C42: 20.21600342 | E42: 9.470833498
A43: 2009-11-10 | B43: NTS Physical Flows, Moffat, Interconnector | C43: 19.55499268 | E43: 9.16116187
A44: 2009-11-11 | B44: NTS Physical Flows, Moffat, Interconnector | C44: 17.931 | E44: 8.400350551
A45: 2009-11-12 | B45: NTS Physical Flows, Moffat, Interconnector | C45: 18.518 | E45: 8.675349478
A46: 2009-11-13 | B46: NTS Physical Flows, Moffat, Interconnector | C46: 19.22399902 | E46: 9.006097305
A47: 2009-11-14 | B47: NTS Physical Flows, Moffat, Interconnector | C47: 17.16699219 | E47: 8.042426651
A48: 2009-11-15 | B48: NTS Physical Flows, Moffat, Interconnector | C48: 15.51101685 | E48: 7.266632028
A49: 2009-11-16 | B49: NTS Physical Flows, Moffat, Interconnector | C49: 17.86199951 | E49: 8.368025065
A50: 2009-11-17 | B50: NTS Physical Flows, Moffat, Interconnector | C50: 19.18499756 | E50: 8.987825822
A51: 2009-11-18 | B51: NTS Physical Flows, Moffat, Interconnector | C51: 18.79400635 | E51: 8.804653481
A52: 2009-11-19 | B52: NTS Physical Flows, Moffat, Interconnector | C52: 17.86700439 | E52: 8.370369762
A53: 2009-11-20 | B53: NTS Physical Flows, Moffat, Interconnector | C53: 17.47598267 | E53: 8.187183125
A54: 2009-11-21 | B54: NTS Physical Flows, Moffat, Interconnector | C54: 14.48602295 | E54: 6.786440849
A55: 2009-11-22 | B55: NTS Physical Flows, Moffat, Interconnector | C55: 14.99700928 | E55: 7.02582874
A56: 2009-11-23 | B56: NTS Physical Flows, Moffat, Interconnector | C56: 19.53295898 | E56: 9.150839483
A57: 2009-11-24 | B57: NTS Physical Flows, Moffat, Interconnector | C57: 17.06201172 | E57: 7.993245192
A58: 2009-11-25 | B58: NTS Physical Flows, Moffat, Interconnector | C58: 19.1619873 | E58: 8.977045932
A59: 2009-11-26 | B59: NTS Physical Flows, Moffat, Interconnector | C59: 21.07202148 | E59: 9.871862544
A60: 2009-11-27 | B60: NTS Physical Flows, Moffat, Interconnector | C60: 21.42901611 | E60: 10.0391081
A61: 2009-11-28 | B61: NTS Physical Flows, Moffat, Interconnector | C61: 19.82897949 | E61: 9.289519759
A62: 2009-11-29 | B62: NTS Physical Flows, Moffat, Interconnector | C62: 17.70898438 | E62: 8.296340229
A63: 2009-11-30 | B63: NTS Physical Flows, Moffat, Interconnector | C63: 22.60302734 | E63: 10.58911121
A64: 2009-12-01 | B64: NTS Physical Flows, Moffat, Interconnector | C64: 19.85198975 | E64: 9.300299648
A65: 2009-12-02 | B65: NTS Physical Flows, Moffat, Interconnector | C65: 19.86102295 | E65: 9.304531541
A66: 2009-12-03 | B66: NTS Physical Flows, Moffat, Interconnector | C66: 20.87701416 | E66: 9.780505125
A67: 2009-12-04 | B67: NTS Physical Flows, Moffat, Interconnector | C67: 20.1825 | E67: =C67*$E$1 -> 9.45513775
A68: 2009-12-05 | B68: NTS Physical Flows, Moffat, Interconnector | C68: 14.51300049 | E68: 6.79907934
A69: 2009-12-06 | B69: NTS Physical Flows, Moffat, Interconnector | C69: 14.87097168 | E69: 6.966782396
A70: 2009-12-07 | B70: NTS Physical Flows, Moffat, Interconnector | C70: 20.47003174 | E70: 9.58984119
A71: 2009-12-08 | B71: NTS Physical Flows, Moffat, Interconnector | C71: 18.29998779 | E71: 8.573214686
A72: 2009-12-09 | B72: NTS Physical Flows, Moffat, Interconnector | C72: 20.33398438 | E72: 9.526105451
A73: 2009-12-10 | B73: NTS Physical Flows, Moffat, Interconnector | C73: 20.53601074 | E73: 9.620751165
A74: 2009-12-11 | B74: NTS Physical Flows, Moffat, Interconnector | C74: 18.04998779 | E74: 8.456094189
A75: 2009-12-12 | B75: NTS Physical Flows, Moffat, Interconnector | C75: 18.29003906 | E75: 8.568553885
A76: 2009-12-13 | B76: NTS Physical Flows, Moffat, Interconnector | C76: 19.28796387 | E76: 9.036063683
A77: 2009-12-14 | B77: NTS Physical Flows, Moffat, Interconnector | C77: 21.85101318 | E77: 10.23680613
A78: 2009-12-15 | B78: NTS Physical Flows, Moffat, Interconnector | C78: 21.32800293 | E78: 9.991785241
A79: 2009-12-16 | B79: NTS Physical Flows, Moffat, Interconnector | C79: 20.73901367 | E79: 9.715854382
A80: 2009-12-17 | B80: NTS Physical Flows, Moffat, Interconnector | C80: 21.99793434 | E80: 10.30563604
A81: 2009-12-18 | B81: NTS Physical Flows, Moffat, Interconnector | C81: 22.69800186 | E81: 10.63360507
A82: 2009-12-19 | B82: NTS Physical Flows, Moffat, Interconnector | C82: 20.31599998 | E82: 9.517680088
A83: 2009-12-20 | B83: NTS Physical Flows, Moffat, Interconnector | C83: 21.34600449 | E83: 10.00021865
A84: 2009-12-21 | B84: NTS Physical Flows, Moffat, Interconnector | C84: 23.15000153 | E84: 10.84535877
A85: 2009-12-22 | B85: NTS Physical Flows, Moffat, Interconnector | C85: 22.784 | E85: 10.67389364
A86: 2009-12-23 | B86: NTS Physical Flows, Moffat, Interconnector | C86: 22.29199219 | E86: 10.44339685
A87: 2009-12-24 | B87: NTS Physical Flows, Moffat, Interconnector | C87: 21.57899475 | E87: 10.10937039
A88: 2009-12-25 | B88: NTS Physical Flows, Moffat, Interconnector | C88: 18.56100464 | E88: 8.695496377
A89: 2009-12-26 | B89: NTS Physical Flows, Moffat, Interconnector | C89: 17.63301086 | E89: 8.260748008
A90: 2009-12-27 | B90: NTS Physical Flows, Moffat, Interconnector | C90: 20.42799377 | E90: 9.570147161
A91: 2009-12-28 | B91: NTS Physical Flows, Moffat, Interconnector | C91: 20.94400024 | E91: 9.811886899
A92: 2009-12-29 | B92: NTS Physical Flows, Moffat, Interconnector | C92: 21.95300293 | E92: 10.28458648
A93: 2009-12-30 | B93: NTS Physical Flows, Moffat, Interconnector | C93: 21.4039917 | E93: 10.02738461
A94: 2009-12-31 | B94: NTS Physical Flows, Moffat, Interconnector | C94: 22.30502319 | E94: 10.44950164
A95: 2010-01-01 | B95: NTS Physical Flows, Moffat, Interconnector | C95: 20.23397827 | E95: 9.479254393
A96: 2010-01-02 | B96: NTS Physical Flows, Moffat, Interconnector | C96: 21.14901733 | E96: 9.907933713
A97: 2010-01-03 | B97: NTS Physical Flows, Moffat, Interconnector | C97: 19.87197876 | E97: 9.309664141
A98: 2010-01-04 | B98: NTS Physical Flows, Moffat, Interconnector | C98: 24.227 | E98: 11.34991316
A99: 2010-01-05 | B99: NTS Physical Flows, Moffat, Interconnector | C99: 22.814 | E99: 10.6879481
A100: 2010-01-06 | B100: NTS Physical Flows, Moffat, Interconnector | C100: 24.2170105 | E100: 11.34523325
A101: 2010-01-07 | B101: NTS Physical Flows, Moffat, Interconnector | C101: 26.171 | E101: 12.26064214
A102: 2010-01-08 | B102: NTS Physical Flows, Moffat, Interconnector | C102: 25.911 | E102: 12.13883683
A103: 2010-01-09 | B103: NTS Physical Flows, Moffat, Interconnector | C103: 24.951 | E103: 11.68909412
A104: 2010-01-10 | B104: NTS Physical Flows, Moffat, Interconnector | C104: 21.303 | E104: 9.980071819
A105: 2010-01-11 | B105: NTS Physical Flows, Moffat, Interconnector | C105: 22.276 | E105: 10.43590479
A106: 2010-01-12 | B106: NTS Physical Flows, Moffat, Interconnector | C106: 21.79998779 | E106: 10.21290165
A107: 2010-01-13 | B107: NTS Physical Flows, Moffat, Interconnector | C107: 23.1630249 | E107: 10.85145999
A108: 2010-01-14 | B108: NTS Physical Flows, Moffat, Interconnector | C108: 21.06896973 | E108: 9.870432851
A109: 2010-01-15 | B109: NTS Physical Flows, Moffat, Interconnector | C109: 17.90405273 | E109: 8.387726242
A110: 2010-01-16 | B110: NTS Physical Flows, Moffat, Interconnector | C110: 17.9909668 | E110: 8.428443915
A111: 2010-01-17 | B111: NTS Physical Flows, Moffat, Interconnector | C111: 17.37701416 | E111: 8.140818162
A112: 2010-01-18 | B112: NTS Physical Flows, Moffat, Interconnector | C112: 21.19299316 | E112: 9.928535597
A113: 2010-01-19 | B113: NTS Physical Flows, Moffat, Interconnector | C113: 19.67102051 | E113: 9.21551882
A114: 2010-01-20 | B114: NTS Physical Flows, Moffat, Interconnector | C114: 22.2869873 | E114: 10.44105215
A115: 2010-01-21 | B115: NTS Physical Flows, Moffat, Interconnector | C115: 20.77197266 | E115: 9.731295072
A116: 2010-01-22 | B116: NTS Physical Flows, Moffat, Interconnector | C116: 21.52001953 | E116: 10.08174156
A117: 2010-01-23 | B117: NTS Physical Flows, Moffat, Interconnector | C117: 21.73699951 | E117: 10.18339277
A118: 2010-01-24 | B118: NTS Physical Flows, Moffat, Interconnector | C118: 21.50097656 | E118: 10.07282027
A119: 2010-01-25 | B119: NTS Physical Flows, Moffat, Interconnector | C119: 23.41003418 | E119: 10.96717938
A120: 2010-01-26 | B120: NTS Physical Flows, Moffat, Interconnector | C120: 24.079 | E120: 11.28057782
A121: 2010-01-27 | B121: NTS Physical Flows, Moffat, Interconnector | C121: 19.95599365 | E121: 9.349023605
A122: 2010-01-28 | B122: NTS Physical Flows, Moffat, Interconnector | C122: 19.77797 | E122: 9.265622731
A123: 2010-01-29 | B123: NTS Physical Flows, Moffat, Interconnector | C123: 20.18603516 | E123: 9.456793907
A124: 2010-01-30 | B124: NTS Physical Flows, Moffat, Interconnector | C124: 20.32897949 | E124: 9.523760754
A125: 2010-01-31 | B125: NTS Physical Flows, Moffat, Interconnector | C125: 19.82000732 | E125: 9.28531646
A126: 2010-02-01 | B126: NTS Physical Flows, Moffat, Interconnector | C126: 21.10998535 | E126: 9.889647932
A127: 2010-02-02 | B127: NTS Physical Flows, Moffat, Interconnector | C127: 20.57202148 | E127: 9.63762155
A128: 2010-02-03 | B128: NTS Physical Flows, Moffat, Interconnector | C128: 20.81097412 | E128: 9.749566556
A129: 2010-02-04 | B129: NTS Physical Flows, Moffat, Interconnector | C129: 19.58098221 | E129: 9.173337498
A130: 2010-02-05 | B130: NTS Physical Flows, Moffat, Interconnector | C130: 19.54700089 | E130: 9.15741786
A131: 2010-02-06 | B131: NTS Physical Flows, Moffat, Interconnector | C131: 20.44100189 | E131: =C131*$E$1 -> 9.57624123
A132: 2010-02-07 | B132: NTS Physical Flows, Moffat, Interconnector | C132: 18.30999756 | E132: 8.577904081
A133: 2010-02-08 | B133: NTS Physical Flows, Moffat, Interconnector | C133: 22.42500305 | E133: 10.50571004
A134: 2010-02-09 | B134: NTS Physical Flows, Moffat, Interconnector | C134: 20.55400848 | E134: 9.629182783
A135: 2010-02-10 | B135: NTS Physical Flows, Moffat, Interconnector | C135: 22.53699493 | E135: 10.55817622
A136: 2010-02-11 | B136: NTS Physical Flows, Moffat, Interconnector | C136: 22.49899292 | E136: 10.54037296
A137: 2010-02-12 | B137: NTS Physical Flows, Moffat, Interconnector | C137: 20.65501404 | E137: 9.676502066
A138: 2010-02-13 | B138: NTS Physical Flows, Moffat, Interconnector | C138: 20.24499512 | E138: 9.484415587
A139: 2010-02-14 | B139: NTS Physical Flows, Moffat, Interconnector | C139: 18.61300659 | E139: 8.719858356
A140: 2010-02-15 | B140: NTS Physical Flows, Moffat, Interconnector | C140: 20.80899048 | E140: 9.748637255
A141: 2010-02-16 | B141: NTS Physical Flows, Moffat, Interconnector | C141: 22.11500549 | E141: 10.36048177
A142: 2010-02-17 | B142: NTS Physical Flows, Moffat, Interconnector | C142: 22.33898926 | E142: 10.46541413
A143: 2010-02-18 | B143: NTS Physical Flows, Moffat, Interconnector | C143: 22.94900513 | E143: 10.75119558
A144: 2010-02-19 | B144: NTS Physical Flows, Moffat, Interconnector | C144: 21.24002075 | E144: 9.950567175
A145: 2010-02-20 | B145: NTS Physical Flows, Moffat, Interconnector | C145: 20.97598267 | E145: 9.826870088
A146: 2010-02-21 | B146: NTS Physical Flows, Moffat, Interconnector | C146: 20.69299316 | E146: 9.694294603
A147: 2010-02-22 | B147: NTS Physical Flows, Moffat, Interconnector | C147: 22.573 | E147: 10.57504395
A148: 2010-02-23 | B148: NTS Physical Flows, Moffat, Interconnector | C148: 21.79800415 | E148: 10.21197235
A149: 2010-02-24 | B149: NTS Physical Flows, Moffat, Interconnector | C149: 23.354 | E149: 10.94092838
A150: 2010-02-25 | B150: NTS Physical Flows, Moffat, Interconnector | C150: 22.80599976 | E150: 10.68420013
A151: 2010-02-26 | B151: NTS Physical Flows, Moffat, Interconnector | C151: 20.98901367 | E151: 9.832974879
A152: 2010-02-27 | B152: NTS Physical Flows, Moffat, Interconnector | C152: 19.79299927 | E152: 9.272663672
A153: 2010-02-28 | B153: NTS Physical Flows, Moffat, Interconnector | C153: 20.63800049 | E153: 9.668531525
A154: 2010-03-01 | B154: NTS Physical Flows, Moffat, Interconnector | C154: 23.0579834 | E154: 10.80224993
A155: 2010-03-02 | B155: NTS Physical Flows, Moffat, Interconnector | C155: 21.82202148 | E155: 10.22322404
A156: 2010-03-03 | B156: NTS Physical Flows, Moffat, Interconnector | C156: 23.15899658 | E156: 10.84957279
A157: 2010-03-04 | B157: NTS Physical Flows, Moffat, Interconnector | C157: 23.10900879 | E157: 10.82615441
A158: 2010-03-05 | B158: NTS Physical Flows, Moffat, Interconnector | C158: 22.87097168 | E158: 10.71463831
A159: 2010-03-06 | B159: NTS Physical Flows, Moffat, Interconnector | C159: 20.54699707 | E159: 9.625898062
A160: 2010-03-07 | B160: NTS Physical Flows, Moffat, Interconnector | C160: 19.23199463 | E160: 9.009843103
A161: 2010-03-08 | B161: NTS Physical Flows, Moffat, Interconnector | C161: 22.2010498 | E161: 10.40079198
A162: 2010-03-09 | B162: NTS Physical Flows, Moffat, Interconnector | C162: 22.92999268 | E162: 10.74228858
A163: 2010-03-10 | B163: NTS Physical Flows, Moffat, Interconnector | C163: 22.66101074 | E163: 10.61627539
A164: 2010-03-11 | B164: NTS Physical Flows, Moffat, Interconnector | C164: 21.66998291 | E164: 10.1519967
A165: 2010-03-12 | B165: NTS Physical Flows, Moffat, Interconnector | C165: 20.13201904 | E165: 9.431488331
A166: 2010-03-13 | B166: NTS Physical Flows, Moffat, Interconnector | C166: 19.41296387 | E166: 9.094623931
A167: 2010-03-14 | B167: NTS Physical Flows, Moffat, Interconnector | C167: 18.95202637 | E167: 8.878683014
A168: 2010-03-15 | B168: NTS Physical Flows, Moffat, Interconnector | C168: 20.98498535 | E168: 9.831087684
A169: 2010-03-16 | B169: NTS Physical Flows, Moffat, Interconnector | C169: 20.18499756 | E169: 9.456307811
A170: 2010-03-17 | B170: NTS Physical Flows, Moffat, Interconnector | C170: 15.85101318 | E170: 7.425914189
A171: 2010-03-18 | B171: NTS Physical Flows, Moffat, Interconnector | C171: 17.49499512 | E171: 8.196090116
A172: 2010-03-19 | B172: NTS Physical Flows, Moffat, Interconnector | C172: 19.10601807 | E172: 8.950825352
A173: 2010-03-20 | B173: NTS Physical Flows, Moffat, Interconnector | C173: 17.76800537 | E173: 8.323990503
A174: 2010-03-21 | B174: NTS Physical Flows, Moffat, Interconnector | C174: 15.63598633 | E174: 7.32517798
A175: 2010-03-22 | B175: NTS Physical Flows, Moffat, Interconnector | C175: 16.78997803 | E175: 7.865802307
A176: 2010-03-23 | B176: NTS Physical Flows, Moffat, Interconnector | C176: 18.96203613 | E176: 8.883372409
A177: 2010-03-24 | B177: NTS Physical Flows, Moffat, Interconnector | C177: 19.67797852 | E177: 9.218778521
A178: 2010-03-25 | B178: NTS Physical Flows, Moffat, Interconnector | C178: 19.27295113 | E178: 9.029030484
A179: 2010-03-26 | B179: NTS Physical Flows, Moffat, Interconnector | C179: 20.071 | E179: 9.402902008
A180: 2010-03-27 | B180: NTS Physical Flows, Moffat, Interconnector | C180: 17.41200256 | E180: 8.157209599
A181: 2010-03-28 | B181: NTS Physical Flows, Moffat, Interconnector | C181: 16.97999954 | E181: 7.954823964
A182: 2010-03-29 | B182: NTS Physical Flows, Moffat, Interconnector | C182: 19.15499878 | E182: 8.973771934
A183: 2010-03-30 | B183: NTS Physical Flows, Moffat, Interconnector | C183: 20.24900055 | E183: 9.486292059
A184: 2010-03-31 | B184: NTS Physical Flows, Moffat, Interconnector | C184: 22.1230011 | E184: 10.36422756
A185: 2010-04-01 | B185: NTS Physical Flows, Moffat, Interconnector | C185: 21.22000122 | E185: 9.941188385
A186: 2010-04-02 | B186: NTS Physical Flows, Moffat, Interconnector | C186: 18.3690033 | E186: 8.605547206
A187: 2010-04-03 | B187: NTS Physical Flows, Moffat, Interconnector | C187: 17.79299927 | E187: 8.335699694
A188: 2010-04-04 | B188: NTS Physical Flows, Moffat, Interconnector | C188: 15.77600098 | E188: 7.390772323
A189: 2010-04-05 | B189: NTS Physical Flows, Moffat, Interconnector | C189: 13.940994 | E189: 6.531104602
A190: 2010-04-06 | B190: NTS Physical Flows, Moffat, Interconnector | C190: 19.89300537 | E190: 9.31951473
A191: 2010-04-07 | B191: NTS Physical Flows, Moffat, Interconnector | C191: 18.343 | E191: 8.59336513
A192: 2010-04-08 | B192: NTS Physical Flows, Moffat, Interconnector | C192: 18.22702026 | E192: 8.539030713
A193: 2010-04-09 | B193: NTS Physical Flows, Moffat, Interconnector | C193: 16.45898438 | E193: 7.710737742
A194: 2010-04-10 | B194: NTS Physical Flows, Moffat, Interconnector | C194: 15.44699097 | E194: 7.236637057
A195: 2010-04-11 | B195: NTS Physical Flows, Moffat, Interconnector | C195: 15.38201904 | E195: =C195*$E$1 -> 7.206198881
A196: 2010-04-12 | B196: NTS Physical Flows, Moffat, Interconnector | C196: 18.11300659 | E196: 8.485617361
A197: 2010-04-13 | B197: NTS Physical Flows, Moffat, Interconnector | C197: 17.51898193 | E197: 8.207327507
A198: 2010-04-14 | B198: NTS Physical Flows, Moffat, Interconnector | C198: 17.33099365 | E198: 8.119258383
A199: 2010-04-15 | B199: NTS Physical Flows, Moffat, Interconnector | C199: 17.24502563 | E199: 8.078983915
A200: 2010-04-16 | B200: NTS Physical Flows, Moffat, Interconnector | C200: 17.49398804 | E200: 8.195618317
... 167 more rows

Sheet r_Storage injections
A1: Storage demand, by site | E1: Storage demand, aggregate
A2: mcm/day | B2: DataItem | C2: Value | E2: mcm/day | F2: Value
A3: 2009-10-01 | B3: NTS Physical Flows, Hatfield Moor, Storage | C3: 1.2131 | E3: 2009-10-01 | F3: =SUMIF(A$3:A$3287,E3,C$3:C$3287) -> 13.81409
A4: 2009-10-01 | B4: NTS Physical Flows, Aldbrough, Storage | C4: 2.87727 | E4: 2009-10-02 | F4: =SUMIF(A$3:A$3287,E4,C$3:C$3287) -> 13.97571
A5: 2009-10-01 | B5: NTS Physical Flows, Avonmouth, LNG | C5: 0.00441 | E5: 2009-10-03 | F5: 23.66639
A6: 2009-10-01 | B6: NTS Physical Flows, Glenmavis, LNG | C6: 0.00086 | E6: 2009-10-04 | F6: 17.43738
A7: 2009-10-01 | B7: NTS Physical Flows, HoleHousFm, Storage | C7: 1.40591 | E7: 2009-10-05 | F7: 9.65016
A8: 2009-10-01 | B8: NTS Physical Flows, Hornsea, Storage | C8: 1.72342 | E8: 2009-10-06 | F8: 5.67262
A9: 2009-10-01 | B9: NTS Physical Flows, HumblyGrov, Storage | C9: 1.54493 | E9: 2009-10-07 | F9: 6.76809
A10: 2009-10-01 | B10: NTS Physical Flows, Partington, LNG | C10: 0.27369 | E10: 2009-10-08 | F10: 4.7487
A11: 2009-10-01 | B11: NTS Physical Flows, Rough, Storage | C11: 4.7705 | E11: 2009-10-09 | F11: 6.76808
A12: 2009-10-02 | B12: NTS Physical Flows, Aldbrough, Storage | C12: 2.31308 | E12: 2009-10-10 | F12: 26.28407
A13: 2009-10-02 | B13: NTS Physical Flows, Avonmouth, LNG | C13: 0.00441 | E13: 2009-10-11 | F13: 21.2559
A14: 2009-10-02 | B14: NTS Physical Flows, Glenmavis, LNG | C14: 0.00084 | E14: 2009-10-12 | F14: 5.68341
A15: 2009-10-02 | B15: NTS Physical Flows, Hatfield Moor, Storage | C15: 1.6615 | E15: 2009-10-13 | F15: 3.13286
A16: 2009-10-02 | B16: NTS Physical Flows, HoleHousFm, Storage | C16: 0.13621 | E16: 2009-10-14 | F16: 5.28072
A17: 2009-10-02 | B17: NTS Physical Flows, Hornsea, Storage | C17: 1.69652 | E17: 2009-10-15 | F17: 5.5169
A18: 2009-10-02 | B18: NTS Physical Flows, HumblyGrov, Storage | C18: 3.2121 | E18: 2009-10-16 | F18: 4.82588
A19: 2009-10-02 | B19: NTS Physical Flows, Partington, LNG | C19: 0.27045 | E19: 2009-10-17 | F19: 4.80654
A20: 2009-10-02 | B20: NTS Physical Flows, Rough, Storage | C20: 4.6806 | E20: 2009-10-18 | F20: 3.69482
A21: 2009-10-03 | B21: NTS Physical Flows, Aldbrough, Storage | C21: 1.57517 | E21: 2009-10-19 | F21: 2.53428
A22: 2009-10-03 | B22: NTS Physical Flows, Avonmouth, LNG | C22: 0.00441 | E22: 2009-10-20 | F22: 1.15678
A23: 2009-10-03 | B23: NTS Physical Flows, Glenmavis, LNG | C23: 0.00084 | E23: 2009-10-21 | F23: 9.97614
A24: 2009-10-03 | B24: NTS Physical Flows, Hatfield Moor, Storage | C24: 1.5642 | E24: 2009-10-22 | F24: 5.08532
A25: 2009-10-03 | B25: NTS Physical Flows, HoleHousFm, Storage | C25: 5.73141 | E25: 2009-10-23 | F25: 11.5342
A26: 2009-10-03 | B26: NTS Physical Flows, Hornsea, Storage | C26: 1.5941 | E26: 2009-10-24 | F26: 11.27096
A27: 2009-10-03 | B27: NTS Physical Flows, HumblyGrov, Storage | C27: 3.60968 | E27: 2009-10-25 | F27: 15.90067
A28: 2009-10-03 | B28: NTS Physical Flows, Partington, LNG | C28: 0.27698 | E28: 2009-10-26 | F28: 16.24907
A29: 2009-10-03 | B29: NTS Physical Flows, Rough, Storage | C29: 9.3096 | E29: 2009-10-27 | F29: 12.12555
A30: 2009-10-04 | B30: NTS Physical Flows, Aldbrough, Storage | C30: 1.56414 | E30: 2009-10-28 | F30: 12.7319
A31: 2009-10-04 | B31: NTS Physical Flows, Avonmouth, LNG | C31: 0.00441 | E31: 2009-10-29 | F31: 9.32783
A32: 2009-10-04 | B32: NTS Physical Flows, Glenmavis, LNG | C32: 0.00084 | E32: 2009-10-30 | F32: 7.9885
A33: 2009-10-04 | B33: NTS Physical Flows, Hatfield Moor, Storage | C33: 0 | E33: 2009-10-31 | F33: 22.1265
A34: 2009-10-04 | B34: NTS Physical Flows, HoleHousFm, Storage | C34: 7.09814 | E34: 2009-11-01 | F34: 25.3112
A35: 2009-10-04 | B35: NTS Physical Flows, Hornsea, Storage | C35: 1.33297 | E35: 2009-11-02 | F35: 3.65496
A36: 2009-10-04 | B36: NTS Physical Flows, HumblyGrov, Storage | C36: 0.71717 | E36: 2009-11-03 | F36: 3.07107
A37: 2009-10-04 | B37: NTS Physical Flows, Partington, LNG | C37: 0.27781 | E37: 2009-11-04 | F37: 3.43784
A38: 2009-10-04 | B38: NTS Physical Flows, Rough, Storage | C38: 6.4419 | E38: 2009-11-05 | F38: 2.90391
A39: 2009-10-05 | B39: NTS Physical Flows, Aldbrough, Storage | C39: 0 | E39: 2009-11-06 | F39: 3.39239
A40: 2009-10-05 | B40: NTS Physical Flows, Avonmouth, LNG | C40: 0.0196 | E40: 2009-11-07 | F40: 9.37931
A41: 2009-10-05 | B41: NTS Physical Flows, Glenmavis, LNG | C41: 0.00084 | E41: 2009-11-08 | F41: 1.98396
A42: 2009-10-05 | B42: NTS Physical Flows, Hatfield Moor, Storage | C42: 0 | E42: 2009-11-09 | F42: 0.53299
A43: 2009-10-05 | B43: NTS Physical Flows, HoleHousFm, Storage | C43: 2.06743 | E43: 2009-11-10 | F43: 1.04502
A44: 2009-10-05 | B44: NTS Physical Flows, Hornsea, Storage | C44: 1.58905 | E44: 2009-11-11 | F44: 1.80822
A45: 2009-10-05 | B45: NTS Physical Flows, HumblyGrov, Storage | C45: 0.45992 | E45: 2009-11-12 | F45: 3.88388
A46: 2009-10-05 | B46: NTS Physical Flows, Partington, LNG | C46: 0.29332 | E46: 2009-11-13 | F46: 12.1323
A47: 2009-10-05 | B47: NTS Physical Flows, Rough, Storage | C47: 5.22 | E47: 2009-11-14 | F47: 5.97794
A48: 2009-10-06 | B48: NTS Physical Flows, Aldbrough, Storage | C48: 0.00329 | E48: 2009-11-15 | F48: 8.95271
A49: 2009-10-06 | B49: NTS Physical Flows, Avonmouth, LNG | C49: 0.0196 | E49: 2009-11-16 | F49: 10.64032
A50: 2009-10-06 | B50: NTS Physical Flows, Partington, LNG | C50: 0.28759 | E50: 2009-11-17 | F50: 6.56215
A51: 2009-10-06 | B51: NTS Physical Flows, Glenmavis, LNG | C51: 0 | E51: 2009-11-18 | F51: 10.1363
A52: 2009-10-06 | B52: NTS Physical Flows, Hatfield Moor, Storage | C52: 0 | E52: 2009-11-19 | F52: 12.08398
A53: 2009-10-06 | B53: NTS Physical Flows, HoleHousFm, Storage | C53: 2.31106 | E53: 2009-11-20 | F53: 11.0704
A54: 2009-10-06 | B54: NTS Physical Flows, Hornsea, Storage | C54: 0.84556 | E54: 2009-11-21 | F54: 28.73956
A55: 2009-10-06 | B55: NTS Physical Flows, HumblyGrov, Storage | C55: 0.67402 | E55: 2009-11-22 | F55: 19.41657
A56: 2009-10-06 | B56: NTS Physical Flows, Rough, Storage | C56: 1.5315 | E56: 2009-11-23 | F56: 2.32918
A57: 2009-10-07 | B57: NTS Physical Flows, Aldbrough, Storage | C57: 0.91904 | E57: 2009-11-24 | F57: 11.46155
A58: 2009-10-07 | B58: NTS Physical Flows, Avonmouth, LNG | C58: 0.0196 | E58: 2009-11-25 | F58: 2.65546
A59: 2009-10-07 | B59: NTS Physical Flows, Glenmavis, LNG | C59: 0.00084 | E59: 2009-11-26 | F59: 2.14462
A60: 2009-10-07 | B60: NTS Physical Flows, Hatfield Moor, Storage | C60: 0 | E60: 2009-11-27 | F60: 1.21351
A61: 2009-10-07 | B61: NTS Physical Flows, HoleHousFm, Storage | C61: 0.62117 | E61: 2009-11-28 | F61: 2.5138
A62: 2009-10-07 | B62: NTS Physical Flows, Hornsea, Storage | C62: 1.66594 | E62: 2009-11-29 | F62: 6.25823
A63: 2009-10-07 | B63: NTS Physical Flows, HumblyGrov, Storage | C63: 1.55255 | E63: 2009-11-30 | F63: 1.33703
A64: 2009-10-07 | B64: NTS Physical Flows, Partington, LNG | C64: 0.28025 | E64: 2009-12-01 | F64: 0.74683
A65: 2009-10-07 | B65: NTS Physical Flows, Rough, Storage | C65: 1.7087 | E65: 2009-12-02 | F65: 11.33182
A66: 2009-10-08 | B66: NTS Physical Flows, Aldbrough, Storage | C66: 0 | E66: 2009-12-03 | F66: 1.81207
A67: 2009-10-08 | B67: NTS Physical Flows, Avonmouth, LNG | C67: 0.0196 | E67: 2009-12-04 | F67: 1.38333
A68: 2009-10-08 | B68: NTS Physical Flows, Glenmavis, LNG | C68: 0.00084 | E68: 2009-12-05 | F68: =SUMIF(A$3:A$3287,E68,C$3:C$3287) -> 4.9568
A69: 2009-10-08 | B69: NTS Physical Flows, Hatfield Moor, Storage | C69: 0 | E69: 2009-12-06 | F69: 14.69857
A70: 2009-10-08 | B70: NTS Physical Flows, HoleHousFm, Storage | C70: 0.53488 | E70: 2009-12-07 | F70: 3.45749
A71: 2009-10-08 | B71: NTS Physical Flows, Hornsea, Storage | C71: 1.22741 | E71: 2009-12-08 | F71: 6.4618
A72: 2009-10-08 | B72: NTS Physical Flows, HumblyGrov, Storage | C72: 0.87189 | E72: 2009-12-09 | F72: 6.8146
A73: 2009-10-08 | B73: NTS Physical Flows, Partington, LNG | C73: 0.28758 | E73: 2009-12-10 | F73: 4.3927
A74: 2009-10-08 | B74: NTS Physical Flows, Rough, Storage | C74: 1.8065 | E74: 2009-12-11 | F74: 2.14152
A75: 2009-10-09 | B75: NTS Physical Flows, HumblyGrov, Storage | C75: 0.61831 | E75: 2009-12-12 | F75: 4.75991
A76: 2009-10-09 | B76: NTS Physical Flows, Aldbrough, Storage | C76: 0.00029 | E76: 2009-12-13 | F76: 4.60081
A77: 2009-10-09 | B77: NTS Physical Flows, Rough, Storage | C77: 4.775 | E77: 2009-12-14 | F77: 1.91197
A78: 2009-10-09 | B78: NTS Physical Flows, Partington, LNG | C78: 0.28025 | E78: 2009-12-15 | F78: 1.39836
A79: 2009-10-09 | B79: NTS Physical Flows, Hornsea, Storage | C79: 1.07379 | E79: 2009-12-16 | F79: 0.32493
A80: 2009-10-09 | B80: NTS Physical Flows, HoleHousFm, Storage | C80: 0 | E80: 2009-12-17 | F80: 0.5893
A81: 2009-10-09 | B81: NTS Physical Flows, Glenmavis, LNG | C81: 0.00084 | E81: 2009-12-18 | F81: 0.43362
A82: 2009-10-09 | B82: NTS Physical Flows, Hatfield Moor, Storage | C82: 0 | E82: 2009-12-19 | F82: 1.96562
A83: 2009-10-09 | B83: NTS Physical Flows, Avonmouth, LNG | C83: 0.0196 | E83: 2009-12-20 | F83: 2.34651
A84: 2009-10-10 | B84: NTS Physical Flows, HoleHousFm, Storage | C84: 3.03496 | E84: 2009-12-21 | F84: 1.87181
A85: 2009-10-10 | B85: NTS Physical Flows, Aldbrough, Storage | C85: 4.38296 | E85: 2009-12-22 | F85: 6.20467
A86: 2009-10-10 | B86: NTS Physical Flows, Avonmouth, LNG | C86: 0.0196 | E86: 2009-12-23 | F86: 2.98445
A87: 2009-10-10 | B87: NTS Physical Flows, Glenmavis, LNG | C87: 0.00084 | E87: 2009-12-24 | F87: 4.56779
A88: 2009-10-10 | B88: NTS Physical Flows, Hatfield Moor, Storage | C88: 1.2965 | E88: 2009-12-25 | F88: 11.20665
A89: 2009-10-10 | B89: NTS Physical Flows, Hornsea, Storage | C89: 1.10873 | E89: 2009-12-26 | F89: 24.91409
A90: 2009-10-10 | B90: NTS Physical Flows, HumblyGrov, Storage | C90: 6.44957 | E90: 2009-12-27 | F90: 17.19275
A91: 2009-10-10 | B91: NTS Physical Flows, Partington, LNG | C91: 0.28351 | E91: 2009-12-28 | F91: 7.40906
A92: 2009-10-10 | B92: NTS Physical Flows, Rough, Storage | C92: 9.7074 | E92: 2009-12-29 | F92: 16.56589
A93: 2009-10-11 | B93: NTS Physical Flows, Aldbrough, Storage | C93: 3.39711 | E93: 2009-12-30 | F93: 23.97309
A94: 2009-10-11 | B94: NTS Physical Flows, Avonmouth, LNG | C94: 0.0196 | E94: 2009-12-31 | F94: 12.57213
A95: 2009-10-11 | B95: NTS Physical Flows, Glenmavis, LNG | C95: 0.00084 | E95: 2010-01-01 | F95: 3.77058
A96: 2009-10-11 | B96: NTS Physical Flows, Hornsea, Storage | C96: 1.13363 | E96: 2010-01-02 | F96: 1.86018
A97: 2009-10-11 | B97: NTS Physical Flows, HumblyGrov, Storage | C97: 2.39541 | E97: 2010-01-03 | F97: 5.9901
A98: 2009-10-11 | B98: NTS Physical Flows, Partington, LNG | C98: 0.29814 | E98: 2010-01-04 | F98: 5.37598
A99: 2009-10-11 | B99: NTS Physical Flows, Hatfield Moor, Storage | C99: 1.4458 | E99: 2010-01-05 | F99: 0.66345
A100: 2009-10-11 | B100: NTS Physical Flows, HoleHousFm, Storage | C100: 3.41817 | E100: 2010-01-06 | F100: 4.26011
A101: 2009-10-11 | B101: NTS Physical Flows, Rough, Storage | C101: 9.1472 | E101: 2010-01-07 | F101: 0.97845
A102: 2009-10-12 | B102: NTS Physical Flows, Aldbrough, Storage | C102: 0.00138 | E102: 2010-01-08 | F102: 2.21486
A103: 2009-10-12 | B103: NTS Physical Flows, Avonmouth, LNG | C103: 0.0196 | E103: 2010-01-09 | F103: 4.38421
A104: 2009-10-12 | B104: NTS Physical Flows, Glenmavis, LNG | C104: 0.00084 | E104: 2010-01-10 | F104: 7.903
A105: 2009-10-12 | B105: NTS Physical Flows, Hatfield Moor, Storage | C105: 0.6008 | E105: 2010-01-11 | F105: 2.26192
A106: 2009-10-12 | B106: NTS Physical Flows, HoleHousFm, Storage | C106: 0.38069 | E106: 2010-01-12 | F106: 8.16995
A107: 2009-10-12 | B107: NTS Physical Flows, Hornsea, Storage | C107: 1.08431 | E107: 2010-01-13 | F107: 7.15405
A108: 2009-10-12 | B108: NTS Physical Flows, HumblyGrov, Storage | C108: 0.6624 | E108: 2010-01-14 | F108: 2.0718
A109: 2009-10-12 | B109: NTS Physical Flows, Partington, LNG | C109: 0.27849 | E109: 2010-01-15 | F109: 11.20599
A110: 2009-10-12 | B110: NTS Physical Flows, Rough, Storage | C110: 2.6549 | E110: 2010-01-16 | F110: 8.28342
A111: 2009-10-13 | B111: NTS Physical Flows, Aldbrough, Storage | C111: 0.81847 | E111: 2010-01-17 | F111: 10.4622
A112: 2009-10-13 | B112: NTS Physical Flows, Avonmouth, LNG | C112: 0.0196 | E112: 2010-01-18 | F112: 12.99126
A113: 2009-10-13 | B113: NTS Physical Flows, Glenmavis, LNG | C113: 0.00084 | E113: 2010-01-19 | F113: 11.19611
A114: 2009-10-13 | B114: NTS Physical Flows, Hatfield Moor, Storage | C114: 0.3734 | E114: 2010-01-20 | F114: 5.28631
A115: 2009-10-13 | B115: NTS Physical Flows, HoleHousFm, Storage | C115: 0.11127 | E115: 2010-01-21 | F115: 12.70593
A116: 2009-10-13 | B116: NTS Physical Flows, Hornsea, Storage | C116: 1.02893 | E116: 2010-01-22 | F116: 8.79234
A117: 2009-10-13 | B117: NTS Physical Flows, HumblyGrov, Storage | C117: 0 | E117: 2010-01-23 | F117: 12.6124
A118: 2009-10-13 | B118: NTS Physical Flows, Partington, LNG | C118: 0.27445 | E118: 2010-01-24 | F118: 12.86465
A119: 2009-10-13 | B119: NTS Physical Flows, Rough, Storage | C119: 0.5059 | E119: 2010-01-25 | F119: 5.01316
A120: 2009-10-14 | B120: NTS Physical Flows, Aldbrough, Storage | C120: 1.86096 | E120: 2010-01-26 | F120: 0.22878
A121: 2009-10-14 | B121: NTS Physical Flows, Avonmouth, LNG | C121: 0.00442 | E121: 2010-01-27 | F121: 9.78215
A122: 2009-10-14 | B122: NTS Physical Flows, Glenmavis, LNG | C122: 0.00418 | E122: 2010-01-28 | F122: 13.7956
A123: 2009-10-14 | B123: NTS Physical Flows, Hatfield Moor, Storage | C123: 0.5645 | E123: 2010-01-29 | F123: 20.34373
A124: 2009-10-14 | B124: NTS Physical Flows, HoleHousFm, Storage | C124: 0.26837 | E124: 2010-01-30 | F124: 20.45956
A125: 2009-10-14 | B125: NTS Physical Flows, Hornsea, Storage | C125: 0.68691 | E125: 2010-01-31 | F125: 9.44992
A126: 2009-10-14 | B126: NTS Physical Flows, HumblyGrov, Storage | C126: 0 | E126: 2010-02-01 | F126: 2.53327
A127: 2009-10-14 | B127: NTS Physical Flows, Partington, LNG | C127: 0.29078 | E127: 2010-02-02 | F127: 4.81182
A128: 2009-10-14 | B128: NTS Physical Flows, Rough, Storage | C128: 1.6006 | E128: 2010-02-03 | F128: 8.68151
A129: 2009-10-15 | B129: NTS Physical Flows, Aldbrough, Storage | C129: 0.99685 | E129: 2010-02-04 | F129: 10.33804
A130: 2009-10-15 | B130: NTS Physical Flows, Avonmouth, LNG | C130: 0.00442 | E130: 2010-02-05 | F130: 13.78049
A131: 2009-10-15 | B131: NTS Physical Flows, Glenmavis, LNG | C131: 0.00418 | E131: 2010-02-06 | F131: 14.97221
A132: 2009-10-15 | B132: NTS Physical Flows, Hornsea, Storage | C132: 0.52444 | E132: 2010-02-07 | F132: =SUMIF(A$3:A$3287,E132,C$3:C$3287) -> 5.5736
A133: 2009-10-15 | B133: NTS Physical Flows, HumblyGrov, Storage | C133: 0 | E133: 2010-02-08 | F133: 0.34546
A134: 2009-10-15 | B134: NTS Physical Flows, Partington, LNG | C134: 0.28261 | E134: 2010-02-09 | F134: 0.23629
A135: 2009-10-15 | B135: NTS Physical Flows, Hatfield Moor, Storage | C135: 0.3843 | E135: 2010-02-10 | F135: 1.05701
A136: 2009-10-15 | B136: NTS Physical Flows, HoleHousFm, Storage | C136: 0.2686 | E136: 2010-02-11 | F136: 0.19659
A137: 2009-10-15 | B137: NTS Physical Flows, Rough, Storage | C137: 3.0515 | E137: 2010-02-12 | F137: 0.24089
A138: 2009-10-16 | B138: NTS Physical Flows, HumblyGrov, Storage | C138: 0 | E138: 2010-02-13 | F138: 1.98851
A139: 2009-10-16 | B139: NTS Physical Flows, Rough, Storage | C139: 1.1573 | E139: 2010-02-14 | F139: 2.01558
A140: 2009-10-16 | B140: NTS Physical Flows, Aldbrough, Storage | C140: 3.11404 | E140: 2010-02-15 | F140: 1.76822
A141: 2009-10-16 | B141: NTS Physical Flows, Avonmouth, LNG | C141: 0.00096 | E141: 2010-02-16 | F141: 0.20115
A142: 2009-10-16 | B142: NTS Physical Flows, Glenmavis, LNG | C142: 0.00613 | E142: 2010-02-17 | F142: 0.69728
A143: 2009-10-16 | B143: NTS Physical Flows, Hatfield Moor, Storage | C143: 0 | E143: 2010-02-18 | F143: 2.46888
A144: 2009-10-16 | B144: NTS Physical Flows, HoleHousFm, Storage | C144: 0.06002 | E144: 2010-02-19 | F144: 4.11531
A145: 2009-10-16 | B145: NTS Physical Flows, Hornsea, Storage | C145: 0.39991 | E145: 2010-02-20 | F145: 3.57105
A146: 2009-10-16 | B146: NTS Physical Flows, Partington, LNG | C146: 0.08752 | E146: 2010-02-21 | F146: 3.08178
A147: 2009-10-17 | B147: NTS Physical Flows, Aldbrough, Storage | C147: 0.82627 | E147: 2010-02-22 | F147: 1.78471
A148: 2009-10-17 | B148: NTS Physical Flows, Avonmouth, LNG | C148: 0.00096 | E148: 2010-02-23 | F148: 2.78545
A149: 2009-10-17 | B149: NTS Physical Flows, Glenmavis, LNG | C149: 0.08589 | E149: 2010-02-24 | F149: 1.46228
A150: 2009-10-17 | B150: NTS Physical Flows, Hatfield Moor, Storage | C150: 0 | E150: 2010-02-25 | F150: 9.38881
A151: 2009-10-17 | B151: NTS Physical Flows, HoleHousFm, Storage | C151: 0.30787 | E151: 2010-02-26 | F151: 2.93828
A152: 2009-10-17 | B152: NTS Physical Flows, Hornsea, Storage | C152: 0.59184 | E152: 2010-02-27 | F152: 12.5449
A153: 2009-10-17 | B153: NTS Physical Flows, HumblyGrov, Storage | C153: 2.41147 | E153: 2010-02-28 | F153: 11.84875
A154: 2009-10-17 | B154: NTS Physical Flows, Partington, LNG | C154: 0.27854 | E154: 2010-03-01 | F154: 10.20998
A155: 2009-10-17 | B155: NTS Physical Flows, Rough, Storage | C155: 0.3037 | E155: 2010-03-02 | F155: 0.898
A156: 2009-10-18 | B156: NTS Physical Flows, Aldbrough, Storage | C156: 0 | E156: 2010-03-03 | F156: 1.17742
A157: 2009-10-18 | B157: NTS Physical Flows, Avonmouth, LNG | C157: 0 | E157: 2010-03-04 | F157: 4.47286
A158: 2009-10-18 | B158: NTS Physical Flows, Glenmavis, LNG | C158: 0.08589 | E158: 2010-03-05 | F158: 3.53537
A159: 2009-10-18 | B159: NTS Physical Flows, Hatfield Moor, Storage | C159: 0 | E159: 2010-03-06 | F159: 0.45395
A160: 2009-10-18 | B160: NTS Physical Flows, HoleHousFm, Storage | C160: 0.41215 | E160: 2010-03-07 | F160: 1.50774
A161: 2009-10-18 | B161: NTS Physical Flows, Hornsea, Storage | C161: 0.57726 | E161: 2010-03-08 | F161: 0.6033
A162: 2009-10-18 | B162: NTS Physical Flows, HumblyGrov, Storage | C162: 2.0574 | E162: 2010-03-09 | F162: 0.17577
A163: 2009-10-18 | B163: NTS Physical Flows, Partington, LNG | C163: 0.28262 | E163: 2010-03-10 | F163: 2.75274
A164: 2009-10-18 | B164: NTS Physical Flows, Rough, Storage | C164: 0.2795 | E164: 2010-03-11 | F164: 1.74237
A165: 2009-10-19 | B165: NTS Physical Flows, Aldbrough, Storage | C165: 0.01231 | E165: 2010-03-12 | F165: 4.06401
A166: 2009-10-19 | B166: NTS Physical Flows, Avonmouth, LNG | C166: 0 | E166: 2010-03-13 | F166: 3.71607
A167: 2009-10-19 | B167: NTS Physical Flows, Glenmavis, LNG | C167: 0.08403 | E167: 2010-03-14 | F167: 3.00943
A168: 2009-10-19 | B168: NTS Physical Flows, Hatfield Moor, Storage | C168: 0 | E168: 2010-03-15 | F168: 2.32745
A169: 2009-10-19 | B169: NTS Physical Flows, HoleHousFm, Storage | C169: 0 | E169: 2010-03-16 | F169: 3.74838
A170: 2009-10-19 | B170: NTS Physical Flows, Hornsea, Storage | C170: 0.44099 | E170: 2010-03-17 | F170: 4.43994
A171: 2009-10-19 | B171: NTS Physical Flows, HumblyGrov, Storage | C171: 0.70908 | E171: 2010-03-18 | F171: 10.73965
A172: 2009-10-19 | B172: NTS Physical Flows, Partington, LNG | C172: 0.27527 | E172: 2010-03-19 | F172: 36.37861
A173: 2009-10-19 | B173: NTS Physical Flows, Rough, Storage | C173: 1.0126 | E173: 2010-03-20 | F173: 30.58459
A174: 2009-10-20 | B174: NTS Physical Flows, Aldbrough, Storage | C174: 0.82524 | E174: 2010-03-21 | F174: 32.30038
A175: 2009-10-20 | B175: NTS Physical Flows, Avonmouth, LNG | C175: 0 | E175: 2010-03-22 | F175: 25.31761
A176: 2009-10-20 | B176: NTS Physical Flows, Glenmavis, LNG | C176: 0.08403 | E176: 2010-03-23 | F176: 17.01647
A177: 2009-10-20 | B177: NTS Physical Flows, Hatfield Moor, Storage | C177: 0 | E177: 2010-03-24 | F177: 31.18873
A178: 2009-10-20 | B178: NTS Physical Flows, HoleHousFm, Storage | C178: 0 | E178: 2010-03-25 | F178: 32.78937
A179: 2009-10-20 | B179: NTS Physical Flows, Hornsea, Storage | C179: 0 | E179: 2010-03-26 | F179: 32.29278
A180: 2009-10-20 | B180: NTS Physical Flows, HumblyGrov, Storage | C180: 0 | E180: 2010-03-27 | F180: 45.81543
A181: 2009-10-20 | B181: NTS Physical Flows, Partington, LNG | C181: 0.24751 | E181: 2010-03-28 | F181: 46.59205
A182: 2009-10-20 | B182: NTS Physical Flows, Rough, Storage | C182: 0 | E182: 2010-03-29 | F182: 31.34239
A183: 2009-10-21 | B183: NTS Physical Flows, Aldbrough, Storage | C183: 2.54571 | E183: 2010-03-30 | F183: 19.0916
A184: 2009-10-21 | B184: NTS Physical Flows, Avonmouth, LNG | C184: 0 | E184: 2010-03-31 | F184: 12.21707
A185: 2009-10-21 | B185: NTS Physical Flows, Glenmavis, LNG | C185: 0.08395 | E185: 2010-04-01 | F185: 17.4004
A186: 2009-10-21 | B186: NTS Physical Flows, Hornsea, Storage | C186: 0.63504 | E186: 2010-04-02 | F186: 14.40902
A187: 2009-10-21 | B187: NTS Physical Flows, HumblyGrov, Storage | C187: 4.14546 | E187: 2010-04-03 | F187: 21.65124
A188: 2009-10-21 | B188: NTS Physical Flows, Partington, LNG | C188: 0.27038 | E188: 2010-04-04 | F188: 22.84223
A189: 2009-10-21 | B189: NTS Physical Flows, Hatfield Moor, Storage | C189: 0 | E189: 2010-04-05 | F189: 25.29721
A190: 2009-10-21 | B190: NTS Physical Flows, HoleHousFm, Storage | C190: 0 | E190: 2010-04-06 | F190: 22.02548
A191: 2009-10-21 | B191: NTS Physical Flows, Rough, Storage | C191: 2.2956 | E191: 2010-04-07 | F191: 11.45536
A192: 2009-10-22 | B192: NTS Physical Flows, Aldbrough, Storage | C192: 0.95919 | E192: 2010-04-08 | F192: 6.72678
A193: 2009-10-22 | B193: NTS Physical Flows, Avonmouth, LNG | C193: 0 | E193: 2010-04-09 | F193: 29.31874
A194: 2009-10-22 | B194: NTS Physical Flows, Glenmavis, LNG | C194: 0.08395 | E194: 2010-04-10 | F194: 41.01678
A195: 2009-10-22 | B195: NTS Physical Flows, Hatfield Moor, Storage | C195: 0 | E195: 2010-04-11 | F195: 37.73752
A196: 2009-10-22 | B196: NTS Physical Flows, HoleHousFm, Storage | C196: 0 | E196: 2010-04-12 | F196: =SUMIF(A$3:A$3287,E196,C$3:C$3287) -> 27.71176
A197: 2009-10-22 | B197: NTS Physical Flows, Hornsea, Storage | C197: 0.56991 | E197: 2010-04-13 | F197: 23.7006
A198: 2009-10-22 | B198: NTS Physical Flows, HumblyGrov, Storage | C198: 0 | E198: 2010-04-14 | F198: 19.6621
A199: 2009-10-22 | B199: NTS Physical Flows, Partington, LNG | C199: 0.27117 | E199: 2010-04-15 | F199: 26.74064
A200: 2009-10-22 | B200: NTS Physical Flows, Rough, Storage | C200: 3.2011 | E200: 2010-04-16 | F200: 42.14197
... 3087 more rows

Sheet r_Demand growth forecast
A1: Demand growth
A2: % | B2: Avg | C2: Peak
A3: Annual increase | B3: 0.995 | C3: 1.011 | D3: << Source: National Grid TYS 2010
A5: Demand (% base yr)
A6: Gas yr | B6: Avg | C6: Peak
A7: 09/10 | B7: 1 | C7: 1
A8: 10/11 | B8: 1 | C8: 1 | D8: << 2010/11 taken as base year
A9: 11/12 | B9: =B8*B$3 -> 0.995 | C9: =C8*C$3 -> 1.011
A10: 12/13 | B10: 0.990025 | C10: 1.022121
A11: 13/14 | B11: 0.985074875 | C11: 1.033364331
A12: 14/15 | B12: 0.9801495006 | C12: 1.044731339
A13: 15/16 | B13: 0.9752487531 | C13: 1.056223383
A14: 16/17 | B14: 0.9703725094 | C14: 1.067841841

Sheet r_Online storage
B1: Online storage
B2: % | C2: 09/10 | D2: 10/11 | E2: 11/12 | F2: 12/13 | G2: 13/14 | H2: 14/15 | I2: 15/16 | J2: 16/17
A3: 1 | B3: Rough | C3: 1 | D3: 1 | E3: 1 | F3: 1 | G3: 1 | H3: 1 | I3: 1 | J3: 1
A4: 2 | B4: Hatfield | C4: 1 | D4: 1 | E4: 1 | F4: 1 | G4: 1 | H4: 1 | I4: 1 | J4: 1
A5: 3 | B5: Humbly Grove | C5: 1 | D5: 1 | E5: 1 | F5: 1 | G5: 1 | H5: 1 | I5: 1 | J5: 1
A6: 4 | B6: Hornsea | C6: 1 | D6: 1 | E6: 1 | F6: 1 | G6: 1 | H6: 1 | I6: 1 | J6: 1
A7: 5 | B7: Holford | C7: 0 | D7: 0 | E7: 1 | F7: 1 | G7: 1 | H7: 1 | I7: 1 | J7: 1
A8: 6 | B8: Aldbrough 1 a | C8: 1 | D8: 1 | E8: 1 | F8: 1 | G8: 1 | H8: 1 | I8: 1 | J8: 1
A9: 7 | B9: Aldbrough 1 b | C9: 0 | D9: 1 | E9: 1 | F9: 1 | G9: 1 | H9: 1 | I9: 1 | J9: 1
A10: 8 | B10: Hole House Farm | C10: 1 | D10: 1 | E10: 1 | F10: 1 | G10: 1 | H10: 1 | I10: 1 | J10: 1
A11: 9 | B11: Hewett | C11: 0 | D11: 0 | E11: 0 | F11: 0 | G11: 0 | H11: 0 | I11: 0 | J11: 0
A12: 10 | B12: Bains | C12: 0 | D12: 0 | E12: 0 | F12: 0 | G12: 0 | H12: 0 | I12: 0 | J12: 0
A13: 11 | B13: Baird | C13: 0 | D13: 0 | E13: 0 | F13: 0 | G13: 0 | H13: 0 | I13: 0 | J13: 0
A14: 12 | B14: Portland | C14: 0 | D14: 0 | E14: 0 | F14: 0 | G14: 0 | H14: 0 | I14: 0 | J14: 0
A15: 13 | B15: Caythorpe | C15: 0 | D15: 0 | E15: 0 | F15: 0 | G15: 0 | H15: 0 | I15: 0 | J15: 0
A16: 14 | B16: Stublach | C16: 0 | D16: 0 | E16: 0 | F16: 0 | G16: 1 | H16: 1 | I16: 1 | J16: 1
A17: 15 | B17: Hill Top Farm | C17: 0 | D17: 0 | E17: 1 | F17: 1 | G17: 1 | H17: 1 | I17: 1 | J17: 1
A18: 16 | B18: Avonmouth | C18: 1 | D18: 1 | E18: 1 | F18: 0 | G18: 0 | H18: 0 | I18: 0 | J18: 0
A19: 17 | B19: Glenmavis | C19: 1 | D19: 1 | E19: 0 | F19: 0 | G19: 0 | H19: 0 | I19: 0 | J19: 0
A20: 18 | B20: Partington | C20: 1 | D20: 1 | E20: 0 | F20: 0 | G20: 0 | H20: 0 | I20: 0 | J20: 0
A21: 19 | B21: Aldbrough 2 | C21: 0 | D21: 0 | E21: 0 | F21: 0 | G21: 0 | H21: 0 | I21: 0 | J21: 0
A22: 20 | B22: Whitehill F | C22: 0 | D22: 0 | E22: 0 | F22: 0 | G22: 0 | H22: 0 | I22: 0 | J22: 0
A23: 21 | B23: Holford H165 | C23: 0 | D23: 0 | E23: 0 | F23: 0 | G23: 0 | H23: 0 | I23: 0 | J23: 0
A24: 22 | B24: Saltfleetby | C24: 0 | D24: 0 | E24: 0 | F24: 0 | G24: 0 | H24: 0 | I24: 0 | J24: 0
A25: 23 | B25: Gateway | C25: 0 | D25: 0 | E25: 0 | F25: 0 | G25: 0 | H25: 0 | I25: 0 | J25: 0
A26: 24 | B26: Albury | C26: 0 | D26: 0 | E26: 0 | F26: 0 | G26: 0 | H26: 0 | I26: 0 | J26: 0
A27: 25 | B27: SNS Storage | C27: 0 | D27: 0 | E27: 0 | F27: 0 | G27: 0 | H27: 0 | I27: 0 | J27: 0
A28: 26 | B28: Fleetwood | C28: 0 | D28: 0 | E28: 0 | F28: 0 | G28: 0 | H28: 0 | I28: 0 | J28: 0
B30: Source: National Grid Ten Year Statement (2010) & UK and Ireland Gas Project Tracker. Platts European Gas Daily, volume 15, issue 221, November 15 2010

Sheet r_Storage parameters
B1: Storage technical parameters
C2: Delivery | D2: Injection | E2: Space
C3: GWh/day | D3: GWh/day | E3: GWh
A4: 1 | B4: Rough | C4: 455 | D4: 238.326 | E4: 36800
A5: 2 | B5: Hatfield | C5: 25 | D5: 25 | E5: 1260
A6: 3 | B6: Humbly Grove | C6: 82 | D6: 90 | E6: 3730
A7: 4 | B7: Hornsea | C7: 195 | D7: 21.666 | E7: 3496
A8: 5 | B8: Holford | C8: 169 | D8: 169 | E8: 1745
A9: 6 | B9: Aldbrough 1 a | C9: 105 | D9: 317 | E9: 649.98
A10: 7 | B10: Aldbrough 1 b | C10: 316 | D10: 317 | E10: 3264.02
A11: 8 | B11: Hole House Farm | C11: 116 | D11: 170 | E11: 650
A12: 9 | B12: Hewett | C12: 454.986 | D12: 454.986 | E12: 45498.6
A13: 10 | B13: Bains | C13: 64 | D13: 64 | E13: 2957
A14: 11 | B14: Baird | C14: 206 | D14: 114 | E14: 10181
A15: 12 | B15: Portland | C15: 216 | D15: 216 | E15: 10830
A16: 13 | B16: Caythorpe | C16: 90 | D16: 90 | E16: 1744
A17: 14 | B17: Stublach | C17: 175 | D17: 175 | E17: 1500
A18: 15 | B18: Hill Top Farm | C18: 195 | D18: 195 | E18: 1070
A19: 16 | B19: Avonmouth | C19: 143 | D19: 2.6 | E19: 663
A20: 17 | B20: Glenmavis | C20: 92.6 | D20: 3.2 | E20: 385.1
A21: 18 | B21: Partington | C21: 154.2 | D21: 2.2 | E21: 192.1
A22: 19 | B22: Aldbrough 2 | C22: 420 | D22: 317 | E22: 3914
A23: 20 | B23: Whitehill F | C23: 433 | D23: 317 | E23: 4443
A24: 21 | B24: Holford H165
A25: 22 | B25: Saltfleetby | C25: 85 | D25: 47 | E25: 7650
A26: 23 | B26: Gateway | C26: 396 | D26: 396 | E26: 15870
A27: 24 | B27: Albury | C27: 46 | D27: 46 | E27: 1850
A28: 25 | B28: SNS Storage | C28: 250 | D28: 250 | E28: 22000
A29: 26 | B29: Fleetwood | C29: 700 | D29: 700 | E29: 12700
B31: Source: National Grid Ten Year Statement (2010) & UK and Ireland Gas Project Tracker. Platts European Gas Daily, volume 15, issue 221, November 15 2010

Sheet r_Capacities and coefficients
A1: Capacities
A2: GWh/day | B2: 09/10 | C2: 10/11 | D2: 11/12 | E2: 12/13 | F2: 13/14 | G2: 14/15 | H2: 15/16 | I2: 16/17 | J2: Source: National Grid TYS 2010- see Appendix 2 in Ofgem guidance for more details
A3: UKCS | B3: 2254.56396 | C3: 1997.71353 | D3: 1800.66126 | E3: 1653.76578 | F3: 1636.75797 | G3: 1561.68528 | H3: 1562.44359 | I3: 1465.59657
A4: Norway | B4: 1278.294 | C4: 1419.123 | D4: 1419.123 | E4: 1419.123 | F4: 1419.123 | G4: 1419.123 | H4: 1419.123 | I4: 1419.123
A5: LNG | B5: 1324.401029 | C5: 1527.705275 | D5: 1527.705275 | E5: 1527.705275 | F5: 1527.705275 | G5: 1527.705275 | H5: 1527.705275 | I5: 1527.705275
A6: Continent | B6: 1234.665205 | C6: 1335.575342 | D6: 1335.575342 | E6: 1335.575342 | F6: 1335.575342 | G6: 1335.575342 | H6: 1335.575342 | I6: 1335.575342
A7: -IUK | B7: 756.8260274 | C7: 756.8260274 | D7: 756.8260274 | E7: 756.8260274 | F7: 756.8260274 | G7: 756.8260274 | H7: 756.8260274 | I7: 756.8260274
A8: -BBL | B8: 477.8391781 | C8: 578.7493151 | D8: 578.7493151 | E8: 578.7493151 | F8: 578.7493151 | G8: 578.7493151 | H8: 578.7493151 | I8: 578.7493151
A9: * Based on a conversion factor of 1 mcm = 10.833 GWh
A11: Coefficients
A12: % | B12: Daily | C12: Weekly | D12: Monthly | E12: Quarterly | F12: Seasonal
A13: UKCS | B13: 0.902173913 | C13: 0.902173913 | D13: 0.902173913 | E13: 0.902173913 | F13: 0.902173913
A14: Norway | B14: 0.9750954198 | C14: 0.9750954198 | D14: 0.9750954198 | E14: 0.814516129 | F14: 0.8130081301
A15: LNG | B15: 0.9903213834 | C15: 0.75 | D15: 0.75 | E15: 0.6 | F15: 0.3271818661
A16: Continent | B16: 0.8029463809 | C16: 0.8029463809 | D16: 0.5637278636 | E16: 0.3245093463 | F16: 0.1754807692

Sheet r_Data from TYS 2010 (Appendix)
A1: Appendix 2 - Gas Demand & Supply Volume Forecasts Data
A4: Calendar Year | B4: 2010 | C4: 2011 | D4: 2012 | E4: 2013 | F4: 2014 | G4: 2015 | H4: 2016 | I4: 2017 | J4: 2018 | K4: 2019 | L4: 2020 | M4: 2021 | N4: 2022 | O4: 2023 | P4: 2024
A5: 0 to 73 MWh | B5: 348.1157649 | C5: 349.3501167 | D5: 350.004106 | E5: 348.0388979 | F5: 345.8194823 | G5: 343.0091864 | H5: 341.7168272 | I5: 337.1818321 | J5: 336.2625894 | K5: 335.9513526 | L5: 336.7820054 | M5: 335.0976466 | N5: 335.1284937 | O5: 334.7461014 | P5: 335.3324862
A6: 73 to 732 MWh | B6: 47.59993468 | C6: 46.95295774 | D6: 46.94169479 | E6: 46.37203087 | F6: 46.01503505 | G6: 45.67062604 | H6: 45.52694684 | I6: 44.95221719 | J6: 44.60206876 | K6: 44.19284679 | L6: 43.94691071 | M6: 43.42454183 | N6: 43.01822325 | O6: 42.6398363 | P6: 42.47735635
A7: NDM>732 | B7: 69.11606702 | C7: 69.19469201 | D7: 69.57674561 | E7: 69.16701758 | F7: 68.98592251 | G7: 68.52056779 | H7: 68.68257336 | I7: 68.33778947 | J7: 68.18950125 | K7: 67.58895354 | L7: 67.39072177 | M7: 66.94884653 | N7: 66.72536569 | O7: 66.53783294 | P7: 66.63266433
A8: Total NDM | B8: 464.8317666 | C8: 465.4977665 | D8: 466.5225464 | E8: 463.5779464 | F8: 460.8204399 | G8: 457.2003803 | H8: 455.9263474 | I8: 450.4718387 | J8: 449.0541595 | K8: 447.733153 | L8: 448.1196379 | M8: 445.471035 | N8: 444.8720827 | O8: 443.9237706 | P8: 444.4425068
A9: DM | B9: 122.005564 | C9: 129.1781272 | D9: 130.9786793 | E9: 130.8049405 | F9: 129.8016923 | G9: 127.9222775 | H9: 126.2042443 | I9: 124.9316991 | J9: 124.1349924 | K9: 123.0493503 | L9: 122.2964881 | M9: 121.2856757 | N9: 120.5670217 | O9: 119.9373277 | P9: 119.5454512
A10: Total LDZ | B10: 586.8373306 | C10: 594.6758937 | D10: 597.5012256 | E10: 594.3828868 | F10: 590.6221322 | G10: 585.1226578 | H10: 582.1305917 | I10: 575.4035378 | J10: 573.1891518 | K10: 570.7825032 | L10: 570.416126 | M10: 566.7567106 | N10: 565.4391044 | O10: 563.8610983 | P10: 563.987958
A11: NTS Power Generation | B11: 335.1939208 | C11: 345.9249194 | D11: 349.2789198 | E11: 367.6509192 | F11: 363.7939133 | G11: 346.1639138 | H11: 358.2749099 | I11: 360.3789156 | J11: 349.9539147 | K11: 355.4199181 | L11: 338.1199246 | M11: 299.9479265 | N11: 284.4749304 | O11: 258.8749293 | P11: 233.8449314
A12: NTS Industrials | B12: 30.66129157 | C12: 31.03341243 | D12: 31.68537246 | E12: 31.33895658 | F12: 31.33186983 | G12: 29.55284948 | H12: 29.14236072 | I12: 28.382723 | J12: 27.88990619 | K12: 27.43644776 | L12: 27.16388034 | M12: 26.65203822 | N12: 26.30950835 | O12: 25.99779848 | P12: 25.84553742
A13: Exports via Moffat | B13: 69.14544976 | C13: 68.90559779 | D13: 69.60358195 | E13: 33.8793972 | F13: 35.24893417 | G13: 40.31314805 | H13: 43.25774886 | I13: 48.43917596 | J13: 51.4690414 | K13: 54.40791687 | L13: 56.56772173 | M13: 57.90718954 | N13: 59.06021131 | O13: 60.06310347 | P13: 63.28181939
A14: Exports via IUK | B14: 61.52267 | C14: 65.96172 | D14: 68.42055 | E14: 68.42055 | F14: 68.42055 | G14: 66.91905 | H14: 63.32722 | I14: 59.46215 | J14: 55.54131 | K14: 51.68031 | L14: 47.70051 | M14: 43.81333 | N14: 39.81329 | O14: 35.81138 | P14: 31.91166
A15: Total NTS | B15: 496.5233322 | C15: 511.8256496 | D15: 518.9884242 | E15: 501.289823 | F15: 498.7952673 | G15: 482.9489613 | H15: 494.0022395 | I15: 496.6629645 | J15: 484.8541723 | K15: 488.9445927 | L15: 469.5520367 | M15: 428.3204843 | N15: 409.65794 | O15: 380.7472113 | P15: 354.8839482
A16: Shrinkage | B16: 13.52608909 | C16: 11.23209946 | D16: 8.694672417 | E16: 7.462701605 | F16: 7.122033375 | G16: 6.95235428 | H16: 6.946443374 | I16: 6.880920605 | J16: 6.790370755 | K16: 6.74987197 | L16: 6.727418146 | M16: 6.67015334 | N16: 6.698952945 | O16: 6.66898618 | P16: 6.700580659
A17: Total Throughput | B17: 1096.886752 | C17: 1117.733643 | D17: 1125.184322 | E17: 1103.135411 | F17: 1096.539433 | G17: 1075.023973 | H17: 1083.079275 | I17: 1078.947423 | J17: 1064.833695 | K17: 1066.476968 | L17: 1046.695581 | M17: 1001.747348 | N17: 981.7959974 | O17: 951.2772957 | P17: 925.5724869

Sheet r_Storage stock levels (daily)
A1: Stock levels sourced from file "Historic Storage Monitors 1 October 2009 - 30 September 2010", available on National Grid's website at http://www.nationalgrid.com/uk/Gas/Data/storage/
A2: Maximum capacity derived from file "Historic Storage Monitors 1 October 2008 - 30 September 2009", available on National Grid's website at http://www.nationalgrid.com/uk/Gas/Data/storage/
D3: 37937.96022 | E3: 9213.20442 | F3: 1284.891864
D5: Long Range Storage | E5: Medium Range Storage | F5: Short Range Storage | H5: Daily stock levels
A6: Date | B6: Month | C6: Quarter | D6: Closing Stock Level (GWh) | E6: Closing Stock Level (GWh) | F6: Closing Stock Level (GWh)
H7: LRS/MRS | I7: SRS
A8: 2009-10-01 | B8: =MONTH(A8) -> 10 | C8: =IF(B8<=3,1,IF(B8<=6,2,IF(B8<=9,3,4))) -> 4 | D8: 37698.15206 | E8: 8389.541089 | F8: 1250.892007 | H8: =MIN(1, (D8+E8)/($D$3+$E$3)) -> 0.9774454884 | I8: =MIN(1, F8/$F$3) -> 0.9735387405
A9: 2009-10-02 | B9: 10 | C9: =IF(B9<=3,1,IF(B9<=6,2,IF(B9<=9,3,4))) -> 4 | D9: 37728.17052 | E9: 8423.879378 | F9: 1252.708174 | H9: =MIN(1, (D9+E9)/($D$3+$E$3)) -> 0.978810391 | I9: =MIN(1, F9/$F$3) -> 0.974952219
A10: 2009-10-03 | B10: 10 | C10: 4 | D10: 37830.6528 | E10: 8565.698972 | F10: 1255.062901 | H10: 0.9839916389 | I10: 0.9767848456
A11: 2009-10-04 | B11: 10 | C11: 4 | D11: 37900.24181 | E11: 8678.461607 | F11: 1257.52308 | H11: 0.9878590227 | I11: 0.9786995429
A12: 2009-10-05 | B12: 10 | C12: 4 | D12: 37956.8139 | E12: 8691.631031 | F12: 1260.32434 | H12: 0.9893381273 | I12: 0.9808796952
A13: 2009-10-06 | B13: 10 | C13: 4 | D13: 37955.94908 | E13: 8689.742394 | F13: 1263.001523 | H13: 0.989279731 | I13: 0.9829632814
A14: 2009-10-07 | B14: 10 | C14: 4 | D14: 37955.56627 | E14: 8732.802757 | F14: 1265.820035 | H14: 0.9901848528 | I14: 0.9851568606
A15: 2009-10-08 | B15: 10 | C15: 4 | D15: 37975.18139 | E15: 8720.656134 | F15: 1268.768903 | H15: 0.9903432476 | I15: 0.9874518926
A16: 2009-10-09 | B16: 10 | C16: 4 | D16: 38025.59769 | E16: 8629.953386 | F16: 1271.768903 | H16: 0.9894888372 | I16: 0.9897867195
A17: 2009-10-10 | B17: 10 | C17: 4 | D17: 38131.13168 | E17: 8815.097636 | F17: 1274.492866 | H17: 0.995653653 | I17: 0.9919067134
A18: 2009-10-11 | B18: 10 | C18: 4 | D18: 38229.79912 | E18: 8945.755664 | F18: 1277.353064 | H18: 1 | I18: 0.9941327358
A19: 2009-10-12 | B19: 10 | C19: 4 | D19: 38257.09099 | E19: 8916.084314 | F19: 1280.654224 | H19: 1 | I19: 0.9967019481
A20: 2009-10-13 | B20: 10 | C20: 4 | D20: 38256.32124 | E20: 8922.958951 | F20: 1283.484763 | H20: 1 | I20: 0.9989048876
A21: 2009-10-14 | B21: 10 | C21: 4 | D21: 38256.00973 | E21: 8889.67176 | F21: 1284.180148 | H21: 0.9998837111 | I21: 0.9994460888
A22: 2009-10-15 | B22: 10 | C22: 4 | D22: 38281.48182 | E22: 8836.795128 | F22: 1284.271175 | H22: 0.9993025052 | I22: 0.9995169328
A23: 2009-10-16 | B23: 10 | C23: 4 | D23: 38280.76561 | E23: 8792.042553 | F23: 1284.347164 | H23: 0.9983381857 | I23: 0.9995760732
A24: 2009-10-17 | B24: 10 | C24: 4 | D24: 38260.27146 | E24: 8739.551529 | F24: 1284.347164 | H24: 0.996790288 | I24: 0.9995760732
A25: 2009-10-18 | B25: 10 | C25: 4 | D25: 38227.07188 | E25: 8609.937788 | F25: 1284.166143 | H25: 0.9933372808 | I25: 0.999435189
A26: 2009-10-19 | B26: 10 | C26: 4 | D26: 38226.77336 | E26: 8492.097615 | F26: 1284.196143 | H26: 0.9908317499 | I26: 0.9994585373
A27: 2009-10-20 | B27: 10 | C27: 4 | D27: 38124.98811 | E27: 8322.883632 | F27: 1284.226143 | H27: 0.9850842942 | I27: 0.9994818855
A28: 2009-10-21 | B28: 10 | C28: 4 | D28: 38148.96205 | E28: 8392.508144 | F28: 1283.95078 | H28: 0.987069366 | I28: 0.9992675772
A29: 2009-10-22 | B29: 10 | C29: 4 | D29: 38183.55486 | E29: 8409.537992 | F29: 1283.98178 | H29: 0.9881641993 | I29: 0.9992917038
A30: 2009-10-23 | B30: 10 | C30: 4 | D30: 38229.33027 | E30: 8484.67403 | F30: 1283.98178 | H30: 0.9907285357 | I30: 0.9992917038
A31: 2009-10-24 | B31: 10 | C31: 4 | D31: 38282.91055 | E31: 8502.710085 | F31: 1283.98178 | H31: 0.9922474025 | I31: 0.9992917038
A32: 2009-10-25 | B32: 10 | C32: 4 | D32: 38346.20515 | E32: 8608.369047 | F32: 1284.39118 | H32: 0.9958306343 | I32: 0.9996103298
A33: 2009-10-26 | B33: 10 | C33: 4 | D33: 38411.81347 | E33: 8711.675562 | F33: 1284.58038 | H33: 0.9994130451 | I33: 0.9997575796
A34: 2009-10-27 | B34: 10 | C34: 4 | D34: 38437.80985 | E34: 8778.648704 | F34: 1284.76958 | H34: 1 | I34: 0.9999048293
A35: 2009-10-28 | B35: 10 | C35: 4 | D35: 38441.4946 | E35: 8827.711636 | F35: 1284.669597 | H35: 1 | I35: 0.999827015
A36: 2009-10-29 | B36: 10 | C36: 4 | D36: 38483.24182 | E36: 8725.448375 | F36: 1284.700597 | H36: 1 | I36: 0.9998511415
A37: 2009-10-30 | B37: 10 | C37: 4 | D37: 38482.30047 | E37: 8789.080683 | F37: 1284.720718 | H37: 1 | I37: 0.9998668012
A38: 2009-10-31 | B38: 10 | C38: 4 | D38: 38538.75584 | E38: 8969.590542 | F38: 1284.729763 | H38: 1 | I38: 0.9998738407
A39: 2009-11-01 | B39: 11 | C39: 4 | D39: 38648.97721 | E39: 9122.426898 | F39: 1284.729763 | H39: 1 | I39: 0.9998738407
A40: 2009-11-02 | B40: 11 | C40: 4 | D40: 38656.79168 | E40: 9123.810736 | F40: 1284.729763 | H40: 1 | I40: 0.9998738407
A41: 2009-11-03 | B41: 11 | C41: 4 | D41: 38656.30698 | E41: 9164.701403 | F41: 1284.438742 | H41: 1 | I41: 0.9996473462
A42: 2009-11-04 | B42: 11 | C42: 4 | D42: 38656.04675 | E42: 9054.182985 | F42: 1284.438742 | H42: 1 | I42: 0.9996473462
A43: 2009-11-05 | B43: 11 | C43: 4 | D43: 38655.78622 | E43: 8940.881115 | F43: 1284.438742 | H43: 1 | I43: 0.9996473462
A44: 2009-11-06 | B44: 11 | C44: 4 | D44: 38655.52743 | E44: 8876.469623 | F44: 1284.438742 | H44: 1 | I44: 0.9996473462
A45: 2009-11-07 | B45: 11 | C45: 4 | D45: 38655.26711 | E45: 8939.074123 | F45: 1284.438742 | H45: 1 | I45: 0.9996473462
A46: 2009-11-08 | B46: 11 | C46: 4 | D46: 38625.98372 | E46: 8853.844582 | F46: 1284.195816 | H46: 1 | I46: 0.9994582828
A47: 2009-11-09 | B47: 11 | C47: 4 | D47: 38499.1951 | E47: 8727.226024 | F47: 1284.195816 | H47: 1 | I47: 0.9994582828
A48: 2009-11-10 | B48: 11 | C48: 4 | D48: 38479.26765 | E48: 8609.088541 | F48: 1283.906327 | H48: 0.9986679343 | I48: 0.9992329805
A49: 2009-11-11 | B49: 11 | C49: 4 | D49: 38478.73604 | E49: 8502.457829 | F49: 1283.906327 | H49: 0.9963951945 | I49: 0.9992329805
A50: 2009-11-12 | B50: 11 | C50: 4 | D50: 38478.47891 | E50: 8448.372604 | F50: 1283.906327 | H50: 0.995242681 | I50: 0.9992329805
A51: 2009-11-13 | B51: 11 | C51: 4 | D51: 38478.18657 | E51: 8529.180425 | F51: 1283.906327 | H51: 0.9969502844 | I51: 0.9992329805
A52: 2009-11-14 | B52: 11 | C52: 4 | D52: 38454.32536 | E52: 8489.502206 | F52: 1283.906327 | H52: 0.9956027158 | I52: 0.9992329805
A53: 2009-11-15 | B53: 11 | C53: 4 | D53: 38454.02697 | E53: 8468.59368 | F53: 1283.707514 | H53: 0.9951529513 | I53: 0.9990782492
A54: 2009-11-16 | B54: 11 | C54: 4 | D54: 38500.20138 | E54: 8513.23625 | F54: 1283.418331 | H54: 0.9970790327 | I54: 0.9988531852
A55: 2009-11-17 | B55: 11 | C55: 4 | D55: 38539.43328 | E55: 8473.907035 | F55: 1283.418331 | H55: 0.9970769689 | I55: 0.9988531852
A56: 2009-11-18 | B56: 11 | C56: 4 | D56: 38599.28621 | E56: 8419.913739 | F56: 1283.418331 | H56: 0.9972012422 | I56: 0.9988531852
A57: 2009-11-19 | B57: 11 | C57: 4 | D57: 38635.33061 | E57: 8444.148791 | F57: 1283.418331 | H57: 0.9984796718 | I57: 0.9988531852
A58: 2009-11-20 | B58: 11 | C58: 4 | D58: 38634.48075 | E58: 8514.208855 | F58: 1283.128535 | H58: 0.9999475084 | I58: 0.998627644
A59: 2009-11-21 | B59: 11 | C59: 4 | D59: 38634.21976 | E59: 8756.527288 | F59: 1282.884384 | H59: 1 | I59: 0.9984376272
A60: 2009-11-22 | B60: 11 | C60: 4 | D60: 38656.49603 | E60: 8919.936253 | F60: 1282.884384 | H60: 1 | I60: 0.9984376272
A61: 2009-11-23 | B61: 11 | C61: 4 | D61: 38635.82519 | E61: 8890.617405 | F61: 1282.884384 | H61: 1 | I61: 0.9984376272
A62: 2009-11-24 | B62: 11 | C62: 4 | D62: 38635.69392 | E62: 8988.104852 | F62: 1282.884384 | H62: 1 | I62: 0.9984376272
A63: 2009-11-25 | B63: 11 | C63: 4 | D63: 38635.43119 | E63: 8989.323038 | F63: 1282.884384 | H63: 1 | I63: 0.9984376272
A64: 2009-11-26 | B64: 11 | C64: 4 | D64: 38634.83702 | E64: 8984.886221 | F64: 1282.884384 | H64: 1 | I64: 0.9984376272
A65: 2009-11-27 | B65: 11 | C65: 4 | D65: 38527.96538 | E65: 8920.703286 | F65: 1282.595814 | H65: 1 | I65: 0.9982130402
A66: 2009-11-28 | B66: 11 | C66: 4 | D66: 38494.49917 | E66: 8914.124484 | F66: 1282.595814 | H66: 1 | I66: 0.9982130402
A67: 2009-11-29 | B67: 11 | C67: 4 | D67: 38483.49723 | E67: 8992.40129 | F67: 1282.595814 | H67: 1 | I67: 0.9982130402
A68: 2009-11-30 | B68: 11 | C68: 4 | D68: 38400.06947 | E68: 8927.835023 | F68: 1282.595814 | H68: 1 | I68: 0.9982130402
A69: 2009-12-01 | B69: 12 | C69: 4 | D69: 38183.00291 | E69: 8742.181067 | F69: 1282.595814 | H69: 0.9952073154 | I69: 0.9982130402
A70: 2009-12-02 | B70: 12 | C70: 4 | D70: 38023.21452 | E70: 8813.145475 | F70: 1282.595814 | H70: 0.9933235021 | I70: 0.9982130402
A71: 2009-12-03 | B71: 12 | C71: 4 | D71: 37865.55684 | E71: 8697.989097 | F71: 1282.595814 | H71: 0.9875375569 | I71: 0.9982130402
A72: 2009-12-04 | B72: =MONTH(A72) -> 12 | C72: 4 | D72: 37703.86286 | E72: 8539.644406 | F72: 1282.595814 | H72: 0.9807500539 | I72: 0.9982130402
A73: 2009-12-05 | B73: 12 | C73: =IF(B73<=3,1,IF(B73<=6,2,IF(B73<=9,3,4))) -> 4 | D73: 37610.08262 | E73: 8547.101377 | F73: 1282.306325 | H73: =MIN(1, (D73+E73)/($D$3+$E$3)) -> 0.9789192769 | I73: =MIN(1, F73/$F$3) -> 0.997987738
A74: 2009-12-06 | B74: 12 | C74: 4 | D74: 37561.71395 | E74: 8696.296051 | F74: 1282.306325 | H74: 0.9810576335 | I74: 0.997987738
A75: 2009-12-07 | B75: 12 | C75: 4 | D75: 37387.45264 | E75: 8631.450636 | F75: 1282.01607 | H75: 0.9759865664 | I75: 0.9977618396
A76: 2009-12-08 | B76: 12 | C76: 4 | D76: 37284.74578 | E76: 8637.089222 | F76: 1281.726581 | H76: 0.9739279051 | I76: 0.9975365374
A77: 2009-12-09 | B77: 12 | C77: 4 | D77: 37247.05442 | E77: 8599.996176 | F77: 1281.726581 | H77: 0.9723418487 | I77: 0.9975365374
A78: 2009-12-10 | B78: 12 | C78: 4 | D78: 37075.68741 | E78: 8580.680827 | F78: 1281.726581 | H78: 0.9682977841 | I78: 0.9975365374
A79: 2009-12-11 | B79: 12 | C79: 4 | D79: 36797.46345 | E79: 8502.186329 | F79: 1281.454617 | H79: 0.9607323619 | I79: 0.9973248744
A80: 2009-12-12 | B80: 12 | C80: 4 | D80: 36602.68935 | E80: 8455.919889 | F80: 1281.165128 | H80: 0.9556202818 | I80: 0.9970995722
A81: 2009-12-13 | B81: 12 | C81: 4 | D81: 36339.70243 | E81: 8356.813299 | F81: 1281.165128 | H81: 0.9479408637 | I81: 0.9970995722
A82: 2009-12-14 | B82: 12 | C82: 4 | D82: 36022.72833 | E82: 8653.772716 | F82: 1281.165128 | H82: 0.9475163845 | I82: 0.9970995722
A83: 2009-12-15 | B83: 12 | C83: 4 | D83: 35754.36053 | E83: 8541.214705 | F83: 1280.584924 | H83: 0.9394375637 | I83: 0.9966480136
A84: 2009-12-16 | B84: 12 | C84: 4 | D84: 35417.3933 | E84: 8374.248518 | F84: 1280.584924 | H84: 0.9287499503 | I84: 0.9966480136
A85: 2009-12-17 | B85: 12 | C85: 4 | D85: 34999.72615 | E85: 8194.535058 | F85: 1280.295435 | H85: 0.9160804729 | I85: 0.9964227114
A86: 2009-12-18 | B86: 12 | C86: 4 | D86: 34582.08909 | E86: 7849.986792 | F86: 1280.295435 | H86: 0.899915754 | I86: 0.9964227114
A87: 2009-12-19 | B87: 12 | C87: 4 | D87: 34184.49054 | E87: 7641.192531 | F87: 1271.392548 | H87: 0.8870551425 | I87: 0.9894938116
A88: 2009-12-20 | B88: 12 | C88: 4 | D88: 33834.61117 | E88: 7465.309272 | F88: 1256.130456 | H88: 0.8759045668 | I88: 0.9776156976
A89: 2009-12-21 | B89: 12 | C89: 4 | D89: 33354.52446 | E89: 7265.812989 | F89: 1255.933174 | H89: 0.8614917098 | I89: 0.9774621578
A90: 2009-12-22 | B90: 12 | C90: 4 | D90: 32906.50643 | E90: 7129.639918 | F90: 1251.746445 | H90: 0.8491019606 | I90: 0.9742037287
A91: 2009-12-23 | B91: 12 | C91: 4 | D91: 32533.12976 | E91: 7024.798381 | F91: 1251.625135 | H91: 0.8389597254 | I91: 0.9741093161
A92: 2009-12-24 | B92: 12 | C92: 4 | D92: 32334.58688 | E92: 7017.039078 | F92: 1251.625135 | H92: 0.8345843896 | I92: 0.9741093161
A93: 2009-12-25 | B93: 12 | C93: 4 | D93: 32247.3739 | E93: 7108.840286 | F93: 1251.625135 | H93: 0.8346816985 | I93: 0.9741093161
A94: 2009-12-26 | B94: 12 | C94: 4 | D94: 32181.60981 | E94: 7320.502545 | F94: 1251.625135 | H94: 0.8377759628 | I94: 0.9741093161
A95: 2009-12-27 | B95: 12 | C95: 4 | D95: 32129.89288 | E95: 7486.544507 | F95: 1251.625135 | H95: 0.840200612 | I95: 0.9741093161
A96: 2009-12-28 | B96: 12 | C96: 4 | D96: 32027.20386 | E96: 7480.130969 | F96: 1251.625135 | H96: 0.8378867231 | I96: 0.9741093161
A97: 2009-12-29 | B97: 12 | C97: 4 | D97: 31868.38011 | E97: 7623.613818 | F97: 1251.442251 | H97: 0.8375613673 | I97: 0.973966982
A98: 2009-12-30 | B98: 12 | C98: 4 | D98: 31782.31848 | E98: 7869.428196 | F98: 1251.442251 | H98: 0.8409494648 | I98: 0.973966982
A99: 2009-12-31 | B99: 12 | C99: 4 | D99: 31725.40999 | E99: 7927.144827 | F99: 1251.442251 | H99: 0.8409666042 | I99: 0.973966982
A100: 2010-01-01 | B100: 1 | C100: 1 | D100: 31338.78848 | E100: 7920.150954 | F100: 1251.442251 | H100: 0.832618658 | I100: 0.973966982
A101: 2010-01-02 | B101: 1 | C101: 1 | D101: 30943.31364 | E101: 7865.071923 | F101: 1251.442251 | H101: 0.8230631388 | I101: 0.973966982
A102: 2010-01-03 | B102: 1 | C102: 1 | D102: 30471.59588 | E102: 7498.043832 | F102: 1122.525528 | H102: 0.8052746948 | I102: 0.8736342407
A103: 2010-01-04 | B103: 1 | C103: 1 | D103: 29989.80436 | E103: 7067.870278 | F103: 874.835331 | H103: 0.7859333893 | I103: 0.6808630014
A104: 2010-01-05 | B104: 1 | C104: 1 | D104: 29508.72147 | E104: 6629.200214 | F104: 938.768502 | H104: 0.7664269156 | I104: 0.7306206291
A105: 2010-01-06 | B105: 1 | C105: 1 | D105: 29027.8906 | E105: 6373.443304 | F105: 905.095715 | H105: 0.7508050792 | I105: 0.7044139202
A106: 2010-01-07 | B106: 1 | C106: 1 | D106: 28547.41025 | E106: 6051.853314 | F106: 879.601939 | H106: 0.7337944635 | I106: 0.6845727361
A107: 2010-01-08 | B107: 1 | C107: 1 | D107: 28073.61394 | E107: 5862.397104 | F107: 879.130534 | H107: 0.7197279495 | I107: 0.6842058531
A108: 2010-01-09 | B108: 1 | C108: 1 | D108: 27593.70608 | E108: 5459.223866 | F108: 756.060625 | H108: 0.7009992267 | I108: 0.5884235445
A109: 2010-01-10 | B109: 1 | C109: 1 | D109: 27112.58658 | E109: 5208.798477 | F109: 723.6692 | H109: 0.6854843417 | I109: 0.5632140885
A110: 2010-01-11 | B110: 1 | C110: 1 | D110: 26631.66025 | E110: 4907.165749 | F110: 721.459123 | H110: 0.6688875289 | I110: 0.5614940394
A111: 2010-01-12 | B111: 1 | C111: 1 | D111: 26156.48254 | E111: 4774.711003 | F111: 721.459123 | H111: 0.6560006264 | I111: 0.5614940394
A112: 2010-01-13 | B112: 1 | C112: 1 | D112: 25676.33771 | E112: 4480.303194 | F112: 721.459123 | H112: 0.6395736168 | I112: 0.5614940394
A113: 2010-01-14 | B113: 1 | C113: 1 | D113: 25200.68637 | E113: 4346.564912 | F113: 721.459123 | H113: 0.6266494477 | I113: 0.5614940394
A114: 2010-01-15 | B114: 1 | C114: 1 | D114: 24715.55924 | E114: 4422.415958 | F114: 721.169021 | H114: 0.6179693633 | I114: 0.5612682601
A115: 2010-01-16 | B115: 1 | C115: 1 | D115: 24300.72905 | E115: 4497.553073 | F115: 720.881854 | H115: 0.6107650223 | I115: 0.5610447651
A116: 2010-01-17 | B116: 1 | C116: 1 | D116: 24175.37002 | E116: 4559.792888 | F116: 720.881854 | H116: 0.6094263658 | I116: 0.5610447651
A117: 2010-01-18 | B117: 1 | C117: 1 | D117: 23813.03014 | E117: 4672.669821 | F117: 720.881854 | H117: 0.6041356598 | I117: 0.5610447651
A118: 2010-01-19 | B118: 1 | C118: 1 | D118: 23393.71114 | E118: 4759.621803 | F118: 720.881854 | H118: 0.5970866925 | I118: 0.5610447651
A119: 2010-01-20 | B119: 1 | C119: 1 | D119: 22923.20029 | E119: 4643.35321 | F119: 720.881854 | H119: 0.5846420489 | I119: 0.5610447651
A120: 2010-01-21 | B120: 1 | C120: 1 | D120: 22452.70318 | E120: 4679.64502 | F120: 720.881854 | H120: 0.5754332562 | I120: 0.5610447651
A121: 2010-01-22 | B121: 1 | C121: 1 | D121: 22004.33621 | E121: 4737.594913 | F121: 720.311044 | H121: 0.5671531409 | I121: 0.5606005176
A122: 2010-01-23 | B122: 1 | C122: 1 | D122: 21609.85078 | E122: 4832.374673 | F122: 720.311044 | H122: 0.5607968681 | I122: 0.5606005176
A123: 2010-01-24 | B123: 1 | C123: 1 | D123: 21192.68626 | E123: 4881.887823 | F123: 720.311044 | H123: 0.5529995766 | I123: 0.5606005176
A124: 2010-01-25 | B124: 1 | C124: 1 | D124: 20723.09797 | E124: 4697.179153 | F124: 720.018655 | H124: 0.5391229956 | I124: 0.5603729583
A125: 2010-01-26 | B125: 1 | C125: 1 | D125: 20242.81054 | E125: 4297.894219 | F125: 720.018655 | H125: 0.5204686872 | I125: 0.5603729583
A126: 2010-01-27 | B126: 1 | C126: 1 | D126: 19764.58641 | E126: 4219.547501 | F126: 720.018655 | H126: 0.508664719 | I126: 0.5603729583
A127: 2010-01-28 | B127: 1 | C127: 1 | D127: 19356.7352 | E127: 4333.734888 | F127: 720.018655 | H127: 0.5024365839 | I127: 0.5603729583
A128: 2010-01-29 | B128: 1 | C128: 1 | D128: 19055.36458 | E128: 4478.670285 | F128: 720.018655 | H128: 0.4991188457 | I128: 0.5603729583
A129: 2010-01-30 | B129: 1 | C129: 1 | D129: 18614.92462 | E129: 4676.078161 | F129: 720.018695 | H129: 0.4939645279 | I129: 0.5603729895
A130: 2010-01-31 | B130: 1 | C130: 1 | D130: 18134.80727 | E130: 4752.955941 | F130: 720.018655 | H130: 0.4854124684 | I130: 0.5603729583
A131: 2010-02-01 | B131: 2 | C131: 1 | D131: 17655.58555 | E131: 4627.871655 | F131: 719.448146 | H131: 0.4725961146 | I131: 0.5599289451
A132: 2010-02-02 | B132: 2 | C132: 1 | D132: 17175.9364 | E132: 4562.198639 | F132: 719.448146 | H132: 0.4610307126 | I132: 0.5599289451
A133: 2010-02-03 | B133: 2 | C133: 1 | D133: 16760.49415 | E133: 4568.034451 | F133: 719.448146 | H133: 0.452343622 | I133: 0.5599289451
A134: 2010-02-04 | B134: 2 | C134: 1 | D134: 16437.77774 | E134: 4611.012425 | F134: 719.163644 | H134: 0.4464108221 | I134: 0.5597075241
A135: 2010-02-05 | B135: 2 | C135: 1 | D135: 16250.3913 | E135: 4751.522514 | F135: 718.878841 | H135: 0.4454166504 | I135: 0.5594858689
A136: 2010-02-06 | B136: =MONTH(A136) -> 2 | C136: 1 | D136: 16113.04729 | E136: 4883.584436 | F136: 718.705926 | H136: 0.4453046258 | I136: 0.5593512934
A137: 2010-02-07 | B137: 2 | C137: =IF(B137<=3,1,IF(B137<=6,2,IF(B137<=9,3,4))) -> 1 | D137: 15934.51833 | E137: 4901.551091 | F137: 718.705926 | H137: =MIN(1, (D137+E137)/($D$3+$E$3)) -> 0.4418993588 | I137: =MIN(1, F137/$F$3) -> 0.5593512934
A138: 2010-02-08 | B138: 2 | C138: 1 | D138: 15457.69284 | E138: 4698.07996 | F138: 718.136019 | H138: 0.4274713669 | I138: 0.5589077487
A139: 2010-02-09 | B139: 2 | C139: 1 | D139: 14977.58436 | E139: 4440.201004 | F139: 716.963845 | H139: 0.411819846 | I139: 0.5579954742
A140: 2010-02-10 | B140: 2 | C140: 1 | D140: 14497.40719 | E140: 4133.29058 | F140: 716.963845 | H140: 0.3951269902 | I140: 0.5579954742
A141: 2010-02-11 | B141: 2 | C141: 1 | D141: 14017.51681 | E141: 3888.732932 | F141: 716.674662 | H141: 0.3797626183 | I141: 0.5577704101
A142: 2010-02-12 | B142: 2 | C142: 1 | D142: 13536.74321 | E142: 3746.813845 | F142: 716.674662 | H142: 0.3665563128 | I142: 0.5577704101
A143: 2010-02-13 | B143: 2 | C143: 1 | D143: 13141.27903 | E143: 3451.781706 | F143: 716.674662 | H143: 0.3519120017 | I143: 0.5577704101
A144: 2010-02-14 | B144: 2 | C144: 1 | D144: 12669.24892 | E144: 3295.600879 | F144: 716.674662 | H144: 0.3385886631 | I144: 0.5577704101
A145: 2010-02-15 | B145: 2 | C145: 1 | D145: 12190.0447 | E145: 3167.81082 | F145: 716.103551 | H145: 0.3257152954 | I145: 0.5573259284
A146: 2010-02-16 | B146: 2 | C146: 1 | D146: 11721.36904 | E146: 2888.087043 | F146: 716.103551 | H146: 0.3098429528 | I146: 0.5573259284
A147: 2010-02-17 | B147: 2 | C147: 1 | D147: 11245.16264 | E147: 2744.215888 | F147: 716.103551 | H147: 0.2966921099 | I147: 0.5573259284
A148: 2010-02-18 | B148: 2 | C148: 1 | D148: 10772.71685 | E148: 2594.879826 | F148: 716.103551 | H148: 0.2835051217 | I148: 0.5573259284
A149: 2010-02-19 | B149: 2 | C149: 1 | D149: 10305.83129 | E149: 2402.591674 | F149: 715.533343 | H149: 0.2695251128 | I149: 0.5568821494
A150: 2010-02-20 | B150: 2 | C150: 1 | D150: 9957.975764 | E150: 2409.83695 | F150: 715.533343 | H150: 0.2623013198 | I150: 0.5568821494
A151: 2010-02-21 | B151: 2 | C151: 1 | D151: 9602.425855 | E151: 2422.135848 | F151: 715.533343 | H151: 0.2550215206 | I151: 0.5568821494
A152: 2010-02-22 | B152: 2 | C152: 1 | D152: 9172.237215 | E152: 2297.740847 | F152: 715.533343 | H152: 0.2432596978 | I152: 0.5568821494
A153: 2010-02-23 | B153: 2 | C153: 1 | D153: 8811.383437 | E153: 2223.498137 | F153: 715.533343 | H153: 0.2340320045 | I153: 0.5568821494
A154: 2010-02-24 | B154: 2 | C154: 1 | D154: 8648.860229 | E154: 2213.905512 | F154: 715.533343 | H154: 0.2303817058 | I154: 0.5568821494
A155: 2010-02-25 | B155: 2 | C155: 1 | D155: 8538.749394 | E155: 2278.144471 | F155: 715.533343 | H155: 0.2294088375 | I155: 0.5568821494
A156: 2010-02-26 | B156: 2 | C156: 1 | D156: 8433.40777 | E156: 2267.881303 | F156: 715.533343 | H156: 0.2269570466 | I156: 0.5568821494
A157: 2010-02-27 | B157: 2 | C157: 1 | D157: 8357.020297 | E157: 2358.106621 | F157: 715.508777 | H157: 0.227250525 | I157: 0.5568630303
A158: 2010-02-28 | B158: 2 | C158: 1 | D158: 8288.915187 | E158: 2417.792593 | F158: 715.273451 | H158: 0.2270719687 | I158: 0.5566798818
A159: 2010-03-01 | B159: 3 | C159: 1 | D159: 8019.675786 | E159: 2468.018028 | F159: 714.988046 | H159: 0.2224270364 | I159: 0.556457758
A160: 2010-03-02 | B160: 3 | C160: 1 | D160: 7769.691949 | E160: 2347.578702 | F160: 714.988046 | H160: 0.2145709598 | I160: 0.556457758
A161: 2010-03-03 | B161: 3 | C161: 1 | D161: 7488.525482 | E161: 2167.455746 | F161: 714.988046 | H161: 0.2047877566 | I161: 0.556457758
A162: 2010-03-04 | B162: 3 | C162: 1 | D162: 7186.898279 | E162: 2117.176846 | F162: 713.435352 | H162: 0.1973243969 | I162: 0.5552493342
A163: 2010-03-05 | B163: 3 | C163: 1 | D163: 6855.13343 | E163: 2139.861979 | F163: 713.150181 | H163: 0.1907693156 | I163: 0.5550273925
A164: 2010-03-06 | B164: 3 | C164: 1 | D164: 6504.217572 | E164: 2122.039191 | F164: 713.150181 | H164: 0.1829489649 | I164: 0.5550273925
A165: 2010-03-07 | B165: 3 | C165: 1 | D165: 6129.035771 | E165: 1988.146827 | F165: 713.150181 | H165: 0.1721523245 | I165: 0.5550273925
A166: 2010-03-08 | B166: 3 | C166: 1 | D166: 5747.253355 | E166: 1710.377073 | F166: 711.088994 | H166: 0.1581642889 | I166: 0.553423221
A167: 2010-03-09 | B167: 3 | C167: 1 | D167: 5361.141891 | E167: 1575.796492 | F167: 711.088994 | H167: 0.1471212522 | I167: 0.553423221
A168: 2010-03-10 | B168: 3 | C168: 1 | D168: 4963.535557 | E168: 1461.897465 | F168: 641.708137 | H168: 0.1362730501 | I168: 0.4994257921
A169: 2010-03-11 | B169: 3 | C169: 1 | D169: 4560.93904 | E169: 1384.140346 | F169: 624.548741 | H169: 0.1260855258 | I169: 0.4860710527
A170: 2010-03-12 | B170: 3 | C170: 1 | D170: 4202.073908 | E170: 1402.777691 | F170: 624.548741 | H170: 0.1188698443 | I170: 0.4860710527
A171: 2010-03-13 | B171: 3 | C171: 1 | D171: 3903.702134 | E171: 1410.924621 | F171: 624.548741 | H171: 0.1127146444 | I171: 0.4860710527
A172: 2010-03-14 | B172: 3 | C172: 1 | D172: 3601.276336 | E172: 1451.512329 | F172: 623.315978 | H172: 0.1071614817 | I172: 0.4851116233
A173: 2010-03-15 | B173: 3 | C173: 1 | D173: 3310.01149 | E173: 1352.716603 | F173: 616.338253 | H173: 0.09888892731 | I173: 0.4796810302
A174: 2010-03-16 | B174: 3 | C174: 1 | D174: 3007.830447 | E174: 1348.113583 | F174: 616.338253 | H174: 0.09238253314 | I174: 0.4796810302
A175: 2010-03-17 | B175: 3 | C175: 1 | D175: 2959.088827 | E175: 1356.561105 | F175: 616.087235 | H175: 0.09152796044 | I175: 0.479485669
A176: 2010-03-18 | B176: 3 | C176: 1 | D176: 2923.971364 | E176: 1401.795055 | F176: 614.202501 | H176: 0.09174251478 | I176: 0.4780188265
A177: 2010-03-19 | B177: 3 | C177: 1 | D177: 2968.641938 | E177: 1648.234034 | F177: 613.962255 | H177: 0.09791647793 | I177: 0.4778318489
A178: 2010-03-20 | B178: 3 | C178: 1 | D178: 3169.872659 | E178: 1718.288239 | F178: 613.589271 | H178: 0.1036699928 | I178: 0.4775415645
A179: 2010-03-21 | B179: 3 | C179: 1 | D179: 3380.027589 | E179: 1808.765262 | F179: 612.693065 | H179: 0.1100459106 | I179: 0.4768440692
A180: 2010-03-22 | B180: 3 | C180: 1 | D180: 3553.621819 | E180: 2211.934907 | F180: 611.593619 | H180: 0.1222781403 | I180: 0.4759883972
A181: 2010-03-23 | B181: 3 | C181: 1 | D181: 3628.97175 | E181: 1872.744507 | F181: 611.593619 | H181: 0.1166825104 | I181: 0.4759883972
A182: 2010-03-24 | B182: 3 | C182: 1 | D182: 3802.663807 | E182: 2050.484965 | F182: 611.593619 | H182: 0.124135826 | I182: 0.4759883972
A183: 2010-03-25 | B183: 3 | C183: 1 | D183: 3981.962165 | E183: 2226.061963 | F183: 609.930601 | H183: 0.1316621588 | I183: 0.4746941109
A184: 2010-03-26 | B184: 3 | C184: 1 | D184: 4175.038059 | E184: 2382.790289 | F184: 609.930601 | H184: 0.139080941 | I184: 0.4746941109
A185: 2010-03-27 | B185: 3 | C185: 1 | D185: 4375.447114 | E185: 2677.958648 | F185: 609.930601 | H185: 0.149591337 | I185: 0.4746941109
A186: 2010-03-28 | B186: 3 | C186: 1 | D186: 4566.904886 | E186: 2991.440703 | F186: 609.930601 | H186: 0.1603002947 | I186: 0.4746941109
A187: 2010-03-29 | B187: 3 | C187: 1 | D187: 4706.061732 | E187: 3176.352304 | F187: 607.848776 | H187: 0.1671732628 | I187: 0.4730738773
A188: 2010-03-30 | B188: 3 | C188: 1 | D188: 4767.842065 | E188: 3192.788154 | F188: 607.848776 | H188: 0.1688321016 | I188: 0.4730738773
A189: 2010-03-31 | B189: 3 | C189: 1 | D189: 4766.842666 | E189: 3196.768645 | F189: 607.848776 | H189: 0.1688953257 | I189: 0.4730738773
A190: 2010-04-01 | B190: 4 | C190: 2 | D190: 4766.561651 | E190: 2925.195245 | F190: 607.848776 | H190: 0.1631297329 | I190: 0.4730738773
A191: 2010-04-02 | B191: 4 | C191: 2 | D191: 4800.194566 | E191: 2773.292837 | F191: 606.762934 | H191: 0.1606214281 | I191: 0.4722287929
A192: 2010-04-03 | B192: 4 | C192: 2 | D192: 4970.07077 | E192: 2671.843393 | F192: 606.762934 | H192: 0.1620726491 | I192: 0.4722287929
A193: 2010-04-04 | B193: 4 | C193: 2 | D193: 5178.983983 | E193: 2623.496196 | F193: 606.701978 | H193: 0.1654779948 | I193: 0.4721813524
A194: 2010-04-05 | B194: 4 | C194: 2 | D194: 5412.128467 | E194: 2571.173111 | F194: 604.843781 | H194: 0.1693129245 | I194: 0.4707351629
A195: 2010-04-06 | B195: 4 | C195: 2 | D195: 5612.127803 | E195: 2457.202806 | F195: 604.843781 | H195: 0.1711374612 | I195: 0.4707351629
A196: 2010-04-07 | B196: 4 | C196: 2 | D196: 5671.628737 | E196: 2209.843431 | F196: 589.295983 | H196: 0.1671532873 | I196: 0.458634691
A197: 2010-04-08 | B197: 4 | C197: 2 | D197: 5670.619362 | E197: 2109.0172 | F197: 585.48046 | H197: 0.1649935186 | I197: 0.4556651625
A198: 2010-04-09 | B198: 4 | C198: 2 | D198: 5938.604043 | E198: 2151.373606 | F198: 585.48046 | H198: 0.1715753515 | I198: 0.4556651625
A199: 2010-04-10 | B199: 4 | C199: 2 | D199: 6189.932765 | E199: 2331.157801 | F199: 585.48046 | H199: 0.1807185598 | I199: 0.4556651625
A200: 2010-04-11 | B200: =MONTH(A200) -> 4 | C200: 2 | D200: 6470.753923 | E200: 2457.669995 | F200: 585.195356 | H200: 0.1893574419 | I200: 0.455443273
A201: 2010-04-12 | B201: 4 | C201: =IF(B201<=3,1,IF(B201<=6,2,IF(B201<=9,3,4))) -> 2 | D201: 6710.041594 | E201: 2383.856386 | F201: 585.195356 | H201: =MIN(1, (D201+E201)/($D$3+$E$3)) -> 0.1928668793 | I201: =MIN(1, F201/$F$3) -> 0.455443273
... 171 more rows

Sheet c_Demand break down
A1: Demand breakdown
A2: mcm/day | B2: Demand | C2: Storage | D2: IUK | E2: Moffat | F2: Net demand
A3: 2009-10-01 | B3: ='r_NTS Demand'!C3 -> 224.57386 | C3: ='r_Storage injections'!F3 -> 13.81409 | D3: ='r_Bacton IUK exports'!C3 -> 11.94702148 | E3: ='r_Moffat exports'!C3 -> 18.77996826 | F3: =B3-SUM(C3:E3) -> 180.0327803
A4: 2009-10-02 | B4: ='r_NTS Demand'!C4 -> 216.30421 | C4: ='r_Storage injections'!F4 -> 13.97571 | D4: ='r_Bacton IUK exports'!C4 -> 4.825012207 | E4: ='r_Moffat exports'!C4 -> 15.90197754 | F4: =B4-SUM(C4:E4) -> 181.6015103
A5: 2009-10-03 | B5: ='r_NTS Demand'!C5 -> 225.10427 | C5: ='r_Storage injections'!F5 -> 23.66639 | D5: ='r_Bacton IUK exports'!C5 -> 17.11499023 | E5: ='r_Moffat exports'!C5 -> 14.57403564 | F5: 169.7488541
A6: 2009-10-04 | B6: ='r_NTS Demand'!C6 -> 230.14 | C6: ='r_Storage injections'!F6 -> 17.43738 | D6: ='r_Bacton IUK exports'!C6 -> 16.32299805 | E6: ='r_Moffat exports'!C6 -> 15.93896484 | F6: 180.4406571
A7: 2009-10-05 | B7: ='r_NTS Demand'!C7 -> 235.90592 | C7: ='r_Storage injections'!F7 -> 9.65016 | D7: ='r_Bacton IUK exports'!C7 -> 13.8276 | E7: ='r_Moffat exports'!C7 -> 17.537 | F7: 194.89116
A8: 2009-10-06 | B8: ='r_NTS Demand'!C8 -> 229.74502 | C8: ='r_Storage injections'!F8 -> 5.67262 | D8: ='r_Bacton IUK exports'!C8 -> 19.36297607 | E8: ='r_Moffat exports'!C8 -> 17.94000244 | F8: 186.7694215
A9: 2009-10-07 | B9: ='r_NTS Demand'!C9 -> 243.08549 | C9: ='r_Storage injections'!F9 -> 6.76809 | D9: ='r_Bacton IUK exports'!C9 -> 10.70800781 | E9: ='r_Moffat exports'!C9 -> 19.57702637 | F9: 206.0323658
A10: 2009-10-08 | B10: ='r_NTS Demand'!C10 -> 255.28825 | C10: ='r_Storage injections'!F10 -> 4.7487 | D10: ='r_Bacton IUK exports'!C10 -> 14.85699463 | E10: ='r_Moffat exports'!C10 -> 19.0579834 | F10: 216.624572
A11: 2009-10-09 | B11: ='r_NTS Demand'!C11 -> 260.93348 | C11: ='r_Storage injections'!F11 -> 6.76808 | D11: ='r_Bacton IUK exports'!C11 -> 15.44500732 | E11: ='r_Moffat exports'!C11 -> 17.23999023 | F11: 221.4804024
A12: 2009-10-10 | B12: ='r_NTS Demand'!C12 -> 257.75231 | C12: ='r_Storage injections'!F12 -> 26.28407 | D12: ='r_Bacton IUK exports'!C12 -> 28.82696724 | E12: ='r_Moffat exports'!C12 -> 16.58203125 | F12: 186.0592415
A13: 2009-10-11 | B13: ='r_NTS Demand'!C13 -> 255.66662 | C13: ='r_Storage injections'!F13 -> 21.2559 | D13: ='r_Bacton IUK exports'!C13 -> 27.55399895 | E13: ='r_Moffat exports'!C13 -> 16.13696289 | F13: 190.7197582
A14: 2009-10-12 | B14: ='r_NTS Demand'!C14 -> 261.3342 | C14: ='r_Storage injections'!F14 -> 5.68341 | D14: ='r_Bacton IUK exports'!C14 -> 23.45100403 | E14: ='r_Moffat exports'!C14 -> 16.32299805 | F14: 215.8767879
A15: 2009-10-13 | B15: ='r_NTS Demand'!C15 -> 261.19827 | C15: ='r_Storage injections'!F15 -> 3.13286 | D15: ='r_Bacton IUK exports'!C15 -> 20.25099945 | E15: ='r_Moffat exports'!C15 -> 19.14501953 | F15: 218.669391
A16: 2009-10-14 | B16: ='r_NTS Demand'!C16 -> 266.89645 | C16: ='r_Storage injections'!F16 -> 5.28072 | D16: ='r_Bacton IUK exports'!C16 -> 29.97599792 | E16: ='r_Moffat exports'!C16 -> 18.25396729 | F16: 213.3857648
A17: 2009-10-15 | B17: ='r_NTS Demand'!C17 -> 260.42845 | C17: ='r_Storage injections'!F17 -> 5.5169 | D17: ='r_Bacton IUK exports'!C17 -> 18.59000397 | E17: ='r_Moffat exports'!C17 -> 17.91204834 | F17: 218.4094977
A18: 2009-10-16 | B18: ='r_NTS Demand'!C18 -> 258.55021 | C18: ='r_Storage injections'!F18 -> 4.82588 | D18: ='r_Bacton IUK exports'!C18 -> 19.20899963 | E18: ='r_Moffat exports'!C18 -> 17.54699707 | F18: 216.9683333
A19: 2009-10-17 | B19: ='r_NTS Demand'!C19 -> 254.63977 | C19: ='r_Storage injections'!F19 -> 4.80654 | D19: ='r_Bacton IUK exports'!C19 -> 10.95700073 | E19: ='r_Moffat exports'!C19 -> 16.3949585 | F19: 222.4812708
A20: 2009-10-18 | B20: ='r_NTS Demand'!C20 -> 257.47918 | C20: ='r_Storage injections'!F20 -> 3.69482 | D20: ='r_Bacton IUK exports'!C20 -> 12.00799561 | E20: ='r_Moffat exports'!C20 -> 15.09399414 | F20: 226.6823703
A21: 2009-10-19 | B21: ='r_NTS Demand'!C21 -> 266.32524 | C21: ='r_Storage injections'!F21 -> 2.53428 | D21: ='r_Bacton IUK exports'!C21 -> 12.70813 | E21: ='r_Moffat exports'!C21 -> 14.58905029 | F21: 236.4937797
A22: 2009-10-20 | B22: ='r_NTS Demand'!C22 -> 276.74675 | C22: ='r_Storage injections'!F22 -> 1.15678 | D22: ='r_Bacton IUK exports'!C22 -> 10.60365 | E22: ='r_Moffat exports'!C22 -> 17.02496338 | F22: 247.9613566
A23: 2009-10-21 | B23: ='r_NTS Demand'!C23 -> 259.88967 | C23: ='r_Storage injections'!F23 -> 9.97614 | D23: ='r_Bacton IUK exports'!C23 -> 11.73726 | E23: ='r_Moffat exports'!C23 -> 15.81500244 | F23: 222.3612676
A24: 2009-10-22 | B24: ='r_NTS Demand'!C24 -> 260.42177 | C24: ='r_Storage injections'!F24 -> 5.08532 | D24: ='r_Bacton IUK exports'!C24 -> 19.66398621 | E24: ='r_Moffat exports'!C24 -> 16.82299805 | F24: 218.8494657
A25: 2009-10-23 | B25: ='r_NTS Demand'!C25 -> 266.59568 | C25: ='r_Storage injections'!F25 -> 11.5342 | D25: ='r_Bacton IUK exports'!C25 -> 30.61100769 | E25: ='r_Moffat exports'!C25 -> 17.73497391 | F25: 206.7154984
A26: 2009-10-24 | B26: ='r_NTS Demand'!C26 -> 242.97324 | C26: ='r_Storage injections'!F26 -> 11.27096 | D26: ='r_Bacton IUK exports'!C26 -> 28.57000732 | E26: ='r_Moffat exports'!C26 -> 12.56600094 | F26: 190.5662717
A27: 2009-10-25 | B27: ='r_NTS Demand'!C27 -> 250.84938 | C27: ='r_Storage injections'!F27 -> 15.90067 | D27: ='r_Bacton IUK exports'!C27 -> 28.26400757 | E27: ='r_Moffat exports'!C27 -> 13.8599987 | F27: 192.8247037
A28: 2009-10-26 | B28: ='r_NTS Demand'!C28 -> 259.41466 | C28: ='r_Storage injections'!F28 -> 16.24907 | D28: ='r_Bacton IUK exports'!C28 -> 17.72799683 | E28: ='r_Moffat exports'!C28 -> 15.91300201 | F28: 209.5245912
A29: 2009-10-27 | B29: ='r_NTS Demand'!C29 -> 246.81953 | C29: ='r_Storage injections'!F29 -> 12.12555 | D29: ='r_Bacton IUK exports'!C29 -> 22.39599609 | E29: ='r_Moffat exports'!C29 -> 15.73100281 | F29: 196.5669811
A30: 2009-10-28 | B30: ='r_NTS Demand'!C30 -> 248.42159 | C30: ='r_Storage injections'!F30 -> 12.7319 | D30: ='r_Bacton IUK exports'!C30 -> 27.81600952 | E30: ='r_Moffat exports'!C30 -> 16.26399994 | F30: 191.6096805
A31: 2009-10-29 | B31: ='r_NTS Demand'!C31 -> 248.05578 | C31: ='r_Storage injections'!F31 -> 9.32783 | D31: ='r_Bacton IUK exports'!C31 -> 22.32897949 | E31: ='r_Moffat exports'!C31 -> 15.82099152 | F31: 200.577979
A32: 2009-10-30 | B32: ='r_NTS Demand'!C32 -> 251.76826 | C32: ='r_Storage injections'!F32 -> 7.9885 | D32: ='r_Bacton IUK exports'!C32 -> 27.86625 | E32: ='r_Moffat exports'!C32 -> 16.45899963 | F32: 199.4545104
A33: 2009-10-31 | B33: ='r_NTS Demand'!C33 -> 254.45927 | C33: ='r_Storage injections'!F33 -> 22.1265 | D33: ='r_Bacton IUK exports'!C33 -> 23.14300537 | E33: ='r_Moffat exports'!C33 -> 15.79901123 | F33: 193.3907534
A34: 2009-11-01 | B34: ='r_NTS Demand'!C34 -> 262.57825 | C34: ='r_Storage injections'!F34 -> 25.3112 | D34: ='r_Bacton IUK exports'!C34 -> 12.36073 | E34: ='r_Moffat exports'!C34 -> 15.46899414 | F34: 209.4373259
A35: 2009-11-02 | B35: ='r_NTS Demand'!C35 -> 282.02805 | C35: ='r_Storage injections'!F35 -> 3.65496 | D35: ='r_Bacton IUK exports'!C35 -> 11.27799034 | E35: ='r_Moffat exports'!C35 -> 16.90800476 | F35: 250.1870949
A36: 2009-11-03 | B36: ='r_NTS Demand'!C36 -> 275.99297 | C36: ='r_Storage injections'!F36 -> 3.07107 | D36: ='r_Bacton IUK exports'!C36 -> 8.027984619 | E36: ='r_Moffat exports'!C36 -> 16.30799866 | F36: 248.5859167
A37: 2009-11-04 | B37: ='r_NTS Demand'!C37 -> 283.37951 | C37: ='r_Storage injections'!F37 -> 3.43784 | D37: ='r_Bacton IUK exports'!C37 -> 5.679016113 | E37: ='r_Moffat exports'!C37 -> 17.00900269 | F37: 257.2536512
A38: 2009-11-05 | B38: ='r_NTS Demand'!C38 -> 284.17773 | C38: ='r_Storage injections'!F38 -> 2.90391 | D38: ='r_Bacton IUK exports'!C38 -> 2.98017 | E38: ='r_Moffat exports'!C38 -> 18.32699585 | F38: 259.9666542
A39: 2009-11-06 | B39: ='r_NTS Demand'!C39 -> 285.9478 | C39: ='r_Storage injections'!F39 -> 3.39239 | D39: ='r_Bacton IUK exports'!C39 -> 2.03672 | E39: ='r_Moffat exports'!C39 -> 17.02700806 | F39: 263.4916819
A40: 2009-11-07 | B40: ='r_NTS Demand'!C40 -> 293.48836 | C40: ='r_Storage injections'!F40 -> 9.37931 | D40: ='r_Bacton IUK exports'!C40 -> 8.21551 | E40: ='r_Moffat exports'!C40 -> 17.74899292 | F40: 258.1445471
A41: 2009-11-08 | B41: ='r_NTS Demand'!C41 -> 304.16184 | C41: ='r_Storage injections'!F41 -> 1.98396 | D41: ='r_Bacton IUK exports'!C41 -> 10.35595703 | E41: ='r_Moffat exports'!C41 -> 17.75900269 | F41: 274.0629203
A42: 2009-11-09 | B42: ='r_NTS Demand'!C42 -> 335.45495 | C42: ='r_Storage injections'!F42 -> 0.53299 | D42: ='r_Bacton IUK exports'!C42 -> 14.27905273 | E42: ='r_Moffat exports'!C42 -> 20.21600342 | F42: 300.4269038
A43: 2009-11-10 | B43: ='r_NTS Demand'!C43 -> 334.40589 | C43: ='r_Storage injections'!F43 -> 1.04502 | D43: ='r_Bacton IUK exports'!C43 -> 13.21697998 | E43: ='r_Moffat exports'!C43 -> 19.55499268 | F43: 300.5888973
A44: 2009-11-11 | B44: ='r_NTS Demand'!C44 -> 316.73373 | C44: ='r_Storage injections'!F44 -> 1.80822 | D44: ='r_Bacton IUK exports'!C44 -> 9.96309 | E44: ='r_Moffat exports'!C44 -> 17.931 | F44: 287.03142
A45: 2009-11-12 | B45: ='r_NTS Demand'!C45 -> 296.50997 | C45: ='r_Storage injections'!F45 -> 3.88388 | D45: ='r_Bacton IUK exports'!C45 -> 8.21762 | E45: ='r_Moffat exports'!C45 -> 18.518 | F45: 265.89047
A46: 2009-11-13 | B46: ='r_NTS Demand'!C46 -> 287.1947 | C46: ='r_Storage injections'!F46 -> 12.1323 | D46: ='r_Bacton IUK exports'!C46 -> 5.343994141 | E46: ='r_Moffat exports'!C46 -> 19.22399902 | F46: 250.4944068
A47: 2009-11-14 | B47: ='r_NTS Demand'!C47 -> 267.96815 | C47: ='r_Storage injections'!F47 -> 5.97794 | D47: ='r_Bacton IUK exports'!C47 -> 3.250976562 | E47: ='r_Moffat exports'!C47 -> 17.16699219 | F47: 241.5722412
A48: 2009-11-15 | B48: ='r_NTS Demand'!C48 -> 268.38546 | C48: ='r_Storage injections'!F48 -> 8.95271 | D48: ='r_Bacton IUK exports'!C48 -> 1.94069 | E48: ='r_Moffat exports'!C48 -> 15.51101685 | F48: 241.9810432
A49: 2009-11-16 | B49: ='r_NTS Demand'!C49 -> 291.28636 | C49: ='r_Storage injections'!F49 -> 10.64032 | D49: ='r_Bacton IUK exports'!C49 -> 0.31554 | E49: ='r_Moffat exports'!C49 -> 17.86199951 | F49: 262.4685005
A50: 2009-11-17 | B50: ='r_NTS Demand'!C50 -> 291.52 | C50: ='r_Storage injections'!F50 -> 6.56215 | D50: ='r_Bacton IUK exports'!C50 -> 0.2849299908 | E50: ='r_Moffat exports'!C50 -> 19.18499756 | F50: 265.4879225
A51: 2009-11-18 | B51: ='r_NTS Demand'!C51 -> 301.66774 | C51: ='r_Storage injections'!F51 -> 10.1363 | D51: ='r_Bacton IUK exports'!C51 -> 7.40715 | E51: ='r_Moffat exports'!C51 -> 18.79400635 | F51: 265.3302837
A52: 2009-11-19 | B52: ='r_NTS Demand'!C52 -> 279.39114 | C52: ='r_Storage injections'!F52 -> 12.08398 | D52: ='r_Bacton IUK exports'!C52 -> 0 | E52: ='r_Moffat exports'!C52 -> 17.86700439 | F52: 249.4401556
A53: 2009-11-20 | B53: ='r_NTS Demand'!C53 -> 270.68754 | C53: ='r_Storage injections'!F53 -> 11.0704 | D53: ='r_Bacton IUK exports'!C53 -> 0.47383 | E53: ='r_Moffat exports'!C53 -> 17.47598267 | F53: 241.6673273
A54: 2009-11-21 | B54: ='r_NTS Demand'!C54 -> 275.33565 | C54: ='r_Storage injections'!F54 -> 28.73956 | D54: ='r_Bacton IUK exports'!C54 -> 0 | E54: ='r_Moffat exports'!C54 -> 14.48602295 | F54: 232.1100671
A55: 2009-11-22 | B55: ='r_NTS Demand'!C55 -> 288.26499 | C55: ='r_Storage injections'!F55 -> 19.41657 | D55: ='r_Bacton IUK exports'!C55 -> 0 | E55: ='r_Moffat exports'!C55 -> 14.99700928 | F55: 253.8514107
A56: 2009-11-23 | B56: ='r_NTS Demand'!C56 -> 301.04908 | C56: ='r_Storage injections'!F56 -> 2.32918 | D56: ='r_Bacton IUK exports'!C56 -> 0 | E56: ='r_Moffat exports'!C56 -> 19.53295898 | F56: 279.186941
A57: 2009-11-24 | B57: ='r_NTS Demand'!C57 -> 302.29293 | C57: ='r_Storage injections'!F57 -> 11.46155 | D57: ='r_Bacton IUK exports'!C57 -> 5.372009277 | E57: ='r_Moffat exports'!C57 -> 17.06201172 | F57: 268.397359
A58: 2009-11-25 | B58: ='r_NTS Demand'!C58 -> 311.06253 | C58: ='r_Storage injections'!F58 -> 2.65546 | D58: ='r_Bacton IUK exports'!C58 -> 5.238037109 | E58: ='r_Moffat exports'!C58 -> 19.1619873 | F58: 284.0070456
A59: 2009-11-26 | B59: ='r_NTS Demand'!C59 -> 325.62967 | C59: ='r_Storage injections'!F59 -> 2.14462 | D59: ='r_Bacton IUK exports'!C59 -> 0 | E59: ='r_Moffat exports'!C59 -> 21.07202148 | F59: 302.4130285
A60: 2009-11-27 | B60: ='r_NTS Demand'!C60 -> 337.19875 | C60: ='r_Storage injections'!F60 -> 1.21351 | D60: ='r_Bacton IUK exports'!C60 -> 0 | E60: ='r_Moffat exports'!C60 -> 21.42901611 | F60: 314.5562239
A61: 2009-11-28 | B61: ='r_NTS Demand'!C61 -> 325.59839 | C61: ='r_Storage injections'!F61 -> 2.5138 | D61: ='r_Bacton IUK exports'!C61 -> 0 | E61: ='r_Moffat exports'!C61 -> 19.82897949 | F61: 303.2556105
A62: 2009-11-29 | B62: ='r_NTS Demand'!C62 -> 326.3223 | C62: ='r_Storage injections'!F62 -> 6.25823 | D62: ='r_Bacton IUK exports'!C62 -> 0 | E62: ='r_Moffat exports'!C62 -> 17.70898438 | F62: 302.3550856
A63: 2009-11-30 | B63: ='r_NTS Demand'!C63 -> 369.28121 | C63: ='r_Storage injections'!F63 -> 1.33703 | D63: ='r_Bacton IUK exports'!C63 -> 0 | E63: ='r_Moffat exports'!C63 -> 22.60302734 | F63: 345.3411527
A64: 2009-12-01 | B64: ='r_NTS Demand'!C64 -> 381.61347 | C64: ='r_Storage injections'!F64 -> 0.74683 | D64: ='r_Bacton IUK exports'!C64 -> 0 | E64: ='r_Moffat exports'!C64 -> 19.85198975 | F64: 361.0146503
A65: 2009-12-02 | B65: ='r_NTS Demand'!C65 -> 347.78023 | C65: ='r_Storage injections'!F65 -> 11.33182 | D65: ='r_Bacton IUK exports'!C65 -> 0 | E65: ='r_Moffat exports'!C65 -> 19.86102295 | F65: 316.5873871
A66: 2009-12-03 | B66: ='r_NTS Demand'!C66 -> 349.62195 | C66: ='r_Storage injections'!F66 -> 1.81207 | D66: ='r_Bacton IUK exports'!C66 -> 0 | E66: ='r_Moffat exports'!C66 -> 20.87701416 | F66: 326.9328658
A67: 2009-12-04 | B67: ='r_NTS Demand'!C67 -> 355.59023 | C67: ='r_Storage injections'!F67 -> 1.38333 | D67: ='r_Bacton IUK exports'!C67 -> 0 | E67: ='r_Moffat exports'!C67 -> 20.1825 | F67: 334.0244
A68: 2009-12-05 | B68: ='r_NTS Demand'!C68 -> 311.77617 | C68: ='r_Storage injections'!F68 -> 4.9568 | D68: ='r_Bacton IUK exports'!C68 -> 0 | E68: ='r_Moffat exports'!C68 -> 14.51300049 | F68: =B68-SUM(C68:E68) -> 292.3063695
A69: 2009-12-06 | B69: ='r_NTS Demand'!C69 -> 311.84 | C69: ='r_Storage injections'!F69 -> 14.69857 | D69: ='r_Bacton IUK exports'!C69 -> 0 | E69: ='r_Moffat exports'!C69 -> 14.87097168 | F69: 282.2704583
A70: 2009-12-07 | B70: ='r_NTS Demand'!C70 -> 335.95 | C70: ='r_Storage injections'!F70 -> 3.45749 | D70: ='r_Bacton IUK exports'!C70 -> 0 | E70: ='r_Moffat exports'!C70 -> 20.47003174 | F70: 312.0224783
A71: 2009-12-08 | B71: ='r_NTS Demand'!C71 -> 329.57 | C71: ='r_Storage injections'!F71 -> 6.4618 | D71: ='r_Bacton IUK exports'!C71 -> 0 | E71: ='r_Moffat exports'!C71 -> 18.29998779 | F71: 304.8082122
A72: 2009-12-09 | B72: ='r_NTS Demand'!C72 -> 312.43652 | C72: ='r_Storage injections'!F72 -> 6.8146 | D72: ='r_Bacton IUK exports'!C72 -> 0 | E72: ='r_Moffat exports'!C72 -> 20.33398438 | F72: 285.2879356
A73: 2009-12-10 | B73: ='r_NTS Demand'!C73 -> 333.49371 | C73: ='r_Storage injections'!F73 -> 4.3927 | D73: ='r_Bacton IUK exports'!C73 -> 0 | E73: ='r_Moffat exports'!C73 -> 20.53601074 | F73: 308.5649993
A74: 2009-12-11 | B74: ='r_NTS Demand'!C74 -> 361.48442 | C74: ='r_Storage injections'!F74 -> 2.14152 | D74: ='r_Bacton IUK exports'!C74 -> 0 | E74: ='r_Moffat exports'!C74 -> 18.04998779 | F74: 341.2929122
A75: 2009-12-12 | B75: ='r_NTS Demand'!C75 -> 338.92793 | C75: ='r_Storage injections'!F75 -> 4.75991 | D75: ='r_Bacton IUK exports'!C75 -> 0 | E75: ='r_Moffat exports'!C75 -> 18.29003906 | F75: 315.8779809
A76: 2009-12-13 | B76: ='r_NTS Demand'!C76 -> 352.63949 | C76: ='r_Storage injections'!F76 -> 4.60081 | D76: ='r_Bacton IUK exports'!C76 -> 0 | E76: ='r_Moffat exports'!C76 -> 19.28796387 | F76: 328.7507161
A77: 2009-12-14 | B77: ='r_NTS Demand'!C77 -> 370.29093 | C77: ='r_Storage injections'!F77 -> 1.91197 | D77: ='r_Bacton IUK exports'!C77 -> 0 | E77: ='r_Moffat exports'!C77 -> 21.85101318 | F77: 346.5279468
A78: 2009-12-15 | B78: ='r_NTS Demand'!C78 -> 376.01345 | C78: ='r_Storage injections'!F78 -> 1.39836 | D78: ='r_Bacton IUK exports'!C78 -> 0 | E78: ='r_Moffat exports'!C78 -> 21.32800293 | F78: 353.2870871
A79: 2009-12-16 | B79: ='r_NTS Demand'!C79 -> 384.2666 | C79: ='r_Storage injections'!F79 -> 0.32493 | D79: ='r_Bacton IUK exports'!C79 -> 0 | E79: ='r_Moffat exports'!C79 -> 20.73901367 | F79: 363.2026563
A80: 2009-12-17 | B80: ='r_NTS Demand'!C80 -> 410.22867 | C80: ='r_Storage injections'!F80 -> 0.5893 | D80: ='r_Bacton IUK exports'!C80 -> 0 | E80: ='r_Moffat exports'!C80 -> 21.99793434 | F80: 387.6414357
A81: 2009-12-18 | B81: ='r_NTS Demand'!C81 -> 438.79025 | C81: ='r_Storage injections'!F81 -> 0.43362 | D81: ='r_Bacton IUK exports'!C81 -> 0 | E81: ='r_Moffat exports'!C81 -> 22.69800186 | F81: 415.6586281
A82: 2009-12-19 | B82: ='r_NTS Demand'!C82 -> 416.09 | C82: ='r_Storage injections'!F82 -> 1.96562 | D82: ='r_Bacton IUK exports'!C82 -> 0 | E82: ='r_Moffat exports'!C82 -> 20.31599998 | F82: 393.80838
A83: 2009-12-20 | B83: ='r_NTS Demand'!C83 -> 407.89719 | C83: ='r_Storage injections'!F83 -> 2.34651 | D83: ='r_Bacton IUK exports'!C83 -> 0 | E83: ='r_Moffat exports'!C83 -> 21.34600449 | F83: 384.2046755
A84: 2009-12-21 | B84: ='r_NTS Demand'!C84 -> 420.39173 | C84: ='r_Storage injections'!F84 -> 1.87181 | D84: ='r_Bacton IUK exports'!C84 -> 0 | E84: ='r_Moffat exports'!C84 -> 23.15000153 | F84: 395.3699185
A85: 2009-12-22 | B85: ='r_NTS Demand'!C85 -> 415.14516 | C85: ='r_Storage injections'!F85 -> 6.20467 | D85: ='r_Bacton IUK exports'!C85 -> 0 | E85: ='r_Moffat exports'!C85 -> 22.784 | F85: 386.15649
A86: 2009-12-23 | B86: ='r_NTS Demand'!C86 -> 405.07099 | C86: ='r_Storage injections'!F86 -> 2.98445 | D86: ='r_Bacton IUK exports'!C86 -> 0 | E86: ='r_Moffat exports'!C86 -> 22.29199219 | F86: 379.7945478
A87: 2009-12-24 | B87: ='r_NTS Demand'!C87 -> 379.29877 | C87: ='r_Storage injections'!F87 -> 4.56779 | D87: ='r_Bacton IUK exports'!C87 -> 0 | E87: ='r_Moffat exports'!C87 -> 21.57899475 | F87: 353.1519852
A88: 2009-12-25 | B88: ='r_NTS Demand'!C88 -> 348.78571 | C88: ='r_Storage injections'!F88 -> 11.20665 | D88: ='r_Bacton IUK exports'!C88 -> 0 | E88: ='r_Moffat exports'!C88 -> 18.56100464 | F88: 319.0180554
A89: 2009-12-26 | B89: ='r_NTS Demand'!C89 -> 335.70935 | C89: ='r_Storage injections'!F89 -> 24.91409 | D89: ='r_Bacton IUK exports'!C89 -> 0 | E89: ='r_Moffat exports'!C89 -> 17.63301086 | F89: 293.1622491
A90: 2009-12-27 | B90: ='r_NTS Demand'!C90 -> 354.03907 | C90: ='r_Storage injections'!F90 -> 17.19275 | D90: ='r_Bacton IUK exports'!C90 -> 0 | E90: ='r_Moffat exports'!C90 -> 20.42799377 | F90: 316.4183262
A91: 2009-12-28 | B91: ='r_NTS Demand'!C91 -> 373.5458 | C91: ='r_Storage injections'!F91 -> 7.40906 | D91: ='r_Bacton IUK exports'!C91 -> 0 | E91: ='r_Moffat exports'!C91 -> 20.94400024 | F91: 345.1927398
A92: 2009-12-29 | B92: ='r_NTS Demand'!C92 -> 390.78562 | C92: ='r_Storage injections'!F92 -> 16.56589 | D92: ='r_Bacton IUK exports'!C92 -> 0 | E92: ='r_Moffat exports'!C92 -> 21.95300293 | F92: 352.2667271
A93: 2009-12-30 | B93: ='r_NTS Demand'!C93 -> 387.35666 | C93: ='r_Storage injections'!F93 -> 23.97309 | D93: ='r_Bacton IUK exports'!C93 -> 0 | E93: ='r_Moffat exports'!C93 -> 21.4039917 | F93: 341.9795783
A94: 2009-12-31 | B94: ='r_NTS Demand'!C94 -> 401.85675 | C94: ='r_Storage injections'!F94 -> 12.57213 | D94: ='r_Bacton IUK exports'!C94 -> 0 | E94: ='r_Moffat exports'!C94 -> 22.30502319 | F94: 366.9795968
A95: 2010-01-01 | B95: ='r_NTS Demand'!C95 -> 376.83 | C95: ='r_Storage injections'!F95 -> 3.77058 | D95: ='r_Bacton IUK exports'!C95 -> 0 | E95: ='r_Moffat exports'!C95 -> 20.23397827 | F95: 352.8254417
A96: 2010-01-02 | B96: ='r_NTS Demand'!C96 -> 386.27543 | C96: ='r_Storage injections'!F96 -> 1.86018 | D96: ='r_Bacton IUK exports'!C96 -> 0 | E96: ='r_Moffat exports'!C96 -> 21.14901733 | F96: 363.2662327
A97: 2010-01-03 | B97: ='r_NTS Demand'!C97 -> 400.66001 | C97: ='r_Storage injections'!F97 -> 5.9901 | D97: ='r_Bacton IUK exports'!C97 -> 0 | E97: ='r_Moffat exports'!C97 -> 19.87197876 | F97: 374.7979312
A98: 2010-01-04 | B98: ='r_NTS Demand'!C98 -> 441.07641 | C98: ='r_Storage injections'!F98 -> 5.37598 | D98: ='r_Bacton IUK exports'!C98 -> 0 | E98: ='r_Moffat exports'!C98 -> 24.227 | F98: 411.47343
A99: 2010-01-05 | B99: ='r_NTS Demand'!C99 -> 435.54203 | C99: ='r_Storage injections'!F99 -> 0.66345 | D99: ='r_Bacton IUK exports'!C99 -> 0 | E99: ='r_Moffat exports'!C99 -> 22.814 | F99: 412.06458
A100: 2010-01-06 | B100: ='r_NTS Demand'!C100 -> 446.76011 | C100: ='r_Storage injections'!F100 -> 4.26011 | D100: ='r_Bacton IUK exports'!C100 -> 0 | E100: ='r_Moffat exports'!C100 -> 24.2170105 | F100: 418.2829895
A101: 2010-01-07 | B101: ='r_NTS Demand'!C101 -> 453.89504 | C101: ='r_Storage injections'!F101 -> 0.97845 | D101: ='r_Bacton IUK exports'!C101 -> 0 | E101: ='r_Moffat exports'!C101 -> 26.171 | F101: 426.74559
A102: 2010-01-08 | B102: ='r_NTS Demand'!C102 -> 465.46 | C102: ='r_Storage injections'!F102 -> 2.21486 | D102: ='r_Bacton IUK exports'!C102 -> 0 | E102: ='r_Moffat exports'!C102 -> 25.911 | F102: 437.33414
A103: 2010-01-09 | B103: ='r_NTS Demand'!C103 -> 438.61798 | C103: ='r_Storage injections'!F103 -> 4.38421 | D103: ='r_Bacton IUK exports'!C103 -> 0 | E103: ='r_Moffat exports'!C103 -> 24.951 | F103: 409.28277
A104: 2010-01-10 | B104: ='r_NTS Demand'!C104 -> 415.63603 | C104: ='r_Storage injections'!F104 -> 7.903 | D104: ='r_Bacton IUK exports'!C104 -> 0 | E104: ='r_Moffat exports'!C104 -> 21.303 | F104: 386.43003
A105: 2010-01-11 | B105: ='r_NTS Demand'!C105 -> 424.40357 | C105: ='r_Storage injections'!F105 -> 2.26192 | D105: ='r_Bacton IUK exports'!C105 -> 0 | E105: ='r_Moffat exports'!C105 -> 22.276 | F105: 399.86565
A106: 2010-01-12 | B106: ='r_NTS Demand'!C106 -> 434.36555 | C106: ='r_Storage injections'!F106 -> 8.16995 | D106: ='r_Bacton IUK exports'!C106 -> 0 | E106: ='r_Moffat exports'!C106 -> 21.79998779 | F106: 404.3956122
A107: 2010-01-13 | B107: ='r_NTS Demand'!C107 -> 439.8188 | C107: ='r_Storage injections'!F107 -> 7.15405 | D107: ='r_Bacton IUK exports'!C107 -> 0 | E107: ='r_Moffat exports'!C107 -> 23.1630249 | F107: 409.5017251
A108: 2010-01-14 | B108: ='r_NTS Demand'!C108 -> 414.72464 | C108: ='r_Storage injections'!F108 -> 2.0718 | D108: ='r_Bacton IUK exports'!C108 -> 0 | E108: ='r_Moffat exports'!C108 -> 21.06896973 | F108: 391.5838703
A109: 2010-01-15 | B109: ='r_NTS Demand'!C109 -> 397.31171 | C109: ='r_Storage injections'!F109 -> 11.20599 | D109: ='r_Bacton IUK exports'!C109 -> 0 | E109: ='r_Moffat exports'!C109 -> 17.90405273 | F109: 368.2016673
A110: 2010-01-16 | B110: ='r_NTS Demand'!C110 -> 367.44586 | C110: ='r_Storage injections'!F110 -> 8.28342 | D110: ='r_Bacton IUK exports'!C110 -> 9.49982 | E110: ='r_Moffat exports'!C110 -> 17.9909668 | F110: 331.6716532
A111: 2010-01-17 | B111: ='r_NTS Demand'!C111 -> 352.28549 | C111: ='r_Storage injections'!F111 -> 10.4622 | D111: ='r_Bacton IUK exports'!C111 -> 7.61399 | E111: ='r_Moffat exports'!C111 -> 17.37701416 | F111: 316.8322858
A112: 2010-01-18 | B112: ='r_NTS Demand'!C112 -> 381.02823 | C112: ='r_Storage injections'!F112 -> 12.99126 | D112: ='r_Bacton IUK exports'!C112 -> 6.56502 | E112: ='r_Moffat exports'!C112 -> 21.19299316 | F112: 340.2789568
A113: 2010-01-19 | B113: ='r_NTS Demand'!C113 -> 388.28162 | C113: ='r_Storage injections'!F113 -> 11.19611 | D113: ='r_Bacton IUK exports'!C113 -> 5.67199707 | E113: ='r_Moffat exports'!C113 -> 19.67102051 | F113: 351.7424924
A114: 2010-01-20 | B114: ='r_NTS Demand'!C114 -> 393.73993 | C114: ='r_Storage injections'!F114 -> 5.28631 | D114: ='r_Bacton IUK exports'!C114 -> 0 | E114: ='r_Moffat exports'!C114 -> 22.2869873 | F114: 366.1666327
A115: 2010-01-21 | B115: ='r_NTS Demand'!C115 -> 388.87637 | C115: ='r_Storage injections'!F115 -> 12.70593 | D115: ='r_Bacton IUK exports'!C115 -> 0 | E115: ='r_Moffat exports'!C115 -> 20.77197266 | F115: 355.3984673
A116: 2010-01-22 | B116: ='r_NTS Demand'!C116 -> 368.69486 | C116: ='r_Storage injections'!F116 -> 8.79234 | D116: ='r_Bacton IUK exports'!C116 -> 6.138000488 | E116: ='r_Moffat exports'!C116 -> 21.52001953 | F116: 332.2445
A117: 2010-01-23 | B117: ='r_NTS Demand'!C117 -> 357.78951 | C117: ='r_Storage injections'!F117 -> 12.6124 | D117: ='r_Bacton IUK exports'!C117 -> 0 | E117: ='r_Moffat exports'!C117 -> 21.73699951 | F117: 323.4401105
A118: 2010-01-24 | B118: ='r_NTS Demand'!C118 -> 363.85643 | C118: ='r_Storage injections'!F118 -> 12.86465 | D118: ='r_Bacton IUK exports'!C118 -> 0.56005 | E118: ='r_Moffat exports'!C118 -> 21.50097656 | F118: 328.9307534
A119: 2010-01-25 | B119: ='r_NTS Demand'!C119 -> 397.1128 | C119: ='r_Storage injections'!F119 -> 5.01316 | D119: ='r_Bacton IUK exports'!C119 -> 0 | E119: ='r_Moffat exports'!C119 -> 23.41003418 | F119: 368.6896058
A120: 2010-01-26 | B120: ='r_NTS Demand'!C120 -> 416.73464 | C120: ='r_Storage injections'!F120 -> 0.22878 | D120: ='r_Bacton IUK exports'!C120 -> 7.2974 | E120: ='r_Moffat exports'!C120 -> 24.079 | F120: 385.12946
A121: 2010-01-27 | B121: ='r_NTS Demand'!C121 -> 390.54934 | C121: ='r_Storage injections'!F121 -> 9.78215 | D121: ='r_Bacton IUK exports'!C121 -> 0 | E121: ='r_Moffat exports'!C121 -> 19.95599365 | F121: 360.8111963
A122: 2010-01-28 | B122: ='r_NTS Demand'!C122 -> 372.44747 | C122: ='r_Storage injections'!F122 -> 13.7956 | D122: ='r_Bacton IUK exports'!C122 -> 0 | E122: ='r_Moffat exports'!C122 -> 19.77797 | F122: 338.8739
A123: 2010-01-29 | B123: ='r_NTS Demand'!C123 -> 389.32574 | C123: ='r_Storage injections'!F123 -> 20.34373 | D123: ='r_Bacton IUK exports'!C123 -> 0 | E123: ='r_Moffat exports'!C123 -> 20.18603516 | F123: 348.7959748
A124: 2010-01-30 | B124: ='r_NTS Demand'!C124 -> 395.01378 | C124: ='r_Storage injections'!F124 -> 20.45956 | D124: ='r_Bacton IUK exports'!C124 -> 0 | E124: ='r_Moffat exports'!C124 -> 20.32897949 | F124: 354.2252405
A125: 2010-01-31 | B125: ='r_NTS Demand'!C125 -> 392.77655 | C125: ='r_Storage injections'!F125 -> 9.44992 | D125: ='r_Bacton IUK exports'!C125 -> 0 | E125: ='r_Moffat exports'!C125 -> 19.82000732 | F125: 363.5066227
A126: 2010-02-01 | B126: ='r_NTS Demand'!C126 -> 397.84976 | C126: ='r_Storage injections'!F126 -> 2.53327 | D126: ='r_Bacton IUK exports'!C126 -> 0 | E126: ='r_Moffat exports'!C126 -> 21.10998535 | F126: 374.2065046
A127: 2010-02-02 | B127: ='r_NTS Demand'!C127 -> 385.4427 | C127: ='r_Storage injections'!F127 -> 4.81182 | D127: ='r_Bacton IUK exports'!C127 -> 0.966 | E127: ='r_Moffat exports'!C127 -> 20.57202148 | F127: 359.0928585
A128: 2010-02-03 | B128: ='r_NTS Demand'!C128 -> 393.1 | C128: ='r_Storage injections'!F128 -> 8.68151 | D128: ='r_Bacton IUK exports'!C128 -> 0 | E128: ='r_Moffat exports'!C128 -> 20.81097412 | F128: 363.6075159
A129: 2010-02-04 | B129: ='r_NTS Demand'!C129 -> 372.65715 | C129: ='r_Storage injections'!F129 -> 10.33804 | D129: ='r_Bacton IUK exports'!C129 -> 5.302978516 | E129: ='r_Moffat exports'!C129 -> 19.58098221 | F129: 337.4351493
A130: 2010-02-05 | B130: ='r_NTS Demand'!C130 -> 346.54224 | C130: ='r_Storage injections'!F130 -> 13.78049 | D130: ='r_Bacton IUK exports'!C130 -> 0 | E130: ='r_Moffat exports'!C130 -> 19.54700089 | F130: 313.2147491
A131: 2010-02-06 | B131: ='r_NTS Demand'!C131 -> 346.25893 | C131: ='r_Storage injections'!F131 -> 14.97221 | D131: ='r_Bacton IUK exports'!C131 -> 0 | E131: ='r_Moffat exports'!C131 -> 20.44100189 | F131: 310.8457181
A132: 2010-02-07 | B132: ='r_NTS Demand'!C132 -> 348.91426 | C132: ='r_Storage injections'!F132 -> 5.5736 | D132: ='r_Bacton IUK exports'!C132 -> 0 | E132: ='r_Moffat exports'!C132 -> 18.30999756 | F132: =B132-SUM(C132:E132) -> 325.0306624
A133: 2010-02-08 | B133: ='r_NTS Demand'!C133 -> 399.22576 | C133: ='r_Storage injections'!F133 -> 0.34546 | D133: ='r_Bacton IUK exports'!C133 -> 0 | E133: ='r_Moffat exports'!C133 -> 22.42500305 | F133: 376.4552969
A134: 2010-02-09 | B134: ='r_NTS Demand'!C134 -> 399.12175 | C134: ='r_Storage injections'!F134 -> 0.23629 | D134: ='r_Bacton IUK exports'!C134 -> 3.619018555 | E134: ='r_Moffat exports'!C134 -> 20.55400848 | F134: 374.712433
A135: 2010-02-10 | B135: ='r_NTS Demand'!C135 -> 411.54233 | C135: ='r_Storage injections'!F135 -> 1.05701 | D135: ='r_Bacton IUK exports'!C135 -> 0.651120007 | E135: ='r_Moffat exports'!C135 -> 22.53699493 | F135: 387.2972051
A136: 2010-02-11 | B136: ='r_NTS Demand'!C136 -> 420.51051 | C136: ='r_Storage injections'!F136 -> 0.19659 | D136: ='r_Bacton IUK exports'!C136 -> 8.46667 | E136: ='r_Moffat exports'!C136 -> 22.49899292 | F136: 389.3482571
A137: 2010-02-12 | B137: ='r_NTS Demand'!C137 -> 393.99277 | C137: ='r_Storage injections'!F137 -> 0.24089 | D137: ='r_Bacton IUK exports'!C137 -> 6.79402 | E137: ='r_Moffat exports'!C137 -> 20.65501404 | F137: 366.302846
A138: 2010-02-13 | B138: ='r_NTS Demand'!C138 -> 379.18563 | C138: ='r_Storage injections'!F138 -> 1.98851 | D138: ='r_Bacton IUK exports'!C138 -> 8.29572 | E138: ='r_Moffat exports'!C138 -> 20.24499512 | F138: 348.6564049
A139: 2010-02-14 | B139: ='r_NTS Demand'!C139 -> 371.32857 | C139: ='r_Storage injections'!F139 -> 2.01558 | D139: ='r_Bacton IUK exports'!C139 -> 11.90600586 | E139: ='r_Moffat exports'!C139 -> 18.61300659 | F139: 338.7939775
A140: 2010-02-15 | B140: ='r_NTS Demand'!C140 -> 389.79 | C140: ='r_Storage injections'!F140 -> 1.76822 | D140: ='r_Bacton IUK exports'!C140 -> 11.00897217 | E140: ='r_Moffat exports'!C140 -> 20.80899048 | F140: 356.2038174
A141: 2010-02-16 | B141: ='r_NTS Demand'!C141 -> 386.45591 | C141: ='r_Storage injections'!F141 -> 0.20115 | D141: ='r_Bacton IUK exports'!C141 -> 10.38201904 | E141: ='r_Moffat exports'!C141 -> 22.11500549 | F141: 353.7577355
A142: 2010-02-17 | B142: ='r_NTS Demand'!C142 -> 386.94345 | C142: ='r_Storage injections'!F142 -> 0.69728 | D142: ='r_Bacton IUK exports'!C142 -> 6.21994 | E142: ='r_Moffat exports'!C142 -> 22.33898926 | F142: 357.6872407
A143: 2010-02-18 | B143: ='r_NTS Demand'!C143 -> 392.3156 | C143: ='r_Storage injections'!F143 -> 2.46888 | D143: ='r_Bacton IUK exports'!C143 -> 0 | E143: ='r_Moffat exports'!C143 -> 22.94900513 | F143: 366.8977149
A144: 2010-02-19 | B144: ='r_NTS Demand'!C144 -> 386.09296 | C144: ='r_Storage injections'!F144 -> 4.11531 | D144: ='r_Bacton IUK exports'!C144 -> 0 | E144: ='r_Moffat exports'!C144 -> 21.24002075 | F144: 360.7376292
A145: 2010-02-20 | B145: ='r_NTS Demand'!C145 -> 365.41748 | C145: ='r_Storage injections'!F145 -> 3.57105 | D145: ='r_Bacton IUK exports'!C145 -> 0 | E145: ='r_Moffat exports'!C145 -> 20.97598267 | F145: 340.8704473
A146: 2010-02-21 | B146: ='r_NTS Demand'!C146 -> 372.31513 | C146: ='r_Storage injections'!F146 -> 3.08178 | D146: ='r_Bacton IUK exports'!C146 -> 0 | E146: ='r_Moffat exports'!C146 -> 20.69299316 | F146: 348.5403568
A147: 2010-02-22 | B147: ='r_NTS Demand'!C147 -> 394.45086 | C147: ='r_Storage injections'!F147 -> 1.78471 | D147: ='r_Bacton IUK exports'!C147 -> 0 | E147: ='r_Moffat exports'!C147 -> 22.573 | F147: 370.09315
A148: 2010-02-23 | B148: ='r_NTS Demand'!C148 -> 401.47875 | C148: ='r_Storage injections'!F148 -> 2.78545 | D148: ='r_Bacton IUK exports'!C148 -> 0 | E148: ='r_Moffat exports'!C148 -> 21.79800415 | F148: 376.8952958
A149: 2010-02-24 | B149: ='r_NTS Demand'!C149 -> 367.1095 | C149: ='r_Storage injections'!F149 -> 1.46228 | D149: ='r_Bacton IUK exports'!C149 -> 0 | E149: ='r_Moffat exports'!C149 -> 23.354 | F149: 342.29322
A150: 2010-02-25 | B150: ='r_NTS Demand'!C150 -> 358.52019 | C150: ='r_Storage injections'!F150 -> 9.38881 | D150: ='r_Bacton IUK exports'!C150 -> 0 | E150: ='r_Moffat exports'!C150 -> 22.80599976 | F150: 326.3253802
A151: 2010-02-26 | B151: ='r_NTS Demand'!C151 -> 365.34934 | C151: ='r_Storage injections'!F151 -> 2.93828 | D151: ='r_Bacton IUK exports'!C151 -> 0 | E151: ='r_Moffat exports'!C151 -> 20.98901367 | F151: 341.4220463
A152: 2010-02-27 | B152: ='r_NTS Demand'!C152 -> 349.5081 | C152: ='r_Storage injections'!F152 -> 12.5449 | D152: ='r_Bacton IUK exports'!C152 -> 0 | E152: ='r_Moffat exports'!C152 -> 19.79299927 | F152: 317.1702007
A153: 2010-02-28 | B153: ='r_NTS Demand'!C153 -> 365.30598 | C153: ='r_Storage injections'!F153 -> 11.84875 | D153: ='r_Bacton IUK exports'!C153 -> 0 | E153: ='r_Moffat exports'!C153 -> 20.63800049 | F153: 332.8192295
A154: 2010-03-01 | B154: ='r_NTS Demand'!C154 -> 377.47914 | C154: ='r_Storage injections'!F154 -> 10.20998 | D154: ='r_Bacton IUK exports'!C154 -> 4.58581 | E154: ='r_Moffat exports'!C154 -> 23.0579834 | F154: 339.6253666
A155: 2010-03-02 | B155: ='r_NTS Demand'!C155 -> 379.29914 | C155: ='r_Storage injections'!F155 -> 0.898 | D155: ='r_Bacton IUK exports'!C155 -> 9.01121 | E155: ='r_Moffat exports'!C155 -> 21.82202148 | F155: 347.5679085
A156: 2010-03-03 | B156: ='r_NTS Demand'!C156 -> 394.49703 | C156: ='r_Storage injections'!F156 -> 1.17742 | D156: ='r_Bacton IUK exports'!C156 -> 7.928470135 | E156: ='r_Moffat exports'!C156 -> 23.15899658 | F156: 362.2321433
A157: 2010-03-04 | B157: ='r_NTS Demand'!C157 -> 394.76497 | C157: ='r_Storage injections'!F157 -> 4.47286 | D157: ='r_Bacton IUK exports'!C157 -> 6.06797 | E157: ='r_Moffat exports'!C157 -> 23.10900879 | F157: 361.1151312
A158: 2010-03-05 | B158: ='r_NTS Demand'!C158 -> 392.70578 | C158: ='r_Storage injections'!F158 -> 3.53537 | D158: ='r_Bacton IUK exports'!C158 -> 13.15959 | E158: ='r_Moffat exports'!C158 -> 22.87097168 | F158: 353.1398483
A159: 2010-03-06 | B159: ='r_NTS Demand'!C159 -> 369.31315 | C159: ='r_Storage injections'!F159 -> 0.45395 | D159: ='r_Bacton IUK exports'!C159 -> 9.80374 | E159: ='r_Moffat exports'!C159 -> 20.54699707 | F159: 338.5084629
A160: 2010-03-07 | B160: ='r_NTS Demand'!C160 -> 382.55785 | C160: ='r_Storage injections'!F160 -> 1.50774 | D160: ='r_Bacton IUK exports'!C160 -> 7.96224 | E160: ='r_Moffat exports'!C160 -> 19.23199463 | F160: 353.8558754
A161: 2010-03-08 | B161: ='r_NTS Demand'!C161 -> 395.02575 | C161: ='r_Storage injections'!F161 -> 0.6033 | D161: ='r_Bacton IUK exports'!C161 -> 8.721 | E161: ='r_Moffat exports'!C161 -> 22.2010498 | F161: 363.5004002
A162: 2010-03-09 | B162: ='r_NTS Demand'!C162 -> 390.88268 | C162: ='r_Storage injections'!F162 -> 0.17577 | D162: ='r_Bacton IUK exports'!C162 -> 19.15704346 | E162: ='r_Moffat exports'!C162 -> 22.92999268 | F162: 348.6198739
A163: 2010-03-10 | B163: ='r_NTS Demand'!C163 -> 384.3602 | C163: ='r_Storage injections'!F163 -> 2.75274 | D163: ='r_Bacton IUK exports'!C163 -> 14.11991024 | E163: ='r_Moffat exports'!C163 -> 22.66101074 | F163: 344.826539
A164: 2010-03-11 | B164: ='r_NTS Demand'!C164 -> 363.17317 | C164: ='r_Storage injections'!F164 -> 1.74237 | D164: ='r_Bacton IUK exports'!C164 -> 0 | E164: ='r_Moffat exports'!C164 -> 21.66998291 | F164: 339.7608171
A165: 2010-03-12 | B165: ='r_NTS Demand'!C165 -> 354.47807 | C165: ='r_Storage injections'!F165 -> 4.06401 | D165: ='r_Bacton IUK exports'!C165 -> 5.48017 | E165: ='r_Moffat exports'!C165 -> 20.13201904 | F165: 324.801871
A166: 2010-03-13 | B166: ='r_NTS Demand'!C166 -> 320.30276 | C166: ='r_Storage injections'!F166 -> 3.71607 | D166: ='r_Bacton IUK exports'!C166 -> 1.50802 | E166: ='r_Moffat exports'!C166 -> 19.41296387 | F166: 295.6657061
A167: 2010-03-14 | B167: ='r_NTS Demand'!C167 -> 308.75256 | C167: ='r_Storage injections'!F167 -> 3.00943 | D167: ='r_Bacton IUK exports'!C167 -> 1.61355 | E167: ='r_Moffat exports'!C167 -> 18.95202637 | F167: 285.1775536
A168: 2010-03-15 | B168: ='r_NTS Demand'!C168 -> 328.38481 | C168: ='r_Storage injections'!F168 -> 2.32745 | D168: ='r_Bacton IUK exports'!C168 -> 5.75983 | E168: ='r_Moffat exports'!C168 -> 20.98498535 | F168: 299.3125446
A169: 2010-03-16 | B169: ='r_NTS Demand'!C169 -> 314.47835 | C169: ='r_Storage injections'!F169 -> 3.74838 | D169: ='r_Bacton IUK exports'!C169 -> 0 | E169: ='r_Moffat exports'!C169 -> 20.18499756 | F169: 290.5449724
A170: 2010-03-17 | B170: ='r_NTS Demand'!C170 -> 301.91285 | C170: ='r_Storage injections'!F170 -> 4.43994 | D170: ='r_Bacton IUK exports'!C170 -> 6.3529 | E170: ='r_Moffat exports'!C170 -> 15.85101318 | F170: 275.2689968
A171: 2010-03-18 | B171: ='r_NTS Demand'!C171 -> 303.44513 | C171: ='r_Storage injections'!F171 -> 10.73965 | D171: ='r_Bacton IUK exports'!C171 -> 12.02600098 | E171: ='r_Moffat exports'!C171 -> 17.49499512 | F171: 263.1844839
A172: 2010-03-19 | B172: ='r_NTS Demand'!C172 -> 319.7311 | C172: ='r_Storage injections'!F172 -> 36.37861 | D172: ='r_Bacton IUK exports'!C172 -> 12.08424 | E172: ='r_Moffat exports'!C172 -> 19.10601807 | F172: 252.1622319
A173: 2010-03-20 | B173: ='r_NTS Demand'!C173 -> 306.35328 | C173: ='r_Storage injections'!F173 -> 30.58459 | D173: ='r_Bacton IUK exports'!C173 -> 6.562011719 | E173: ='r_Moffat exports'!C173 -> 17.76800537 | F173: 251.4386729
A174: 2010-03-21 | B174: ='r_NTS Demand'!C174 -> 316.06923 | C174: ='r_Storage injections'!F174 -> 32.30038 | D174: ='r_Bacton IUK exports'!C174 -> 9.88077 | E174: ='r_Moffat exports'!C174 -> 15.63598633 | F174: 258.2520937
A175: 2010-03-22 | B175: ='r_NTS Demand'!C175 -> 334.50519 | C175: ='r_Storage injections'!F175 -> 25.31761 | D175: ='r_Bacton IUK exports'!C175 -> 12.37298584 | E175: ='r_Moffat exports'!C175 -> 16.78997803 | F175: 280.0246161
A176: 2010-03-23 | B176: ='r_NTS Demand'!C176 -> 331.2377 | C176: ='r_Storage injections'!F176 -> 17.01647 | D176: ='r_Bacton IUK exports'!C176 -> 14.00006104 | E176: ='r_Moffat exports'!C176 -> 18.96203613 | F176: 281.2591328
A177: 2010-03-24 | B177: ='r_NTS Demand'!C177 -> 330.87261 | C177: ='r_Storage injections'!F177 -> 31.18873 | D177: ='r_Bacton IUK exports'!C177 -> 17.81799316 | E177: ='r_Moffat exports'!C177 -> 19.67797852 | F177: 262.1879083
A178: 2010-03-25 | B178: ='r_NTS Demand'!C178 -> 315.71198 | C178: ='r_Storage injections'!F178 -> 32.78937 | D178: ='r_Bacton IUK exports'!C178 -> 5.61314 | E178: ='r_Moffat exports'!C178 -> 19.27295113 | F178: 258.0365189
A179: 2010-03-26 | B179: ='r_NTS Demand'!C179 -> 323.98204 | C179: ='r_Storage injections'!F179 -> 32.29278 | D179: ='r_Bacton IUK exports'!C179 -> 8.5532 | E179: ='r_Moffat exports'!C179 -> 20.071 | F179: 263.06506
A180: 2010-03-27 | B180: ='r_NTS Demand'!C180 -> 310.4185 | C180: ='r_Storage injections'!F180 -> 45.81543 | D180: ='r_Bacton IUK exports'!C180 -> 10.78295898 | E180: ='r_Moffat exports'!C180 -> 17.41200256 | F180: 236.4081085
A181: 2010-03-28 | B181: ='r_NTS Demand'!C181 -> 322.68232 | C181: ='r_Storage injections'!F181 -> 46.59205 | D181: ='r_Bacton IUK exports'!C181 -> 7.91792 | E181: ='r_Moffat exports'!C181 -> 16.97999954 | F181: 251.1923505
A182: 2010-03-29 | B182: ='r_NTS Demand'!C182 -> 340.74 | C182: ='r_Storage injections'!F182 -> 31.34239 | D182: ='r_Bacton IUK exports'!C182 -> 8.10471 | E182: ='r_Moffat exports'!C182 -> 19.15499878 | F182: 282.1379012
A183: 2010-03-30 | B183: ='r_NTS Demand'!C183 -> 331.08541 | C183: ='r_Storage injections'!F183 -> 19.0916 | D183: ='r_Bacton IUK exports'!C183 -> 9.71087 | E183: ='r_Moffat exports'!C183 -> 20.24900055 | F183: 282.0339395
A184: 2010-03-31 | B184: ='r_NTS Demand'!C184 -> 371.90803 | C184: ='r_Storage injections'!F184 -> 12.21707 | D184: ='r_Bacton IUK exports'!C184 -> 6.359985352 | E184: ='r_Moffat exports'!C184 -> 22.1230011 | F184: 331.2079735
A185: 2010-04-01 | B185: ='r_NTS Demand'!C185 -> 362.3914 | C185: ='r_Storage injections'!F185 -> 17.4004 | D185: ='r_Bacton IUK exports'!C185 -> 5.28917 | E185: ='r_Moffat exports'!C185 -> 21.22000122 | F185: 318.4818288
A186: 2010-04-02 | B186: ='r_NTS Demand'!C186 -> 317.8753 | C186: ='r_Storage injections'!F186 -> 14.40902 | D186: ='r_Bacton IUK exports'!C186 -> 9.8879776 | E186: ='r_Moffat exports'!C186 -> 18.3690033 | F186: 275.2092991
A187: 2010-04-03 | B187: ='r_NTS Demand'!C187 -> 306.149 | C187: ='r_Storage injections'!F187 -> 21.65124 | D187: ='r_Bacton IUK exports'!C187 -> 16.61700058 | E187: ='r_Moffat exports'!C187 -> 17.79299927 | F187: 250.0877602
A188: 2010-04-04 | B188: ='r_NTS Demand'!C188 -> 297.707 | C188: ='r_Storage injections'!F188 -> 22.84223 | D188: ='r_Bacton IUK exports'!C188 -> 14.43200111 | E188: ='r_Moffat exports'!C188 -> 15.77600098 | F188: 244.6567679
A189: 2010-04-05 | B189: ='r_NTS Demand'!C189 -> 307.202 | C189: ='r_Storage injections'!F189 -> 25.29721 | D189: ='r_Bacton IUK exports'!C189 -> 13.067998 | E189: ='r_Moffat exports'!C189 -> 13.940994 | F189: 254.895798
A190: 2010-04-06 | B190: ='r_NTS Demand'!C190 -> 300.74863 | C190: ='r_Storage injections'!F190 -> 22.02548 | D190: ='r_Bacton IUK exports'!C190 -> 15.92200089 | E190: ='r_Moffat exports'!C190 -> 19.89300537 | F190: 242.9081437
A191: 2010-04-07 | B191: ='r_NTS Demand'!C191 -> 297.63479 | C191: ='r_Storage injections'!F191 -> 11.45536 | D191: ='r_Bacton IUK exports'!C191 -> 18.60900116 | E191: ='r_Moffat exports'!C191 -> 18.343 | F191: 249.2274288
A192: 2010-04-08 | B192: ='r_NTS Demand'!C192 -> 273.23378 | C192: ='r_Storage injections'!F192 -> 6.72678 | D192: ='r_Bacton IUK exports'!C192 -> 14.30500031 | E192: ='r_Moffat exports'!C192 -> 18.22702026 | F192: 233.9749794
A193: 2010-04-09 | B193: ='r_NTS Demand'!C193 -> 287.04072 | C193: ='r_Storage injections'!F193 -> 29.31874 | D193: ='r_Bacton IUK exports'!C193 -> 20.81579 | E193: ='r_Moffat exports'!C193 -> 16.45898438 | F193: 220.4472056
A194: 2010-04-10 | B194: ='r_NTS Demand'!C194 -> 286.54033 | C194: ='r_Storage injections'!F194 -> 41.01678 | D194: ='r_Bacton IUK exports'!C194 -> 33.17500305 | E194: ='r_Moffat exports'!C194 -> 15.44699097 | F194: 196.901556
A195: 2010-04-11 | B195: ='r_NTS Demand'!C195 -> 295.56014 | C195: ='r_Storage injections'!F195 -> 37.73752 | D195: ='r_Bacton IUK exports'!C195 -> 32.51300049 | E195: ='r_Moffat exports'!C195 -> 15.38201904 | F195: 209.9276005
A196: 2010-04-12 | B196: ='r_NTS Demand'!C196 -> 308.18995 | C196: ='r_Storage injections'!F196 -> 27.71176 | D196: ='r_Bacton IUK exports'!C196 -> 26.24299622 | E196: ='r_Moffat exports'!C196 -> 18.11300659 | F196: =B196-SUM(C196:E196) -> 236.1221872
A197: 2010-04-13 | B197: ='r_NTS Demand'!C197 -> 314.81825 | C197: ='r_Storage injections'!F197 -> 23.7006 | D197: ='r_Bacton IUK exports'!C197 -> 34.07901001 | E197: ='r_Moffat exports'!C197 -> 17.51898193 | F197: 239.5196581
A198: 2010-04-14 | B198: ='r_NTS Demand'!C198 -> 318.08029 | C198: ='r_Storage injections'!F198 -> 19.6621 | D198: ='r_Bacton IUK exports'!C198 -> 32.54298401 | E198: ='r_Moffat exports'!C198 -> 17.33099365 | F198: 248.5442123
A199: 2010-04-15 | B199: ='r_NTS Demand'!C199 -> 316.63708 | C199: ='r_Storage injections'!F199 -> 26.74064 | D199: ='r_Bacton IUK exports'!C199 -> 24.65802002 | E199: ='r_Moffat exports'!C199 -> 17.24502563 | F199: 247.9933943
A200: 2010-04-16 | B200: ='r_NTS Demand'!C200 -> 317.95782 | C200: ='r_Storage injections'!F200 -> 42.14197 | D200: ='r_Bacton IUK exports'!C200 -> 28.32897949 | E200: ='r_Moffat exports'!C200 -> 17.49398804 | F200: 229.9928825
... 167 more rows

Sheet c_Sources calculations
A1: Maximum daily capacity, GWh/day | G1: Capacity coefficients | N1: Available daily capacity, GWh/day | U1: Available period capacity (total), GWh | AB1: Available period capacity (competitors), GWh | AI1: Available period capacity (market player), GWh
U2: No. days | V2: =Interface!J8 -> 1 | W2: =Interface!J9 -> 7 | X2: =Interface!J10 -> 30 | Y2: =Interface!J11 -> 91 | Z2: =Interface!J12 -> 183 | AB2: No. days | AC2: =V2 -> 1 | AD2: =W2 -> 7 | AE2: 30 | AF2: 91 | AG2: 183
U3: N-2 share | V3: 1 | W3: 0.5 | X3: 0 | Y3: 0 | Z3: 0 | AB3: N-2 share | AC3: =V3 -> 1 | AD3: =W3 -> 0.5 | AE3: 0 | AF3: 0 | AG3: 0
A4: Quarter | B4: Source | C4: Included | D4: Player's share | E4: Maximum supply | G4: Source | H4: Daily | I4: Weekly | J4: Monthly | K4: Quarterly | L4: Seasonal | N4: Source | O4: Daily | P4: Weekly | Q4: Monthly | R4: Quarterly | S4: Seasonal | U4: Source | V4: Daily | W4: Weekly | X4: Monthly | Y4: Quarterly | Z4: Seasonal | AB4: Source | AC4: Daily | AD4: Weekly | AE4: Monthly | AF4: Quarterly | AG4: Seasonal | AI4: Source | AJ4: Daily | AK4: Weekly | AL4: Monthly | AM4: Quarterly | AN4: Seasonal
A5: 1 | B5: UKCS | C5: =VLOOKUP($B5,Interface!$B$10:$E$13,2,0) -> 1 | D5: =VLOOKUP($B5,Interface!$B$10:$E$13,3,0) -> 0 | E5: =INDEX('r_Capacities and coefficients'!$A$2:$I$8,MATCH('c_Sources calculations'!B5,'r_Capacities and coefficients'!$A$2:$A$8,FALSE),MATCH(Interface!$D$1,'r_Capacities and coefficients'!$A$2:$I$2,FALSE)) -> 1465.59657 | G5: =B5 -> UKCS | H5: =INDEX('r_Capacities and coefficients'!$A$12:$F$16, MATCH('c_Sources calculations'!$G5, 'r_Capacities and coefficients'!$A$12:$A$16, FALSE), MATCH('c_Sources calculations'!H$4, 'r_Capacities and coefficients'!$A$12:$F$12, FALSE)) -> 0.902173913 | I5: =INDEX('r_Capacities and coefficients'!$A$12:$F$16, MATCH('c_Sources calculations'!$G5, 'r_Capacities and coefficients'!$A$12:$A$16, FALSE), MATCH('c_Sources calculations'!I$4, 'r_Capacities and coefficients'!$A$12:$F$12, FALSE)) -> 0.902173913 | J5: =INDEX('r_Capacities and coefficients'!$A$12:$F$16, MATCH('c_Sources calculations'!$G5, 'r_Capacities and coefficients'!$A$12:$A$16, FALSE), MATCH('c_Sources calculations'!J$4, 'r_Capacities and coefficients'!$A$12:$F$12, FALSE)) -> 0.902173913 | K5: =INDEX('r_Capacities and coefficients'!$A$12:$F$16, MATCH('c_Sources calculations'!$G5, 'r_Capacities and coefficients'!$A$12:$A$16, FALSE), MATCH('c_Sources calculations'!K$4, 'r_Capacities and coefficients'!$A$12:$F$12, FALSE)) -> 0.902173913 | L5: =INDEX('r_Capacities and coefficients'!$A$12:$F$16, MATCH('c_Sources calculations'!$G5, 'r_Capacities and coefficients'!$A$12:$A$16, FALSE), MATCH('c_Sources calculations'!L$4, 'r_Capacities and coefficients'!$A$12:$F$12, FALSE)) -> 0.902173913 | N5: =B5 -> UKCS | O5: =H5*$E5*$C5 -> 1322.222992 | P5: =I5*$E5*$C5 -> 1322.222992 | Q5: =J5*$E5*$C5 -> 1322.222992 | R5: 1322.222992 | S5: 1322.222992 | U5: UKCS | V5: =O5*V$2 -> 1322.222992 | W5: =P5*W$2 -> 9255.560948 | X5: =Q5*X$2 -> 39666.68977 | Y5: =R5*Y$2 -> 120322.2923 | Z5: =S5*Z$2 -> 241966.8076 | AB5: UKCS | AC5: =V5*(1-$D5) -> 1322.222992 | AD5: =W5*(1-$D5) -> 9255.560948 | AE5: =X5*(1-$D5) -> 39666.68977 | AF5: =Y5*(1-$D5) -> 120322.2923 | AG5: =Z5*(1-$D5) -> 241966.8076 | AI5: =B5 -> UKCS | AJ5: =$D5*V5 -> 0 | AK5: =$D5*W5 -> 0 | AL5: 0 | AM5: 0 | AN5: 0
A6: 1 | B6: Norway | C6: =VLOOKUP($B6,Interface!$B$10:$E$13,2,0) -> 1 | D6: =VLOOKUP($B6,Interface!$B$10:$E$13,3,0) -> 0 | E6: =INDEX('r_Capacities and coefficients'!$A$2:$I$8,MATCH('c_Sources calculations'!B6,'r_Capacities and coefficients'!$A$2:$A$8,FALSE),MATCH(Interface!$D$1,'r_Capacities and coefficients'!$A$2:$I$2,FALSE)) -> 1419.123 | G6: =B6 -> Norway | H6: =INDEX('r_Capacities and coefficients'!$A$12:$F$16, MATCH('c_Sources calculations'!$G6, 'r_Capacities and coefficients'!$A$12:$A$16, FALSE), MATCH('c_Sources calculations'!H$4, 'r_Capacities and coefficients'!$A$12:$F$12, FALSE)) -> 0.9750954198 | I6: =INDEX('r_Capacities and coefficients'!$A$12:$F$16, MATCH('c_Sources calculations'!$G6, 'r_Capacities and coefficients'!$A$12:$A$16, FALSE), MATCH('c_Sources calculations'!I$4, 'r_Capacities and coefficients'!$A$12:$F$12, FALSE)) -> 0.9750954198 | J6: =INDEX('r_Capacities and coefficients'!$A$12:$F$16, MATCH('c_Sources calculations'!$G6, 'r_Capacities and coefficients'!$A$12:$A$16, FALSE), MATCH('c_Sources calculations'!J$4, 'r_Capacities and coefficients'!$A$12:$F$12, FALSE)) -> 0.9750954198 | K6: =INDEX('r_Capacities and coefficients'!$A$12:$F$16, MATCH('c_Sources calculations'!$G6, 'r_Capacities and coefficients'!$A$12:$A$16, FALSE), MATCH('c_Sources calculations'!K$4, 'r_Capacities and coefficients'!$A$12:$F$12, FALSE)) -> 0.814516129 | L6: =INDEX('r_Capacities and coefficients'!$A$12:$F$16, MATCH('c_Sources calculations'!$G6, 'r_Capacities and coefficients'!$A$12:$A$16, FALSE), MATCH('c_Sources calculations'!L$4, 'r_Capacities and coefficients'!$A$12:$F$12, FALSE)) -> 0.8130081301 | N6: =B6 -> Norway | O6: =H6*$E6*$C6 -> 1383.780338 | P6: 1383.780338 | Q6: 1383.780338 | R6: 1155.898573 | S6: 1153.758537 | U6: Norway | V6: =O6*V$2 -> 1383.780338 | W6: =P6*W$2 -> 9686.462363 | X6: =Q6*X$2 -> 41513.41013 | Y6: =R6*Y$2 -> 105186.7701 | Z6: =S6*Z$2 -> 211137.8122 | AB6: Norway | AC6: =V6*(1-$D6) -> 1383.780338 | AD6: 9686.462363 | AE6: 41513.41013 | AF6: 105186.7701 | AG6: 211137.8122 | AI6: =B6 -> Norway | AJ6: =$D6*V6 -> 0 | AK6: =$D6*W6 -> 0 | AL6: =$D6*X6 -> 0 | AM6: =$D6*Y6 -> 0 | AN6: =$D6*Z6 -> 0
A7: 1 | B7: LNG | C7: =VLOOKUP($B7,Interface!$B$10:$E$13,2,0) -> 1 | D7: =VLOOKUP($B7,Interface!$B$10:$E$13,3,0) -> 0 | E7: =INDEX('r_Capacities and coefficients'!$A$2:$I$8,MATCH('c_Sources calculations'!B7,'r_Capacities and coefficients'!$A$2:$A$8,FALSE),MATCH(Interface!$D$1,'r_Capacities and coefficients'!$A$2:$I$2,FALSE)) -> 1527.705275 | G7: LNG | H7: =INDEX('r_Capacities and coefficients'!$A$12:$F$16, MATCH('c_Sources calculations'!$G7, 'r_Capacities and coefficients'!$A$12:$A$16, FALSE), MATCH('c_Sources calculations'!H$4, 'r_Capacities and coefficients'!$A$12:$F$12, FALSE)) -> 0.9903213834 | I7: =INDEX('r_Capacities and coefficients'!$A$12:$F$16, MATCH('c_Sources calculations'!$G7, 'r_Capacities and coefficients'!$A$12:$A$16, FALSE), MATCH('c_Sources calculations'!I$4, 'r_Capacities and coefficients'!$A$12:$F$12, FALSE)) -> 0.75 | J7: =INDEX('r_Capacities and coefficients'!$A$12:$F$16, MATCH('c_Sources calculations'!$G7, 'r_Capacities and coefficients'!$A$12:$A$16, FALSE), MATCH('c_Sources calculations'!J$4, 'r_Capacities and coefficients'!$A$12:$F$12, FALSE)) -> 0.75 | K7: =INDEX('r_Capacities and coefficients'!$A$12:$F$16, MATCH('c_Sources calculations'!$G7, 'r_Capacities and coefficients'!$A$12:$A$16, FALSE), MATCH('c_Sources calculations'!K$4, 'r_Capacities and coefficients'!$A$12:$F$12, FALSE)) -> 0.6 | L7: =INDEX('r_Capacities and coefficients'!$A$12:$F$16, MATCH('c_Sources calculations'!$G7, 'r_Capacities and coefficients'!$A$12:$A$16, FALSE), MATCH('c_Sources calculations'!L$4, 'r_Capacities and coefficients'!$A$12:$F$12, FALSE)) -> 0.3271818661 | N7: LNG | O7: 1512.919202 | P7: 1145.778957 | Q7: 1145.778957 | R7: 916.6231652 | S7: 499.8374628 | U7: LNG | V7: 1512.919202 | W7: 8020.452696 | X7: 34373.3687 | Y7: 83412.70803 | Z7: 91470.25569 | AB7: LNG | AC7: 1512.919202 | AD7: 8020.452696 | AE7: 34373.3687 | AF7: 83412.70803 | AG7: 91470.25569 | AI7: LNG | AJ7: 0 | AK7: 0 | AL7: 0 | AM7: 0 | AN7: 0
A8: 1 | B8: Continent | C8: =VLOOKUP($B8,Interface!$B$10:$E$13,2,0) -> 1 | D8: =VLOOKUP($B8,Interface!$B$10:$E$13,3,0) -> 0 | E8: =INDEX('r_Capacities and coefficients'!$A$2:$I$8,MATCH('c_Sources calculations'!B8,'r_Capacities and coefficients'!$A$2:$A$8,FALSE),MATCH(Interface!$D$1,'r_Capacities and coefficients'!$A$2:$I$2,FALSE)) -> 1335.575342 | G8: Continent | H8: =INDEX('r_Capacities and coefficients'!$A$12:$F$16, MATCH('c_Sources calculations'!$G8, 'r_Capacities and coefficients'!$A$12:$A$16, FALSE), MATCH('c_Sources calculations'!H$4, 'r_Capacities and coefficients'!$A$12:$F$12, FALSE)) -> 0.8029463809 | I8: =INDEX('r_Capacities and coefficients'!$A$12:$F$16, MATCH('c_Sources calculations'!$G8, 'r_Capacities and coefficients'!$A$12:$A$16, FALSE), MATCH('c_Sources calculations'!I$4, 'r_Capacities and coefficients'!$A$12:$F$12, FALSE)) -> 0.8029463809 | J8: =INDEX('r_Capacities and coefficients'!$A$12:$F$16, MATCH('c_Sources calculations'!$G8, 'r_Capacities and coefficients'!$A$12:$A$16, FALSE), MATCH('c_Sources calculations'!J$4, 'r_Capacities and coefficients'!$A$12:$F$12, FALSE)) -> 0.5637278636 | K8: =INDEX('r_Capacities and coefficients'!$A$12:$F$16, MATCH('c_Sources calculations'!$G8, 'r_Capacities and coefficients'!$A$12:$A$16, FALSE), MATCH('c_Sources calculations'!K$4, 'r_Capacities and coefficients'!$A$12:$F$12, FALSE)) -> 0.3245093463 | L8: =INDEX('r_Capacities and coefficients'!$A$12:$F$16, MATCH('c_Sources calculations'!$G8, 'r_Capacities and coefficients'!$A$12:$A$16, FALSE), MATCH('c_Sources calculations'!L$4, 'r_Capacities and coefficients'!$A$12:$F$12, FALSE)) -> 0.1754807692 | N8: Continent | O8: 1072.395388 | P8: 1072.395388 | Q8: 752.9010345 | R8: 433.4066813 | S8: 234.3677885 | U8: Continent | V8: 1072.395388 | W8: 7506.767713 | X8: 22587.03103 | Y8: 39440.008 | Z8: 42889.30529 | AB8: Continent | AC8: 1072.395388 | AD8: 7506.767713 | AE8: 22587.03103 | AF8: 39440.008 | AG8: 42889.30529 | AI8: Continent | AJ8: 0 | AK8: 0 | AL8: 0 | AM8: 0 | AN8: 0
A9: 2 | B9: UKCS | C9: =VLOOKUP($B9,Interface!$B$10:$E$13,2,0) -> 1 | D9: =VLOOKUP($B9,Interface!$B$10:$E$13,3,0) -> 0 | E9: =INDEX('r_Capacities and coefficients'!$A$2:$I$8,MATCH('c_Sources calculations'!B9,'r_Capacities and coefficients'!$A$2:$A$8,FALSE),MATCH(Interface!$D$1,'r_Capacities and coefficients'!$A$2:$I$2,FALSE)) -> 1465.59657 | G9: UKCS | H9: =INDEX('r_Capacities and coefficients'!$A$12:$F$16, MATCH('c_Sources calculations'!$G9, 'r_Capacities and coefficients'!$A$12:$A$16, FALSE), MATCH('c_Sources calculations'!H$4, 'r_Capacities and coefficients'!$A$12:$F$12, FALSE)) -> 0.902173913 | I9: =INDEX('r_Capacities and coefficients'!$A$12:$F$16, MATCH('c_Sources calculations'!$G9, 'r_Capacities and coefficients'!$A$12:$A$16, FALSE), MATCH('c_Sources calculations'!I$4, 'r_Capacities and coefficients'!$A$12:$F$12, FALSE)) -> 0.902173913 | J9: =INDEX('r_Capacities and coefficients'!$A$12:$F$16, MATCH('c_Sources calculations'!$G9, 'r_Capacities and coefficients'!$A$12:$A$16, FALSE), MATCH('c_Sources calculations'!J$4, 'r_Capacities and coefficients'!$A$12:$F$12, FALSE)) -> 0.902173913 | K9: =INDEX('r_Capacities and coefficients'!$A$12:$F$16, MATCH('c_Sources calculations'!$G9, 'r_Capacities and coefficients'!$A$12:$A$16, FALSE), MATCH('c_Sources calculations'!K$4, 'r_Capacities and coefficients'!$A$12:$F$12, FALSE)) -> 0.902173913 | L9: =INDEX('r_Capacities and coefficients'!$A$12:$F$16, MATCH('c_Sources calculations'!$G9, 'r_Capacities and coefficients'!$A$12:$A$16, FALSE), MATCH('c_Sources calculations'!L$4, 'r_Capacities and coefficients'!$A$12:$F$12, FALSE)) -> 0.902173913 | N9: UKCS | O9: 1322.222992 | P9: 1322.222992 | Q9: 1322.222992 | R9: 1322.222992 | S9: 1322.222992 | U9: UKCS | V9: 1322.222992 | W9: 9255.560948 | X9: 39666.68977 | Y9: 120322.2923 | Z9: 241966.8076 | AB9: UKCS | AC9: 1322.222992 | AD9: 9255.560948 | AE9: 39666.68977 | AF9: 120322.2923 | AG9: 241966.8076 | AI9: UKCS | AJ9: 0 | AK9: 0 | AL9: 0 | AM9: 0 | AN9: 0
A10: 2 | B10: Norway | C10: =VLOOKUP($B10,Interface!$B$10:$E$13,2,0) -> 1 | D10: =VLOOKUP($B10,Interface!$B$10:$E$13,3,0) -> 0 | E10: =INDEX('r_Capacities and coefficients'!$A$2:$I$8,MATCH('c_Sources calculations'!B10,'r_Capacities and coefficients'!$A$2:$A$8,FALSE),MATCH(Interface!$D$1,'r_Capacities and coefficients'!$A$2:$I$2,FALSE)) -> 1419.123 | G10: Norway | H10: =INDEX('r_Capacities and coefficients'!$A$12:$F$16, MATCH('c_Sources calculations'!$G10, 'r_Capacities and coefficients'!$A$12:$A$16, FALSE), MATCH('c_Sources calculations'!H$4, 'r_Capacities and coefficients'!$A$12:$F$12, FALSE)) -> 0.9750954198 | I10: =INDEX('r_Capacities and coefficients'!$A$12:$F$16, MATCH('c_Sources calculations'!$G10, 'r_Capacities and coefficients'!$A$12:$A$16, FALSE), MATCH('c_Sources calculations'!I$4, 'r_Capacities and coefficients'!$A$12:$F$12, FALSE)) -> 0.9750954198 | J10: =INDEX('r_Capacities and coefficients'!$A$12:$F$16, MATCH('c_Sources calculations'!$G10, 'r_Capacities and coefficients'!$A$12:$A$16, FALSE), MATCH('c_Sources calculations'!J$4, 'r_Capacities and coefficients'!$A$12:$F$12, FALSE)) -> 0.9750954198 | K10: =INDEX('r_Capacities and coefficients'!$A$12:$F$16, MATCH('c_Sources calculations'!$G10, 'r_Capacities and coefficients'!$A$12:$A$16, FALSE), MATCH('c_Sources calculations'!K$4, 'r_Capacities and coefficients'!$A$12:$F$12, FALSE)) -> 0.814516129 | L10: =INDEX('r_Capacities and coefficients'!$A$12:$F$16, MATCH('c_Sources calculations'!$G10, 'r_Capacities and coefficients'!$A$12:$A$16, FALSE), MATCH('c_Sources calculations'!L$4, 'r_Capacities and coefficients'!$A$12:$F$12, FALSE)) -> 0.8130081301 | N10: Norway | O10: 1383.780338 | P10: 1383.780338 | Q10: 1383.780338 | R10: 1155.898573 | S10: 1153.758537 | U10: Norway | V10: 1383.780338 | W10: 9686.462363 | X10: 41513.41013 | Y10: 105186.7701 | Z10: 211137.8122 | AB10: Norway | AC10: 1383.780338 | AD10: 9686.462363 | AE10: 41513.41013 | AF10: 105186.7701 | AG10: 211137.8122 | AI10: Norway | AJ10: 0 | AK10: 0 | AL10: 0 | AM10: 0 | AN10: 0
A11: 2 | B11: LNG | C11: =VLOOKUP($B11,Interface!$B$10:$E$13,2,0) -> 1 | D11: =VLOOKUP($B11,Interface!$B$10:$E$13,3,0) -> 0 | E11: =INDEX('r_Capacities and coefficients'!$A$2:$I$8,MATCH('c_Sources calculations'!B11,'r_Capacities and coefficients'!$A$2:$A$8,FALSE),MATCH(Interface!$D$1,'r_Capacities and coefficients'!$A$2:$I$2,FALSE)) -> 1527.705275 | G11: LNG | H11: =INDEX('r_Capacities and coefficients'!$A$12:$F$16, MATCH('c_Sources calculations'!$G11, 'r_Capacities and coefficients'!$A$12:$A$16, FALSE), MATCH('c_Sources calculations'!H$4, 'r_Capacities and coefficients'!$A$12:$F$12, FALSE)) -> 0.9903213834 | I11: =INDEX('r_Capacities and coefficients'!$A$12:$F$16, MATCH('c_Sources calculations'!$G11, 'r_Capacities and coefficients'!$A$12:$A$16, FALSE), MATCH('c_Sources calculations'!I$4, 'r_Capacities and coefficients'!$A$12:$F$12, FALSE)) -> 0.75 | J11: =INDEX('r_Capacities and coefficients'!$A$12:$F$16, MATCH('c_Sources calculations'!$G11, 'r_Capacities and coefficients'!$A$12:$A$16, FALSE), MATCH('c_Sources calculations'!J$4, 'r_Capacities and coefficients'!$A$12:$F$12, FALSE)) -> 0.75 | K11: =INDEX('r_Capacities and coefficients'!$A$12:$F$16, MATCH('c_Sources calculations'!$G11, 'r_Capacities and coefficients'!$A$12:$A$16, FALSE), MATCH('c_Sources calculations'!K$4, 'r_Capacities and coefficients'!$A$12:$F$12, FALSE)) -> 0.6 | L11: =INDEX('r_Capacities and coefficients'!$A$12:$F$16, MATCH('c_Sources calculations'!$G11, 'r_Capacities and coefficients'!$A$12:$A$16, FALSE), MATCH('c_Sources calculations'!L$4, 'r_Capacities and coefficients'!$A$12:$F$12, FALSE)) -> 0.3271818661 | N11: LNG | O11: 1512.919202 | P11: 1145.778957 | Q11: 1145.778957 | R11: 916.6231652 | S11: 499.8374628 | U11: LNG | V11: 1512.919202 | W11: 8020.452696 | X11: 34373.3687 | Y11: 83412.70803 | Z11: 91470.25569 | AB11: LNG | AC11: 1512.919202 | AD11: 8020.452696 | AE11: 34373.3687 | AF11: 83412.70803 | AG11: 91470.25569 | AI11: LNG | AJ11: 0 | AK11: 0 | AL11: 0 | AM11: 0 | AN11: 0
A12: 2 | B12: Continent | C12: =VLOOKUP($B12,Interface!$B$10:$E$13,2,0) -> 1 | D12: =VLOOKUP($B12,Interface!$B$10:$E$13,3,0) -> 0 | E12: =INDEX('r_Capacities and coefficients'!$A$2:$I$8,MATCH('c_Sources calculations'!B12,'r_Capacities and coefficients'!$A$2:$A$8,FALSE),MATCH(Interface!$D$1,'r_Capacities and coefficients'!$A$2:$I$2,FALSE)) -> 1335.575342 | G12: Continent | H12: =INDEX('r_Capacities and coefficients'!$A$12:$F$16, MATCH('c_Sources calculations'!$G12, 'r_Capacities and coefficients'!$A$12:$A$16, FALSE), MATCH('c_Sources calculations'!H$4, 'r_Capacities and coefficients'!$A$12:$F$12, FALSE)) -> 0.8029463809 | I12: =INDEX('r_Capacities and coefficients'!$A$12:$F$16, MATCH('c_Sources calculations'!$G12, 'r_Capacities and coefficients'!$A$12:$A$16, FALSE), MATCH('c_Sources calculations'!I$4, 'r_Capacities and coefficients'!$A$12:$F$12, FALSE)) -> 0.8029463809 | J12: =INDEX('r_Capacities and coefficients'!$A$12:$F$16, MATCH('c_Sources calculations'!$G12, 'r_Capacities and coefficients'!$A$12:$A$16, FALSE), MATCH('c_Sources calculations'!J$4, 'r_Capacities and coefficients'!$A$12:$F$12, FALSE)) -> 0.5637278636 | K12: =INDEX('r_Capacities and coefficients'!$A$12:$F$16, MATCH('c_Sources calculations'!$G12, 'r_Capacities and coefficients'!$A$12:$A$16, FALSE), MATCH('c_Sources calculations'!K$4, 'r_Capacities and coefficients'!$A$12:$F$12, FALSE)) -> 0.3245093463 | L12: =INDEX('r_Capacities and coefficients'!$A$12:$F$16, MATCH('c_Sources calculations'!$G12, 'r_Capacities and coefficients'!$A$12:$A$16, FALSE), MATCH('c_Sources calculations'!L$4, 'r_Capacities and coefficients'!$A$12:$F$12, FALSE)) -> 0.1754807692 | N12: Continent | O12: 1072.395388 | P12: 1072.395388 | Q12: 752.9010345 | R12: 433.4066813 | S12: 234.3677885 | U12: Continent | V12: 1072.395388 | W12: 7506.767713 | X12: 22587.03103 | Y12: 39440.008 | Z12: 42889.30529 | AB12: Continent | AC12: 1072.395388 | AD12: 7506.767713 | AE12: 22587.03103 | AF12: 39440.008 | AG12: 42889.30529 | AI12: Continent | AJ12: 0 | AK12: 0 | AL12: 0 | AM12: 0 | AN12: 0
A13: 3 | B13: UKCS | C13: =VLOOKUP($B13,Interface!$B$10:$E$13,2,0) -> 1 | D13: =VLOOKUP($B13,Interface!$B$10:$E$13,3,0) -> 0 | E13: =INDEX('r_Capacities and coefficients'!$A$2:$I$8,MATCH('c_Sources calculations'!B13,'r_Capacities and coefficients'!$A$2:$A$8,FALSE),MATCH(Interface!$D$1,'r_Capacities and coefficients'!$A$2:$I$2,FALSE)) -> 1465.59657 | G13: UKCS | H13: =INDEX('r_Capacities and coefficients'!$A$12:$F$16, MATCH('c_Sources calculations'!$G13, 'r_Capacities and coefficients'!$A$12:$A$16, FALSE), MATCH('c_Sources calculations'!H$4, 'r_Capacities and coefficients'!$A$12:$F$12, FALSE)) -> 0.902173913 | I13: =INDEX('r_Capacities and coefficients'!$A$12:$F$16, MATCH('c_Sources calculations'!$G13, 'r_Capacities and coefficients'!$A$12:$A$16, FALSE), MATCH('c_Sources calculations'!I$4, 'r_Capacities and coefficients'!$A$12:$F$12, FALSE)) -> 0.902173913 | J13: =INDEX('r_Capacities and coefficients'!$A$12:$F$16, MATCH('c_Sources calculations'!$G13, 'r_Capacities and coefficients'!$A$12:$A$16, FALSE), MATCH('c_Sources calculations'!J$4, 'r_Capacities and coefficients'!$A$12:$F$12, FALSE)) -> 0.902173913 | K13: =INDEX('r_Capacities and coefficients'!$A$12:$F$16, MATCH('c_Sources calculations'!$G13, 'r_Capacities and coefficients'!$A$12:$A$16, FALSE), MATCH('c_Sources calculations'!K$4, 'r_Capacities and coefficients'!$A$12:$F$12, FALSE)) -> 0.902173913 | L13: =INDEX('r_Capacities and coefficients'!$A$12:$F$16, MATCH('c_Sources calculations'!$G13, 'r_Capacities and coefficients'!$A$12:$A$16, FALSE), MATCH('c_Sources calculations'!L$4, 'r_Capacities and coefficients'!$A$12:$F$12, FALSE)) -> 0.902173913 | N13: UKCS | O13: 1322.222992 | P13: 1322.222992 | Q13: 1322.222992 | R13: 1322.222992 | S13: 1322.222992 | U13: UKCS | V13: 1322.222992 | W13: 9255.560948 | X13: 39666.68977 | Y13: 120322.2923 | Z13: 241966.8076 | AB13: UKCS | AC13: 1322.222992 | AD13: 9255.560948 | AE13: 39666.68977 | AF13: 120322.2923 | AG13: 241966.8076 | AI13: UKCS | AJ13: 0 | AK13: 0 | AL13: 0 | AM13: 0 | AN13: 0
A14: 3 | B14: Norway | C14: =VLOOKUP($B14,Interface!$B$10:$E$13,2,0) -> 1 | D14: =VLOOKUP($B14,Interface!$B$10:$E$13,3,0) -> 0 | E14: =INDEX('r_Capacities and coefficients'!$A$2:$I$8,MATCH('c_Sources calculations'!B14,'r_Capacities and coefficients'!$A$2:$A$8,FALSE),MATCH(Interface!$D$1,'r_Capacities and coefficients'!$A$2:$I$2,FALSE)) -> 1419.123 | G14: Norway | H14: =INDEX('r_Capacities and coefficients'!$A$12:$F$16, MATCH('c_Sources calculations'!$G14, 'r_Capacities and coefficients'!$A$12:$A$16, FALSE), MATCH('c_Sources calculations'!H$4, 'r_Capacities and coefficients'!$A$12:$F$12, FALSE)) -> 0.9750954198 | I14: =INDEX('r_Capacities and coefficients'!$A$12:$F$16, MATCH('c_Sources calculations'!$G14, 'r_Capacities and coefficients'!$A$12:$A$16, FALSE), MATCH('c_Sources calculations'!I$4, 'r_Capacities and coefficients'!$A$12:$F$12, FALSE)) -> 0.9750954198 | J14: =INDEX('r_Capacities and coefficients'!$A$12:$F$16, MATCH('c_Sources calculations'!$G14, 'r_Capacities and coefficients'!$A$12:$A$16, FALSE), MATCH('c_Sources calculations'!J$4, 'r_Capacities and coefficients'!$A$12:$F$12, FALSE)) -> 0.9750954198 | K14: =INDEX('r_Capacities and coefficients'!$A$12:$F$16, MATCH('c_Sources calculations'!$G14, 'r_Capacities and coefficients'!$A$12:$A$16, FALSE), MATCH('c_Sources calculations'!K$4, 'r_Capacities and coefficients'!$A$12:$F$12, FALSE)) -> 0.814516129 | L14: =INDEX('r_Capacities and coefficients'!$A$12:$F$16, MATCH('c_Sources calculations'!$G14, 'r_Capacities and coefficients'!$A$12:$A$16, FALSE), MATCH('c_Sources calculations'!L$4, 'r_Capacities and coefficients'!$A$12:$F$12, FALSE)) -> 0.8130081301 | N14: Norway | O14: 1383.780338 | P14: 1383.780338 | Q14: 1383.780338 | R14: 1155.898573 | S14: 1153.758537 | U14: Norway | V14: 1383.780338 | W14: 9686.462363 | X14: 41513.41013 | Y14: 105186.7701 | Z14: 211137.8122 | AB14: Norway | AC14: 1383.780338 | AD14: 9686.462363 | AE14: 41513.41013 | AF14: 105186.7701 | AG14: 211137.8122 | AI14: Norway | AJ14: 0 | AK14: 0 | AL14: 0 | AM14: 0 | AN14: 0
A15: 3 | B15: LNG | C15: =VLOOKUP($B15,Interface!$B$10:$E$13,2,0) -> 1 | D15: =VLOOKUP($B15,Interface!$B$10:$E$13,3,0) -> 0 | E15: =INDEX('r_Capacities and coefficients'!$A$2:$I$8,MATCH('c_Sources calculations'!B15,'r_Capacities and coefficients'!$A$2:$A$8,FALSE),MATCH(Interface!$D$1,'r_Capacities and coefficients'!$A$2:$I$2,FALSE)) -> 1527.705275 | G15: LNG | H15: =INDEX('r_Capacities and coefficients'!$A$12:$F$16, MATCH('c_Sources calculations'!$G15, 'r_Capacities and coefficients'!$A$12:$A$16, FALSE), MATCH('c_Sources calculations'!H$4, 'r_Capacities and coefficients'!$A$12:$F$12, FALSE)) -> 0.9903213834 | I15: =INDEX('r_Capacities and coefficients'!$A$12:$F$16, MATCH('c_Sources calculations'!$G15, 'r_Capacities and coefficients'!$A$12:$A$16, FALSE), MATCH('c_Sources calculations'!I$4, 'r_Capacities and coefficients'!$A$12:$F$12, FALSE)) -> 0.75 | J15: =INDEX('r_Capacities and coefficients'!$A$12:$F$16, MATCH('c_Sources calculations'!$G15, 'r_Capacities and coefficients'!$A$12:$A$16, FALSE), MATCH('c_Sources calculations'!J$4, 'r_Capacities and coefficients'!$A$12:$F$12, FALSE)) -> 0.75 | K15: =INDEX('r_Capacities and coefficients'!$A$12:$F$16, MATCH('c_Sources calculations'!$G15, 'r_Capacities and coefficients'!$A$12:$A$16, FALSE), MATCH('c_Sources calculations'!K$4, 'r_Capacities and coefficients'!$A$12:$F$12, FALSE)) -> 0.6 | L15: =INDEX('r_Capacities and coefficients'!$A$12:$F$16, MATCH('c_Sources calculations'!$G15, 'r_Capacities and coefficients'!$A$12:$A$16, FALSE), MATCH('c_Sources calculations'!L$4, 'r_Capacities and coefficients'!$A$12:$F$12, FALSE)) -> 0.3271818661 | N15: LNG | O15: 1512.919202 | P15: 1145.778957 | Q15: 1145.778957 | R15: 916.6231652 | S15: 499.8374628 | U15: LNG | V15: 1512.919202 | W15: 8020.452696 | X15: 34373.3687 | Y15: 83412.70803 | Z15: 91470.25569 | AB15: LNG | AC15: 1512.919202 | AD15: 8020.452696 | AE15: 34373.3687 | AF15: 83412.70803 | AG15: 91470.25569 | AI15: LNG | AJ15: 0 | AK15: 0 | AL15: 0 | AM15: 0 | AN15: 0
A16: 3 | B16: Continent | C16: =VLOOKUP($B16,Interface!$B$10:$E$13,2,0) -> 1 | D16: =VLOOKUP($B16,Interface!$B$10:$E$13,3,0) -> 0 | E16: =INDEX('r_Capacities and coefficients'!$A$2:$I$8,MATCH('c_Sources calculations'!B16,'r_Capacities and coefficients'!$A$2:$A$8,FALSE),MATCH(Interface!$D$1,'r_Capacities and coefficients'!$A$2:$I$2,FALSE)) -> 1335.575342 | G16: Continent | H16: =INDEX('r_Capacities and coefficients'!$A$12:$F$16, MATCH('c_Sources calculations'!$G16, 'r_Capacities and coefficients'!$A$12:$A$16, FALSE), MATCH('c_Sources calculations'!H$4, 'r_Capacities and coefficients'!$A$12:$F$12, FALSE)) -> 0.8029463809 | I16: =INDEX('r_Capacities and coefficients'!$A$12:$F$16, MATCH('c_Sources calculations'!$G16, 'r_Capacities and coefficients'!$A$12:$A$16, FALSE), MATCH('c_Sources calculations'!I$4, 'r_Capacities and coefficients'!$A$12:$F$12, FALSE)) -> 0.8029463809 | J16: =INDEX('r_Capacities and coefficients'!$A$12:$F$16, MATCH('c_Sources calculations'!$G16, 'r_Capacities and coefficients'!$A$12:$A$16, FALSE), MATCH('c_Sources calculations'!J$4, 'r_Capacities and coefficients'!$A$12:$F$12, FALSE)) -> 0.5637278636 | K16: =INDEX('r_Capacities and coefficients'!$A$12:$F$16, MATCH('c_Sources calculations'!$G16, 'r_Capacities and coefficients'!$A$12:$A$16, FALSE), MATCH('c_Sources calculations'!K$4, 'r_Capacities and coefficients'!$A$12:$F$12, FALSE)) -> 0.3245093463 | L16: =INDEX('r_Capacities and coefficients'!$A$12:$F$16, MATCH('c_Sources calculations'!$G16, 'r_Capacities and coefficients'!$A$12:$A$16, FALSE), MATCH('c_Sources calculations'!L$4, 'r_Capacities and coefficients'!$A$12:$F$12, FALSE)) -> 0.1754807692 | N16: Continent | O16: 1072.395388 | P16: 1072.395388 | Q16: 752.9010345 | R16: 433.4066813 | S16: 234.3677885 | U16: Continent | V16: 1072.395388 | W16: 7506.767713 | X16: 22587.03103 | Y16: 39440.008 | Z16: 42889.30529 | AB16: Continent | AC16: 1072.395388 | AD16: 7506.767713 | AE16: 22587.03103 | AF16: 39440.008 | AG16: 42889.30529 | AI16: Continent | AJ16: 0 | AK16: 0 | AL16: 0 | AM16: 0 | AN16: 0
A17: 4 | B17: UKCS | C17: =VLOOKUP($B17,Interface!$B$10:$E$13,2,0) -> 1 | D17: =VLOOKUP($B17,Interface!$B$10:$E$13,3,0) -> 0 | E17: =INDEX('r_Capacities and coefficients'!$A$2:$I$8,MATCH('c_Sources calculations'!B17,'r_Capacities and coefficients'!$A$2:$A$8,FALSE),MATCH(Interface!$D$1,'r_Capacities and coefficients'!$A$2:$I$2,FALSE)) -> 1465.59657 | G17: UKCS | H17: =INDEX('r_Capacities and coefficients'!$A$12:$F$16, MATCH('c_Sources calculations'!$G17, 'r_Capacities and coefficients'!$A$12:$A$16, FALSE), MATCH('c_Sources calculations'!H$4, 'r_Capacities and coefficients'!$A$12:$F$12, FALSE)) -> 0.902173913 | I17: =INDEX('r_Capacities and coefficients'!$A$12:$F$16, MATCH('c_Sources calculations'!$G17, 'r_Capacities and coefficients'!$A$12:$A$16, FALSE), MATCH('c_Sources calculations'!I$4, 'r_Capacities and coefficients'!$A$12:$F$12, FALSE)) -> 0.902173913 | J17: =INDEX('r_Capacities and coefficients'!$A$12:$F$16, MATCH('c_Sources calculations'!$G17, 'r_Capacities and coefficients'!$A$12:$A$16, FALSE), MATCH('c_Sources calculations'!J$4, 'r_Capacities and coefficients'!$A$12:$F$12, FALSE)) -> 0.902173913 | K17: =INDEX('r_Capacities and coefficients'!$A$12:$F$16, MATCH('c_Sources calculations'!$G17, 'r_Capacities and coefficients'!$A$12:$A$16, FALSE), MATCH('c_Sources calculations'!K$4, 'r_Capacities and coefficients'!$A$12:$F$12, FALSE)) -> 0.902173913 | L17: =INDEX('r_Capacities and coefficients'!$A$12:$F$16, MATCH('c_Sources calculations'!$G17, 'r_Capacities and coefficients'!$A$12:$A$16, FALSE), MATCH('c_Sources calculations'!L$4, 'r_Capacities and coefficients'!$A$12:$F$12, FALSE)) -> 0.902173913 | N17: UKCS | O17: 1322.222992 | P17: 1322.222992 | Q17: 1322.222992 | R17: 1322.222992 | S17: 1322.222992 | U17: UKCS | V17: 1322.222992 | W17: 9255.560948 | X17: 39666.68977 | Y17: 120322.2923 | Z17: 241966.8076 | AB17: UKCS | AC17: 1322.222992 | AD17: 9255.560948 | AE17: 39666.68977 | AF17: 120322.2923 | AG17: 241966.8076 | AI17: UKCS | AJ17: 0 | AK17: 0 | AL17: 0 | AM17: 0 | AN17: 0
A18: 4 | B18: Norway | C18: =VLOOKUP($B18,Interface!$B$10:$E$13,2,0) -> 1 | D18: =VLOOKUP($B18,Interface!$B$10:$E$13,3,0) -> 0 | E18: =INDEX('r_Capacities and coefficients'!$A$2:$I$8,MATCH('c_Sources calculations'!B18,'r_Capacities and coefficients'!$A$2:$A$8,FALSE),MATCH(Interface!$D$1,'r_Capacities and coefficients'!$A$2:$I$2,FALSE)) -> 1419.123 | G18: Norway | H18: =INDEX('r_Capacities and coefficients'!$A$12:$F$16, MATCH('c_Sources calculations'!$G18, 'r_Capacities and coefficients'!$A$12:$A$16, FALSE), MATCH('c_Sources calculations'!H$4, 'r_Capacities and coefficients'!$A$12:$F$12, FALSE)) -> 0.9750954198 | I18: =INDEX('r_Capacities and coefficients'!$A$12:$F$16, MATCH('c_Sources calculations'!$G18, 'r_Capacities and coefficients'!$A$12:$A$16, FALSE), MATCH('c_Sources calculations'!I$4, 'r_Capacities and coefficients'!$A$12:$F$12, FALSE)) -> 0.9750954198 | J18: =INDEX('r_Capacities and coefficients'!$A$12:$F$16, MATCH('c_Sources calculations'!$G18, 'r_Capacities and coefficients'!$A$12:$A$16, FALSE), MATCH('c_Sources calculations'!J$4, 'r_Capacities and coefficients'!$A$12:$F$12, FALSE)) -> 0.9750954198 | K18: =INDEX('r_Capacities and coefficients'!$A$12:$F$16, MATCH('c_Sources calculations'!$G18, 'r_Capacities and coefficients'!$A$12:$A$16, FALSE), MATCH('c_Sources calculations'!K$4, 'r_Capacities and coefficients'!$A$12:$F$12, FALSE)) -> 0.814516129 | L18: =INDEX('r_Capacities and coefficients'!$A$12:$F$16, MATCH('c_Sources calculations'!$G18, 'r_Capacities and coefficients'!$A$12:$A$16, FALSE), MATCH('c_Sources calculations'!L$4, 'r_Capacities and coefficients'!$A$12:$F$12, FALSE)) -> 0.8130081301 | N18: Norway | O18: 1383.780338 | P18: 1383.780338 | Q18: 1383.780338 | R18: 1155.898573 | S18: 1153.758537 | U18: Norway | V18: 1383.780338 | W18: 9686.462363 | X18: 41513.41013 | Y18: 105186.7701 | Z18: 211137.8122 | AB18: Norway | AC18: 1383.780338 | AD18: 9686.462363 | AE18: 41513.41013 | AF18: 105186.7701 | AG18: 211137.8122 | AI18: Norway | AJ18: 0 | AK18: 0 | AL18: 0 | AM18: 0 | AN18: 0
A19: 4 | B19: LNG | C19: =VLOOKUP($B19,Interface!$B$10:$E$13,2,0) -> 1 | D19: =VLOOKUP($B19,Interface!$B$10:$E$13,3,0) -> 0 | E19: =INDEX('r_Capacities and coefficients'!$A$2:$I$8,MATCH('c_Sources calculations'!B19,'r_Capacities and coefficients'!$A$2:$A$8,FALSE),MATCH(Interface!$D$1,'r_Capacities and coefficients'!$A$2:$I$2,FALSE)) -> 1527.705275 | G19: LNG | H19: =INDEX('r_Capacities and coefficients'!$A$12:$F$16, MATCH('c_Sources calculations'!$G19, 'r_Capacities and coefficients'!$A$12:$A$16, FALSE), MATCH('c_Sources calculations'!H$4, 'r_Capacities and coefficients'!$A$12:$F$12, FALSE)) -> 0.9903213834 | I19: =INDEX('r_Capacities and coefficients'!$A$12:$F$16, MATCH('c_Sources calculations'!$G19, 'r_Capacities and coefficients'!$A$12:$A$16, FALSE), MATCH('c_Sources calculations'!I$4, 'r_Capacities and coefficients'!$A$12:$F$12, FALSE)) -> 0.75 | J19: =INDEX('r_Capacities and coefficients'!$A$12:$F$16, MATCH('c_Sources calculations'!$G19, 'r_Capacities and coefficients'!$A$12:$A$16, FALSE), MATCH('c_Sources calculations'!J$4, 'r_Capacities and coefficients'!$A$12:$F$12, FALSE)) -> 0.75 | K19: =INDEX('r_Capacities and coefficients'!$A$12:$F$16, MATCH('c_Sources calculations'!$G19, 'r_Capacities and coefficients'!$A$12:$A$16, FALSE), MATCH('c_Sources calculations'!K$4, 'r_Capacities and coefficients'!$A$12:$F$12, FALSE)) -> 0.6 | L19: =INDEX('r_Capacities and coefficients'!$A$12:$F$16, MATCH('c_Sources calculations'!$G19, 'r_Capacities and coefficients'!$A$12:$A$16, FALSE), MATCH('c_Sources calculations'!L$4, 'r_Capacities and coefficients'!$A$12:$F$12, FALSE)) -> 0.3271818661 | N19: LNG | O19: 1512.919202 | P19: 1145.778957 | Q19: 1145.778957 | R19: 916.6231652 | S19: 499.8374628 | U19: LNG | V19: 1512.919202 | W19: 8020.452696 | X19: 34373.3687 | Y19: 83412.70803 | Z19: 91470.25569 | AB19: LNG | AC19: 1512.919202 | AD19: 8020.452696 | AE19: 34373.3687 | AF19: 83412.70803 | AG19: 91470.25569 | AI19: LNG | AJ19: 0 | AK19: 0 | AL19: 0 | AM19: 0 | AN19: 0
A20: 4 | B20: Continent | C20: =VLOOKUP($B20,Interface!$B$10:$E$13,2,0) -> 1 | D20: =VLOOKUP($B20,Interface!$B$10:$E$13,3,0) -> 0 | E20: =INDEX('r_Capacities and coefficients'!$A$2:$I$8,MATCH('c_Sources calculations'!B20,'r_Capacities and coefficients'!$A$2:$A$8,FALSE),MATCH(Interface!$D$1,'r_Capacities and coefficients'!$A$2:$I$2,FALSE)) -> 1335.575342 | G20: Continent | H20: =INDEX('r_Capacities and coefficients'!$A$12:$F$16, MATCH('c_Sources calculations'!$G20, 'r_Capacities and coefficients'!$A$12:$A$16, FALSE), MATCH('c_Sources calculations'!H$4, 'r_Capacities and coefficients'!$A$12:$F$12, FALSE)) -> 0.8029463809 | I20: =INDEX('r_Capacities and coefficients'!$A$12:$F$16, MATCH('c_Sources calculations'!$G20, 'r_Capacities and coefficients'!$A$12:$A$16, FALSE), MATCH('c_Sources calculations'!I$4, 'r_Capacities and coefficients'!$A$12:$F$12, FALSE)) -> 0.8029463809 | J20: =INDEX('r_Capacities and coefficients'!$A$12:$F$16, MATCH('c_Sources calculations'!$G20, 'r_Capacities and coefficients'!$A$12:$A$16, FALSE), MATCH('c_Sources calculations'!J$4, 'r_Capacities and coefficients'!$A$12:$F$12, FALSE)) -> 0.5637278636 | K20: =INDEX('r_Capacities and coefficients'!$A$12:$F$16, MATCH('c_Sources calculations'!$G20, 'r_Capacities and coefficients'!$A$12:$A$16, FALSE), MATCH('c_Sources calculations'!K$4, 'r_Capacities and coefficients'!$A$12:$F$12, FALSE)) -> 0.3245093463 | L20: =INDEX('r_Capacities and coefficients'!$A$12:$F$16, MATCH('c_Sources calculations'!$G20, 'r_Capacities and coefficients'!$A$12:$A$16, FALSE), MATCH('c_Sources calculations'!L$4, 'r_Capacities and coefficients'!$A$12:$F$12, FALSE)) -> 0.1754807692 | N20: Continent | O20: 1072.395388 | P20: 1072.395388 | Q20: 752.9010345 | R20: 433.4066813 | S20: 234.3677885 | U20: Continent | V20: 1072.395388 | W20: 7506.767713 | X20: 22587.03103 | Y20: 39440.008 | Z20: 42889.30529 | AB20: Continent | AC20: 1072.395388 | AD20: 7506.767713 | AE20: 22587.03103 | AF20: 39440.008 | AG20: 42889.30529 | AI20: Continent | AJ20: 0 | AK20: 0 | AL20: 0 | AM20: 0 | AN20: 0
U22: N-1 | V22: =V2*Interface!$E$5 -> 0 | W22: =W2*Interface!$E$5 -> 0 | X22: =X2*Interface!$E$5 -> 0 | Y22: =Y2*Interface!$E$5 -> 0 | Z22: =Z2*Interface!$E$5 -> 0 | AB22: N-1 | AC22: =AC2*Interface!$E$5 -> 0 | AD22: =AD2*Interface!$E$5 -> 0 | AE22: =AE2*Interface!$E$5 -> 0 | AF22: =AF2*Interface!$E$5 -> 0 | AG22: =AG2*Interface!$E$5 -> 0
U23: N-2 | V23: =V2*V3*Interface!$G$5 -> 0 | W23: =W2*W3*Interface!$G$5 -> 0 | X23: =X2*X3*Interface!$G$5 -> 0 | Y23: =Y2*Y3*Interface!$G$5 -> 0 | Z23: =Z2*Z3*Interface!$G$5 -> 0 | AB23: N-2 | AC23: =AC2*AC3*Interface!$G$5 -> 0 | AD23: =AD2*AD3*Interface!$G$5 -> 0 | AE23: =AE2*AE3*Interface!$G$5 -> 0 | AF23: =AF2*AF3*Interface!$G$5 -> 0 | AG23: =AG2*AG3*Interface!$G$5 -> 0
T26: Season | U26: Quarter | V26: Daily | W26: Weekly | X26: Monthly | Y26: Quarterly | Z26: Seasonal | AB26: Quarter | AC26: Daily | AD26: Weekly | AE26: Monthly | AF26: Quarterly | AG26: Seasonal | AI26: Quarter | AJ26: Daily | AK26: Weekly | AL26: Monthly | AM26: Quarterly | AN26: Seasonal
T27: Winter | U27: 1 | V27: =SUMIF($A$5:$A$20,$U27,V$5:V$20)-V$22-V$23 -> 5291.317919 | W27: 34469.24372 | X27: 138140.4996 | Y27: 348361.7785 | Z27: 587464.1808 | AB27: =U27 -> 1 | AC27: =SUMIF($A$5:$A$20,$U27,AC$5:AC$20)-AC$22-AC$23 -> 5291.317919 | AD27: 34469.24372 | AE27: 138140.4996 | AF27: 348361.7785 | AG27: 587464.1808 | AI27: =U27 -> 1 | AJ27: =SUMIF($A$5:$A$20,$U27,AJ$5:AJ$20) -> 0 | AK27: 0 | AL27: 0 | AM27: 0 | AN27: 0
T28: Summer | U28: 2 | V28: 5291.317919 | W28: 34469.24372 | X28: 138140.4996 | Y28: 348361.7785 | Z28: 587464.1808 | AB28: =U28 -> 2 | AC28: 5291.317919 | AD28: 34469.24372 | AE28: 138140.4996 | AF28: 348361.7785 | AG28: 587464.1808 | AI28: =U28 -> 2 | AJ28: 0 | AK28: 0 | AL28: 0 | AM28: 0 | AN28: 0
T29: Summer | U29: 3 | V29: 5291.317919 | W29: 34469.24372 | X29: 138140.4996 | Y29: 348361.7785 | Z29: 587464.1808 | AB29: 3 | AC29: 5291.317919 | AD29: 34469.24372 | AE29: 138140.4996 | AF29: 348361.7785 | AG29: 587464.1808 | AI29: 3 | AJ29: 0 | AK29: 0 | AL29: 0 | AM29: 0 | AN29: 0
T30: Winter | U30: 4 | V30: 5291.317919 | W30: 34469.24372 | X30: 138140.4996 | Y30: 348361.7785 | Z30: 587464.1808 | AB30: 4 | AC30: 5291.317919 | AD30: 34469.24372 | AE30: 138140.4996 | AF30: 348361.7785 | AG30: 587464.1808 | AI30: 4 | AJ30: 0 | AK30: 0 | AL30: 0 | AM30: 0 | AN30: 0

Sheet c_Storage calculations
A1: Storage calculations
M3: Player's share | Q3: Competitors' share | T3: Total storage deliverability | Z3: Competitors' storage deliverability | AF3: Player's injection capability
A4: Quarter | B4: Facility | C4: Delivery | D4: Injection | E4: Space | F4: Type | G4: Included | H4: Player's share | I4: Stock level | M4: Space | N4: Delivery | O4: Injection | Q4: Space | R4: Delivery | T4: =Interface!J8 -> 1 | U4: =Interface!J9 -> 7 | V4: =Interface!J10 -> 30 | W4: =Interface!J11 -> 91 | X4: =Interface!J12 -> 183 | Z4: =T4 -> 1 | AA4: =U4 -> 7 | AB4: 30 | AC4: 91 | AD4: 183 | AF4: =T4 -> 1 | AG4: =U4 -> 7 | AH4: 30 | AI4: 91 | AJ4: 183
A5: Q | B5: Name | C5: GWh/day | D5: GWh/day | E5: GWh | G5: % | H5: % | I5: % | M5: GWh | N5: GWh/day | O5: GWh/day | Q5: GWh | R5: GWh/day | T5: Daily | U5: Weekly | V5: Monthly | W5: Quarterly | X5: Seasonal | Z5: Daily | AA5: Weekly | AB5: Monthly | AC5: Quarterly | AD5: Seasonal | AF5: Daily | AG5: Weekly | AH5: Monthly | AI5: Quarterly | AJ5: Seasonal
A6: 1 | B6: Rough | C6: =VLOOKUP($B6,'r_Storage parameters'!$B:$E,2,0) -> 455 | D6: =VLOOKUP($B6,'r_Storage parameters'!$B:$E,3,0) -> 238.326 | E6: =VLOOKUP($B6,'r_Storage parameters'!$B:$E,4,0) -> 36800 | F6: =VLOOKUP($B6,Interface!$B$19:$E$44,4,0) -> LRS/MRS | G6: =VLOOKUP($B6,Interface!$B$19:$E$44,2,0) -> 1 | H6: =VLOOKUP($B6,Interface!$B$19:$E$44,3,0) -> 0 | I6: =HLOOKUP(F6,'c_Storage stock levels(quarter)'!$B$3:$C$7,1+'c_Storage calculations'!A6,0) -> 0.372313532 | M6: =H6*E6 -> 0 | N6: =H6*C6 -> 0 | O6: =D6*H6 -> 0 | Q6: =(1-H6)*E6 -> 36800 | R6: =(1-H6)*C6 -> 455 | T6: =$G6*MIN(T$4*$C6,$E6*$I6) -> 455 | U6: 3185 | V6: 13650 | W6: 13701.13798 | X6: 13701.13798 | Z6: =$G6*MIN(Z$4*$R6,$Q6*$I6) -> 455 | AA6: =$G6*MIN(AA$4*$R6,$Q6*$I6) -> 3185 | AB6: 13650 | AC6: 13701.13798 | AD6: 13701.13798 | AF6: =$G6*MIN(AF$4*$O6,$M6*(1-$I6)) -> 0 | AG6: 0 | AH6: 0 | AI6: 0 | AJ6: 0
A7: 1 | B7: Hatfield | C7: =VLOOKUP($B7,'r_Storage parameters'!$B:$E,2,0) -> 25 | D7: =VLOOKUP($B7,'r_Storage parameters'!$B:$E,3,0) -> 25 | E7: =VLOOKUP($B7,'r_Storage parameters'!$B:$E,4,0) -> 1260 | F7: =VLOOKUP($B7,Interface!$B$19:$E$44,4,0) -> LRS/MRS | G7: =VLOOKUP($B7,Interface!$B$19:$E$44,2,0) -> 1 | H7: =VLOOKUP($B7,Interface!$B$19:$E$44,3,0) -> 0 | I7: =HLOOKUP(F7,'c_Storage stock levels(quarter)'!$B$3:$C$7,1+'c_Storage calculations'!A7,0) -> 0.372313532 | M7: =H7*E7 -> 0 | N7: =H7*C7 -> 0 | O7: =D7*H7 -> 0 | Q7: =(1-H7)*E7 -> 1260 | R7: =(1-H7)*C7 -> 25 | T7: 25 | U7: 175 | V7: 469.1150503 | W7: 469.1150503 | X7: 469.1150503 | Z7: 25 | AA7: 175 | AB7: 469.1150503 | AC7: 469.1150503 | AD7: 469.1150503 | AF7: 0 | AG7: 0 | AH7: 0 | AI7: 0 | AJ7: 0
A8: 1 | B8: Humbly Grove | C8: =VLOOKUP($B8,'r_Storage parameters'!$B:$E,2,0) -> 82 | D8: =VLOOKUP($B8,'r_Storage parameters'!$B:$E,3,0) -> 90 | E8: =VLOOKUP($B8,'r_Storage parameters'!$B:$E,4,0) -> 3730 | F8: =VLOOKUP($B8,Interface!$B$19:$E$44,4,0) -> LRS/MRS | G8: =VLOOKUP($B8,Interface!$B$19:$E$44,2,0) -> 1 | H8: =VLOOKUP($B8,Interface!$B$19:$E$44,3,0) -> 0 | I8: =HLOOKUP(F8,'c_Storage stock levels(quarter)'!$B$3:$C$7,1+'c_Storage calculations'!A8,0) -> 0.372313532 | M8: 0 | N8: 0 | O8: 0 | Q8: 3730 | R8: 82 | T8: 82 | U8: 574 | V8: 1388.729474 | W8: 1388.729474 | X8: 1388.729474 | Z8: 82 | AA8: 574 | AB8: 1388.729474 | AC8: 1388.729474 | AD8: 1388.729474 | AF8: 0 | AG8: 0 | AH8: 0 | AI8: 0 | AJ8: 0
A9: 1 | B9: Hornsea | C9: =VLOOKUP($B9,'r_Storage parameters'!$B:$E,2,0) -> 195 | D9: =VLOOKUP($B9,'r_Storage parameters'!$B:$E,3,0) -> 21.666 | E9: =VLOOKUP($B9,'r_Storage parameters'!$B:$E,4,0) -> 3496 | F9: =VLOOKUP($B9,Interface!$B$19:$E$44,4,0) -> LRS/MRS | G9: =VLOOKUP($B9,Interface!$B$19:$E$44,2,0) -> 1 | H9: =VLOOKUP($B9,Interface!$B$19:$E$44,3,0) -> 0 | I9: =HLOOKUP(F9,'c_Storage stock levels(quarter)'!$B$3:$C$7,1+'c_Storage calculations'!A9,0) -> 0.372313532 | M9: 0 | N9: 0 | O9: 0 | Q9: 3496 | R9: 195 | T9: 195 | U9: 1301.608108 | V9: 1301.608108 | W9: 1301.608108 | X9: 1301.608108 | Z9: 195 | AA9: 1301.608108 | AB9: 1301.608108 | AC9: 1301.608108 | AD9: 1301.608108 | AF9: 0 | AG9: 0 | AH9: 0 | AI9: 0 | AJ9: 0
A10: 1 | B10: Holford | C10: =VLOOKUP($B10,'r_Storage parameters'!$B:$E,2,0) -> 169 | D10: =VLOOKUP($B10,'r_Storage parameters'!$B:$E,3,0) -> 169 | E10: =VLOOKUP($B10,'r_Storage parameters'!$B:$E,4,0) -> 1745 | F10: =VLOOKUP($B10,Interface!$B$19:$E$44,4,0) -> LRS/MRS | G10: =VLOOKUP($B10,Interface!$B$19:$E$44,2,0) -> 1 | H10: =VLOOKUP($B10,Interface!$B$19:$E$44,3,0) -> 0 | I10: =HLOOKUP(F10,'c_Storage stock levels(quarter)'!$B$3:$C$7,1+'c_Storage calculations'!A10,0) -> 0.372313532 | M10: 0 | N10: 0 | O10: 0 | Q10: 1745 | R10: 169 | T10: 169 | U10: 649.6871133 | V10: 649.6871133 | W10: 649.6871133 | X10: 649.6871133 | Z10: 169 | AA10: 649.6871133 | AB10: 649.6871133 | AC10: 649.6871133 | AD10: 649.6871133 | AF10: 0 | AG10: 0 | AH10: 0 | AI10: 0 | AJ10: 0
A11: 1 | B11: Aldbrough 1 a | C11: =VLOOKUP($B11,'r_Storage parameters'!$B:$E,2,0) -> 105 | D11: =VLOOKUP($B11,'r_Storage parameters'!$B:$E,3,0) -> 317 | E11: =VLOOKUP($B11,'r_Storage parameters'!$B:$E,4,0) -> 649.98 | F11: =VLOOKUP($B11,Interface!$B$19:$E$44,4,0) -> LRS/MRS | G11: =VLOOKUP($B11,Interface!$B$19:$E$44,2,0) -> 1 | H11: =VLOOKUP($B11,Interface!$B$19:$E$44,3,0) -> 0 | I11: =HLOOKUP(F11,'c_Storage stock levels(quarter)'!$B$3:$C$7,1+'c_Storage calculations'!A11,0) -> 0.372313532 | M11: 0 | N11: 0 | O11: 0 | Q11: 649.98 | R11: 105 | T11: 105 | U11: 241.9963495 | V11: 241.9963495 | W11: 241.9963495 | X11: 241.9963495 | Z11: 105 | AA11: 241.9963495 | AB11: 241.9963495 | AC11: 241.9963495 | AD11: 241.9963495 | AF11: 0 | AG11: 0 | AH11: 0 | AI11: 0 | AJ11: 0
A12: 1 | B12: Aldbrough 1 b | C12: =VLOOKUP($B12,'r_Storage parameters'!$B:$E,2,0) -> 316 | D12: =VLOOKUP($B12,'r_Storage parameters'!$B:$E,3,0) -> 317 | E12: =VLOOKUP($B12,'r_Storage parameters'!$B:$E,4,0) -> 3264.02 | F12: =VLOOKUP($B12,Interface!$B$19:$E$44,4,0) -> LRS/MRS | G12: =VLOOKUP($B12,Interface!$B$19:$E$44,2,0) -> 1 | H12: =VLOOKUP($B12,Interface!$B$19:$E$44,3,0) -> 0 | I12: =HLOOKUP(F12,'c_Storage stock levels(quarter)'!$B$3:$C$7,1+'c_Storage calculations'!A12,0) -> 0.372313532 | M12: 0 | N12: 0 | O12: 0 | Q12: 3264.02 | R12: 316 | T12: 316 | U12: 1215.238815 | V12: 1215.238815 | W12: 1215.238815 | X12: 1215.238815 | Z12: 316 | AA12: 1215.238815 | AB12: 1215.238815 | AC12: 1215.238815 | AD12: 1215.238815 | AF12: 0 | AG12: 0 | AH12: 0 | AI12: 0 | AJ12: 0
A13: 1 | B13: Hole House Farm | C13: =VLOOKUP($B13,'r_Storage parameters'!$B:$E,2,0) -> 116 | D13: =VLOOKUP($B13,'r_Storage parameters'!$B:$E,3,0) -> 170 | E13: =VLOOKUP($B13,'r_Storage parameters'!$B:$E,4,0) -> 650 | F13: =VLOOKUP($B13,Interface!$B$19:$E$44,4,0) -> LRS/MRS | G13: =VLOOKUP($B13,Interface!$B$19:$E$44,2,0) -> 1 | H13: =VLOOKUP($B13,Interface!$B$19:$E$44,3,0) -> 0 | I13: =HLOOKUP(F13,'c_Storage stock levels(quarter)'!$B$3:$C$7,1+'c_Storage calculations'!A13,0) -> 0.372313532 | M13: 0 | N13: 0 | O13: 0 | Q13: 650 | R13: 116 | T13: 116 | U13: 242.0037958 | V13: 242.0037958 | W13: 242.0037958 | X13: 242.0037958 | Z13: 116 | AA13: 242.0037958 | AB13: 242.0037958 | AC13: 242.0037958 | AD13: 242.0037958 | AF13: 0 | AG13: 0 | AH13: 0 | AI13: 0 | AJ13: 0
A14: 1 | B14: Hewett | C14: =VLOOKUP($B14,'r_Storage parameters'!$B:$E,2,0) -> 454.986 | D14: =VLOOKUP($B14,'r_Storage parameters'!$B:$E,3,0) -> 454.986 | E14: =VLOOKUP($B14,'r_Storage parameters'!$B:$E,4,0) -> 45498.6 | F14: =VLOOKUP($B14,Interface!$B$19:$E$44,4,0) -> LRS/MRS | G14: =VLOOKUP($B14,Interface!$B$19:$E$44,2,0) -> 0 | H14: =VLOOKUP($B14,Interface!$B$19:$E$44,3,0) -> 0 | I14: =HLOOKUP(F14,'c_Storage stock levels(quarter)'!$B$3:$C$7,1+'c_Storage calculations'!A14,0) -> 0.372313532 | M14: 0 | N14: 0 | O14: 0 | Q14: 45498.6 | R14: 454.986 | T14: 0 | U14: 0 | V14: 0 | W14: 0 | X14: 0 | Z14: 0 | AA14: 0 | AB14: 0 | AC14: 0 | AD14: 0 | AF14: 0 | AG14: 0 | AH14: 0 | AI14: 0 | AJ14: 0
A15: 1 | B15: Bains | C15: =VLOOKUP($B15,'r_Storage parameters'!$B:$E,2,0) -> 64 | D15: =VLOOKUP($B15,'r_Storage parameters'!$B:$E,3,0) -> 64 | E15: =VLOOKUP($B15,'r_Storage parameters'!$B:$E,4,0) -> 2957 | F15: =VLOOKUP($B15,Interface!$B$19:$E$44,4,0) -> LRS/MRS | G15: =VLOOKUP($B15,Interface!$B$19:$E$44,2,0) -> 0 | H15: =VLOOKUP($B15,Interface!$B$19:$E$44,3,0) -> 0 | I15: =HLOOKUP(F15,'c_Storage stock levels(quarter)'!$B$3:$C$7,1+'c_Storage calculations'!A15,0) -> 0.372313532 | M15: 0 | N15: 0 | O15: 0 | Q15: 2957 | R15: 64 | T15: 0 | U15: 0 | V15: 0 | W15: 0 | X15: 0 | Z15: 0 | AA15: 0 | AB15: 0 | AC15: 0 | AD15: 0 | AF15: 0 | AG15: 0 | AH15: 0 | AI15: 0 | AJ15: 0
A16: 1 | B16: Baird | C16: =VLOOKUP($B16,'r_Storage parameters'!$B:$E,2,0) -> 206 | D16: =VLOOKUP($B16,'r_Storage parameters'!$B:$E,3,0) -> 114 | E16: =VLOOKUP($B16,'r_Storage parameters'!$B:$E,4,0) -> 10181 | F16: =VLOOKUP($B16,Interface!$B$19:$E$44,4,0) -> LRS/MRS | G16: =VLOOKUP($B16,Interface!$B$19:$E$44,2,0) -> 0 | H16: =VLOOKUP($B16,Interface!$B$19:$E$44,3,0) -> 0 | I16: =HLOOKUP(F16,'c_Storage stock levels(quarter)'!$B$3:$C$7,1+'c_Storage calculations'!A16,0) -> 0.372313532 | M16: 0 | N16: 0 | O16: 0 | Q16: 10181 | R16: 206 | T16: =$G16*MIN(T$4*$C16,$E16*$I16) -> 0 | U16: 0 | V16: 0 | W16: 0 | X16: 0 | Z16: =$G16*MIN(Z$4*$R16,$Q16*$I16) -> 0 | AA16: 0 | AB16: 0 | AC16: 0 | AD16: 0 | AF16: =$G16*MIN(AF$4*$O16,$M16*(1-$I16)) -> 0 | AG16: 0 | AH16: 0 | AI16: 0 | AJ16: 0
A17: 1 | B17: Portland | C17: =VLOOKUP($B17,'r_Storage parameters'!$B:$E,2,0) -> 216 | D17: =VLOOKUP($B17,'r_Storage parameters'!$B:$E,3,0) -> 216 | E17: =VLOOKUP($B17,'r_Storage parameters'!$B:$E,4,0) -> 10830 | F17: =VLOOKUP($B17,Interface!$B$19:$E$44,4,0) -> LRS/MRS | G17: =VLOOKUP($B17,Interface!$B$19:$E$44,2,0) -> 0 | H17: =VLOOKUP($B17,Interface!$B$19:$E$44,3,0) -> 0 | I17: =HLOOKUP(F17,'c_Storage stock levels(quarter)'!$B$3:$C$7,1+'c_Storage calculations'!A17,0) -> 0.372313532 | M17: 0 | N17: 0 | O17: 0 | Q17: 10830 | R17: 216 | T17: 0 | U17: 0 | V17: 0 | W17: 0 | X17: 0 | Z17: 0 | AA17: 0 | AB17: 0 | AC17: 0 | AD17: 0 | AF17: 0 | AG17: 0 | AH17: 0 | AI17: 0 | AJ17: 0
A18: 1 | B18: Caythorpe | C18: =VLOOKUP($B18,'r_Storage parameters'!$B:$E,2,0) -> 90 | D18: =VLOOKUP($B18,'r_Storage parameters'!$B:$E,3,0) -> 90 | E18: =VLOOKUP($B18,'r_Storage parameters'!$B:$E,4,0) -> 1744 | F18: =VLOOKUP($B18,Interface!$B$19:$E$44,4,0) -> LRS/MRS | G18: =VLOOKUP($B18,Interface!$B$19:$E$44,2,0) -> 0 | H18: =VLOOKUP($B18,Interface!$B$19:$E$44,3,0) -> 0 | I18: =HLOOKUP(F18,'c_Storage stock levels(quarter)'!$B$3:$C$7,1+'c_Storage calculations'!A18,0) -> 0.372313532 | M18: 0 | N18: 0 | O18: 0 | Q18: 1744 | R18: 90 | T18: 0 | U18: 0 | V18: 0 | W18: 0 | X18: 0 | Z18: 0 | AA18: 0 | AB18: 0 | AC18: 0 | AD18: 0 | AF18: 0 | AG18: 0 | AH18: 0 | AI18: 0 | AJ18: 0
A19: 1 | B19: Stublach | C19: =VLOOKUP($B19,'r_Storage parameters'!$B:$E,2,0) -> 175 | D19: =VLOOKUP($B19,'r_Storage parameters'!$B:$E,3,0) -> 175 | E19: =VLOOKUP($B19,'r_Storage parameters'!$B:$E,4,0) -> 1500 | F19: =VLOOKUP($B19,Interface!$B$19:$E$44,4,0) -> LRS/MRS | G19: =VLOOKUP($B19,Interface!$B$19:$E$44,2,0) -> 1 | H19: =VLOOKUP($B19,Interface!$B$19:$E$44,3,0) -> 0 | I19: =HLOOKUP(F19,'c_Storage stock levels(quarter)'!$B$3:$C$7,1+'c_Storage calculations'!A19,0) -> 0.372313532 | M19: 0 | N19: 0 | O19: 0 | Q19: 1500 | R19: 175 | T19: 175 | U19: 558.470298 | V19: 558.470298 | W19: 558.470298 | X19: 558.470298 | Z19: 175 | AA19: 558.470298 | AB19: 558.470298 | AC19: 558.470298 | AD19: 558.470298 | AF19: 0 | AG19: 0 | AH19: 0 | AI19: 0 | AJ19: 0
A20: 1 | B20: Hill Top Farm | C20: =VLOOKUP($B20,'r_Storage parameters'!$B:$E,2,0) -> 195 | D20: =VLOOKUP($B20,'r_Storage parameters'!$B:$E,3,0) -> 195 | E20: =VLOOKUP($B20,'r_Storage parameters'!$B:$E,4,0) -> 1070 | F20: =VLOOKUP($B20,Interface!$B$19:$E$44,4,0) -> LRS/MRS | G20: =VLOOKUP($B20,Interface!$B$19:$E$44,2,0) -> 1 | H20: =VLOOKUP($B20,Interface!$B$19:$E$44,3,0) -> 0 | I20: =HLOOKUP(F20,'c_Storage stock levels(quarter)'!$B$3:$C$7,1+'c_Storage calculations'!A20,0) -> 0.372313532 | M20: 0 | N20: 0 | O20: 0 | Q20: 1070 | R20: 195 | T20: 195 | U20: 398.3754792 | V20: 398.3754792 | W20: 398.3754792 | X20: 398.3754792 | Z20: 195 | AA20: 398.3754792 | AB20: 398.3754792 | AC20: 398.3754792 | AD20: 398.3754792 | AF20: 0 | AG20: 0 | AH20: 0 | AI20: 0 | AJ20: 0
A21: 1 | B21: Avonmouth | C21: =VLOOKUP($B21,'r_Storage parameters'!$B:$E,2,0) -> 143 | D21: =VLOOKUP($B21,'r_Storage parameters'!$B:$E,3,0) -> 2.6 | E21: =VLOOKUP($B21,'r_Storage parameters'!$B:$E,4,0) -> 663 | F21: =VLOOKUP($B21,Interface!$B$19:$E$44,4,0) -> SRS | G21: =VLOOKUP($B21,Interface!$B$19:$E$44,2,0) -> 0 | H21: =VLOOKUP($B21,Interface!$B$19:$E$44,3,0) -> 0 | I21: =HLOOKUP(F21,'c_Storage stock levels(quarter)'!$B$3:$C$7,1+'c_Storage calculations'!A21,0) -> 0.5599080373 | M21: 0 | N21: 0 | O21: 0 | Q21: 663 | R21: 143 | T21: 0 | U21: 0 | V21: 0 | W21: 0 | X21: 0 | Z21: 0 | AA21: 0 | AB21: 0 | AC21: 0 | AD21: 0 | AF21: 0 | AG21: 0 | AH21: 0 | AI21: 0 | AJ21: 0
A22: 1 | B22: Glenmavis | C22: =VLOOKUP($B22,'r_Storage parameters'!$B:$E,2,0) -> 92.6 | D22: =VLOOKUP($B22,'r_Storage parameters'!$B:$E,3,0) -> 3.2 | E22: =VLOOKUP($B22,'r_Storage parameters'!$B:$E,4,0) -> 385.1 | F22: =VLOOKUP($B22,Interface!$B$19:$E$44,4,0) -> SRS | G22: =VLOOKUP($B22,Interface!$B$19:$E$44,2,0) -> 0 | H22: =VLOOKUP($B22,Interface!$B$19:$E$44,3,0) -> 0 | I22: =HLOOKUP(F22,'c_Storage stock levels(quarter)'!$B$3:$C$7,1+'c_Storage calculations'!A22,0) -> 0.5599080373 | M22: 0 | N22: 0 | O22: 0 | Q22: 385.1 | R22: 92.6 | T22: 0 | U22: 0 | V22: 0 | W22: 0 | X22: 0 | Z22: 0 | AA22: 0 | AB22: 0 | AC22: 0 | AD22: 0 | AF22: 0 | AG22: 0 | AH22: 0 | AI22: 0 | AJ22: 0
A23: 1 | B23: Partington | C23: =VLOOKUP($B23,'r_Storage parameters'!$B:$E,2,0) -> 154.2 | D23: =VLOOKUP($B23,'r_Storage parameters'!$B:$E,3,0) -> 2.2 | E23: =VLOOKUP($B23,'r_Storage parameters'!$B:$E,4,0) -> 192.1 | F23: =VLOOKUP($B23,Interface!$B$19:$E$44,4,0) -> SRS | G23: =VLOOKUP($B23,Interface!$B$19:$E$44,2,0) -> 0 | H23: =VLOOKUP($B23,Interface!$B$19:$E$44,3,0) -> 0 | I23: =HLOOKUP(F23,'c_Storage stock levels(quarter)'!$B$3:$C$7,1+'c_Storage calculations'!A23,0) -> 0.5599080373 | M23: 0 | N23: 0 | O23: 0 | Q23: 192.1 | R23: 154.2 | T23: 0 | U23: 0 | V23: 0 | W23: 0 | X23: 0 | Z23: 0 | AA23: 0 | AB23: 0 | AC23: 0 | AD23: 0 | AF23: 0 | AG23: 0 | AH23: 0 | AI23: 0 | AJ23: 0
A24: 1 | B24: Aldbrough 2 | C24: =VLOOKUP($B24,'r_Storage parameters'!$B:$E,2,0) -> 420 | D24: =VLOOKUP($B24,'r_Storage parameters'!$B:$E,3,0) -> 317 | E24: =VLOOKUP($B24,'r_Storage parameters'!$B:$E,4,0) -> 3914 | F24: =VLOOKUP($B24,Interface!$B$19:$E$44,4,0) -> LRS/MRS | G24: =VLOOKUP($B24,Interface!$B$19:$E$44,2,0) -> 0 | H24: =VLOOKUP($B24,Interface!$B$19:$E$44,3,0) -> 0 | I24: =HLOOKUP(F24,'c_Storage stock levels(quarter)'!$B$3:$C$7,1+'c_Storage calculations'!A24,0) -> 0.372313532 | M24: 0 | N24: 0 | O24: 0 | Q24: 3914 | R24: 420 | T24: 0 | U24: 0 | V24: 0 | W24: 0 | X24: 0 | Z24: 0 | AA24: 0 | AB24: 0 | AC24: 0 | AD24: 0 | AF24: 0 | AG24: 0 | AH24: 0 | AI24: 0 | AJ24: 0
A25: 1 | B25: Whitehill F | C25: =VLOOKUP($B25,'r_Storage parameters'!$B:$E,2,0) -> 433 | D25: =VLOOKUP($B25,'r_Storage parameters'!$B:$E,3,0) -> 317 | E25: =VLOOKUP($B25,'r_Storage parameters'!$B:$E,4,0) -> 4443 | F25: =VLOOKUP($B25,Interface!$B$19:$E$44,4,0) -> LRS/MRS | G25: =VLOOKUP($B25,Interface!$B$19:$E$44,2,0) -> 0 | H25: =VLOOKUP($B25,Interface!$B$19:$E$44,3,0) -> 0 | I25: =HLOOKUP(F25,'c_Storage stock levels(quarter)'!$B$3:$C$7,1+'c_Storage calculations'!A25,0) -> 0.372313532 | M25: 0 | N25: 0 | O25: 0 | Q25: 4443 | R25: 433 | T25: 0 | U25: 0 | V25: 0 | W25: 0 | X25: 0 | Z25: 0 | AA25: 0 | AB25: 0 | AC25: 0 | AD25: 0 | AF25: 0 | AG25: 0 | AH25: 0 | AI25: 0 | AJ25: 0
A26: 1 | B26: Holford H165 | C26: =VLOOKUP($B26,'r_Storage parameters'!$B:$E,2,0) -> 0 | D26: =VLOOKUP($B26,'r_Storage parameters'!$B:$E,3,0) -> 0 | E26: =VLOOKUP($B26,'r_Storage parameters'!$B:$E,4,0) -> 0 | F26: =VLOOKUP($B26,Interface!$B$19:$E$44,4,0) -> LRS/MRS | G26: =VLOOKUP($B26,Interface!$B$19:$E$44,2,0) -> 0 | H26: =VLOOKUP($B26,Interface!$B$19:$E$44,3,0) -> 0 | I26: =HLOOKUP(F26,'c_Storage stock levels(quarter)'!$B$3:$C$7,1+'c_Storage calculations'!A26,0) -> 0.372313532 | M26: 0 | N26: 0 | O26: 0 | Q26: 0 | R26: 0 | T26: =$G26*MIN(T$4*$C26,$E26*$I26) -> 0 | U26: 0 | V26: 0 | W26: 0 | X26: 0 | Z26: =$G26*MIN(Z$4*$R26,$Q26*$I26) -> 0 | AA26: 0 | AB26: 0 | AC26: 0 | AD26: 0 | AF26: =$G26*MIN(AF$4*$O26,$M26*(1-$I26)) -> 0 | AG26: 0 | AH26: 0 | AI26: 0 | AJ26: 0
A27: 1 | B27: Saltfleetby | C27: =VLOOKUP($B27,'r_Storage parameters'!$B:$E,2,0) -> 85 | D27: =VLOOKUP($B27,'r_Storage parameters'!$B:$E,3,0) -> 47 | E27: =VLOOKUP($B27,'r_Storage parameters'!$B:$E,4,0) -> 7650 | F27: =VLOOKUP($B27,Interface!$B$19:$E$44,4,0) -> LRS/MRS | G27: =VLOOKUP($B27,Interface!$B$19:$E$44,2,0) -> 0 | H27: =VLOOKUP($B27,Interface!$B$19:$E$44,3,0) -> 0 | I27: =HLOOKUP(F27,'c_Storage stock levels(quarter)'!$B$3:$C$7,1+'c_Storage calculations'!A27,0) -> 0.372313532 | M27: 0 | N27: 0 | O27: 0 | Q27: 7650 | R27: 85 | T27: 0 | U27: 0 | V27: 0 | W27: 0 | X27: 0 | Z27: 0 | AA27: 0 | AB27: 0 | AC27: 0 | AD27: 0 | AF27: 0 | AG27: 0 | AH27: 0 | AI27: 0 | AJ27: 0
A28: 1 | B28: Gateway | C28: =VLOOKUP($B28,'r_Storage parameters'!$B:$E,2,0) -> 396 | D28: =VLOOKUP($B28,'r_Storage parameters'!$B:$E,3,0) -> 396 | E28: =VLOOKUP($B28,'r_Storage parameters'!$B:$E,4,0) -> 15870 | F28: =VLOOKUP($B28,Interface!$B$19:$E$44,4,0) -> LRS/MRS | G28: =VLOOKUP($B28,Interface!$B$19:$E$44,2,0) -> 0 | H28: =VLOOKUP($B28,Interface!$B$19:$E$44,3,0) -> 0 | I28: =HLOOKUP(F28,'c_Storage stock levels(quarter)'!$B$3:$C$7,1+'c_Storage calculations'!A28,0) -> 0.372313532 | M28: 0 | N28: 0 | O28: 0 | Q28: 15870 | R28: 396 | T28: 0 | U28: 0 | V28: 0 | W28: 0 | X28: 0 | Z28: 0 | AA28: 0 | AB28: 0 | AC28: 0 | AD28: 0 | AF28: 0 | AG28: 0 | AH28: 0 | AI28: 0 | AJ28: 0
A29: 1 | B29: Albury | C29: =VLOOKUP($B29,'r_Storage parameters'!$B:$E,2,0) -> 46 | D29: =VLOOKUP($B29,'r_Storage parameters'!$B:$E,3,0) -> 46 | E29: =VLOOKUP($B29,'r_Storage parameters'!$B:$E,4,0) -> 1850 | F29: =VLOOKUP($B29,Interface!$B$19:$E$44,4,0) -> LRS/MRS | G29: =VLOOKUP($B29,Interface!$B$19:$E$44,2,0) -> 0 | H29: =VLOOKUP($B29,Interface!$B$19:$E$44,3,0) -> 0 | I29: =HLOOKUP(F29,'c_Storage stock levels(quarter)'!$B$3:$C$7,1+'c_Storage calculations'!A29,0) -> 0.372313532 | M29: 0 | N29: 0 | O29: 0 | Q29: 1850 | R29: 46 | T29: 0 | U29: 0 | V29: 0 | W29: 0 | X29: 0 | Z29: 0 | AA29: 0 | AB29: 0 | AC29: 0 | AD29: 0 | AF29: 0 | AG29: 0 | AH29: 0 | AI29: 0 | AJ29: 0
A30: 1 | B30: SNS Storage | C30: =VLOOKUP($B30,'r_Storage parameters'!$B:$E,2,0) -> 250 | D30: =VLOOKUP($B30,'r_Storage parameters'!$B:$E,3,0) -> 250 | E30: =VLOOKUP($B30,'r_Storage parameters'!$B:$E,4,0) -> 22000 | F30: =VLOOKUP($B30,Interface!$B$19:$E$44,4,0) -> LRS/MRS | G30: =VLOOKUP($B30,Interface!$B$19:$E$44,2,0) -> 0 | H30: =VLOOKUP($B30,Interface!$B$19:$E$44,3,0) -> 0 | I30: =HLOOKUP(F30,'c_Storage stock levels(quarter)'!$B$3:$C$7,1+'c_Storage calculations'!A30,0) -> 0.372313532 | M30: 0 | N30: 0 | O30: 0 | Q30: 22000 | R30: 250 | T30: 0 | U30: 0 | V30: 0 | W30: 0 | X30: 0 | Z30: 0 | AA30: 0 | AB30: 0 | AC30: 0 | AD30: 0 | AF30: 0 | AG30: 0 | AH30: 0 | AI30: 0 | AJ30: 0
A31: 1 | B31: Fleetwood | C31: =VLOOKUP($B31,'r_Storage parameters'!$B:$E,2,0) -> 700 | D31: =VLOOKUP($B31,'r_Storage parameters'!$B:$E,3,0) -> 700 | E31: =VLOOKUP($B31,'r_Storage parameters'!$B:$E,4,0) -> 12700 | F31: =VLOOKUP($B31,Interface!$B$19:$E$44,4,0) -> LRS/MRS | G31: =VLOOKUP($B31,Interface!$B$19:$E$44,2,0) -> 0 | H31: =VLOOKUP($B31,Interface!$B$19:$E$44,3,0) -> 0 | I31: =HLOOKUP(F31,'c_Storage stock levels(quarter)'!$B$3:$C$7,1+'c_Storage calculations'!A31,0) -> 0.372313532 | M31: 0 | N31: 0 | O31: 0 | Q31: 12700 | R31: 700 | T31: 0 | U31: 0 | V31: 0 | W31: 0 | X31: 0 | Z31: 0 | AA31: 0 | AB31: 0 | AC31: 0 | AD31: 0 | AF31: 0 | AG31: 0 | AH31: 0 | AI31: 0 | AJ31: 0
A32: 2 | B32: Rough | C32: =VLOOKUP($B32,'r_Storage parameters'!$B:$E,2,0) -> 455 | D32: =VLOOKUP($B32,'r_Storage parameters'!$B:$E,3,0) -> 238.326 | E32: =VLOOKUP($B32,'r_Storage parameters'!$B:$E,4,0) -> 36800 | F32: =VLOOKUP($B32,Interface!$B$19:$E$44,4,0) -> LRS/MRS | G32: =VLOOKUP($B32,Interface!$B$19:$E$44,2,0) -> 1 | H32: =VLOOKUP($B32,Interface!$B$19:$E$44,3,0) -> 0 | I32: =HLOOKUP(F32,'c_Storage stock levels(quarter)'!$B$3:$C$7,1+'c_Storage calculations'!A32,0) -> 0.3695854905 | M32: 0 | N32: 0 | O32: 0 | Q32: 36800 | R32: 455 | T32: 455 | U32: 3185 | V32: 13600.74605 | W32: 13600.74605 | X32: 13600.74605 | Z32: 455 | AA32: 3185 | AB32: 13600.74605 | AC32: 13600.74605 | AD32: 13600.74605 | AF32: 0 | AG32: 0 | AH32: 0 | AI32: 0 | AJ32: 0
A33: 2 | B33: Hatfield | C33: =VLOOKUP($B33,'r_Storage parameters'!$B:$E,2,0) -> 25 | D33: =VLOOKUP($B33,'r_Storage parameters'!$B:$E,3,0) -> 25 | E33: =VLOOKUP($B33,'r_Storage parameters'!$B:$E,4,0) -> 1260 | F33: =VLOOKUP($B33,Interface!$B$19:$E$44,4,0) -> LRS/MRS | G33: =VLOOKUP($B33,Interface!$B$19:$E$44,2,0) -> 1 | H33: =VLOOKUP($B33,Interface!$B$19:$E$44,3,0) -> 0 | I33: =HLOOKUP(F33,'c_Storage stock levels(quarter)'!$B$3:$C$7,1+'c_Storage calculations'!A33,0) -> 0.3695854905 | M33: 0 | N33: 0 | O33: 0 | Q33: 1260 | R33: 25 | T33: 25 | U33: 175 | V33: 465.677718 | W33: 465.677718 | X33: 465.677718 | Z33: 25 | AA33: 175 | AB33: 465.677718 | AC33: 465.677718 | AD33: 465.677718 | AF33: 0 | AG33: 0 | AH33: 0 | AI33: 0 | AJ33: 0
A34: 2 | B34: Humbly Grove | C34: =VLOOKUP($B34,'r_Storage parameters'!$B:$E,2,0) -> 82 | D34: =VLOOKUP($B34,'r_Storage parameters'!$B:$E,3,0) -> 90 | E34: =VLOOKUP($B34,'r_Storage parameters'!$B:$E,4,0) -> 3730 | F34: =VLOOKUP($B34,Interface!$B$19:$E$44,4,0) -> LRS/MRS | G34: =VLOOKUP($B34,Interface!$B$19:$E$44,2,0) -> 1 | H34: =VLOOKUP($B34,Interface!$B$19:$E$44,3,0) -> 0 | I34: =HLOOKUP(F34,'c_Storage stock levels(quarter)'!$B$3:$C$7,1+'c_Storage calculations'!A34,0) -> 0.3695854905 | M34: 0 | N34: 0 | O34: 0 | Q34: 3730 | R34: 82 | T34: 82 | U34: 574 | V34: 1378.55388 | W34: 1378.55388 | X34: 1378.55388 | Z34: 82 | AA34: 574 | AB34: 1378.55388 | AC34: 1378.55388 | AD34: 1378.55388 | AF34: 0 | AG34: 0 | AH34: 0 | AI34: 0 | AJ34: 0
A35: 2 | B35: Hornsea | C35: =VLOOKUP($B35,'r_Storage parameters'!$B:$E,2,0) -> 195 | D35: =VLOOKUP($B35,'r_Storage parameters'!$B:$E,3,0) -> 21.666 | E35: =VLOOKUP($B35,'r_Storage parameters'!$B:$E,4,0) -> 3496 | F35: =VLOOKUP($B35,Interface!$B$19:$E$44,4,0) -> LRS/MRS | G35: =VLOOKUP($B35,Interface!$B$19:$E$44,2,0) -> 1 | H35: =VLOOKUP($B35,Interface!$B$19:$E$44,3,0) -> 0 | I35: =HLOOKUP(F35,'c_Storage stock levels(quarter)'!$B$3:$C$7,1+'c_Storage calculations'!A35,0) -> 0.3695854905 | M35: 0 | N35: 0 | O35: 0 | Q35: 3496 | R35: 195 | T35: 195 | U35: 1292.070875 | V35: 1292.070875 | W35: 1292.070875 | X35: 1292.070875 | Z35: 195 | AA35: 1292.070875 | AB35: 1292.070875 | AC35: 1292.070875 | AD35: 1292.070875 | AF35: 0 | AG35: 0 | AH35: 0 | AI35: 0 | AJ35: 0
A36: 2 | B36: Holford | C36: =VLOOKUP($B36,'r_Storage parameters'!$B:$E,2,0) -> 169 | D36: =VLOOKUP($B36,'r_Storage parameters'!$B:$E,3,0) -> 169 | E36: =VLOOKUP($B36,'r_Storage parameters'!$B:$E,4,0) -> 1745 | F36: =VLOOKUP($B36,Interface!$B$19:$E$44,4,0) -> LRS/MRS | G36: =VLOOKUP($B36,Interface!$B$19:$E$44,2,0) -> 1 | H36: =VLOOKUP($B36,Interface!$B$19:$E$44,3,0) -> 0 | I36: =HLOOKUP(F36,'c_Storage stock levels(quarter)'!$B$3:$C$7,1+'c_Storage calculations'!A36,0) -> 0.3695854905 | M36: 0 | N36: 0 | O36: 0 | Q36: 1745 | R36: 169 | T36: =$G36*MIN(T$4*$C36,$E36*$I36) -> 169 | U36: 644.9266809 | V36: 644.9266809 | W36: 644.9266809 | X36: 644.9266809 | Z36: =$G36*MIN(Z$4*$R36,$Q36*$I36) -> 169 | AA36: 644.9266809 | AB36: 644.9266809 | AC36: 644.9266809 | AD36: 644.9266809 | AF36: =$G36*MIN(AF$4*$O36,$M36*(1-$I36)) -> 0 | AG36: 0 | AH36: 0 | AI36: 0 | AJ36: 0
A37: 2 | B37: Aldbrough 1 a | C37: =VLOOKUP($B37,'r_Storage parameters'!$B:$E,2,0) -> 105 | D37: =VLOOKUP($B37,'r_Storage parameters'!$B:$E,3,0) -> 317 | E37: =VLOOKUP($B37,'r_Storage parameters'!$B:$E,4,0) -> 649.98 | F37: =VLOOKUP($B37,Interface!$B$19:$E$44,4,0) -> LRS/MRS | G37: =VLOOKUP($B37,Interface!$B$19:$E$44,2,0) -> 1 | H37: =VLOOKUP($B37,Interface!$B$19:$E$44,3,0) -> 0 | I37: =HLOOKUP(F37,'c_Storage stock levels(quarter)'!$B$3:$C$7,1+'c_Storage calculations'!A37,0) -> 0.3695854905 | M37: 0 | N37: 0 | O37: 0 | Q37: 649.98 | R37: 105 | T37: 105 | U37: 240.2231771 | V37: 240.2231771 | W37: 240.2231771 | X37: 240.2231771 | Z37: 105 | AA37: 240.2231771 | AB37: 240.2231771 | AC37: 240.2231771 | AD37: 240.2231771 | AF37: 0 | AG37: 0 | AH37: 0 | AI37: 0 | AJ37: 0
A38: 2 | B38: Aldbrough 1 b | C38: =VLOOKUP($B38,'r_Storage parameters'!$B:$E,2,0) -> 316 | D38: =VLOOKUP($B38,'r_Storage parameters'!$B:$E,3,0) -> 317 | E38: =VLOOKUP($B38,'r_Storage parameters'!$B:$E,4,0) -> 3264.02 | F38: =VLOOKUP($B38,Interface!$B$19:$E$44,4,0) -> LRS/MRS | G38: =VLOOKUP($B38,Interface!$B$19:$E$44,2,0) -> 1 | H38: =VLOOKUP($B38,Interface!$B$19:$E$44,3,0) -> 0 | I38: =HLOOKUP(F38,'c_Storage stock levels(quarter)'!$B$3:$C$7,1+'c_Storage calculations'!A38,0) -> 0.3695854905 | M38: 0 | N38: 0 | O38: 0 | Q38: 3264.02 | R38: 316 | T38: 316 | U38: 1206.334433 | V38: 1206.334433 | W38: 1206.334433 | X38: 1206.334433 | Z38: 316 | AA38: 1206.334433 | AB38: 1206.334433 | AC38: 1206.334433 | AD38: 1206.334433 | AF38: 0 | AG38: 0 | AH38: 0 | AI38: 0 | AJ38: 0
A39: 2 | B39: Hole House Farm | C39: =VLOOKUP($B39,'r_Storage parameters'!$B:$E,2,0) -> 116 | D39: =VLOOKUP($B39,'r_Storage parameters'!$B:$E,3,0) -> 170 | E39: =VLOOKUP($B39,'r_Storage parameters'!$B:$E,4,0) -> 650 | F39: =VLOOKUP($B39,Interface!$B$19:$E$44,4,0) -> LRS/MRS | G39: =VLOOKUP($B39,Interface!$B$19:$E$44,2,0) -> 1 | H39: =VLOOKUP($B39,Interface!$B$19:$E$44,3,0) -> 0 | I39: =HLOOKUP(F39,'c_Storage stock levels(quarter)'!$B$3:$C$7,1+'c_Storage calculations'!A39,0) -> 0.3695854905 | M39: 0 | N39: 0 | O39: 0 | Q39: 650 | R39: 116 | T39: 116 | U39: 240.2305688 | V39: 240.2305688 | W39: 240.2305688 | X39: 240.2305688 | Z39: 116 | AA39: 240.2305688 | AB39: 240.2305688 | AC39: 240.2305688 | AD39: 240.2305688 | AF39: 0 | AG39: 0 | AH39: 0 | AI39: 0 | AJ39: 0
A40: 2 | B40: Hewett | C40: =VLOOKUP($B40,'r_Storage parameters'!$B:$E,2,0) -> 454.986 | D40: =VLOOKUP($B40,'r_Storage parameters'!$B:$E,3,0) -> 454.986 | E40: =VLOOKUP($B40,'r_Storage parameters'!$B:$E,4,0) -> 45498.6 | F40: =VLOOKUP($B40,Interface!$B$19:$E$44,4,0) -> LRS/MRS | G40: =VLOOKUP($B40,Interface!$B$19:$E$44,2,0) -> 0 | H40: =VLOOKUP($B40,Interface!$B$19:$E$44,3,0) -> 0 | I40: =HLOOKUP(F40,'c_Storage stock levels(quarter)'!$B$3:$C$7,1+'c_Storage calculations'!A40,0) -> 0.3695854905 | M40: 0 | N40: 0 | O40: 0 | Q40: 45498.6 | R40: 454.986 | T40: 0 | U40: 0 | V40: 0 | W40: 0 | X40: 0 | Z40: 0 | AA40: 0 | AB40: 0 | AC40: 0 | AD40: 0 | AF40: 0 | AG40: 0 | AH40: 0 | AI40: 0 | AJ40: 0
A41: 2 | B41: Bains | C41: =VLOOKUP($B41,'r_Storage parameters'!$B:$E,2,0) -> 64 | D41: =VLOOKUP($B41,'r_Storage parameters'!$B:$E,3,0) -> 64 | E41: =VLOOKUP($B41,'r_Storage parameters'!$B:$E,4,0) -> 2957 | F41: =VLOOKUP($B41,Interface!$B$19:$E$44,4,0) -> LRS/MRS | G41: =VLOOKUP($B41,Interface!$B$19:$E$44,2,0) -> 0 | H41: =VLOOKUP($B41,Interface!$B$19:$E$44,3,0) -> 0 | I41: =HLOOKUP(F41,'c_Storage stock levels(quarter)'!$B$3:$C$7,1+'c_Storage calculations'!A41,0) -> 0.3695854905 | M41: 0 | N41: 0 | O41: 0 | Q41: 2957 | R41: 64 | T41: 0 | U41: 0 | V41: 0 | W41: 0 | X41: 0 | Z41: 0 | AA41: 0 | AB41: 0 | AC41: 0 | AD41: 0 | AF41: 0 | AG41: 0 | AH41: 0 | AI41: 0 | AJ41: 0
A42: 2 | B42: Baird | C42: =VLOOKUP($B42,'r_Storage parameters'!$B:$E,2,0) -> 206 | D42: =VLOOKUP($B42,'r_Storage parameters'!$B:$E,3,0) -> 114 | E42: =VLOOKUP($B42,'r_Storage parameters'!$B:$E,4,0) -> 10181 | F42: =VLOOKUP($B42,Interface!$B$19:$E$44,4,0) -> LRS/MRS | G42: =VLOOKUP($B42,Interface!$B$19:$E$44,2,0) -> 0 | H42: =VLOOKUP($B42,Interface!$B$19:$E$44,3,0) -> 0 | I42: =HLOOKUP(F42,'c_Storage stock levels(quarter)'!$B$3:$C$7,1+'c_Storage calculations'!A42,0) -> 0.3695854905 | M42: 0 | N42: 0 | O42: 0 | Q42: 10181 | R42: 206 | T42: 0 | U42: 0 | V42: 0 | W42: 0 | X42: 0 | Z42: 0 | AA42: 0 | AB42: 0 | AC42: 0 | AD42: 0 | AF42: 0 | AG42: 0 | AH42: 0 | AI42: 0 | AJ42: 0
A43: 2 | B43: Portland | C43: =VLOOKUP($B43,'r_Storage parameters'!$B:$E,2,0) -> 216 | D43: =VLOOKUP($B43,'r_Storage parameters'!$B:$E,3,0) -> 216 | E43: =VLOOKUP($B43,'r_Storage parameters'!$B:$E,4,0) -> 10830 | F43: =VLOOKUP($B43,Interface!$B$19:$E$44,4,0) -> LRS/MRS | G43: =VLOOKUP($B43,Interface!$B$19:$E$44,2,0) -> 0 | H43: =VLOOKUP($B43,Interface!$B$19:$E$44,3,0) -> 0 | I43: =HLOOKUP(F43,'c_Storage stock levels(quarter)'!$B$3:$C$7,1+'c_Storage calculations'!A43,0) -> 0.3695854905 | M43: 0 | N43: 0 | O43: 0 | Q43: 10830 | R43: 216 | T43: 0 | U43: 0 | V43: 0 | W43: 0 | X43: 0 | Z43: 0 | AA43: 0 | AB43: 0 | AC43: 0 | AD43: 0 | AF43: 0 | AG43: 0 | AH43: 0 | AI43: 0 | AJ43: 0
A44: 2 | B44: Caythorpe | C44: =VLOOKUP($B44,'r_Storage parameters'!$B:$E,2,0) -> 90 | D44: =VLOOKUP($B44,'r_Storage parameters'!$B:$E,3,0) -> 90 | E44: =VLOOKUP($B44,'r_Storage parameters'!$B:$E,4,0) -> 1744 | F44: =VLOOKUP($B44,Interface!$B$19:$E$44,4,0) -> LRS/MRS | G44: =VLOOKUP($B44,Interface!$B$19:$E$44,2,0) -> 0 | H44: =VLOOKUP($B44,Interface!$B$19:$E$44,3,0) -> 0 | I44: =HLOOKUP(F44,'c_Storage stock levels(quarter)'!$B$3:$C$7,1+'c_Storage calculations'!A44,0) -> 0.3695854905 | M44: 0 | N44: 0 | O44: 0 | Q44: 1744 | R44: 90 | T44: 0 | U44: 0 | V44: 0 | W44: 0 | X44: 0 | Z44: 0 | AA44: 0 | AB44: 0 | AC44: 0 | AD44: 0 | AF44: 0 | AG44: 0 | AH44: 0 | AI44: 0 | AJ44: 0
A45: 2 | B45: Stublach | C45: =VLOOKUP($B45,'r_Storage parameters'!$B:$E,2,0) -> 175 | D45: =VLOOKUP($B45,'r_Storage parameters'!$B:$E,3,0) -> 175 | E45: =VLOOKUP($B45,'r_Storage parameters'!$B:$E,4,0) -> 1500 | F45: =VLOOKUP($B45,Interface!$B$19:$E$44,4,0) -> LRS/MRS | G45: =VLOOKUP($B45,Interface!$B$19:$E$44,2,0) -> 1 | H45: =VLOOKUP($B45,Interface!$B$19:$E$44,3,0) -> 0 | I45: =HLOOKUP(F45,'c_Storage stock levels(quarter)'!$B$3:$C$7,1+'c_Storage calculations'!A45,0) -> 0.3695854905 | M45: 0 | N45: 0 | O45: 0 | Q45: 1500 | R45: 175 | T45: 175 | U45: 554.3782358 | V45: 554.3782358 | W45: 554.3782358 | X45: 554.3782358 | Z45: 175 | AA45: 554.3782358 | AB45: 554.3782358 | AC45: 554.3782358 | AD45: 554.3782358 | AF45: 0 | AG45: 0 | AH45: 0 | AI45: 0 | AJ45: 0
A46: 2 | B46: Hill Top Farm | C46: =VLOOKUP($B46,'r_Storage parameters'!$B:$E,2,0) -> 195 | D46: =VLOOKUP($B46,'r_Storage parameters'!$B:$E,3,0) -> 195 | E46: =VLOOKUP($B46,'r_Storage parameters'!$B:$E,4,0) -> 1070 | F46: =VLOOKUP($B46,Interface!$B$19:$E$44,4,0) -> LRS/MRS | G46: =VLOOKUP($B46,Interface!$B$19:$E$44,2,0) -> 1 | H46: =VLOOKUP($B46,Interface!$B$19:$E$44,3,0) -> 0 | I46: =HLOOKUP(F46,'c_Storage stock levels(quarter)'!$B$3:$C$7,1+'c_Storage calculations'!A46,0) -> 0.3695854905 | M46: 0 | N46: 0 | O46: 0 | Q46: 1070 | R46: 195 | T46: =$G46*MIN(T$4*$C46,$E46*$I46) -> 195 | U46: 395.4564748 | V46: 395.4564748 | W46: 395.4564748 | X46: 395.4564748 | Z46: =$G46*MIN(Z$4*$R46,$Q46*$I46) -> 195 | AA46: 395.4564748 | AB46: 395.4564748 | AC46: 395.4564748 | AD46: 395.4564748 | AF46: =$G46*MIN(AF$4*$O46,$M46*(1-$I46)) -> 0 | AG46: 0 | AH46: 0 | AI46: 0 | AJ46: 0
A47: 2 | B47: Avonmouth | C47: =VLOOKUP($B47,'r_Storage parameters'!$B:$E,2,0) -> 143 | D47: =VLOOKUP($B47,'r_Storage parameters'!$B:$E,3,0) -> 2.6 | E47: =VLOOKUP($B47,'r_Storage parameters'!$B:$E,4,0) -> 663 | F47: =VLOOKUP($B47,Interface!$B$19:$E$44,4,0) -> SRS | G47: =VLOOKUP($B47,Interface!$B$19:$E$44,2,0) -> 0 | H47: =VLOOKUP($B47,Interface!$B$19:$E$44,3,0) -> 0 | I47: =HLOOKUP(F47,'c_Storage stock levels(quarter)'!$B$3:$C$7,1+'c_Storage calculations'!A47,0) -> 0.4473145152 | M47: 0 | N47: 0 | O47: 0 | Q47: 663 | R47: 143 | T47: 0 | U47: 0 | V47: 0 | W47: 0 | X47: 0 | Z47: 0 | AA47: 0 | AB47: 0 | AC47: 0 | AD47: 0 | AF47: 0 | AG47: 0 | AH47: 0 | AI47: 0 | AJ47: 0
A48: 2 | B48: Glenmavis | C48: =VLOOKUP($B48,'r_Storage parameters'!$B:$E,2,0) -> 92.6 | D48: =VLOOKUP($B48,'r_Storage parameters'!$B:$E,3,0) -> 3.2 | E48: =VLOOKUP($B48,'r_Storage parameters'!$B:$E,4,0) -> 385.1 | F48: =VLOOKUP($B48,Interface!$B$19:$E$44,4,0) -> SRS | G48: =VLOOKUP($B48,Interface!$B$19:$E$44,2,0) -> 0 | H48: =VLOOKUP($B48,Interface!$B$19:$E$44,3,0) -> 0 | I48: =HLOOKUP(F48,'c_Storage stock levels(quarter)'!$B$3:$C$7,1+'c_Storage calculations'!A48,0) -> 0.4473145152 | M48: 0 | N48: 0 | O48: 0 | Q48: 385.1 | R48: 92.6 | T48: 0 | U48: 0 | V48: 0 | W48: 0 | X48: 0 | Z48: 0 | AA48: 0 | AB48: 0 | AC48: 0 | AD48: 0 | AF48: 0 | AG48: 0 | AH48: 0 | AI48: 0 | AJ48: 0
A49: 2 | B49: Partington | C49: =VLOOKUP($B49,'r_Storage parameters'!$B:$E,2,0) -> 154.2 | D49: =VLOOKUP($B49,'r_Storage parameters'!$B:$E,3,0) -> 2.2 | E49: =VLOOKUP($B49,'r_Storage parameters'!$B:$E,4,0) -> 192.1 | F49: =VLOOKUP($B49,Interface!$B$19:$E$44,4,0) -> SRS | G49: =VLOOKUP($B49,Interface!$B$19:$E$44,2,0) -> 0 | H49: =VLOOKUP($B49,Interface!$B$19:$E$44,3,0) -> 0 | I49: =HLOOKUP(F49,'c_Storage stock levels(quarter)'!$B$3:$C$7,1+'c_Storage calculations'!A49,0) -> 0.4473145152 | M49: 0 | N49: 0 | O49: 0 | Q49: 192.1 | R49: 154.2 | T49: 0 | U49: 0 | V49: 0 | W49: 0 | X49: 0 | Z49: 0 | AA49: 0 | AB49: 0 | AC49: 0 | AD49: 0 | AF49: 0 | AG49: 0 | AH49: 0 | AI49: 0 | AJ49: 0
A50: 2 | B50: Aldbrough 2 | C50: =VLOOKUP($B50,'r_Storage parameters'!$B:$E,2,0) -> 420 | D50: =VLOOKUP($B50,'r_Storage parameters'!$B:$E,3,0) -> 317 | E50: =VLOOKUP($B50,'r_Storage parameters'!$B:$E,4,0) -> 3914 | F50: =VLOOKUP($B50,Interface!$B$19:$E$44,4,0) -> LRS/MRS | G50: =VLOOKUP($B50,Interface!$B$19:$E$44,2,0) -> 0 | H50: =VLOOKUP($B50,Interface!$B$19:$E$44,3,0) -> 0 | I50: =HLOOKUP(F50,'c_Storage stock levels(quarter)'!$B$3:$C$7,1+'c_Storage calculations'!A50,0) -> 0.3695854905 | M50: 0 | N50: 0 | O50: 0 | Q50: 3914 | R50: 420 | T50: 0 | U50: 0 | V50: 0 | W50: 0 | X50: 0 | Z50: 0 | AA50: 0 | AB50: 0 | AC50: 0 | AD50: 0 | AF50: 0 | AG50: 0 | AH50: 0 | AI50: 0 | AJ50: 0
A51: 2 | B51: Whitehill F | C51: =VLOOKUP($B51,'r_Storage parameters'!$B:$E,2,0) -> 433 | D51: =VLOOKUP($B51,'r_Storage parameters'!$B:$E,3,0) -> 317 | E51: =VLOOKUP($B51,'r_Storage parameters'!$B:$E,4,0) -> 4443 | F51: =VLOOKUP($B51,Interface!$B$19:$E$44,4,0) -> LRS/MRS | G51: =VLOOKUP($B51,Interface!$B$19:$E$44,2,0) -> 0 | H51: =VLOOKUP($B51,Interface!$B$19:$E$44,3,0) -> 0 | I51: =HLOOKUP(F51,'c_Storage stock levels(quarter)'!$B$3:$C$7,1+'c_Storage calculations'!A51,0) -> 0.3695854905 | M51: 0 | N51: 0 | O51: 0 | Q51: 4443 | R51: 433 | T51: 0 | U51: 0 | V51: 0 | W51: 0 | X51: 0 | Z51: 0 | AA51: 0 | AB51: 0 | AC51: 0 | AD51: 0 | AF51: 0 | AG51: 0 | AH51: 0 | AI51: 0 | AJ51: 0
A52: 2 | B52: Holford H165 | C52: =VLOOKUP($B52,'r_Storage parameters'!$B:$E,2,0) -> 0 | D52: =VLOOKUP($B52,'r_Storage parameters'!$B:$E,3,0) -> 0 | E52: =VLOOKUP($B52,'r_Storage parameters'!$B:$E,4,0) -> 0 | F52: =VLOOKUP($B52,Interface!$B$19:$E$44,4,0) -> LRS/MRS | G52: =VLOOKUP($B52,Interface!$B$19:$E$44,2,0) -> 0 | H52: =VLOOKUP($B52,Interface!$B$19:$E$44,3,0) -> 0 | I52: =HLOOKUP(F52,'c_Storage stock levels(quarter)'!$B$3:$C$7,1+'c_Storage calculations'!A52,0) -> 0.3695854905 | M52: 0 | N52: 0 | O52: 0 | Q52: 0 | R52: 0 | T52: 0 | U52: 0 | V52: 0 | W52: 0 | X52: 0 | Z52: 0 | AA52: 0 | AB52: 0 | AC52: 0 | AD52: 0 | AF52: 0 | AG52: 0 | AH52: 0 | AI52: 0 | AJ52: 0
A53: 2 | B53: Saltfleetby | C53: =VLOOKUP($B53,'r_Storage parameters'!$B:$E,2,0) -> 85 | D53: =VLOOKUP($B53,'r_Storage parameters'!$B:$E,3,0) -> 47 | E53: =VLOOKUP($B53,'r_Storage parameters'!$B:$E,4,0) -> 7650 | F53: =VLOOKUP($B53,Interface!$B$19:$E$44,4,0) -> LRS/MRS | G53: =VLOOKUP($B53,Interface!$B$19:$E$44,2,0) -> 0 | H53: =VLOOKUP($B53,Interface!$B$19:$E$44,3,0) -> 0 | I53: =HLOOKUP(F53,'c_Storage stock levels(quarter)'!$B$3:$C$7,1+'c_Storage calculations'!A53,0) -> 0.3695854905 | M53: 0 | N53: 0 | O53: 0 | Q53: 7650 | R53: 85 | T53: 0 | U53: 0 | V53: 0 | W53: 0 | X53: 0 | Z53: 0 | AA53: 0 | AB53: 0 | AC53: 0 | AD53: 0 | AF53: 0 | AG53: 0 | AH53: 0 | AI53: 0 | AJ53: 0
A54: 2 | B54: Gateway | C54: =VLOOKUP($B54,'r_Storage parameters'!$B:$E,2,0) -> 396 | D54: =VLOOKUP($B54,'r_Storage parameters'!$B:$E,3,0) -> 396 | E54: =VLOOKUP($B54,'r_Storage parameters'!$B:$E,4,0) -> 15870 | F54: =VLOOKUP($B54,Interface!$B$19:$E$44,4,0) -> LRS/MRS | G54: =VLOOKUP($B54,Interface!$B$19:$E$44,2,0) -> 0 | H54: =VLOOKUP($B54,Interface!$B$19:$E$44,3,0) -> 0 | I54: =HLOOKUP(F54,'c_Storage stock levels(quarter)'!$B$3:$C$7,1+'c_Storage calculations'!A54,0) -> 0.3695854905 | M54: 0 | N54: 0 | O54: 0 | Q54: 15870 | R54: 396 | T54: 0 | U54: 0 | V54: 0 | W54: 0 | X54: 0 | Z54: 0 | AA54: 0 | AB54: 0 | AC54: 0 | AD54: 0 | AF54: 0 | AG54: 0 | AH54: 0 | AI54: 0 | AJ54: 0
A55: 2 | B55: Albury | C55: =VLOOKUP($B55,'r_Storage parameters'!$B:$E,2,0) -> 46 | D55: =VLOOKUP($B55,'r_Storage parameters'!$B:$E,3,0) -> 46 | E55: =VLOOKUP($B55,'r_Storage parameters'!$B:$E,4,0) -> 1850 | F55: =VLOOKUP($B55,Interface!$B$19:$E$44,4,0) -> LRS/MRS | G55: =VLOOKUP($B55,Interface!$B$19:$E$44,2,0) -> 0 | H55: =VLOOKUP($B55,Interface!$B$19:$E$44,3,0) -> 0 | I55: =HLOOKUP(F55,'c_Storage stock levels(quarter)'!$B$3:$C$7,1+'c_Storage calculations'!A55,0) -> 0.3695854905 | M55: 0 | N55: 0 | O55: 0 | Q55: 1850 | R55: 46 | T55: 0 | U55: 0 | V55: 0 | W55: 0 | X55: 0 | Z55: 0 | AA55: 0 | AB55: 0 | AC55: 0 | AD55: 0 | AF55: 0 | AG55: 0 | AH55: 0 | AI55: 0 | AJ55: 0
A56: 2 | B56: SNS Storage | C56: =VLOOKUP($B56,'r_Storage parameters'!$B:$E,2,0) -> 250 | D56: =VLOOKUP($B56,'r_Storage parameters'!$B:$E,3,0) -> 250 | E56: =VLOOKUP($B56,'r_Storage parameters'!$B:$E,4,0) -> 22000 | F56: =VLOOKUP($B56,Interface!$B$19:$E$44,4,0) -> LRS/MRS | G56: =VLOOKUP($B56,Interface!$B$19:$E$44,2,0) -> 0 | H56: =VLOOKUP($B56,Interface!$B$19:$E$44,3,0) -> 0 | I56: =HLOOKUP(F56,'c_Storage stock levels(quarter)'!$B$3:$C$7,1+'c_Storage calculations'!A56,0) -> 0.3695854905 | M56: 0 | N56: 0 | O56: 0 | Q56: 22000 | R56: 250 | T56: =$G56*MIN(T$4*$C56,$E56*$I56) -> 0 | U56: 0 | V56: 0 | W56: 0 | X56: 0 | Z56: =$G56*MIN(Z$4*$R56,$Q56*$I56) -> 0 | AA56: 0 | AB56: 0 | AC56: 0 | AD56: 0 | AF56: =$G56*MIN(AF$4*$O56,$M56*(1-$I56)) -> 0 | AG56: 0 | AH56: 0 | AI56: 0 | AJ56: 0
A57: 2 | B57: Fleetwood | C57: =VLOOKUP($B57,'r_Storage parameters'!$B:$E,2,0) -> 700 | D57: =VLOOKUP($B57,'r_Storage parameters'!$B:$E,3,0) -> 700 | E57: =VLOOKUP($B57,'r_Storage parameters'!$B:$E,4,0) -> 12700 | F57: =VLOOKUP($B57,Interface!$B$19:$E$44,4,0) -> LRS/MRS | G57: =VLOOKUP($B57,Interface!$B$19:$E$44,2,0) -> 0 | H57: =VLOOKUP($B57,Interface!$B$19:$E$44,3,0) -> 0 | I57: =HLOOKUP(F57,'c_Storage stock levels(quarter)'!$B$3:$C$7,1+'c_Storage calculations'!A57,0) -> 0.3695854905 | M57: 0 | N57: 0 | O57: 0 | Q57: 12700 | R57: 700 | T57: 0 | U57: 0 | V57: 0 | W57: 0 | X57: 0 | Z57: 0 | AA57: 0 | AB57: 0 | AC57: 0 | AD57: 0 | AF57: 0 | AG57: 0 | AH57: 0 | AI57: 0 | AJ57: 0
A58: 3 | B58: Rough | C58: =VLOOKUP($B58,'r_Storage parameters'!$B:$E,2,0) -> 455 | D58: =VLOOKUP($B58,'r_Storage parameters'!$B:$E,3,0) -> 238.326 | E58: =VLOOKUP($B58,'r_Storage parameters'!$B:$E,4,0) -> 36800 | F58: =VLOOKUP($B58,Interface!$B$19:$E$44,4,0) -> LRS/MRS | G58: =VLOOKUP($B58,Interface!$B$19:$E$44,2,0) -> 1 | H58: =VLOOKUP($B58,Interface!$B$19:$E$44,3,0) -> 0 | I58: =HLOOKUP(F58,'c_Storage stock levels(quarter)'!$B$3:$C$7,1+'c_Storage calculations'!A58,0) -> 0.8066102176 | M58: 0 | N58: 0 | O58: 0 | Q58: 36800 | R58: 455 | T58: 455 | U58: 3185 | V58: 13650 | W58: 29683.25601 | X58: 29683.25601 | Z58: 455 | AA58: 3185 | AB58: 13650 | AC58: 29683.25601 | AD58: 29683.25601 | AF58: 0 | AG58: 0 | AH58: 0 | AI58: 0 | AJ58: 0
A59: 3 | B59: Hatfield | C59: =VLOOKUP($B59,'r_Storage parameters'!$B:$E,2,0) -> 25 | D59: =VLOOKUP($B59,'r_Storage parameters'!$B:$E,3,0) -> 25 | E59: =VLOOKUP($B59,'r_Storage parameters'!$B:$E,4,0) -> 1260 | F59: =VLOOKUP($B59,Interface!$B$19:$E$44,4,0) -> LRS/MRS | G59: =VLOOKUP($B59,Interface!$B$19:$E$44,2,0) -> 1 | H59: =VLOOKUP($B59,Interface!$B$19:$E$44,3,0) -> 0 | I59: =HLOOKUP(F59,'c_Storage stock levels(quarter)'!$B$3:$C$7,1+'c_Storage calculations'!A59,0) -> 0.8066102176 | M59: 0 | N59: 0 | O59: 0 | Q59: 1260 | R59: 25 | T59: 25 | U59: 175 | V59: 750 | W59: 1016.328874 | X59: 1016.328874 | Z59: 25 | AA59: 175 | AB59: 750 | AC59: 1016.328874 | AD59: 1016.328874 | AF59: 0 | AG59: 0 | AH59: 0 | AI59: 0 | AJ59: 0
A60: 3 | B60: Humbly Grove | C60: =VLOOKUP($B60,'r_Storage parameters'!$B:$E,2,0) -> 82 | D60: =VLOOKUP($B60,'r_Storage parameters'!$B:$E,3,0) -> 90 | E60: =VLOOKUP($B60,'r_Storage parameters'!$B:$E,4,0) -> 3730 | F60: =VLOOKUP($B60,Interface!$B$19:$E$44,4,0) -> LRS/MRS | G60: =VLOOKUP($B60,Interface!$B$19:$E$44,2,0) -> 1 | H60: =VLOOKUP($B60,Interface!$B$19:$E$44,3,0) -> 0 | I60: =HLOOKUP(F60,'c_Storage stock levels(quarter)'!$B$3:$C$7,1+'c_Storage calculations'!A60,0) -> 0.8066102176 | M60: 0 | N60: 0 | O60: 0 | Q60: 3730 | R60: 82 | T60: 82 | U60: 574 | V60: 2460 | W60: 3008.656112 | X60: 3008.656112 | Z60: 82 | AA60: 574 | AB60: 2460 | AC60: 3008.656112 | AD60: 3008.656112 | AF60: 0 | AG60: 0 | AH60: 0 | AI60: 0 | AJ60: 0
A61: 3 | B61: Hornsea | C61: =VLOOKUP($B61,'r_Storage parameters'!$B:$E,2,0) -> 195 | D61: =VLOOKUP($B61,'r_Storage parameters'!$B:$E,3,0) -> 21.666 | E61: =VLOOKUP($B61,'r_Storage parameters'!$B:$E,4,0) -> 3496 | F61: =VLOOKUP($B61,Interface!$B$19:$E$44,4,0) -> LRS/MRS | G61: =VLOOKUP($B61,Interface!$B$19:$E$44,2,0) -> 1 | H61: =VLOOKUP($B61,Interface!$B$19:$E$44,3,0) -> 0 | I61: =HLOOKUP(F61,'c_Storage stock levels(quarter)'!$B$3:$C$7,1+'c_Storage calculations'!A61,0) -> 0.8066102176 | M61: 0 | N61: 0 | O61: 0 | Q61: 3496 | R61: 195 | T61: 195 | U61: 1365 | V61: 2819.909321 | W61: 2819.909321 | X61: 2819.909321 | Z61: 195 | AA61: 1365 | AB61: 2819.909321 | AC61: 2819.909321 | AD61: 2819.909321 | AF61: 0 | AG61: 0 | AH61: 0 | AI61: 0 | AJ61: 0
A62: 3 | B62: Holford | C62: =VLOOKUP($B62,'r_Storage parameters'!$B:$E,2,0) -> 169 | D62: =VLOOKUP($B62,'r_Storage parameters'!$B:$E,3,0) -> 169 | E62: =VLOOKUP($B62,'r_Storage parameters'!$B:$E,4,0) -> 1745 | F62: =VLOOKUP($B62,Interface!$B$19:$E$44,4,0) -> LRS/MRS | G62: =VLOOKUP($B62,Interface!$B$19:$E$44,2,0) -> 1 | H62: =VLOOKUP($B62,Interface!$B$19:$E$44,3,0) -> 0 | I62: =HLOOKUP(F62,'c_Storage stock levels(quarter)'!$B$3:$C$7,1+'c_Storage calculations'!A62,0) -> 0.8066102176 | M62: 0 | N62: 0 | O62: 0 | Q62: 1745 | R62: 169 | T62: 169 | U62: 1183 | V62: 1407.53483 | W62: 1407.53483 | X62: 1407.53483 | Z62: 169 | AA62: 1183 | AB62: 1407.53483 | AC62: 1407.53483 | AD62: 1407.53483 | AF62: 0 | AG62: 0 | AH62: 0 | AI62: 0 | AJ62: 0
A63: 3 | B63: Aldbrough 1 a | C63: =VLOOKUP($B63,'r_Storage parameters'!$B:$E,2,0) -> 105 | D63: =VLOOKUP($B63,'r_Storage parameters'!$B:$E,3,0) -> 317 | E63: =VLOOKUP($B63,'r_Storage parameters'!$B:$E,4,0) -> 649.98 | F63: =VLOOKUP($B63,Interface!$B$19:$E$44,4,0) -> LRS/MRS | G63: =VLOOKUP($B63,Interface!$B$19:$E$44,2,0) -> 1 | H63: =VLOOKUP($B63,Interface!$B$19:$E$44,3,0) -> 0 | I63: =HLOOKUP(F63,'c_Storage stock levels(quarter)'!$B$3:$C$7,1+'c_Storage calculations'!A63,0) -> 0.8066102176 | M63: 0 | N63: 0 | O63: 0 | Q63: 649.98 | R63: 105 | T63: 105 | U63: 524.2805093 | V63: 524.2805093 | W63: 524.2805093 | X63: 524.2805093 | Z63: 105 | AA63: 524.2805093 | AB63: 524.2805093 | AC63: 524.2805093 | AD63: 524.2805093 | AF63: 0 | AG63: 0 | AH63: 0 | AI63: 0 | AJ63: 0
A64: 3 | B64: Aldbrough 1 b | C64: =VLOOKUP($B64,'r_Storage parameters'!$B:$E,2,0) -> 316 | D64: =VLOOKUP($B64,'r_Storage parameters'!$B:$E,3,0) -> 317 | E64: =VLOOKUP($B64,'r_Storage parameters'!$B:$E,4,0) -> 3264.02 | F64: =VLOOKUP($B64,Interface!$B$19:$E$44,4,0) -> LRS/MRS | G64: =VLOOKUP($B64,Interface!$B$19:$E$44,2,0) -> 1 | H64: =VLOOKUP($B64,Interface!$B$19:$E$44,3,0) -> 0 | I64: =HLOOKUP(F64,'c_Storage stock levels(quarter)'!$B$3:$C$7,1+'c_Storage calculations'!A64,0) -> 0.8066102176 | M64: 0 | N64: 0 | O64: 0 | Q64: 3264.02 | R64: 316 | T64: 316 | U64: 2212 | V64: 2632.791883 | W64: 2632.791883 | X64: 2632.791883 | Z64: 316 | AA64: 2212 | AB64: 2632.791883 | AC64: 2632.791883 | AD64: 2632.791883 | AF64: 0 | AG64: 0 | AH64: 0 | AI64: 0 | AJ64: 0
A65: 3 | B65: Hole House Farm | C65: =VLOOKUP($B65,'r_Storage parameters'!$B:$E,2,0) -> 116 | D65: =VLOOKUP($B65,'r_Storage parameters'!$B:$E,3,0) -> 170 | E65: =VLOOKUP($B65,'r_Storage parameters'!$B:$E,4,0) -> 650 | F65: =VLOOKUP($B65,Interface!$B$19:$E$44,4,0) -> LRS/MRS | G65: =VLOOKUP($B65,Interface!$B$19:$E$44,2,0) -> 1 | H65: =VLOOKUP($B65,Interface!$B$19:$E$44,3,0) -> 0 | I65: =HLOOKUP(F65,'c_Storage stock levels(quarter)'!$B$3:$C$7,1+'c_Storage calculations'!A65,0) -> 0.8066102176 | M65: 0 | N65: 0 | O65: 0 | Q65: 650 | R65: 116 | T65: 116 | U65: 524.2966415 | V65: 524.2966415 | W65: 524.2966415 | X65: 524.2966415 | Z65: 116 | AA65: 524.2966415 | AB65: 524.2966415 | AC65: 524.2966415 | AD65: 524.2966415 | AF65: 0 | AG65: 0 | AH65: 0 | AI65: 0 | AJ65: 0
A66: 3 | B66: Hewett | C66: =VLOOKUP($B66,'r_Storage parameters'!$B:$E,2,0) -> 454.986 | D66: =VLOOKUP($B66,'r_Storage parameters'!$B:$E,3,0) -> 454.986 | E66: =VLOOKUP($B66,'r_Storage parameters'!$B:$E,4,0) -> 45498.6 | F66: =VLOOKUP($B66,Interface!$B$19:$E$44,4,0) -> LRS/MRS | G66: =VLOOKUP($B66,Interface!$B$19:$E$44,2,0) -> 0 | H66: =VLOOKUP($B66,Interface!$B$19:$E$44,3,0) -> 0 | I66: =HLOOKUP(F66,'c_Storage stock levels(quarter)'!$B$3:$C$7,1+'c_Storage calculations'!A66,0) -> 0.8066102176 | M66: 0 | N66: 0 | O66: 0 | Q66: 45498.6 | R66: 454.986 | T66: =$G66*MIN(T$4*$C66,$E66*$I66) -> 0 | U66: 0 | V66: 0 | W66: 0 | X66: 0 | Z66: =$G66*MIN(Z$4*$R66,$Q66*$I66) -> 0 | AA66: 0 | AB66: 0 | AC66: 0 | AD66: 0 | AF66: =$G66*MIN(AF$4*$O66,$M66*(1-$I66)) -> 0 | AG66: 0 | AH66: 0 | AI66: 0 | AJ66: 0
A67: 3 | B67: Bains | C67: =VLOOKUP($B67,'r_Storage parameters'!$B:$E,2,0) -> 64 | D67: =VLOOKUP($B67,'r_Storage parameters'!$B:$E,3,0) -> 64 | E67: =VLOOKUP($B67,'r_Storage parameters'!$B:$E,4,0) -> 2957 | F67: =VLOOKUP($B67,Interface!$B$19:$E$44,4,0) -> LRS/MRS | G67: =VLOOKUP($B67,Interface!$B$19:$E$44,2,0) -> 0 | H67: =VLOOKUP($B67,Interface!$B$19:$E$44,3,0) -> 0 | I67: =HLOOKUP(F67,'c_Storage stock levels(quarter)'!$B$3:$C$7,1+'c_Storage calculations'!A67,0) -> 0.8066102176 | M67: 0 | N67: 0 | O67: 0 | Q67: 2957 | R67: 64 | T67: 0 | U67: 0 | V67: 0 | W67: 0 | X67: 0 | Z67: 0 | AA67: 0 | AB67: 0 | AC67: 0 | AD67: 0 | AF67: 0 | AG67: 0 | AH67: 0 | AI67: 0 | AJ67: 0
A68: 3 | B68: Baird | C68: =VLOOKUP($B68,'r_Storage parameters'!$B:$E,2,0) -> 206 | D68: =VLOOKUP($B68,'r_Storage parameters'!$B:$E,3,0) -> 114 | E68: =VLOOKUP($B68,'r_Storage parameters'!$B:$E,4,0) -> 10181 | F68: =VLOOKUP($B68,Interface!$B$19:$E$44,4,0) -> LRS/MRS | G68: =VLOOKUP($B68,Interface!$B$19:$E$44,2,0) -> 0 | H68: =VLOOKUP($B68,Interface!$B$19:$E$44,3,0) -> 0 | I68: =HLOOKUP(F68,'c_Storage stock levels(quarter)'!$B$3:$C$7,1+'c_Storage calculations'!A68,0) -> 0.8066102176 | M68: 0 | N68: 0 | O68: 0 | Q68: 10181 | R68: 206 | T68: 0 | U68: 0 | V68: 0 | W68: 0 | X68: 0 | Z68: 0 | AA68: 0 | AB68: 0 | AC68: 0 | AD68: 0 | AF68: 0 | AG68: 0 | AH68: 0 | AI68: 0 | AJ68: 0
A69: 3 | B69: Portland | C69: =VLOOKUP($B69,'r_Storage parameters'!$B:$E,2,0) -> 216 | D69: =VLOOKUP($B69,'r_Storage parameters'!$B:$E,3,0) -> 216 | E69: =VLOOKUP($B69,'r_Storage parameters'!$B:$E,4,0) -> 10830 | F69: =VLOOKUP($B69,Interface!$B$19:$E$44,4,0) -> LRS/MRS | G69: =VLOOKUP($B69,Interface!$B$19:$E$44,2,0) -> 0 | H69: =VLOOKUP($B69,Interface!$B$19:$E$44,3,0) -> 0 | I69: =HLOOKUP(F69,'c_Storage stock levels(quarter)'!$B$3:$C$7,1+'c_Storage calculations'!A69,0) -> 0.8066102176 | M69: 0 | N69: 0 | O69: 0 | Q69: 10830 | R69: 216 | T69: 0 | U69: 0 | V69: 0 | W69: 0 | X69: 0 | Z69: 0 | AA69: 0 | AB69: 0 | AC69: 0 | AD69: 0 | AF69: 0 | AG69: 0 | AH69: 0 | AI69: 0 | AJ69: 0
A70: 3 | B70: Caythorpe | C70: =VLOOKUP($B70,'r_Storage parameters'!$B:$E,2,0) -> 90 | D70: =VLOOKUP($B70,'r_Storage parameters'!$B:$E,3,0) -> 90 | E70: =VLOOKUP($B70,'r_Storage parameters'!$B:$E,4,0) -> 1744 | F70: =VLOOKUP($B70,Interface!$B$19:$E$44,4,0) -> LRS/MRS | G70: =VLOOKUP($B70,Interface!$B$19:$E$44,2,0) -> 0 | H70: =VLOOKUP($B70,Interface!$B$19:$E$44,3,0) -> 0 | I70: =HLOOKUP(F70,'c_Storage stock levels(quarter)'!$B$3:$C$7,1+'c_Storage calculations'!A70,0) -> 0.8066102176 | M70: 0 | N70: 0 | O70: 0 | Q70: 1744 | R70: 90 | T70: 0 | U70: 0 | V70: 0 | W70: 0 | X70: 0 | Z70: 0 | AA70: 0 | AB70: 0 | AC70: 0 | AD70: 0 | AF70: 0 | AG70: 0 | AH70: 0 | AI70: 0 | AJ70: 0
A71: 3 | B71: Stublach | C71: =VLOOKUP($B71,'r_Storage parameters'!$B:$E,2,0) -> 175 | D71: =VLOOKUP($B71,'r_Storage parameters'!$B:$E,3,0) -> 175 | E71: =VLOOKUP($B71,'r_Storage parameters'!$B:$E,4,0) -> 1500 | F71: =VLOOKUP($B71,Interface!$B$19:$E$44,4,0) -> LRS/MRS | G71: =VLOOKUP($B71,Interface!$B$19:$E$44,2,0) -> 1 | H71: =VLOOKUP($B71,Interface!$B$19:$E$44,3,0) -> 0 | I71: =HLOOKUP(F71,'c_Storage stock levels(quarter)'!$B$3:$C$7,1+'c_Storage calculations'!A71,0) -> 0.8066102176 | M71: =H71*E71 -> 0 | N71: =H71*C71 -> 0 | O71: =D71*H71 -> 0 | Q71: =(1-H71)*E71 -> 1500 | R71: =(1-H71)*C71 -> 175 | T71: 175 | U71: 1209.915326 | V71: 1209.915326 | W71: 1209.915326 | X71: 1209.915326 | Z71: 175 | AA71: 1209.915326 | AB71: 1209.915326 | AC71: 1209.915326 | AD71: 1209.915326 | AF71: 0 | AG71: 0 | AH71: 0 | AI71: 0 | AJ71: 0
A72: 3 | B72: Hill Top Farm | C72: =VLOOKUP($B72,'r_Storage parameters'!$B:$E,2,0) -> 195 | D72: =VLOOKUP($B72,'r_Storage parameters'!$B:$E,3,0) -> 195 | E72: =VLOOKUP($B72,'r_Storage parameters'!$B:$E,4,0) -> 1070 | F72: =VLOOKUP($B72,Interface!$B$19:$E$44,4,0) -> LRS/MRS | G72: =VLOOKUP($B72,Interface!$B$19:$E$44,2,0) -> 1 | H72: =VLOOKUP($B72,Interface!$B$19:$E$44,3,0) -> 0 | I72: =HLOOKUP(F72,'c_Storage stock levels(quarter)'!$B$3:$C$7,1+'c_Storage calculations'!A72,0) -> 0.8066102176 | M72: 0 | N72: 0 | O72: 0 | Q72: 1070 | R72: 195 | T72: 195 | U72: 863.0729329 | V72: 863.0729329 | W72: 863.0729329 | X72: 863.0729329 | Z72: 195 | AA72: 863.0729329 | AB72: 863.0729329 | AC72: 863.0729329 | AD72: 863.0729329 | AF72: 0 | AG72: 0 | AH72: 0 | AI72: 0 | AJ72: 0
A73: 3 | B73: Avonmouth | C73: =VLOOKUP($B73,'r_Storage parameters'!$B:$E,2,0) -> 143 | D73: =VLOOKUP($B73,'r_Storage parameters'!$B:$E,3,0) -> 2.6 | E73: =VLOOKUP($B73,'r_Storage parameters'!$B:$E,4,0) -> 663 | F73: =VLOOKUP($B73,Interface!$B$19:$E$44,4,0) -> SRS | G73: =VLOOKUP($B73,Interface!$B$19:$E$44,2,0) -> 0 | H73: =VLOOKUP($B73,Interface!$B$19:$E$44,3,0) -> 0 | I73: =HLOOKUP(F73,'c_Storage stock levels(quarter)'!$B$3:$C$7,1+'c_Storage calculations'!A73,0) -> 0.392179741 | M73: 0 | N73: 0 | O73: 0 | Q73: 663 | R73: 143 | T73: 0 | U73: 0 | V73: 0 | W73: 0 | X73: 0 | Z73: 0 | AA73: 0 | AB73: 0 | AC73: 0 | AD73: 0 | AF73: 0 | AG73: 0 | AH73: 0 | AI73: 0 | AJ73: 0
A74: 3 | B74: Glenmavis | C74: =VLOOKUP($B74,'r_Storage parameters'!$B:$E,2,0) -> 92.6 | D74: =VLOOKUP($B74,'r_Storage parameters'!$B:$E,3,0) -> 3.2 | E74: =VLOOKUP($B74,'r_Storage parameters'!$B:$E,4,0) -> 385.1 | F74: =VLOOKUP($B74,Interface!$B$19:$E$44,4,0) -> SRS | G74: =VLOOKUP($B74,Interface!$B$19:$E$44,2,0) -> 0 | H74: =VLOOKUP($B74,Interface!$B$19:$E$44,3,0) -> 0 | I74: =HLOOKUP(F74,'c_Storage stock levels(quarter)'!$B$3:$C$7,1+'c_Storage calculations'!A74,0) -> 0.392179741 | M74: 0 | N74: 0 | O74: 0 | Q74: 385.1 | R74: 92.6 | T74: 0 | U74: 0 | V74: 0 | W74: 0 | X74: 0 | Z74: 0 | AA74: 0 | AB74: 0 | AC74: 0 | AD74: 0 | AF74: 0 | AG74: 0 | AH74: 0 | AI74: 0 | AJ74: 0
A75: 3 | B75: Partington | C75: =VLOOKUP($B75,'r_Storage parameters'!$B:$E,2,0) -> 154.2 | D75: =VLOOKUP($B75,'r_Storage parameters'!$B:$E,3,0) -> 2.2 | E75: =VLOOKUP($B75,'r_Storage parameters'!$B:$E,4,0) -> 192.1 | F75: =VLOOKUP($B75,Interface!$B$19:$E$44,4,0) -> SRS | G75: =VLOOKUP($B75,Interface!$B$19:$E$44,2,0) -> 0 | H75: =VLOOKUP($B75,Interface!$B$19:$E$44,3,0) -> 0 | I75: =HLOOKUP(F75,'c_Storage stock levels(quarter)'!$B$3:$C$7,1+'c_Storage calculations'!A75,0) -> 0.392179741 | M75: 0 | N75: 0 | O75: 0 | Q75: 192.1 | R75: 154.2 | T75: 0 | U75: 0 | V75: 0 | W75: 0 | X75: 0 | Z75: 0 | AA75: 0 | AB75: 0 | AC75: 0 | AD75: 0 | AF75: 0 | AG75: 0 | AH75: 0 | AI75: 0 | AJ75: 0
A76: 3 | B76: Aldbrough 2 | C76: =VLOOKUP($B76,'r_Storage parameters'!$B:$E,2,0) -> 420 | D76: =VLOOKUP($B76,'r_Storage parameters'!$B:$E,3,0) -> 317 | E76: =VLOOKUP($B76,'r_Storage parameters'!$B:$E,4,0) -> 3914 | F76: =VLOOKUP($B76,Interface!$B$19:$E$44,4,0) -> LRS/MRS | G76: =VLOOKUP($B76,Interface!$B$19:$E$44,2,0) -> 0 | H76: =VLOOKUP($B76,Interface!$B$19:$E$44,3,0) -> 0 | I76: =HLOOKUP(F76,'c_Storage stock levels(quarter)'!$B$3:$C$7,1+'c_Storage calculations'!A76,0) -> 0.8066102176 | M76: 0 | N76: 0 | O76: 0 | Q76: 3914 | R76: 420 | T76: =$G76*MIN(T$4*$C76,$E76*$I76) -> 0 | U76: 0 | V76: 0 | W76: 0 | X76: 0 | Z76: =$G76*MIN(Z$4*$R76,$Q76*$I76) -> 0 | AA76: 0 | AB76: 0 | AC76: 0 | AD76: 0 | AF76: =$G76*MIN(AF$4*$O76,$M76*(1-$I76)) -> 0 | AG76: 0 | AH76: 0 | AI76: 0 | AJ76: 0
A77: 3 | B77: Whitehill F | C77: =VLOOKUP($B77,'r_Storage parameters'!$B:$E,2,0) -> 433 | D77: =VLOOKUP($B77,'r_Storage parameters'!$B:$E,3,0) -> 317 | E77: =VLOOKUP($B77,'r_Storage parameters'!$B:$E,4,0) -> 4443 | F77: =VLOOKUP($B77,Interface!$B$19:$E$44,4,0) -> LRS/MRS | G77: =VLOOKUP($B77,Interface!$B$19:$E$44,2,0) -> 0 | H77: =VLOOKUP($B77,Interface!$B$19:$E$44,3,0) -> 0 | I77: =HLOOKUP(F77,'c_Storage stock levels(quarter)'!$B$3:$C$7,1+'c_Storage calculations'!A77,0) -> 0.8066102176 | M77: 0 | N77: 0 | O77: 0 | Q77: 4443 | R77: 433 | T77: 0 | U77: 0 | V77: 0 | W77: 0 | X77: 0 | Z77: 0 | AA77: 0 | AB77: 0 | AC77: 0 | AD77: 0 | AF77: 0 | AG77: 0 | AH77: 0 | AI77: 0 | AJ77: 0
A78: 3 | B78: Holford H165 | C78: =VLOOKUP($B78,'r_Storage parameters'!$B:$E,2,0) -> 0 | D78: =VLOOKUP($B78,'r_Storage parameters'!$B:$E,3,0) -> 0 | E78: =VLOOKUP($B78,'r_Storage parameters'!$B:$E,4,0) -> 0 | F78: =VLOOKUP($B78,Interface!$B$19:$E$44,4,0) -> LRS/MRS | G78: =VLOOKUP($B78,Interface!$B$19:$E$44,2,0) -> 0 | H78: =VLOOKUP($B78,Interface!$B$19:$E$44,3,0) -> 0 | I78: =HLOOKUP(F78,'c_Storage stock levels(quarter)'!$B$3:$C$7,1+'c_Storage calculations'!A78,0) -> 0.8066102176 | M78: 0 | N78: 0 | O78: 0 | Q78: 0 | R78: 0 | T78: 0 | U78: 0 | V78: 0 | W78: 0 | X78: 0 | Z78: 0 | AA78: 0 | AB78: 0 | AC78: 0 | AD78: 0 | AF78: 0 | AG78: 0 | AH78: 0 | AI78: 0 | AJ78: 0
A79: 3 | B79: Saltfleetby | C79: =VLOOKUP($B79,'r_Storage parameters'!$B:$E,2,0) -> 85 | D79: =VLOOKUP($B79,'r_Storage parameters'!$B:$E,3,0) -> 47 | E79: =VLOOKUP($B79,'r_Storage parameters'!$B:$E,4,0) -> 7650 | F79: =VLOOKUP($B79,Interface!$B$19:$E$44,4,0) -> LRS/MRS | G79: =VLOOKUP($B79,Interface!$B$19:$E$44,2,0) -> 0 | H79: =VLOOKUP($B79,Interface!$B$19:$E$44,3,0) -> 0 | I79: =HLOOKUP(F79,'c_Storage stock levels(quarter)'!$B$3:$C$7,1+'c_Storage calculations'!A79,0) -> 0.8066102176 | M79: 0 | N79: 0 | O79: 0 | Q79: 7650 | R79: 85 | T79: 0 | U79: 0 | V79: 0 | W79: 0 | X79: 0 | Z79: 0 | AA79: 0 | AB79: 0 | AC79: 0 | AD79: 0 | AF79: 0 | AG79: 0 | AH79: 0 | AI79: 0 | AJ79: 0
A80: 3 | B80: Gateway | C80: =VLOOKUP($B80,'r_Storage parameters'!$B:$E,2,0) -> 396 | D80: =VLOOKUP($B80,'r_Storage parameters'!$B:$E,3,0) -> 396 | E80: =VLOOKUP($B80,'r_Storage parameters'!$B:$E,4,0) -> 15870 | F80: =VLOOKUP($B80,Interface!$B$19:$E$44,4,0) -> LRS/MRS | G80: =VLOOKUP($B80,Interface!$B$19:$E$44,2,0) -> 0 | H80: =VLOOKUP($B80,Interface!$B$19:$E$44,3,0) -> 0 | I80: =HLOOKUP(F80,'c_Storage stock levels(quarter)'!$B$3:$C$7,1+'c_Storage calculations'!A80,0) -> 0.8066102176 | M80: 0 | N80: 0 | O80: 0 | Q80: 15870 | R80: 396 | T80: 0 | U80: 0 | V80: 0 | W80: 0 | X80: 0 | Z80: 0 | AA80: 0 | AB80: 0 | AC80: 0 | AD80: 0 | AF80: 0 | AG80: 0 | AH80: 0 | AI80: 0 | AJ80: 0
A81: 3 | B81: Albury | C81: =VLOOKUP($B81,'r_Storage parameters'!$B:$E,2,0) -> 46 | D81: =VLOOKUP($B81,'r_Storage parameters'!$B:$E,3,0) -> 46 | E81: =VLOOKUP($B81,'r_Storage parameters'!$B:$E,4,0) -> 1850 | F81: =VLOOKUP($B81,Interface!$B$19:$E$44,4,0) -> LRS/MRS | G81: =VLOOKUP($B81,Interface!$B$19:$E$44,2,0) -> 0 | H81: =VLOOKUP($B81,Interface!$B$19:$E$44,3,0) -> 0 | I81: =HLOOKUP(F81,'c_Storage stock levels(quarter)'!$B$3:$C$7,1+'c_Storage calculations'!A81,0) -> 0.8066102176 | M81: 0 | N81: 0 | O81: 0 | Q81: 1850 | R81: 46 | T81: 0 | U81: 0 | V81: 0 | W81: 0 | X81: 0 | Z81: 0 | AA81: 0 | AB81: 0 | AC81: 0 | AD81: 0 | AF81: 0 | AG81: 0 | AH81: 0 | AI81: 0 | AJ81: 0
A82: 3 | B82: SNS Storage | C82: =VLOOKUP($B82,'r_Storage parameters'!$B:$E,2,0) -> 250 | D82: =VLOOKUP($B82,'r_Storage parameters'!$B:$E,3,0) -> 250 | E82: =VLOOKUP($B82,'r_Storage parameters'!$B:$E,4,0) -> 22000 | F82: =VLOOKUP($B82,Interface!$B$19:$E$44,4,0) -> LRS/MRS | G82: =VLOOKUP($B82,Interface!$B$19:$E$44,2,0) -> 0 | H82: =VLOOKUP($B82,Interface!$B$19:$E$44,3,0) -> 0 | I82: =HLOOKUP(F82,'c_Storage stock levels(quarter)'!$B$3:$C$7,1+'c_Storage calculations'!A82,0) -> 0.8066102176 | M82: 0 | N82: 0 | O82: 0 | Q82: 22000 | R82: 250 | T82: 0 | U82: 0 | V82: 0 | W82: 0 | X82: 0 | Z82: 0 | AA82: 0 | AB82: 0 | AC82: 0 | AD82: 0 | AF82: 0 | AG82: 0 | AH82: 0 | AI82: 0 | AJ82: 0
A83: 3 | B83: Fleetwood | C83: =VLOOKUP($B83,'r_Storage parameters'!$B:$E,2,0) -> 700 | D83: =VLOOKUP($B83,'r_Storage parameters'!$B:$E,3,0) -> 700 | E83: =VLOOKUP($B83,'r_Storage parameters'!$B:$E,4,0) -> 12700 | F83: =VLOOKUP($B83,Interface!$B$19:$E$44,4,0) -> LRS/MRS | G83: =VLOOKUP($B83,Interface!$B$19:$E$44,2,0) -> 0 | H83: =VLOOKUP($B83,Interface!$B$19:$E$44,3,0) -> 0 | I83: =HLOOKUP(F83,'c_Storage stock levels(quarter)'!$B$3:$C$7,1+'c_Storage calculations'!A83,0) -> 0.8066102176 | M83: 0 | N83: 0 | O83: 0 | Q83: 12700 | R83: 700 | T83: 0 | U83: 0 | V83: 0 | W83: 0 | X83: 0 | Z83: 0 | AA83: 0 | AB83: 0 | AC83: 0 | AD83: 0 | AF83: 0 | AG83: 0 | AH83: 0 | AI83: 0 | AJ83: 0
A84: 4 | B84: Rough | C84: =VLOOKUP($B84,'r_Storage parameters'!$B:$E,2,0) -> 455 | D84: =VLOOKUP($B84,'r_Storage parameters'!$B:$E,3,0) -> 238.326 | E84: =VLOOKUP($B84,'r_Storage parameters'!$B:$E,4,0) -> 36800 | F84: =VLOOKUP($B84,Interface!$B$19:$E$44,4,0) -> LRS/MRS | G84: =VLOOKUP($B84,Interface!$B$19:$E$44,2,0) -> 1 | H84: =VLOOKUP($B84,Interface!$B$19:$E$44,3,0) -> 0 | I84: =HLOOKUP(F84,'c_Storage stock levels(quarter)'!$B$3:$C$7,1+'c_Storage calculations'!A84,0) -> 0.9682356019 | M84: 0 | N84: 0 | O84: 0 | Q84: 36800 | R84: 455 | T84: 455 | U84: 3185 | V84: 13650 | W84: 35631.07015 | X84: 35631.07015 | Z84: 455 | AA84: 3185 | AB84: 13650 | AC84: 35631.07015 | AD84: 35631.07015 | AF84: 0 | AG84: 0 | AH84: 0 | AI84: 0 | AJ84: 0
A85: 4 | B85: Hatfield | C85: =VLOOKUP($B85,'r_Storage parameters'!$B:$E,2,0) -> 25 | D85: =VLOOKUP($B85,'r_Storage parameters'!$B:$E,3,0) -> 25 | E85: =VLOOKUP($B85,'r_Storage parameters'!$B:$E,4,0) -> 1260 | F85: =VLOOKUP($B85,Interface!$B$19:$E$44,4,0) -> LRS/MRS | G85: =VLOOKUP($B85,Interface!$B$19:$E$44,2,0) -> 1 | H85: =VLOOKUP($B85,Interface!$B$19:$E$44,3,0) -> 0 | I85: =HLOOKUP(F85,'c_Storage stock levels(quarter)'!$B$3:$C$7,1+'c_Storage calculations'!A85,0) -> 0.9682356019 | M85: 0 | N85: 0 | O85: 0 | Q85: 1260 | R85: 25 | T85: 25 | U85: 175 | V85: 750 | W85: 1219.976858 | X85: 1219.976858 | Z85: 25 | AA85: 175 | AB85: 750 | AC85: 1219.976858 | AD85: 1219.976858 | AF85: 0 | AG85: 0 | AH85: 0 | AI85: 0 | AJ85: 0
A86: 4 | B86: Humbly Grove | C86: =VLOOKUP($B86,'r_Storage parameters'!$B:$E,2,0) -> 82 | D86: =VLOOKUP($B86,'r_Storage parameters'!$B:$E,3,0) -> 90 | E86: =VLOOKUP($B86,'r_Storage parameters'!$B:$E,4,0) -> 3730 | F86: =VLOOKUP($B86,Interface!$B$19:$E$44,4,0) -> LRS/MRS | G86: =VLOOKUP($B86,Interface!$B$19:$E$44,2,0) -> 1 | H86: =VLOOKUP($B86,Interface!$B$19:$E$44,3,0) -> 0 | I86: =HLOOKUP(F86,'c_Storage stock levels(quarter)'!$B$3:$C$7,1+'c_Storage calculations'!A86,0) -> 0.9682356019 | M86: 0 | N86: 0 | O86: 0 | Q86: 3730 | R86: 82 | T86: =$G86*MIN(T$4*$C86,$E86*$I86) -> 82 | U86: 574 | V86: 2460 | W86: 3611.518795 | X86: 3611.518795 | Z86: =$G86*MIN(Z$4*$R86,$Q86*$I86) -> 82 | AA86: 574 | AB86: 2460 | AC86: 3611.518795 | AD86: 3611.518795 | AF86: =$G86*MIN(AF$4*$O86,$M86*(1-$I86)) -> 0 | AG86: 0 | AH86: 0 | AI86: 0 | AJ86: 0
A87: 4 | B87: Hornsea | C87: =VLOOKUP($B87,'r_Storage parameters'!$B:$E,2,0) -> 195 | D87: =VLOOKUP($B87,'r_Storage parameters'!$B:$E,3,0) -> 21.666 | E87: =VLOOKUP($B87,'r_Storage parameters'!$B:$E,4,0) -> 3496 | F87: =VLOOKUP($B87,Interface!$B$19:$E$44,4,0) -> LRS/MRS | G87: =VLOOKUP($B87,Interface!$B$19:$E$44,2,0) -> 1 | H87: =VLOOKUP($B87,Interface!$B$19:$E$44,3,0) -> 0 | I87: =HLOOKUP(F87,'c_Storage stock levels(quarter)'!$B$3:$C$7,1+'c_Storage calculations'!A87,0) -> 0.9682356019 | M87: 0 | N87: 0 | O87: 0 | Q87: 3496 | R87: 195 | T87: 195 | U87: 1365 | V87: 3384.951664 | W87: 3384.951664 | X87: 3384.951664 | Z87: 195 | AA87: 1365 | AB87: 3384.951664 | AC87: 3384.951664 | AD87: 3384.951664 | AF87: 0 | AG87: 0 | AH87: 0 | AI87: 0 | AJ87: 0
A88: 4 | B88: Holford | C88: =VLOOKUP($B88,'r_Storage parameters'!$B:$E,2,0) -> 169 | D88: =VLOOKUP($B88,'r_Storage parameters'!$B:$E,3,0) -> 169 | E88: =VLOOKUP($B88,'r_Storage parameters'!$B:$E,4,0) -> 1745 | F88: =VLOOKUP($B88,Interface!$B$19:$E$44,4,0) -> LRS/MRS | G88: =VLOOKUP($B88,Interface!$B$19:$E$44,2,0) -> 1 | H88: =VLOOKUP($B88,Interface!$B$19:$E$44,3,0) -> 0 | I88: =HLOOKUP(F88,'c_Storage stock levels(quarter)'!$B$3:$C$7,1+'c_Storage calculations'!A88,0) -> 0.9682356019 | M88: 0 | N88: 0 | O88: 0 | Q88: 1745 | R88: 169 | T88: 169 | U88: 1183 | V88: 1689.571125 | W88: 1689.571125 | X88: 1689.571125 | Z88: 169 | AA88: 1183 | AB88: 1689.571125 | AC88: 1689.571125 | AD88: 1689.571125 | AF88: 0 | AG88: 0 | AH88: 0 | AI88: 0 | AJ88: 0
A89: 4 | B89: Aldbrough 1 a | C89: =VLOOKUP($B89,'r_Storage parameters'!$B:$E,2,0) -> 105 | D89: =VLOOKUP($B89,'r_Storage parameters'!$B:$E,3,0) -> 317 | E89: =VLOOKUP($B89,'r_Storage parameters'!$B:$E,4,0) -> 649.98 | F89: =VLOOKUP($B89,Interface!$B$19:$E$44,4,0) -> LRS/MRS | G89: =VLOOKUP($B89,Interface!$B$19:$E$44,2,0) -> 1 | H89: =VLOOKUP($B89,Interface!$B$19:$E$44,3,0) -> 0 | I89: =HLOOKUP(F89,'c_Storage stock levels(quarter)'!$B$3:$C$7,1+'c_Storage calculations'!A89,0) -> 0.9682356019 | M89: 0 | N89: 0 | O89: 0 | Q89: 649.98 | R89: 105 | T89: 105 | U89: 629.3337765 | V89: 629.3337765 | W89: 629.3337765 | X89: 629.3337765 | Z89: 105 | AA89: 629.3337765 | AB89: 629.3337765 | AC89: 629.3337765 | AD89: 629.3337765 | AF89: 0 | AG89: 0 | AH89: 0 | AI89: 0 | AJ89: 0
A90: 4 | B90: Aldbrough 1 b | C90: =VLOOKUP($B90,'r_Storage parameters'!$B:$E,2,0) -> 316 | D90: =VLOOKUP($B90,'r_Storage parameters'!$B:$E,3,0) -> 317 | E90: =VLOOKUP($B90,'r_Storage parameters'!$B:$E,4,0) -> 3264.02 | F90: =VLOOKUP($B90,Interface!$B$19:$E$44,4,0) -> LRS/MRS | G90: =VLOOKUP($B90,Interface!$B$19:$E$44,2,0) -> 1 | H90: =VLOOKUP($B90,Interface!$B$19:$E$44,3,0) -> 0 | I90: =HLOOKUP(F90,'c_Storage stock levels(quarter)'!$B$3:$C$7,1+'c_Storage calculations'!A90,0) -> 0.9682356019 | M90: 0 | N90: 0 | O90: 0 | Q90: 3264.02 | R90: 316 | T90: 316 | U90: 2212 | V90: 3160.340369 | W90: 3160.340369 | X90: 3160.340369 | Z90: 316 | AA90: 2212 | AB90: 3160.340369 | AC90: 3160.340369 | AD90: 3160.340369 | AF90: 0 | AG90: 0 | AH90: 0 | AI90: 0 | AJ90: 0
A91: 4 | B91: Hole House Farm | C91: =VLOOKUP($B91,'r_Storage parameters'!$B:$E,2,0) -> 116 | D91: =VLOOKUP($B91,'r_Storage parameters'!$B:$E,3,0) -> 170 | E91: =VLOOKUP($B91,'r_Storage parameters'!$B:$E,4,0) -> 650 | F91: =VLOOKUP($B91,Interface!$B$19:$E$44,4,0) -> LRS/MRS | G91: =VLOOKUP($B91,Interface!$B$19:$E$44,2,0) -> 1 | H91: =VLOOKUP($B91,Interface!$B$19:$E$44,3,0) -> 0 | I91: =HLOOKUP(F91,'c_Storage stock levels(quarter)'!$B$3:$C$7,1+'c_Storage calculations'!A91,0) -> 0.9682356019 | M91: 0 | N91: 0 | O91: 0 | Q91: 650 | R91: 116 | T91: 116 | U91: 629.3531412 | V91: 629.3531412 | W91: 629.3531412 | X91: 629.3531412 | Z91: 116 | AA91: 629.3531412 | AB91: 629.3531412 | AC91: 629.3531412 | AD91: 629.3531412 | AF91: 0 | AG91: 0 | AH91: 0 | AI91: 0 | AJ91: 0
A92: 4 | B92: Hewett | C92: =VLOOKUP($B92,'r_Storage parameters'!$B:$E,2,0) -> 454.986 | D92: =VLOOKUP($B92,'r_Storage parameters'!$B:$E,3,0) -> 454.986 | E92: =VLOOKUP($B92,'r_Storage parameters'!$B:$E,4,0) -> 45498.6 | F92: =VLOOKUP($B92,Interface!$B$19:$E$44,4,0) -> LRS/MRS | G92: =VLOOKUP($B92,Interface!$B$19:$E$44,2,0) -> 0 | H92: =VLOOKUP($B92,Interface!$B$19:$E$44,3,0) -> 0 | I92: =HLOOKUP(F92,'c_Storage stock levels(quarter)'!$B$3:$C$7,1+'c_Storage calculations'!A92,0) -> 0.9682356019 | M92: 0 | N92: 0 | O92: 0 | Q92: 45498.6 | R92: 454.986 | T92: 0 | U92: 0 | V92: 0 | W92: 0 | X92: 0 | Z92: 0 | AA92: 0 | AB92: 0 | AC92: 0 | AD92: 0 | AF92: 0 | AG92: 0 | AH92: 0 | AI92: 0 | AJ92: 0
A93: 4 | B93: Bains | C93: =VLOOKUP($B93,'r_Storage parameters'!$B:$E,2,0) -> 64 | D93: =VLOOKUP($B93,'r_Storage parameters'!$B:$E,3,0) -> 64 | E93: =VLOOKUP($B93,'r_Storage parameters'!$B:$E,4,0) -> 2957 | F93: =VLOOKUP($B93,Interface!$B$19:$E$44,4,0) -> LRS/MRS | G93: =VLOOKUP($B93,Interface!$B$19:$E$44,2,0) -> 0 | H93: =VLOOKUP($B93,Interface!$B$19:$E$44,3,0) -> 0 | I93: =HLOOKUP(F93,'c_Storage stock levels(quarter)'!$B$3:$C$7,1+'c_Storage calculations'!A93,0) -> 0.9682356019 | M93: 0 | N93: 0 | O93: 0 | Q93: 2957 | R93: 64 | T93: 0 | U93: 0 | V93: 0 | W93: 0 | X93: 0 | Z93: 0 | AA93: 0 | AB93: 0 | AC93: 0 | AD93: 0 | AF93: 0 | AG93: 0 | AH93: 0 | AI93: 0 | AJ93: 0
A94: 4 | B94: Baird | C94: =VLOOKUP($B94,'r_Storage parameters'!$B:$E,2,0) -> 206 | D94: =VLOOKUP($B94,'r_Storage parameters'!$B:$E,3,0) -> 114 | E94: =VLOOKUP($B94,'r_Storage parameters'!$B:$E,4,0) -> 10181 | F94: =VLOOKUP($B94,Interface!$B$19:$E$44,4,0) -> LRS/MRS | G94: =VLOOKUP($B94,Interface!$B$19:$E$44,2,0) -> 0 | H94: =VLOOKUP($B94,Interface!$B$19:$E$44,3,0) -> 0 | I94: =HLOOKUP(F94,'c_Storage stock levels(quarter)'!$B$3:$C$7,1+'c_Storage calculations'!A94,0) -> 0.9682356019 | M94: 0 | N94: 0 | O94: 0 | Q94: 10181 | R94: 206 | T94: 0 | U94: 0 | V94: 0 | W94: 0 | X94: 0 | Z94: 0 | AA94: 0 | AB94: 0 | AC94: 0 | AD94: 0 | AF94: 0 | AG94: 0 | AH94: 0 | AI94: 0 | AJ94: 0
A95: 4 | B95: Portland | C95: =VLOOKUP($B95,'r_Storage parameters'!$B:$E,2,0) -> 216 | D95: =VLOOKUP($B95,'r_Storage parameters'!$B:$E,3,0) -> 216 | E95: =VLOOKUP($B95,'r_Storage parameters'!$B:$E,4,0) -> 10830 | F95: =VLOOKUP($B95,Interface!$B$19:$E$44,4,0) -> LRS/MRS | G95: =VLOOKUP($B95,Interface!$B$19:$E$44,2,0) -> 0 | H95: =VLOOKUP($B95,Interface!$B$19:$E$44,3,0) -> 0 | I95: =HLOOKUP(F95,'c_Storage stock levels(quarter)'!$B$3:$C$7,1+'c_Storage calculations'!A95,0) -> 0.9682356019 | M95: 0 | N95: 0 | O95: 0 | Q95: 10830 | R95: 216 | T95: 0 | U95: 0 | V95: 0 | W95: 0 | X95: 0 | Z95: 0 | AA95: 0 | AB95: 0 | AC95: 0 | AD95: 0 | AF95: 0 | AG95: 0 | AH95: 0 | AI95: 0 | AJ95: 0
A96: 4 | B96: Caythorpe | C96: =VLOOKUP($B96,'r_Storage parameters'!$B:$E,2,0) -> 90 | D96: =VLOOKUP($B96,'r_Storage parameters'!$B:$E,3,0) -> 90 | E96: =VLOOKUP($B96,'r_Storage parameters'!$B:$E,4,0) -> 1744 | F96: =VLOOKUP($B96,Interface!$B$19:$E$44,4,0) -> LRS/MRS | G96: =VLOOKUP($B96,Interface!$B$19:$E$44,2,0) -> 0 | H96: =VLOOKUP($B96,Interface!$B$19:$E$44,3,0) -> 0 | I96: =HLOOKUP(F96,'c_Storage stock levels(quarter)'!$B$3:$C$7,1+'c_Storage calculations'!A96,0) -> 0.9682356019 | M96: 0 | N96: 0 | O96: 0 | Q96: 1744 | R96: 90 | T96: =$G96*MIN(T$4*$C96,$E96*$I96) -> 0 | U96: 0 | V96: 0 | W96: 0 | X96: 0 | Z96: =$G96*MIN(Z$4*$R96,$Q96*$I96) -> 0 | AA96: 0 | AB96: 0 | AC96: 0 | AD96: 0 | AF96: =$G96*MIN(AF$4*$O96,$M96*(1-$I96)) -> 0 | AG96: 0 | AH96: 0 | AI96: 0 | AJ96: 0
A97: 4 | B97: Stublach | C97: =VLOOKUP($B97,'r_Storage parameters'!$B:$E,2,0) -> 175 | D97: =VLOOKUP($B97,'r_Storage parameters'!$B:$E,3,0) -> 175 | E97: =VLOOKUP($B97,'r_Storage parameters'!$B:$E,4,0) -> 1500 | F97: =VLOOKUP($B97,Interface!$B$19:$E$44,4,0) -> LRS/MRS | G97: =VLOOKUP($B97,Interface!$B$19:$E$44,2,0) -> 1 | H97: =VLOOKUP($B97,Interface!$B$19:$E$44,3,0) -> 0 | I97: =HLOOKUP(F97,'c_Storage stock levels(quarter)'!$B$3:$C$7,1+'c_Storage calculations'!A97,0) -> 0.9682356019 | M97: 0 | N97: 0 | O97: 0 | Q97: 1500 | R97: 175 | T97: 175 | U97: 1225 | V97: 1452.353403 | W97: 1452.353403 | X97: 1452.353403 | Z97: 175 | AA97: 1225 | AB97: 1452.353403 | AC97: 1452.353403 | AD97: 1452.353403 | AF97: 0 | AG97: 0 | AH97: 0 | AI97: 0 | AJ97: 0
A98: 4 | B98: Hill Top Farm | C98: =VLOOKUP($B98,'r_Storage parameters'!$B:$E,2,0) -> 195 | D98: =VLOOKUP($B98,'r_Storage parameters'!$B:$E,3,0) -> 195 | E98: =VLOOKUP($B98,'r_Storage parameters'!$B:$E,4,0) -> 1070 | F98: =VLOOKUP($B98,Interface!$B$19:$E$44,4,0) -> LRS/MRS | G98: =VLOOKUP($B98,Interface!$B$19:$E$44,2,0) -> 1 | H98: =VLOOKUP($B98,Interface!$B$19:$E$44,3,0) -> 0 | I98: =HLOOKUP(F98,'c_Storage stock levels(quarter)'!$B$3:$C$7,1+'c_Storage calculations'!A98,0) -> 0.9682356019 | M98: 0 | N98: 0 | O98: 0 | Q98: 1070 | R98: 195 | T98: 195 | U98: 1036.012094 | V98: 1036.012094 | W98: 1036.012094 | X98: 1036.012094 | Z98: 195 | AA98: 1036.012094 | AB98: 1036.012094 | AC98: 1036.012094 | AD98: 1036.012094 | AF98: 0 | AG98: 0 | AH98: 0 | AI98: 0 | AJ98: 0
A99: 4 | B99: Avonmouth | C99: =VLOOKUP($B99,'r_Storage parameters'!$B:$E,2,0) -> 143 | D99: =VLOOKUP($B99,'r_Storage parameters'!$B:$E,3,0) -> 2.6 | E99: =VLOOKUP($B99,'r_Storage parameters'!$B:$E,4,0) -> 663 | F99: =VLOOKUP($B99,Interface!$B$19:$E$44,4,0) -> SRS | G99: =VLOOKUP($B99,Interface!$B$19:$E$44,2,0) -> 0 | H99: =VLOOKUP($B99,Interface!$B$19:$E$44,3,0) -> 0 | I99: =HLOOKUP(F99,'c_Storage stock levels(quarter)'!$B$3:$C$7,1+'c_Storage calculations'!A99,0) -> 0.9936211293 | M99: 0 | N99: 0 | O99: 0 | Q99: 663 | R99: 143 | T99: 0 | U99: 0 | V99: 0 | W99: 0 | X99: 0 | Z99: 0 | AA99: 0 | AB99: 0 | AC99: 0 | AD99: 0 | AF99: 0 | AG99: 0 | AH99: 0 | AI99: 0 | AJ99: 0
A100: 4 | B100: Glenmavis | C100: =VLOOKUP($B100,'r_Storage parameters'!$B:$E,2,0) -> 92.6 | D100: =VLOOKUP($B100,'r_Storage parameters'!$B:$E,3,0) -> 3.2 | E100: =VLOOKUP($B100,'r_Storage parameters'!$B:$E,4,0) -> 385.1 | F100: =VLOOKUP($B100,Interface!$B$19:$E$44,4,0) -> SRS | G100: =VLOOKUP($B100,Interface!$B$19:$E$44,2,0) -> 0 | H100: =VLOOKUP($B100,Interface!$B$19:$E$44,3,0) -> 0 | I100: =HLOOKUP(F100,'c_Storage stock levels(quarter)'!$B$3:$C$7,1+'c_Storage calculations'!A100,0) -> 0.9936211293 | M100: 0 | N100: 0 | O100: 0 | Q100: 385.1 | R100: 92.6 | T100: 0 | U100: 0 | V100: 0 | W100: 0 | X100: 0 | Z100: 0 | AA100: 0 | AB100: 0 | AC100: 0 | AD100: 0 | AF100: 0 | AG100: 0 | AH100: 0 | AI100: 0 | AJ100: 0
A101: 4 | B101: Partington | C101: =VLOOKUP($B101,'r_Storage parameters'!$B:$E,2,0) -> 154.2 | D101: =VLOOKUP($B101,'r_Storage parameters'!$B:$E,3,0) -> 2.2 | E101: =VLOOKUP($B101,'r_Storage parameters'!$B:$E,4,0) -> 192.1 | F101: =VLOOKUP($B101,Interface!$B$19:$E$44,4,0) -> SRS | G101: =VLOOKUP($B101,Interface!$B$19:$E$44,2,0) -> 0 | H101: =VLOOKUP($B101,Interface!$B$19:$E$44,3,0) -> 0 | I101: =HLOOKUP(F101,'c_Storage stock levels(quarter)'!$B$3:$C$7,1+'c_Storage calculations'!A101,0) -> 0.9936211293 | M101: 0 | N101: 0 | O101: 0 | Q101: 192.1 | R101: 154.2 | T101: 0 | U101: 0 | V101: 0 | W101: 0 | X101: 0 | Z101: 0 | AA101: 0 | AB101: 0 | AC101: 0 | AD101: 0 | AF101: 0 | AG101: 0 | AH101: 0 | AI101: 0 | AJ101: 0
A102: 4 | B102: Aldbrough 2 | C102: =VLOOKUP($B102,'r_Storage parameters'!$B:$E,2,0) -> 420 | D102: =VLOOKUP($B102,'r_Storage parameters'!$B:$E,3,0) -> 317 | E102: =VLOOKUP($B102,'r_Storage parameters'!$B:$E,4,0) -> 3914 | F102: =VLOOKUP($B102,Interface!$B$19:$E$44,4,0) -> LRS/MRS | G102: =VLOOKUP($B102,Interface!$B$19:$E$44,2,0) -> 0 | H102: =VLOOKUP($B102,Interface!$B$19:$E$44,3,0) -> 0 | I102: =HLOOKUP(F102,'c_Storage stock levels(quarter)'!$B$3:$C$7,1+'c_Storage calculations'!A102,0) -> 0.9682356019 | M102: 0 | N102: 0 | O102: 0 | Q102: 3914 | R102: 420 | T102: 0 | U102: 0 | V102: 0 | W102: 0 | X102: 0 | Z102: 0 | AA102: 0 | AB102: 0 | AC102: 0 | AD102: 0 | AF102: 0 | AG102: 0 | AH102: 0 | AI102: 0 | AJ102: 0
A103: 4 | B103: Whitehill F | C103: =VLOOKUP($B103,'r_Storage parameters'!$B:$E,2,0) -> 433 | D103: =VLOOKUP($B103,'r_Storage parameters'!$B:$E,3,0) -> 317 | E103: =VLOOKUP($B103,'r_Storage parameters'!$B:$E,4,0) -> 4443 | F103: =VLOOKUP($B103,Interface!$B$19:$E$44,4,0) -> LRS/MRS | G103: =VLOOKUP($B103,Interface!$B$19:$E$44,2,0) -> 0 | H103: =VLOOKUP($B103,Interface!$B$19:$E$44,3,0) -> 0 | I103: =HLOOKUP(F103,'c_Storage stock levels(quarter)'!$B$3:$C$7,1+'c_Storage calculations'!A103,0) -> 0.9682356019 | M103: 0 | N103: 0 | O103: 0 | Q103: 4443 | R103: 433 | T103: 0 | U103: 0 | V103: 0 | W103: 0 | X103: 0 | Z103: 0 | AA103: 0 | AB103: 0 | AC103: 0 | AD103: 0 | AF103: 0 | AG103: 0 | AH103: 0 | AI103: 0 | AJ103: 0
A104: 4 | B104: Holford H165 | C104: =VLOOKUP($B104,'r_Storage parameters'!$B:$E,2,0) -> 0 | D104: =VLOOKUP($B104,'r_Storage parameters'!$B:$E,3,0) -> 0 | E104: =VLOOKUP($B104,'r_Storage parameters'!$B:$E,4,0) -> 0 | F104: =VLOOKUP($B104,Interface!$B$19:$E$44,4,0) -> LRS/MRS | G104: =VLOOKUP($B104,Interface!$B$19:$E$44,2,0) -> 0 | H104: =VLOOKUP($B104,Interface!$B$19:$E$44,3,0) -> 0 | I104: =HLOOKUP(F104,'c_Storage stock levels(quarter)'!$B$3:$C$7,1+'c_Storage calculations'!A104,0) -> 0.9682356019 | M104: 0 | N104: 0 | O104: 0 | Q104: 0 | R104: 0 | T104: 0 | U104: 0 | V104: 0 | W104: 0 | X104: 0 | Z104: 0 | AA104: 0 | AB104: 0 | AC104: 0 | AD104: 0 | AF104: 0 | AG104: 0 | AH104: 0 | AI104: 0 | AJ104: 0
A105: 4 | B105: Saltfleetby | C105: =VLOOKUP($B105,'r_Storage parameters'!$B:$E,2,0) -> 85 | D105: =VLOOKUP($B105,'r_Storage parameters'!$B:$E,3,0) -> 47 | E105: =VLOOKUP($B105,'r_Storage parameters'!$B:$E,4,0) -> 7650 | F105: =VLOOKUP($B105,Interface!$B$19:$E$44,4,0) -> LRS/MRS | G105: =VLOOKUP($B105,Interface!$B$19:$E$44,2,0) -> 0 | H105: =VLOOKUP($B105,Interface!$B$19:$E$44,3,0) -> 0 | I105: =HLOOKUP(F105,'c_Storage stock levels(quarter)'!$B$3:$C$7,1+'c_Storage calculations'!A105,0) -> 0.9682356019 | M105: 0 | N105: 0 | O105: 0 | Q105: 7650 | R105: 85 | T105: 0 | U105: 0 | V105: 0 | W105: 0 | X105: 0 | Z105: 0 | AA105: 0 | AB105: 0 | AC105: 0 | AD105: 0 | AF105: 0 | AG105: 0 | AH105: 0 | AI105: 0 | AJ105: 0
A106: 4 | B106: Gateway | C106: =VLOOKUP($B106,'r_Storage parameters'!$B:$E,2,0) -> 396 | D106: =VLOOKUP($B106,'r_Storage parameters'!$B:$E,3,0) -> 396 | E106: =VLOOKUP($B106,'r_Storage parameters'!$B:$E,4,0) -> 15870 | F106: =VLOOKUP($B106,Interface!$B$19:$E$44,4,0) -> LRS/MRS | G106: =VLOOKUP($B106,Interface!$B$19:$E$44,2,0) -> 0 | H106: =VLOOKUP($B106,Interface!$B$19:$E$44,3,0) -> 0 | I106: =HLOOKUP(F106,'c_Storage stock levels(quarter)'!$B$3:$C$7,1+'c_Storage calculations'!A106,0) -> 0.9682356019 | M106: 0 | N106: 0 | O106: 0 | Q106: 15870 | R106: 396 | T106: 0 | U106: 0 | V106: 0 | W106: 0 | X106: 0 | Z106: 0 | AA106: 0 | AB106: 0 | AC106: 0 | AD106: 0 | AF106: 0 | AG106: 0 | AH106: 0 | AI106: 0 | AJ106: 0
A107: 4 | B107: Albury | C107: =VLOOKUP($B107,'r_Storage parameters'!$B:$E,2,0) -> 46 | D107: =VLOOKUP($B107,'r_Storage parameters'!$B:$E,3,0) -> 46 | E107: =VLOOKUP($B107,'r_Storage parameters'!$B:$E,4,0) -> 1850 | F107: =VLOOKUP($B107,Interface!$B$19:$E$44,4,0) -> LRS/MRS | G107: =VLOOKUP($B107,Interface!$B$19:$E$44,2,0) -> 0 | H107: =VLOOKUP($B107,Interface!$B$19:$E$44,3,0) -> 0 | I107: =HLOOKUP(F107,'c_Storage stock levels(quarter)'!$B$3:$C$7,1+'c_Storage calculations'!A107,0) -> 0.9682356019 | M107: 0 | N107: 0 | O107: 0 | Q107: 1850 | R107: 46 | T107: 0 | U107: 0 | V107: 0 | W107: 0 | X107: 0 | Z107: 0 | AA107: 0 | AB107: 0 | AC107: 0 | AD107: 0 | AF107: 0 | AG107: 0 | AH107: 0 | AI107: 0 | AJ107: 0
A108: 4 | B108: SNS Storage | C108: =VLOOKUP($B108,'r_Storage parameters'!$B:$E,2,0) -> 250 | D108: =VLOOKUP($B108,'r_Storage parameters'!$B:$E,3,0) -> 250 | E108: =VLOOKUP($B108,'r_Storage parameters'!$B:$E,4,0) -> 22000 | F108: =VLOOKUP($B108,Interface!$B$19:$E$44,4,0) -> LRS/MRS | G108: =VLOOKUP($B108,Interface!$B$19:$E$44,2,0) -> 0 | H108: =VLOOKUP($B108,Interface!$B$19:$E$44,3,0) -> 0 | I108: =HLOOKUP(F108,'c_Storage stock levels(quarter)'!$B$3:$C$7,1+'c_Storage calculations'!A108,0) -> 0.9682356019 | M108: 0 | N108: 0 | O108: 0 | Q108: 22000 | R108: 250 | T108: 0 | U108: 0 | V108: 0 | W108: 0 | X108: 0 | Z108: 0 | AA108: 0 | AB108: 0 | AC108: 0 | AD108: 0 | AF108: 0 | AG108: 0 | AH108: 0 | AI108: 0 | AJ108: 0
A109: 4 | B109: Fleetwood | C109: =VLOOKUP($B109,'r_Storage parameters'!$B:$E,2,0) -> 700 | D109: =VLOOKUP($B109,'r_Storage parameters'!$B:$E,3,0) -> 700 | E109: =VLOOKUP($B109,'r_Storage parameters'!$B:$E,4,0) -> 12700 | F109: =VLOOKUP($B109,Interface!$B$19:$E$44,4,0) -> LRS/MRS | G109: =VLOOKUP($B109,Interface!$B$19:$E$44,2,0) -> 0 | H109: =VLOOKUP($B109,Interface!$B$19:$E$44,3,0) -> 0 | I109: =HLOOKUP(F109,'c_Storage stock levels(quarter)'!$B$3:$C$7,1+'c_Storage calculations'!A109,0) -> 0.9682356019 | M109: 0 | N109: 0 | O109: 0 | Q109: 12700 | R109: 700 | T109: 0 | U109: 0 | V109: 0 | W109: 0 | X109: 0 | Z109: 0 | AA109: 0 | AB109: 0 | AC109: 0 | AD109: 0 | AF109: 0 | AG109: 0 | AH109: 0 | AI109: 0 | AJ109: 0
R112: Season | S112: Quarter | T112: Daily | U112: Weekly | V112: Monthly | W112: Quarterly | X112: Seasonal | Z112: Daily | AA112: Weekly | AB112: Monthly | AC112: Quarterly | AD112: Seasonal | AF112: Daily | AG112: Weekly | AH112: Monthly | AI112: Quarterly | AJ112: Seasonal
R113: Winter | S113: 1 | T113: =SUMIF($A$6:$A$109,$S113,T$6:T$109) -> 1833 | U113: 8541.379959 | V113: 20115.22448 | W113: 20166.36246 | X113: 20166.36246 | Z113: =SUMIF($A$6:$A$109, $S113,Z$6:Z$109) -> 1833 | AA113: 8541.379959 | AB113: 20115.22448 | AC113: 20166.36246 | AD113: 20166.36246 | AF113: =SUMIF($A$6:$A$109,$S113,AF$6:AF$109) -> 0 | AG113: 0 | AH113: 0 | AI113: 0 | AJ113: 0
R114: Summer | S114: 2 | T114: 1833 | U114: 8507.620445 | V114: 20018.59809 | W114: 20018.59809 | X114: 20018.59809 | Z114: 1833 | AA114: 8507.620445 | AB114: 20018.59809 | AC114: 20018.59809 | AD114: 20018.59809 | AF114: 0 | AG114: 0 | AH114: 0 | AI114: 0 | AJ114: 0
R115: Summer | S115: 3 | T115: 1833 | U115: 11815.56541 | V115: 26841.80144 | W115: 43690.04244 | X115: 43690.04244 | Z115: 1833 | AA115: 11815.56541 | AB115: 26841.80144 | AC115: 43690.04244 | AD115: 43690.04244 | AF115: 0 | AG115: 0 | AH115: 0 | AI115: 0 | AJ115: 0
R116: Winter | S116: 4 | T116: 1833 | U116: 12213.69901 | V116: 28841.91557 | W116: 52444.48138 | X116: 52444.48138 | Z116: 1833 | AA116: 12213.69901 | AB116: 28841.91557 | AC116: 52444.48138 | AD116: 52444.48138 | AF116: 0 | AG116: 0 | AH116: 0 | AI116: 0 | AJ116: 0

Sheet c_Demand calculations
B1: =10.833 -> 10.833 | C1: ="<< 1 mcm="&conversion&" GWh" -> << 1 mcm=10.833 GWh | F1: Avg | G1: =AVERAGE(G6:G370) -> 238.2643364 | H1: Avg | I1: =AVERAGE(I6:I370) -> 231.205162 | L1: Growth (avg) | M1: =I1/G1 -> 0.9703725094
F2: Peak | G2: =MAX(G6:G370) -> 437.33414 | H2: Peak | I2: =MAX(I6:I370) -> 467.003693 | L2: Growth (peak) | M2: =I2/G2 -> 1.067841841
F3: Diff | G3: =G2-G1 -> 199.0698036
B4: Day | C4: Week | D4: Month | E4: Quarter | F4: Season | G4: Demand 09/10 (excl exports) | H4: Demand deviation from average | I4: ="Demand "&Interface!$D$1&" (excl exports)" -> Demand 16/17 (excl exports) | J4: IUK exports | K4: Moffat exports | L4: ="Demand "&Interface!$D$1&" (incl exports)" -> Demand 16/17 (incl exports) | M4: ="Demand "&Interface!$D$1&" (incl exports)" -> Demand 16/17 (incl exports) | N4: ="Selected ("&Interface!$D$1&")" -> Selected (16/17)
B5: DD/MM/YYYY | C5: WW | D5: MM | E5: Q | F5: Season | G5: mcm/day | H5: mcm/day | I5: mcm/day | J5: mcm/day | K5: mcm/day | L5: mcm/day | M5: GWh/day | N5: GWh/day
A6: 1 | B6: ='c_Demand break down'!A3 -> 2009-10-01 | C6: =CEILING(A6/7,1) -> 1 | D6: =MONTH(B6) -> 10 | E6: =IF(D6<=3,1,IF(D6<=6,2,IF(D6<=9,3,4))) -> 4 | F6: =IF(OR(D6<=3,D6>=10),"Winter","Summer") -> Winter | G6: ='c_Demand break down'!F3 -> 180.0327803 | H6: =G6-$G$1 -> -58.2315561 | I6: =$G$1*VLOOKUP(Interface!$D$1,'r_Demand growth forecast'!$A$7:$C$14, 2, FALSE)+H6*($G$2*VLOOKUP(Interface!$D$1,'r_Demand growth forecast'!$A$7:$C$14,3, FALSE)-$G$1*VLOOKUP(Interface!$D$1,'r_Demand growth forecast'!$A$7:$C$14,2, FALSE))/$G$3 -> 162.2297818 | J6: ='r_Bacton IUK exports'!E3 -> 8.82647201 | K6: ='r_Moffat exports'!E3 -> 8.798076891 | L6: =I6+J6+K6 -> 179.8543307 | M6: =L6*conversion -> 1948.361964 | N6: =M6*Interface!$E$4 -> 1948.361964
A7: 2 | B7: ='c_Demand break down'!A4 -> 2009-10-02 | C7: =CEILING(A7/7,1) -> 1 | D7: 10 | E7: 4 | F7: =IF(OR(D7<=3,D7>=10),"Winter","Summer") -> Winter | G7: ='c_Demand break down'!F4 -> 181.6015103 | H7: -56.6628261 | I7: =$G$1*VLOOKUP(Interface!$D$1,'r_Demand growth forecast'!$A$7:$C$14, 2, FALSE)+H7*($G$2*VLOOKUP(Interface!$D$1,'r_Demand growth forecast'!$A$7:$C$14,3, FALSE)-$G$1*VLOOKUP(Interface!$D$1,'r_Demand growth forecast'!$A$7:$C$14,2, FALSE))/$G$3 -> 164.0879452 | J7: ='r_Bacton IUK exports'!E4 -> 3.564724082 | K7: ='r_Moffat exports'!E4 -> 7.449790072 | L7: =I7+J7+K7 -> 175.1024594 | M7: =L7*conversion -> 1896.884942 | N7: =M7*Interface!$E$4 -> 1896.884942
A8: 3 | B8: ='c_Demand break down'!A5 -> 2009-10-03 | C8: 1 | D8: 10 | E8: 4 | F8: Winter | G8: ='c_Demand break down'!F5 -> 169.7488541 | H8: -68.51548223 | I8: =$G$1*VLOOKUP(Interface!$D$1,'r_Demand growth forecast'!$A$7:$C$14, 2, FALSE)+H8*($G$2*VLOOKUP(Interface!$D$1,'r_Demand growth forecast'!$A$7:$C$14,3, FALSE)-$G$1*VLOOKUP(Interface!$D$1,'r_Demand growth forecast'!$A$7:$C$14,2, FALSE))/$G$3 -> 150.0484533 | J8: ='r_Bacton IUK exports'!E5 -> 12.64457275 | K8: ='r_Moffat exports'!E5 -> 6.827673211 | L8: 169.5206992 | M8: 1836.417735 | N8: =M8*Interface!$E$4 -> 1836.417735
A9: 4 | B9: ='c_Demand break down'!A6 -> 2009-10-04 | C9: 1 | D9: 10 | E9: 4 | F9: Winter | G9: ='c_Demand break down'!F6 -> 180.4406571 | H9: -57.82367925 | I9: =$G$1*VLOOKUP(Interface!$D$1,'r_Demand growth forecast'!$A$7:$C$14, 2, FALSE)+H9*($G$2*VLOOKUP(Interface!$D$1,'r_Demand growth forecast'!$A$7:$C$14,3, FALSE)-$G$1*VLOOKUP(Interface!$D$1,'r_Demand growth forecast'!$A$7:$C$14,2, FALSE))/$G$3 -> 162.7129126 | J9: ='r_Bacton IUK exports'!E6 -> 12.05944809 | K9: ='r_Moffat exports'!E6 -> 7.467117958 | L9: 182.2394787 | M9: 1974.200272 | N9: =M9*Interface!$E$4 -> 1974.200272
A10: 5 | B10: ='c_Demand break down'!A7 -> 2009-10-05 | C10: 1 | D10: 10 | E10: 4 | F10: Winter | G10: ='c_Demand break down'!F7 -> 194.89116 | H10: -43.37317636 | I10: =$G$1*VLOOKUP(Interface!$D$1,'r_Demand growth forecast'!$A$7:$C$14, 2, FALSE)+H10*($G$2*VLOOKUP(Interface!$D$1,'r_Demand growth forecast'!$A$7:$C$14,3, FALSE)-$G$1*VLOOKUP(Interface!$D$1,'r_Demand growth forecast'!$A$7:$C$14,2, FALSE))/$G$3 -> 179.8295586 | J10: ='r_Bacton IUK exports'!E7 -> 10.21584539 | K10: ='r_Moffat exports'!E7 -> 8.215768647 | L10: 198.2611726 | M10: 2147.763283 | N10: =M10*Interface!$E$4 -> 2147.763283
A11: 6 | B11: ='c_Demand break down'!A8 -> 2009-10-06 | C11: 1 | D11: 10 | E11: 4 | F11: Winter | G11: ='c_Demand break down'!F8 -> 186.7694215 | H11: -51.49491487 | I11: =$G$1*VLOOKUP(Interface!$D$1,'r_Demand growth forecast'!$A$7:$C$14, 2, FALSE)+H11*($G$2*VLOOKUP(Interface!$D$1,'r_Demand growth forecast'!$A$7:$C$14,3, FALSE)-$G$1*VLOOKUP(Interface!$D$1,'r_Demand growth forecast'!$A$7:$C$14,2, FALSE))/$G$3 -> 170.2093451 | J11: ='r_Bacton IUK exports'!E8 -> 14.30538704 | K11: ='r_Moffat exports'!E8 -> 8.404568032 | L11: 192.9193002 | M11: 2089.894779 | N11: =M11*Interface!$E$4 -> 2089.894779
A12: 7 | B12: ='c_Demand break down'!A9 -> 2009-10-07 | C12: 1 | D12: 10 | E12: 4 | F12: Winter | G12: ='c_Demand break down'!F9 -> 206.0323658 | H12: -32.23197054 | I12: =$G$1*VLOOKUP(Interface!$D$1,'r_Demand growth forecast'!$A$7:$C$14, 2, FALSE)+H12*($G$2*VLOOKUP(Interface!$D$1,'r_Demand growth forecast'!$A$7:$C$14,3, FALSE)-$G$1*VLOOKUP(Interface!$D$1,'r_Demand growth forecast'!$A$7:$C$14,2, FALSE))/$G$3 -> 193.0263364 | J12: ='r_Bacton IUK exports'!E9 -> 7.911087409 | K12: ='r_Moffat exports'!E9 -> 9.171484258 | L12: 210.1089081 | M12: 2276.109801 | N12: =M12*Interface!$E$4 -> 2276.109801
